Workbook

Sheet Efnisyfirlit
A2: Lífeyrissjóðir - Hagtölur
A3: Uppfært 22.11.2017
A5: Tölfræði
A6: Mynd 1. Hrein eign lífeyrissjóða frá árin 1998 | B6: Gögn
A7: Mynd 2. Mánaðarleg þróun hreinna eigna lífeyrissjóða | B7: Gögn
A8: Mynd 3. Árleg þróun hreinna eigna lífeyrissjóða | B8: Gögn
A9: Mynd 4. Eignasamsetning lífeyrissjóða júní 2017 | B9: Gögn
A10: Mynd 5. Eignasamsetning lífeyrissjóða frá árinu 1997 | B10: Gögn
A11: Mynd 6. Heildareignir sem % af VLF | B11: Gögn
A12: Mynd 7. Rekstrarkostnaður og fjárfestingargjöld sem % af eignum | B12: Gögn
A13: Mynd 8. Hrein raunávöxtun frá árinu 1997 | B13: Gögn
A14: Mynd 9. Tryggingafræðileg staða | B14: Gögn
A15: Mynd 10. Skipting lífeyrisgreiðslna lífeyrissjóða frá árinu 1998 (samtrygging) | B15: Gögn
A16: Mynd 11. Hlutfall örorkulífeyris innan samtryggingardeilda lífeyrissjóða | B16: Gögn
A17: Mynd 12. Þróun lífeyrisgreiðslna og fjölda lífeyrisþega | B17: Gögn
A18: Mynd 13. Iðgjöld og fjöldi sjóðfélaga | B18: Gögn
A19: Mynd 14. Fjöldi með skyldu- og viðbótarlífeyrissparnað | B19: Gögn
A20: Mynd 15. Örorku-og ellilífeyrir Tryggingastofnunar ríkisins frá árinu 1998 | B20: Gögn
A21: Mynd 16. Samanburður lífeyrisgreiðslna og fjölda á milli Tryggingastofnunar ríkisins og lífeyrissjóðanna | B21: Gögn
A22: Mynd 17. Lífeyrisvísitala | B22: Gögn
A23: Mynd 18. Fasteignaveðtryggð skuldabréf lífeyrissjóða | B23: Gögn
A26: Töflur
A27: Tafla 1. Lífeyrisgreiðslur lífeyrissjóða frá árinu 1998
A28: Tafla 2. Hlutfall örokulífeyris innan samtryggingardeilda lífeyrissjóða
A29: Tafla 3. Greiðslur TR - ellilífeyrir, örorkulífeyrir, endurhæfingarlífeyrir og örorkustyrkur
A30: Tafla 4. Samanburður, elli og örorkulífeyrir lífeyrissjóða og TR
A32: Erlendar tölur
A33: Eignir lífeyrissjóða í hlutfalli við stærð hagkerfa í löndum innan OECD
A34: Ávöxtun lífeyrissjóða í völdum ríkjum innan OECD
A35: Rekstrarkostnaður sem hlutfall af heildareignum
A37: Heimildir:
A38: Fjármálaeftirlitið - www.fme.is
A39: Ársskýrslur lífeyrissjóðanna
A40: Seðlabanki Íslands
A41: Staðtölur á www.tr.is
A42: Tryggingastofnun ríkisins
A43: Ríkisskattstjóri
A44: OECD Global Pension Statistics
A45: OECD Social Expenditure database
A46: Hagstofa Íslands
A48: Fyrirvari
A49: Landssamtök lífeyrissjóða hafa skipað vinnuhóp sem hefur unnið úr ýmsum birtum upplýsingum eftir bestu getu og þekkingu
A50: en árétta ber að samtökin taka ekki ábyrgð á réttmæti gagnanna né villum sem kunna að koma upp við vinnslu þeirra.

Sheet M1. Hrein eign
A1: Fara í efnisyfirlit
A2: Skoða gögn
A3: Hrein eign lífeyrissjóða árin 1998 til 2016 | M3: Raunvirði hreinnar eignar lífeyrissjóða árin 1998 til 2016
A80: Fyrirvari
A81: Landssamtök lífeyrissjóða hafa skipað vinnuhóp sem hefur unnið úr ýmsum birtum upplýsingum eftir bestu getu og þekkingu
A82: en árétta ber að samtökin taka ekki ábyrgð á réttmæti gagnanna né villum sem kunna að koma upp við vinnslu þeirra.

Sheet M2. Mánaðarl. þróun hr. eigna
A1: Fara í efnisyfirlit
A2: Skoða gögn
A32: Fyrirvari
A33: Landssamtök lífeyrissjóða hafa skipað vinnuhóp sem hefur unnið úr ýmsum birtum upplýsingum eftir bestu getu og þekkingu
A34: en árétta ber að samtökin taka ekki ábyrgð á réttmæti gagnanna né villum sem kunna að koma upp við vinnslu þeirra.

Sheet M3. Árleg þróun hr. eigna
A1: Fara í efnisyfirlit
A2: Skoða gögn
A33: Fyrirvari
A34: Landssamtök lífeyrissjóða hafa skipað vinnuhóp sem hefur unnið úr ýmsum birtum upplýsingum eftir bestu getu og þekkingu
A35: en árétta ber að samtökin taka ekki ábyrgð á réttmæti gagnanna né villum sem kunna að koma upp við vinnslu þeirra.

Sheet M4. Eignasams. lsj.
A1: Fara í efnisyfirlit
A2: Skoða gögn
A32: Fyrirvari
A33: Landssamtök lífeyrissjóða hafa skipað vinnuhóp sem hefur unnið úr ýmsum birtum upplýsingum eftir bestu getu og þekkingu
A34: en árétta ber að samtökin taka ekki ábyrgð á réttmæti gagnanna né villum sem kunna að koma upp við vinnslu þeirra.

Sheet M5. Eignasams. lsj. frá 1997
A1: Fara í efnisyfirlit
A2: Skoða gögn
A31: Fyrirvari
A32: Landssamtök lífeyrissjóða hafa skipað vinnuhóp sem hefur unnið úr ýmsum birtum upplýsingum eftir bestu getu og þekkingu
A33: en árétta ber að samtökin taka ekki ábyrgð á réttmæti gagnanna né villum sem kunna að koma upp við vinnslu þeirra.

Sheet M6. Heildareignir % af VLF
A1: Fara í efnisyfirlit
A2: Skoða gögn
A59: Fyrirvari
A60: Landssamtök lífeyrissjóða hafa skipað vinnuhóp sem hefur unnið úr ýmsum birtum upplýsingum eftir bestu getu og þekkingu
A61: en árétta ber að samtökin taka ekki ábyrgð á réttmæti gagnanna né villum sem kunna að koma upp við vinnslu þeirra.

Sheet M7. Kostnaður sem % af eignum
A1: Fara í efnisyfirlit
A2: Skoða gögn
A32: Fyrirvari
A33: Landssamtök lífeyrissjóða hafa skipað vinnuhóp sem hefur unnið úr ýmsum birtum upplýsingum eftir bestu getu og þekkingu
A34: en árétta ber að samtökin taka ekki ábyrgð á réttmæti gagnanna né villum sem kunna að koma upp við vinnslu þeirra.

Sheet M8. Hrein raunávöxtun
A1: Fara í efnisyfirlit
A2: Skoða gögn
A86: Fyrirvari
A87: Landssamtök lífeyrissjóða hafa skipað vinnuhóp sem hefur unnið úr ýmsum birtum upplýsingum eftir bestu getu og þekkingu
A88: en árétta ber að samtökin taka ekki ábyrgð á réttmæti gagnanna né villum sem kunna að koma upp við vinnslu þeirra.

Sheet M9. Tryggingafræðileg staða
A1: Fara í efnisyfirlit
A2: Skoða gögn
A33: Fyrirvari
A34: Landssamtök lífeyrissjóða hafa skipað vinnuhóp sem hefur unnið úr ýmsum birtum upplýsingum eftir bestu getu og þekkingu
A35: en árétta ber að samtökin taka ekki ábyrgð á réttmæti gagnanna né villum sem kunna að koma upp við vinnslu þeirra.

Sheet M10. Skipting lífeyrisgreiðslna
A1: Fara í efnisyfirlit
A2: Skoða töflu
A3: Skoða gögn
B4: Skipting lífeyrisgreiðslna lífeyrissjóða á árunum 1998 til 2016 (samtrygging)
A40: Fyrirvari
A41: Landssamtök lífeyrissjóða hafa skipað vinnuhóp sem hefur unnið úr ýmsum birtum upplýsingum eftir bestu getu og þekkingu
A42: en árétta ber að samtökin taka ekki ábyrgð á réttmæti gagnanna né villum sem kunna að koma upp við vinnslu þeirra.

Sheet M11. Örorkulífeyrir
A1: Fara í efnisyfirlit
A2: Skoða töflu
A3: Skoða gögn
B4: Hlutfall örorkulífeyris innan samtryggingardeilda lífeyrissjóða frá 2014 til 2016
A61: Fyrirvari
A62: Landssamtök lífeyrissjóða hafa skipað vinnuhóp sem hefur unnið úr ýmsum birtum upplýsingum eftir bestu getu og þekkingu
A63: en árétta ber að samtökin taka ekki ábyrgð á réttmæti gagnanna né villum sem kunna að koma upp við vinnslu þeirra.

Sheet M12. Lífeyrisgreiðslur
A1: Fara í efnisyfirlit
A2: Skoða gögn
A3: Þróun lífeyrisgreiðslna og fjölda lífeyrisþega
A113: Fyrirvari
A114: Landssamtök lífeyrissjóða hafa skipað vinnuhóp sem hefur unnið úr ýmsum birtum upplýsingum eftir bestu getu og þekkingu
A115: en árétta ber að samtökin taka ekki ábyrgð á réttmæti gagnanna né villum sem kunna að koma upp við vinnslu þeirra.

Sheet M13. Iðgjöld
A1: Fara í efnisyfirlit
A2: Skoða gögn
A114: Fyrirvari
A115: Landssamtök lífeyrissjóða hafa skipað vinnuhóp sem hefur unnið úr ýmsum birtum upplýsingum eftir bestu getu og þekkingu
A116: en árétta ber að samtökin taka ekki ábyrgð á réttmæti gagnanna né villum sem kunna að koma upp við vinnslu þeirra.

Sheet M14. Iðgjöld RSK
A1: Fara í efnisyfirlit
A2: Skoða gögn
A32: Fyrirvari
A33: Landssamtök lífeyrissjóða hafa skipað vinnuhóp sem hefur unnið úr ýmsum birtum upplýsingum eftir bestu getu og þekkingu
A34: en árétta ber að samtökin taka ekki ábyrgð á réttmæti gagnanna né villum sem kunna að koma upp við vinnslu þeirra.

Sheet M15. Ársútgjöld TR
A1: Fara í efnisyfirlit
A2: Skoða gögn
A3: Skoða töflu
A4: Örorku-og ellilífeyrir Tryggingastofnunar ríkisins
A141: Fyrirvari
A142: Landssamtök lífeyrissjóða hafa skipað vinnuhóp sem hefur unnið úr ýmsum birtum upplýsingum eftir bestu getu og þekkingu
A143: en árétta ber að samtökin taka ekki ábyrgð á réttmæti gagnanna né villum sem kunna að koma upp við vinnslu þeirra.

Sheet M16. Lsj. og TR
A1: Fara í efnisyfirlit
A2: Skoða töflu
A3: Skoða gögn
A4: Samanburður lífeyrisgreiðslna og fjölda á milli Tryggingastofnunar ríkisins og lífeyrissjóðanna
A140: Fyrirvari
A141: Landssamtök lífeyrissjóða hafa skipað vinnuhóp sem hefur unnið úr ýmsum birtum upplýsingum eftir bestu getu og þekkingu
A142: en árétta ber að samtökin taka ekki ábyrgð á réttmæti gagnanna né villum sem kunna að koma upp við vinnslu þeirra.

Sheet M17. Lífeyrisvísitala
A1: Fara í efnisyfirlit
A2: Skoða gögn
A28: Fyrirvari
A29: Landssamtök lífeyrissjóða hafa skipað vinnuhóp sem hefur unnið úr ýmsum birtum upplýsingum eftir bestu getu og þekkingu
A30: en árétta ber að samtökin taka ekki ábyrgð á réttmæti gagnanna né villum sem kunna að koma upp við vinnslu þeirra.

Sheet M18. Veðlán
A1: Fara í efnisyfirlit
A2: Skoða gögn
A72: Fyrirvari
A73: Landssamtök lífeyrissjóða hafa skipað vinnuhóp sem hefur unnið úr ýmsum birtum upplýsingum eftir bestu getu og þekkingu
A74: en árétta ber að samtökin taka ekki ábyrgð á réttmæti gagnanna né villum sem kunna að koma upp við vinnslu þeirra.

Sheet Gögn M1
A1: Fara á efnisyfirlit
A2: Skoða mynd
F4: 2016=100
B5: HREIN EIGN LÍFEYRISSJÓÐA - SAMTRYGGING OG SÉREIGN - í milljörðum kr. | F5: RAUNVIRÐI HREINNAR EIGNAR LÍFEYRISSJÓÐA - SAMTRYGGING OG SÉREIGN - í milljörðum kr.
A6: Ár | B6: Hrein eign lífeyrissjóða | C6: Hrein eign - samtrygging | D6: Hrein eign - séreign innan lífeyrissjóða | E6: Hrein eign - séreign utan lífeyrissjóða | F6: Raunvirði hreinnar eignar lífeyrissjóða | G6: Raunvirði hreinnar eignar - samtrygging | H6: Raunvirði hreinnar eignar - séreign innan lífeyrissjóða | I6: Raunvirði hreinnar eignar - séreign utan lífeyrissjóða | J6: VNV Meðaltal árs
A7: 1998 | B7: 407.3290036 | C7: 390.365236 | D7: 16.963768 | F7: =B7*$J$25/J7 -> 967.3230511 | G7: =C7*$J$25/J7 -> 927.0375735 | H7: =D7*$J$25/J7 -> 40.28547851 | I7: =E7*$J$25/J7 -> 0 | J7: 183.3
A8: 1999 | B8: 517.5990119 | C8: 487.587645 | D8: 30.011367 | F8: =B8*$J$25/J8 -> 1188.348364 | G8: =C8*$J$25/J8 -> 1119.445685 | H8: =D8*$J$25/J8 -> 68.90267962 | I8: =E8*$J$25/J8 -> 0 | J8: 189.6
A9: 2000 | B9: 566.0878528 | C9: 531.116305 | D9: 34.971548 | F9: 1237.65968 | G9: 1161.200038 | H9: 76.45964261 | I9: 0 | J9: 199.1
A10: 2001 | B10: 644.7565135 | C10: 601.963485 | D10: 42.793029 | E10: 5.526 | F10: 1321.386583 | G10: 1233.685052 | H10: 87.7015326 | I10: 11.32517797 | J10: 212.4
A11: 2002 | B11: 678.9307205 | C11: 629.058288 | D11: 49.872433 | E11: 9.061627 | F11: 1327.666409 | G11: 1230.13959 | H11: 97.52681979 | I11: 17.72024363 | J11: 222.6
A12: 2003 | B12: 823.9773661 | C12: 757.088521 | D12: 66.888845 | E12: 16.211506 | F12: 1577.99097 | G12: 1449.892799 | H12: 128.0981708 | I12: 31.04649609 | J12: 227.3
A13: 2004 | B13: 986.5347461 | C13: 904.573781 | D13: 81.960965 | E13: 28.569505 | F13: 1830.51396 | G13: 1678.435494 | H13: 152.0784657 | I13: 53.01067999 | J13: 234.6
A14: 2005 | B14: 1219.529144 | C14: 1114.13065 | D14: 105.398494 | E14: 40.839075 | F14: 2174.768687 | G14: 1986.813076 | H14: 187.9556102 | I14: 72.82773186 | J14: 244.1
A15: 2006 | B15: 1498.80993 | C15: 1356.913496 | D15: 141.896434 | E15: 55.699603 | F15: 2503.576218 | G15: 2266.555813 | H15: 237.0204057 | I15: 93.03928314 | J15: 260.6
A16: 2007 | B16: 1697.207577 | C16: 1532.703411 | D16: 164.504166 | E16: 73.251081 | F16: 2699.285562 | G16: 2437.653616 | H16: 261.6319454 | I16: 116.5005318 | J16: 273.7
A17: 2008 | B17: 1597.896443 | C17: 1439.109358 | D17: 158.787085 | E17: 96.744287 | F17: 2260.527532 | G17: 2035.893089 | H17: 224.634443 | I17: 136.8631398 | J17: 307.7
A18: 2009 | B18: 1774.719793 | C18: 1603.28455 | D18: 171.435244 | E18: 116.939098 | F18: 2241.832635 | G18: 2025.274999 | H18: 216.557637 | I18: 147.717903 | J18: 344.6
A19: 2010 | B19: 1909.516924 | C19: 1718.883029 | D19: 190.633895 | E19: 123.733139 | F19: 2288.581269 | G19: 2060.104027 | H19: 228.4772425 | I19: 148.2958023 | J19: 363.2
A20: 2011 | B20: 2097.848557 | C20: 1888.718233 | D20: 209.130324 | E20: 132.340614 | F20: 2417.774628 | G20: 2176.751514 | H20: 241.0231137 | I20: 152.5228204 | J20: 377.7
A21: 2012 | B21: 2394.948915 | C21: 2158.795346 | D21: 236.153569 | E21: 145.914109 | F21: 2624.01526 | G21: 2365.274639 | H21: 258.7406207 | I21: 159.8701526 | J21: 397.3
A22: 2013 | B22: 2660.618276 | C22: 2400.849553 | D22: 259.768723 | E22: 152.724851 | F22: 2806.317266 | G22: 2532.323262 | H22: 273.9940032 | I22: 161.0882666 | J22: 412.7
A23: 2014 | B23: 2925.364837 | C23: 2643.887324 | D23: 281.477513 | E23: 161.03567 | F23: 3024.011668 | G23: 2733.042394 | H23: 290.9692743 | I23: 166.4659871 | J23: 421.1
A24: 2015 | B24: 3275.702819 | C24: 2954.549767 | D24: 321.153051 | E24: 177.95022 | F24: 3331.573451 | G24: 3004.942789 | H24: 326.6306614 | I24: 180.9853523 | J24: 428
A25: 2016 | B25: 3533.308686 | C25: 3193.614996 | D25: 339.69369 | E25: 191.648753 | F25: 3533.308686 | G25: 3193.614996 | H25: 339.69369 | I25: 191.648753 | J25: 435.3
A28: Heimild: | B28: http://www.fme.is/utgefid-efni/tolulegar-upplysingar/
A30: Fyrirvari
A31: Landssamtök lífeyrissjóða hafa skipað vinnuhóp sem hefur unnið úr ýmsum birtum upplýsingum eftir bestu getu og þekkingu
A32: en árétta ber að samtökin taka ekki ábyrgð á réttmæti gagnanna né villum sem kunna að koma upp við vinnslu þeirra.
B37: =+B25/B24-1 -> 0.07864140346 | C37: =+C25/C24-1 -> 0.0809142671 | D37: 0.05773147396 | E37: 0.0769795789 | F37: 0.06055254004 | G37: 0.06278728766 | H37: 0.03999327097 | I37: 0.05891858435

Sheet Gögn M2&M4
A1: Fara á efnisyfirlit
A2: Skoða Mynd 2 Mánaðarleg þróun hreinna eigna lífeyrisjóða
A3: Skoða Mynd 4 Eignasamsetning lífeyrissjóða
ID5: Lýsigögn | IP5: Erlend hlutabréf | IQ5: c
A6: HAGTÖLUR SEÐLABANKANS / CENTRAL BANK STATISTICS | ID6: Metadata | IP6: Innlend skuldabréf | IQ6: d
IP7: Erlend skuldabréf | IQ7: e
A8: Reikningar lífeyrissjóða / Accounts of pension funds | IP8: Innlendir blandaðir sjóðir | IQ8: f
IP9: Erlendir blandaðir sjóðir | IQ9: g
A10: M.kr. | B10: 1997-01-31 | C10: 1997-02-28 | D10: 1997-03-31 | E10: 1997-04-30 | F10: 1997-05-31 | G10: 1997-06-30 | H10: 1997-07-31 | I10: 1997-08-31 | J10: 1997-09-30 | K10: 1997-10-31 | L10: 1997-11-30 | M10: 1997-12-31 | N10: 1998-01-31 | O10: 1998-02-28 | P10: 1998-03-31 | Q10: 1998-04-30 | R10: 1998-05-31 | S10: 1998-06-30 | T10: 1998-07-31 | U10: 1998-08-31 | V10: 1998-09-30 | W10: 1998-10-31 | X10: 1998-11-30 | Y10: 1998-12-31 | Z10: 1999-01-31 | AA10: 1999-02-28 | AB10: 1999-03-31 | AC10: 1999-04-30 | AD10: 1999-05-31 | AE10: 1999-06-30 | AF10: 1999-07-31 | AG10: 1999-08-31 | AH10: 1999-09-30 | AI10: 1999-10-31 | AJ10: 1999-11-30 | AK10: 1999-12-31 | AL10: 2000-01-31 | AM10: 2000-02-29 | AN10: 2000-03-31 | AO10: 2000-04-30 | AP10: 2000-05-31 | AQ10: 2000-06-30 | AR10: 2000-07-31 | AS10: 2000-08-31 | AT10: 2000-09-30 | AU10: 2000-10-31 | AV10: 2000-11-30 | AW10: 2000-12-31 | AX10: 2001-01-31 | AY10: 2001-02-28 | AZ10: 2001-03-31 | BA10: 2001-04-30 | BB10: 2001-05-31 | BC10: 2001-06-30 | BD10: 2001-07-31 | BE10: 2001-08-31 | BF10: 2001-09-30 | BG10: 2001-10-31 | BH10: 2001-11-30 | BI10: 2001-12-31 | BJ10: 2002-01-31 | BK10: 2002-02-28 | BL10: 2002-03-31 | BM10: 2002-04-30 | BN10: 2002-05-31 | BO10: 2002-06-30 | BP10: 2002-07-31 | BQ10: 2002-08-31 | BR10: 2002-09-30 | BS10: 2002-10-31 | BT10: 2002-11-30 | BU10: 2002-12-31 | BV10: 2003-01-31 | BW10: 2003-02-28 | BX10: 2003-03-31 | BY10: 2003-04-30 | BZ10: 2003-05-31 | CA10: 2003-06-30 | CB10: 2003-07-31 | CC10: 2003-08-31 | CD10: 2003-09-30 | CE10: 2003-10-31 | CF10: 2003-11-30 | CG10: 2003-12-31 | CH10: 2004-01-31 | CI10: 2004-02-29 | CJ10: 2004-03-31 | CK10: 2004-04-30 | CL10: 2004-05-31 | CM10: 2004-06-30 | CN10: 2004-07-31 | CO10: 2004-08-31 | CP10: 2004-09-30 | CQ10: 2004-10-31 | CR10: 2004-11-30 | CS10: 2004-12-31 | CT10: 2005-01-31 | CU10: 2005-02-28 | CV10: 2005-03-31 | CW10: 2005-04-30 | CX10: 2005-05-31 | CY10: 2005-06-30 | CZ10: 2005-07-31 | DA10: 2005-08-31 | DB10: 2005-09-30 | DC10: 2005-10-31 | DD10: 2005-11-30 | DE10: 2005-12-31 | DF10: 2006-01-31 | DG10: 2006-02-28 | DH10: 2006-03-31 | DI10: 2006-04-30 | DJ10: 2006-05-31 | DK10: 2006-06-30 | DL10: 2006-07-31 | DM10: 2006-08-31 | DN10: 2006-09-30 | DO10: 2006-10-31 | DP10: 2006-11-30 | DQ10: 2006-12-31 | DR10: 2007-01-31 | DS10: 2007-02-28 | DT10: 2007-03-31 | DU10: 2007-04-30 | DV10: 2007-05-31 | DW10: 2007-06-30 | DX10: 2007-07-31 | DY10: 2007-08-31 | DZ10: 2007-09-30 | EA10: 2007-10-31 | EB10: 2007-11-30 | EC10: 2007-12-31 | ED10: 2008-01-31 | EE10: 2008-02-29 | EF10: 2008-03-31 | EG10: 2008-04-30 | EH10: 2008-05-31 | EI10: 2008-06-30 | EJ10: 2008-07-31 | EK10: 2008-08-31 | EL10: 2008-09-30 | EM10: 2008-10-31 | EN10: 2008-11-30 | EO10: 2008-12-31 | EP10: 2009-01-31 | EQ10: 2009-02-28 | ER10: 2009-03-31 | ES10: 2009-04-30 | ET10: 2009-05-31 | EU10: 2009-06-30 | EV10: 2009-07-31 | EW10: 2009-08-31 | EX10: 2009-09-30 | EY10: 2009-10-31 | EZ10: 2009-11-30 | FA10: 2009-12-31 | FB10: 2010-01-31 | FC10: 2010-02-28 | FD10: 2010-03-31 | FE10: 2010-04-30 | FF10: 2010-05-31 | FG10: 2010-06-30 | FH10: 2010-07-31 | FI10: 2010-08-31 | FJ10: 2010-09-30 | FK10: 2010-10-31 | FL10: 2010-11-30 | FM10: 2010-12-31 | FN10: 2011-01-31 | FO10: 2011-02-28 | FP10: 2011-03-31 | FQ10: 2011-04-30 | FR10: 2011-05-31 | FS10: 2011-06-30 | FT10: 2011-07-31 | FU10: 2011-08-31 | FV10: 2011-09-30 | FW10: 2011-10-31 | FX10: 2011-11-30 | FY10: 2011-12-31 | FZ10: 2012-01-31 | GA10: 2012-02-29 | GB10: 2012-03-31 | GC10: 2012-04-30 | GD10: 2012-05-31 | GE10: 2012-06-30 | GF10: 2012-07-31 | GG10: 2012-08-31 | GH10: 2012-09-30 | GI10: 2012-10-31 | GJ10: 2012-11-30 | GK10: 2012-12-31 | GL10: 2013-01-31 | GM10: 2013-02-28 | GN10: 2013-03-31 | GO10: 2013-04-30 | GP10: 2013-05-31 | GQ10: 2013-06-30 | GR10: 2013-07-31 | GS10: 2013-08-31 | GT10: 2013-09-30 | GU10: 2013-10-31 | GV10: 2013-11-30 | GW10: 2013-12-31 | GX10: 2014-01-31 | GY10: 2014-02-28 | GZ10: 2014-03-31 | HA10: 2014-04-30 | HB10: 2014-05-31 | HC10: 2014-06-30 | HD10: 2014-07-31 | HE10: 2014-08-31 | HF10: 2014-09-30 | HG10: 2014-10-31 | HH10: 2014-11-30 | HI10: 2014-12-31 | HJ10: 2015-01-31 | HK10: 2015-02-28 | HL10: 2015-03-31 | HM10: 2015-04-30 | HN10: 2015-05-31 | HO10: 2015-06-30 | HP10: 2015-07-31 | HQ10: 2015-08-31 | HR10: 2015-09-30 | HS10: 2015-10-31 | HT10: 2015-11-30 | HU10: 2015-12-31 | HV10: 2016-01-31 | HW10: 2016-02-29 | HX10: 2016-03-31 | HY10: 2016-04-30 | HZ10: 2016-05-31 | IA10: 2016-06-30 | IB10: 2016-07-31 | IC10: 2016-08-31 | ID10: 2016-09-30 | IE10: 2016-10-31 | IF10: 2016-11-30 | IG10: 2016-12-31 | IH10: 2017-01-31 | II10: 2017-02-28 | IJ10: 2017-03-31 | IK10: 2017-04-30 | IL10: 2017-05-31 | IM10: 2017-06-30
A11: EIGNIR / ASSETS: | B11: 309778 | C11: 313076 | D11: 313435 | E11: 320772 | F11: 323120 | G11: 325797 | H11: 329895 | I11: 331110 | J11: 334385 | K11: 337129 | L11: 339481 | M11: 354436 | N11: 354918 | O11: 356374 | P11: 363679 | Q11: 366986 | R11: 371503 | S11: 376529 | T11: 385292 | U11: 382988 | V11: 386021 | W11: 392836 | X11: 399552 | Y11: 408641 | Z11: 412328 | AA11: 416322 | AB11: 425523 | AC11: 432549 | AD11: 436722 | AE11: 446451 | AF11: 450230 | AG11: 455843 | AH11: 462399 | AI11: 471922 | AJ11: 484225 | AK11: 520727 | AL11: 522841 | AM11: 534051 | AN11: 548691 | AO11: 547825 | AP11: 544679 | AQ11: 553359 | AR11: 560684 | AS11: 570506 | AT11: 571290 | AU11: 577090 | AV11: 568488 | AW11: 569501 | AX11: 575744 | AY11: 565654 | AZ11: 566018 | BA11: 585267 | BB11: 600624 | BC11: 609894 | BD11: 610244 | BE11: 611468 | BF11: 602879 | BG11: 618560 | BH11: 635177 | BI11: 648117 | BJ11: 655788 | BK11: 655670 | BL11: 664044 | BM11: 663948 | BN11: 662797 | BO11: 654849 | BP11: 657040 | BQ11: 660938 | BR11: 656472 | BS11: 668205 | BT11: 677084.1642 | BU11: 678930.4111 | BV11: 680439.7819 | BW11: 683280.0859 | BX11: 688643.0653 | BY11: 699119.7815 | BZ11: 710621.2142 | CA11: 728770.3376 | CB11: 739308.2632 | CC11: 757400.7848 | CD11: 765026.0566 | CE11: 784571.6473 | CF11: 792392.6009 | CG11: 823994.7676 | CH11: 836509.6597 | CI11: 855458.2704 | CJ11: 867106.9653 | CK11: 879223.0312 | CL11: 888045.8137 | CM11: 912737.9567 | CN11: 932493.9507 | CO11: 966254.9527 | CP11: 990050.2036 | CQ11: 977272.4492 | CR11: 978759.952 | CS11: 986534.7774 | CT11: 1003207.549 | CU11: 1020401.733 | CV11: 1033852.652 | CW11: 1049277.756 | CX11: 1058362.758 | CY11: 1080408.652 | CZ11: 1096523.208 | DA11: 1122880.589 | DB11: 1136305.944 | DC11: 1134311.572 | DD11: 1177285.575 | DE11: 1218597.162 | DF11: 1262720.925 | DG11: 1295845.016 | DH11: 1325427.407 | DI11: 1352393.669 | DJ11: 1342484.337 | DK11: 1365135.114 | DL11: 1356517.599 | DM11: 1384188.929 | DN11: 1415948.019 | DO11: 1424943.881 | DP11: 1438932.144 | DQ11: 1503154.982 | DR11: 1509508.753 | DS11: 1519490.466 | DT11: 1533953.89 | DU11: 1569399.94 | DV11: 1594773.747 | DW11: 1620176.854 | DX11: 1635725.661 | DY11: 1642482.156 | DZ11: 1664680.655 | EA11: 1679309.949 | EB11: 1647541.229 | EC11: 1698205.817 | ED11: 1658692.104 | EE11: 1651220.945 | EF11: 1757422.645 | EG11: 1788574.691 | EH11: 1813558.006 | EI11: 1821855.899 | EJ11: 1821151.597 | EK11: 1851876.528 | EL11: 1868381.987 | EM11: 1659237.182 | EN11: 1732372.921 | EO11: 1665309.613 | EP11: 1625724.345 | EQ11: 1606389.329 | ER11: 1665163.188 | ES11: 1693820.369 | ET11: 1719849.769 | EU11: 1745184.643 | EV11: 1765233.743 | EW11: 1769956.851 | EX11: 1796272.674 | EY11: 1802894.785 | EZ11: 1821410.738 | FA11: 1849336.726 | FB11: 1856009.703 | FC11: 1858764.024 | FD11: 1901816.819 | FE11: 1919258.396 | FF11: 1897849.287 | FG11: 1899927.864 | FH11: 1911020.389 | FI11: 1904815.792 | FJ11: 1913293.19 | FK11: 1929826.748 | FL11: 1970982.987 | FM11: 1988850.016 | FN11: 2011322.517 | FO11: 2024843.43 | FP11: 2044045.672 | FQ11: 2064822.118 | FR11: 2089848.644 | FS11: 2104235.074 | FT11: 2124432.986 | FU11: 2092362.879 | FV11: 2086318.187 | FW11: 2124773.085 | FX11: 2147853.987 | FY11: 2169144.779 | FZ11: 2200926.607 | GA11: 2250458.46 | GB11: 2280970.321 | GC11: 2301672.438 | GD11: 2303992.612 | GE11: 2305672.112 | GF11: 2303166.495 | GG11: 2324710.828 | GH11: 2353259.847 | GI11: 2386217.43 | GJ11: 2396546.445 | GK11: 2438978.558 | GL11: 2472497.728 | GM11: 2479977.829 | GN11: 2509577.981 | GO11: 2497925.704 | GP11: 2541110.79 | GQ11: 2545595.839 | GR11: 2575658.198 | GS11: 2577199.064 | GT11: 2620181.154 | GU11: 2657677.981 | GV11: 2684659.828 | GW11: 2695575.34 | GX11: 2703358.521 | GY11: 2697082.329 | GZ11: 2713141.372 | HA11: 2735427.85 | HB11: 2760761.803 | HC11: 2774607.44 | HD11: 2801458.539 | HE11: 2828793.26 | HF11: 2850676.495 | HG11: 2881605.471 | HH11: 2928221.214 | HI11: 2935071.707 | HJ11: 2989536.678 | HK11: 3020036.847 | HL11: 3053150.903 | HM11: 3070186.97 | HN11: 3123275.266 | HO11: 3121865.179 | HP11: 3185217.98 | HQ11: 3142101.691 | HR11: 3150608.799 | HS11: 3246025.515 | HT11: 3260458.822 | HU11: 3284330.844 | HV11: 3241482.031 | HW11: 3260314.376 | HX11: 3292563.594 | HY11: 3313155.185 | HZ11: 3333561.652 | IA11: 3319370.432 | IB11: 3323166.799 | IC11: 3340596.754 | ID11: 3332504.257 | IE11: 3342357.12 | IF11: 3351232.203 | IG11: 3520258 | IH11: 3587893 | II11: 3550458 | IJ11: 3636786 | IK11: 3646214 | IL11: 3633314 | IM11: 3683316
A12: Innlendar eignir, alls / Domestic assets, total | B12: 305373 | C12: 307655 | D12: 308398 | E12: 315721 | F12: 317425 | G12: 319003 | H12: 322484 | I12: 323198 | J12: 326084 | K12: 327814 | L12: 329724 | M12: 328838 | N12: 328942 | O12: 328034 | P12: 332077 | Q12: 332960 | R12: 336074 | S12: 337921 | T12: 345497 | U12: 345564 | V12: 347557 | W12: 350896 | X12: 354513 | Y12: 358990 | Z12: 361126 | AA12: 363566 | AB12: 367819 | AC12: 372405 | AD12: 374748 | AE12: 379581 | AF12: 382889 | AG12: 385866 | AH12: 390370 | AI12: 395871 | AJ12: 402049 | AK12: 422652 | AL12: 421704 | AM12: 424947 | AN12: 434753 | AO12: 430977 | AP12: 430522 | AQ12: 432623 | AR12: 438387 | AS12: 439102 | AT12: 439476 | AU12: 440921 | AV12: 439138 | AW12: 441510 | AX12: 442356 | AY12: 441706 | AZ12: 445970 | BA12: 452754 | BB12: 460405 | BC12: 469209 | BD12: 474817 | BE12: 478645 | BF12: 483277 | BG12: 490479 | BH12: 496529 | BI12: 513424 | BJ12: 522937 | BK12: 524262 | BL12: 524703 | BM12: 532628 | BN12: 533678 | BO12: 540633 | BP12: 545218 | BQ12: 544934 | BR12: 555293 | BS12: 559320 | BT12: 563455.9466 | BU12: 576008.6856 | BV12: 581437.9266 | BW12: 584718.5611 | BX12: 591554.0112 | BY12: 596597.4707 | BZ12: 604608.7353 | CA12: 610568.9014 | CB12: 614013.0204 | CC12: 623277.3158 | CD12: 629638.832 | CE12: 638232.8641 | CF12: 640169.551 | CG12: 664071.3191 | CH12: 671194.255 | CI12: 681658.422 | CJ12: 684315.0386 | CK12: 692494.567 | CL12: 700501.0483 | CM12: 719928.4595 | CN12: 742512.6765 | CO12: 770613.6679 | CP12: 789414.8052 | CQ12: 772769.7233 | CR12: 768174.5432 | CS12: 768957.1634 | CT12: 780983.2299 | CU12: 791795.7351 | CV12: 804310.889 | CW12: 811949.7215 | CX12: 808967.6649 | CY12: 823167.2321 | CZ12: 832809.3561 | DA12: 858488.3262 | DB12: 868429.5392 | DC12: 869852.4147 | DD12: 891854.3885 | DE12: 920241.538 | DF12: 948471.8502 | DG12: 961829.3032 | DH12: 951763.7368 | DI12: 949047.4176 | DJ12: 963811.1179 | DK12: 962660.4388 | DL12: 967031.4215 | DM12: 1004222.139 | DN12: 1029342.913 | DO12: 1033452.248 | DP12: 1034882.089 | DQ12: 1060107.773 | DR12: 1076685.639 | DS12: 1094777.069 | DT12: 1106039.86 | DU12: 1133205.526 | DV12: 1161708.487 | DW12: 1182426.777 | DX12: 1205093.213 | DY12: 1194334.415 | DZ12: 1208640.334 | EA12: 1217531.994 | EB12: 1192780.058 | EC12: 1239947.601 | ED12: 1215374.508 | EE12: 1200018.65 | EF12: 1243261.658 | EG12: 1267799.412 | EH12: 1282853.847 | EI12: 1300671.824 | EJ12: 1326658.985 | EK12: 1356589.521 | EL12: 1351318.046 | EM12: 1173903.685 | EN12: 1202488.137 | EO12: 1203428.003 | EP12: 1211131.954 | EQ12: 1224177.426 | ER12: 1241117.967 | ES12: 1227780.4 | ET12: 1239221.123 | EU12: 1251890.795 | EV12: 1251293.338 | EW12: 1260318.154 | EX12: 1280432.339 | EY12: 1291591.356 | EZ12: 1307124.992 | FA12: 1319253.037 | FB12: 1330592.864 | FC12: 1330937.635 | FD12: 1348791.9 | FE12: 1366206.507 | FF12: 1380321.291 | FG12: 1400541.838 | FH12: 1404481.646 | FI12: 1408768.175 | FJ12: 1411257.694 | FK12: 1417077.162 | FL12: 1485157.498 | FM12: 1517878.478 | FN12: 1531993.034 | FO12: 1539080.313 | FP12: 1562391.863 | FQ12: 1578604.65 | FR12: 1593172.045 | FS12: 1609496.354 | FT12: 1634732.371 | FU12: 1637752.2 | FV12: 1645984.45 | FW12: 1667589.303 | FX12: 1681574.257 | FY12: 1697447.084 | FZ12: 1708876.493 | GA12: 1735920.561 | GB12: 1760383.145 | GC12: 1786937.084 | GD12: 1802680.238 | GE12: 1810060.336 | GF12: 1819181.84 | GG12: 1824529.56 | GH12: 1833742.802 | GI12: 1850979.202 | GJ12: 1861473.468 | GK12: 1885285.778 | GL12: 1907605.874 | GM12: 1920656.502 | GN12: 1948988.683 | GO12: 1959380.452 | GP12: 1972290.868 | GQ12: 1982723.239 | GR12: 2008869.739 | GS12: 2015207.396 | GT12: 2031591.16 | GU12: 2053109.194 | GV12: 2071699.54 | GW12: 2096551.073 | GX12: 2115217.222 | GY12: 2105506.873 | GZ12: 2118029.819 | HA12: 2142682.398 | HB12: 2153552.611 | HC12: 2154971.415 | HD12: 2174358.519 | HE12: 2186444.495 | HF12: 2195500.493 | HG12: 2219594.714 | HH12: 2246486.954 | HI12: 2240102.352 | HJ12: 2274761.854 | HK12: 2276381.93 | HL12: 2295691.749 | HM12: 2326411.909 | HN12: 2355470.386 | HO12: 2381294.027 | HP12: 2413310.91 | HQ12: 2428424.436 | HR12: 2463042.252 | HS12: 2511693.495 | HT12: 2504121.257 | HU12: 2549291.296 | HV12: 2541761.899 | HW12: 2559694.161 | HX12: 2582236.088 | HY12: 2596030.826 | HZ12: 2603580.113 | IA12: 2603756.828 | IB12: 2598942.095 | IC12: 2628307.997 | ID12: 2607990.509 | IE12: 2635019.945 | IF12: 2637420.347 | IG12: 2755635 | IH12: 2777629 | II12: 2780368 | IJ12: 2813394 | IK12: 2860653 | IL12: 2872108 | IM12: 2880635
A13: Sjóður og innstæður í Seðlabanka / Cash and cash balance with Central Bank | HU13: 0 | HV13: 0 | HW13: 0 | HX13: 0 | HY13: 0 | HZ13: 0 | IA13: 0 | IB13: 0 | IC13: 0 | ID13: 0 | IE13: 0 | IF13: 0
A14: Seðlar og mynt / Banknotes and coin | HU14: 0 | HV14: 0 | HW14: 0 | HX14: 0 | HY14: 0 | HZ14: 0 | IA14: 0 | IB14: 0 | IC14: 0 | ID14: 0 | IE14: 0 | IF14: 0
A15: Viðskiptareikningar / Current account in Central Bank | HU15: 0 | HV15: 0 | HW15: 0 | HX15: 0 | HY15: 0 | HZ15: 0 | IA15: 0 | IB15: 0 | IC15: 0 | ID15: 0 | IE15: 0 | IF15: 0
A16: Aðrar eignir hjá seðlabanka / Other assets in Central Bank | HU16: 0 | HV16: 0 | HW16: 0 | HX16: 0 | HY16: 0 | HZ16: 0 | IA16: 0 | IB16: 0 | IC16: 0 | ID16: 0 | IE16: 0 | IF16: 0
A17: Innlán í innlendum innlánsstofnunum / Deposits in domestic deposit taking corporations | B17: 6508 | C17: 7541 | D17: 8946 | E17: 8696 | F17: 8779 | G17: 8192 | H17: 8087 | I17: 7447 | J17: 6897 | K17: 7197 | L17: 7155 | M17: 7083 | N17: 6220 | O17: 5928 | P17: 6226 | Q17: 6842 | R17: 6958 | S17: 5764 | T17: 7103 | U17: 8125 | V17: 9491 | W17: 8727 | X17: 9336 | Y17: 9094 | Z17: 5171 | AA17: 4950 | AB17: 5301 | AC17: 6148 | AD17: 4966 | AE17: 5702 | AF17: 5282 | AG17: 4282 | AH17: 4895 | AI17: 6318 | AJ17: 5915 | AK17: 10323 | AL17: 7677 | AM17: 6211 | AN17: 8002 | AO17: 7561 | AP17: 6866 | AQ17: 6753 | AR17: 7301 | AS17: 7196 | AT17: 9453 | AU17: 7577 | AV17: 6325 | AW17: 8805 | AX17: 7762 | AY17: 7267 | AZ17: 8283 | BA17: 8367 | BB17: 8602 | BC17: 8084 | BD17: 9235 | BE17: 8943 | BF17: 7073 | BG17: 7925 | BH17: 6816 | BI17: 11280 | BJ17: 8535 | BK17: 8680 | BL17: 6672 | BM17: 7142 | BN17: 8449 | BO17: 11845 | BP17: 10776 | BQ17: 12120 | BR17: 15339 | BS17: 12493 | BT17: 11081.57252 | BU17: 14330.92805 | BV17: 14135.19426 | BW17: 14264.09308 | BX17: 14771.95295 | BY17: 15565.58089 | BZ17: 17497.9439 | CA17: 19333.037 | CB17: 19968.79842 | CC17: 21671.96454 | CD17: 23581.42747 | CE17: 21213.38987 | CF17: 19507.32108 | CG17: 18885.26662 | CH17: 22239.03152 | CI17: 17548.70728 | CJ17: 15798.69219 | CK17: 18122.38321 | CL17: 19826.07003 | CM17: 20054.90844 | CN17: 20297.78891 | CO17: 21638.00754 | CP17: 25700.45593 | CQ17: 28943.56866 | CR17: 28311.92069 | CS17: 21939.77926 | CT17: 20021.11217 | CU17: 21087.13057 | CV17: 16294.10397 | CW17: 18520.52201 | CX17: 21748.69454 | CY17: 19434.00466 | CZ17: 19877.62815 | DA17: 24567.98642 | DB17: 22699.23442 | DC17: 22807.4579 | DD17: 26643.69461 | DE17: 28558.87401 | DF17: 20432.57247 | DG17: 15304.09637 | DH17: 18544.94928 | DI17: 17135.92001 | DJ17: 12526.84055 | DK17: 13392.90801 | DL17: 15184.66776 | DM17: 14499.3563 | DN17: 14776.54739 | DO17: 13871.17135 | DP17: 15237.71123 | DQ17: 15036.81483 | DR17: 7700.21285 | DS17: 12773.45879 | DT17: 11686.50665 | DU17: 16759.03332 | DV17: 15146.08684 | DW17: 19722.85161 | DX17: 29578.54976 | DY17: 33658.93374 | DZ17: 38071.71122 | EA17: 33705.20441 | EB17: 30090.00875 | EC17: 44964.45161 | ED17: 36169.33609 | EE17: 38795.80111 | EF17: 44208.66081 | EG17: 39322.11215 | EH17: 42730.37164 | EI17: 59346.10502 | EJ17: 71635.74045 | EK17: 87715.23785 | EL17: 85124.91096 | EM17: 137993.0808 | EN17: 158634.7509 | EO17: 169031.5321 | EP17: 163563.154 | EQ17: 168448.7874 | ER17: 161648.8525 | ES17: 167886.4876 | ET17: 169158.7803 | EU17: 167568.1445 | EV17: 162744.777 | EW17: 172543.2865 | EX17: 182900.1401 | EY17: 178931.3849 | EZ17: 172510.6217 | FA17: 162529.4151 | FB17: 159430.6163 | FC17: 161521.5639 | FD17: 159393.9886 | FE17: 166448.7097 | FF17: 161958.3362 | FG17: 170887.8391 | FH17: 165051.1935 | FI17: 165963.6374 | FJ17: 166250.0485 | FK17: 154888.3916 | FL17: 160959.6292 | FM17: 158644.4053 | FN17: 157146.1671 | FO17: 149925.4376 | FP17: 153628.6475 | FQ17: 155507.1754 | FR17: 139211.5828 | FS17: 151685.943 | FT17: 155281.7429 | FU17: 155670.7689 | FV17: 156305.3718 | FW17: 153044.7731 | FX17: 149966.9574 | FY17: 154420.9161 | FZ17: 150047.2509 | GA17: 154287.482 | GB17: 146335.8677 | GC17: 155602.0289 | GD17: 152758.8721 | GE17: 165534.5959 | GF17: 156367.1758 | GG17: 156399.5619 | GH17: 166231.4887 | GI17: 168664.1754 | GJ17: 153050.5741 | GK17: 165265.4018 | GL17: 159091.7746 | GM17: 157605.8131 | GN17: 159772.1796 | GO17: 158584.5057 | GP17: 149817.8094 | GQ17: 162342.0389 | GR17: 148725.3227 | GS17: 159947.6476 | GT17: 154058.2983 | GU17: 160757.9011 | GV17: 152155.571 | GW17: 161524.5532 | GX17: 161414.3325 | GY17: 157674.7998 | GZ17: 153921.6599 | HA17: 157870.5708 | HB17: 151001.9576 | HC17: 141562.3818 | HD17: 145977.1977 | HE17: 165682.0834 | HF17: 165633.1817 | HG17: 166185.5237 | HH17: 165398.8562 | HI17: 129275.282 | HJ17: 125624.8134 | HK17: 130495.3012 | HL17: 130518.8007 | HM17: 140858.7693 | HN17: 141229.4076 | HO17: 151540.8538 | HP17: 147089.4777 | HQ17: 154636.4157 | HR17: 144000.2563 | HS17: 145491.8957 | HT17: 146301.7308 | HU17: 151726.157 | HV17: 149887.0972 | HW17: 143022.8796 | HX17: 126329.3958 | HY17: 132582.3214 | HZ17: 132733.4714 | IA17: 133885.5464 | IB17: 132958.1468 | IC17: 137683.5703 | ID17: 119614.0059 | IE17: 121003.5063 | IF17: 106468.0083 | IG17: 118261 | IH17: 112598 | II17: 118984 | IJ17: 122118 | IK17: 125295 | IL17: 119893 | IM17: 129014 | IP17: a
A18: Innlend útlán og markaðsverðbréf / Domestic credit and marketable securities | B18: 286992 | C18: 285528 | D18: 288160 | E18: 294854 | F18: 296282 | G18: 297250 | H18: 300123 | I18: 300880 | J18: 302751 | K18: 303636 | L18: 305078 | M18: 316395 | N18: 317515 | O18: 317511 | P18: 319755 | Q18: 320065 | R18: 322867 | S18: 324736 | T18: 330941 | U18: 331422 | V18: 332263 | W18: 335598 | X18: 338527 | Y18: 344380 | Z18: 350081 | AA18: 352047 | AB18: 355821 | AC18: 359872 | AD18: 363341 | AE18: 367499 | AF18: 371029 | AG18: 374583 | AH18: 377425 | AI18: 381389 | AJ18: 388855 | AK18: 406181 | AL18: 409274 | AM18: 412851 | AN18: 420399 | AO18: 417491 | AP18: 417596 | AQ18: 419549 | AR18: 424161 | AS18: 424655 | AT18: 425142 | AU18: 426600 | AV18: 426264 | AW18: 424847 | AX18: 431217 | AY18: 430762 | AZ18: 434335 | BA18: 441391 | BB18: 449518 | BC18: 459562 | BD18: 462966 | BE18: 467127 | BF18: 473954 | BG18: 480272 | BH18: 487019 | BI18: 494388 | BJ18: 510080 | BK18: 511430 | BL18: 514391 | BM18: 521647 | BN18: 521436 | BO18: 525187 | BP18: 530826 | BQ18: 529047 | BR18: 536833 | BS18: 543616 | BT18: 549519.3496 | BU18: 554613.0185 | BV18: 565051.253 | BW18: 566805.5027 | BX18: 571951.3924 | BY18: 576255.3547 | BZ18: 581749.7641 | CA18: 586129.3666 | CB18: 588950.8857 | CC18: 596657.2233 | CD18: 601122.4643 | CE18: 611849.7497 | CF18: 615308.6377 | CG18: 628748.1285 | CH18: 636147.3262 | CI18: 651723.302 | CJ18: 656638.1104 | CK18: 662311.9148 | CL18: 667449.5474 | CM18: 687306.6921 | CN18: 708760.1685 | CO18: 736030.4789 | CP18: 750847.6748 | CQ18: 731024.1447 | CR18: 726609.3088 | CS18: 732750.3321 | CT18: 750726.9431 | CU18: 759198.7552 | CV18: 776612.8441 | CW18: 784119.2926 | CX18: 779076.7804 | CY18: 796168.0908 | CZ18: 805234.8198 | DA18: 825502.836 | DB18: 837043.0727 | DC18: 838484.6673 | DD18: 856421.1967 | DE18: 881527.7979 | DF18: 918399.8144 | DG18: 937498.0999 | DH18: 924273.438 | DI18: 923922.1174 | DJ18: 944245.6614 | DK18: 942188.1457 | DL18: 943795.4992 | DM18: 981235.1496 | DN18: 1005571.534 | DO18: 1012216.788 | DP18: 1012203.54 | DQ18: 1032338.477 | DR18: 1065863.9 | DS18: 1079049.669 | DT18: 1090672.69 | DU18: 1112178.482 | DV18: 1141501.907 | DW18: 1158483.728 | DX18: 1170741.284 | DY18: 1154649.079 | DZ18: 1165222.989 | EA18: 1176399.599 | EB18: 1156173.365 | EC18: 1182279.939 | ED18: 1170838.26 | EE18: 1153227.382 | EF18: 1188709.865 | EG18: 1218779.456 | EH18: 1228101.424 | EI18: 1230457.929 | EJ18: 1244237.074 | EK18: 1257742.329 | EL18: 1254393.944 | EM18: 1025834.725 | EN18: 1031861.943 | EO18: 1014608.341 | EP18: 1030285.708 | EQ18: 1036449.52 | ER18: 1059377.457 | ES18: 1041012.14 | ET18: 1050704.677 | EU18: 1064784.824 | EV18: 1073687.345 | EW18: 1072722.506 | EX18: 1081842.146 | EY18: 1097000.136 | EZ18: 1118088.065 | FA18: 1138113.216 | FB18: 1155751.288 | FC18: 1154053.584 | FD18: 1173108.289 | FE18: 1183691.086 | FF18: 1202413.984 | FG18: 1213213.046 | FH18: 1223023.595 | FI18: 1227803.874 | FJ18: 1229763.921 | FK18: 1246669.866 | FL18: 1308627.748 | FM18: 1339457.592 | FN18: 1359768.013 | FO18: 1373935.693 | FP18: 1393656.034 | FQ18: 1408489.851 | FR18: 1439146.027 | FS18: 1442784.131 | FT18: 1461212.677 | FU18: 1464877.064 | FV18: 1474185.76 | FW18: 1498221.415 | FX18: 1515476.619 | FY18: 1525002.121 | FZ18: 1542616.558 | GA18: 1564865.23 | GB18: 1597084.224 | GC18: 1614751.651 | GD18: 1632900.198 | GE18: 1628803.675 | GF18: 1646528.814 | GG18: 1651500.433 | GH18: 1650100.989 | GI18: 1664884.798 | GJ18: 1691034.037 | GK18: 1700367.21 | GL18: 1730584.98 | GM18: 1745209.754 | GN18: 1771834.489 | GO18: 1783941.382 | GP18: 1805748.428 | GQ18: 1803195.14 | GR18: 1843031.826 | GS18: 1838491.428 | GT18: 1860092.813 | GU18: 1874511.523 | GV18: 1901740.728 | GW18: 1914234.444 | GX18: 1935169.126 | GY18: 1931060.204 | GZ18: 1947343.814 | HA18: 1968204.291 | HB18: 1985688.29 | HC18: 1996443.723 | HD18: 2011057.97 | HE18: 2004122.31 | HF18: 2013076.357 | HG18: 2035579.04 | HH18: 2062460.126 | HI18: 2090840.924 | HJ18: 2132262.316 | HK18: 2129275.141 | HL18: 2147843.65 | HM18: 2168947.715 | HN18: 2195939.81 | HO18: 2209725.165 | HP18: 2248941.687 | HQ18: 2257185.335 | HR18: 2301478.843 | HS18: 2347996.075 | HT18: 2340236.355 | HU18: 2249685.705 | HV18: 2253888.755 | HW18: 2274771.455 | HX18: 2319882.233 | HY18: 2330012.299 | HZ18: 2339781.806 | IA18: 2340892.232 | IB18: 2341179.704 | IC18: 2361971.008 | ID18: 2355959.393 | IE18: 2383554.649 | IF18: 2398547.825 | IG18: 2496644 | IH18: 2529047 | II18: 2526552 | IJ18: 2556401 | IK18: 2594294 | IL18: 2618247 | IM18: 2611431
A19: Innlend útlán og markaðsskuldabréf / Domestic credit and marketable bonds | B19: 271358 | C19: 269194 | D19: 271933 | E19: 274694 | F19: 275548 | G19: 276659 | H19: 277851 | I19: 279109 | J19: 280397 | K19: 280987 | L19: 281469 | M19: 289371 | N19: 288984 | O19: 288517 | P19: 288813 | Q19: 289127 | R19: 289639 | S19: 290235 | T19: 294798 | U19: 295024 | V19: 296415 | W19: 294279 | X19: 293572 | Y19: 291821 | Z19: 293138 | AA19: 293905 | AB19: 295112 | AC19: 297987 | AD19: 300469 | AE19: 303354 | AF19: 304679 | AG19: 307677 | AH19: 308450 | AI19: 311632 | AJ19: 309306 | AK19: 315291 | AL19: 314914 | AM19: 316321 | AN19: 318440 | AO19: 320029 | AP19: 323022 | AQ19: 323424 | AR19: 326696 | AS19: 325777 | AT19: 325821 | AU19: 329494 | AV19: 332310 | AW19: 331698 | AX19: 339450 | AY19: 338303 | AZ19: 340736 | BA19: 347061 | BB19: 355083 | BC19: 364999 | BD19: 369416 | BE19: 373728 | BF19: 379562 | BG19: 383275 | BH19: 387772 | BI19: 387462 | BJ19: 399091 | BK19: 399907 | BL19: 403969 | BM19: 407613 | BN19: 408041 | BO19: 409339 | BP19: 414158 | BQ19: 414095 | BR19: 416935 | BS19: 422262 | BT19: 424000.6188 | BU19: 425195.5498 | BV19: 431274.727 | BW19: 429347.6181 | BX19: 433289.5511 | BY19: 436936.8498 | BZ19: 440975.7777 | CA19: 441711.3732 | CB19: 443963.412 | CC19: 445363.2003 | CD19: 446890.2225 | CE19: 451456.0032 | CF19: 454223.1327 | CG19: 461999.2305 | CH19: 461860.4527 | CI19: 469072.6002 | CJ19: 473780.1859 | CK19: 478010.7396 | CL19: 484642.537 | CM19: 491163.1525 | CN19: 513204.0453 | CO19: 521496.3808 | CP19: 521816.1184 | CQ19: 520794.924 | CR19: 512473.6073 | CS19: 517550.7252 | CT19: 518159.0679 | CU19: 520878.677 | CV19: 532941.1841 | CW19: 536913.856 | CX19: 533136.1966 | CY19: 548466.7858 | CZ19: 551161.0723 | DA19: 563089.664 | DB19: 570541.1886 | DC19: 571753.4736 | DD19: 578115.0545 | DE19: 584059.2657 | DF19: 585467.5068 | DG19: 587556.366 | DH19: 599581.381 | DI19: 606745.3295 | DJ19: 614586.3929 | DK19: 623111.911 | DL19: 628182.7899 | DM19: 633747.8579 | DN19: 641629.3897 | DO19: 651031.9438 | DP19: 653937.9844 | DQ19: 661272.318 | DR19: 664920.7993 | DS19: 668238.9111 | DT19: 668853.6382 | DU19: 671550.8551 | DV19: 683368.9357 | DW19: 691561.4856 | DX19: 700900.049 | DY19: 707473.6175 | DZ19: 721356.6361 | EA19: 729501.2651 | EB19: 740974.974 | EC19: 784522.7666 | ED19: 790585.8428 | EE19: 797447.4162 | EF19: 822314.5785 | EG19: 835952.6193 | EH19: 862982.0377 | EI19: 879961.7415 | EJ19: 896075.1839 | EK19: 904850.9167 | EL19: 926171.6083 | EM19: 855886.9609 | EN19: 865552.2775 | EO19: 876517.692 | EP19: 896583.2334 | EQ19: 913815.1711 | ER19: 939193.8773 | ES19: 923472.7303 | ET19: 927648.3748 | EU19: 945640.8546 | EV19: 956157.8567 | EW19: 956126.9027 | EX19: 968002.9714 | EY19: 981462.9327 | EZ19: 1004520.67 | FA19: 1029480.683 | FB19: 1047585.271 | FC19: 1043313.4 | FD19: 1060210.885 | FE19: 1068525.66 | FF19: 1088044.191 | FG19: 1095456.829 | FH19: 1100156.945 | FI19: 1099082.683 | FJ19: 1098989.743 | FK19: 1112763.253 | FL19: 1169169.677 | FM19: 1196533.63 | FN19: 1211041.077 | FO19: 1215436.935 | FP19: 1233016.073 | FQ19: 1246844.144 | FR19: 1268154.813 | FS19: 1263816.64 | FT19: 1279567.456 | FU19: 1283624.73 | FV19: 1293848.956 | FW19: 1311550.677 | FX19: 1321865.214 | FY19: 1314316.289 | FZ19: 1324256.173 | GA19: 1338202.626 | GB19: 1361273.992 | GC19: 1373376.834 | GD19: 1391703.629 | GE19: 1374912.877 | GF19: 1384104.706 | GG19: 1384592.579 | GH19: 1378962.469 | GI19: 1391796.342 | GJ19: 1407161.119 | GK19: 1409424.536 | GL19: 1422108.243 | GM19: 1428442.927 | GN19: 1452843.443 | GO19: 1456471.304 | GP19: 1471825.83 | GQ19: 1454297.519 | GR19: 1479574.375 | GS19: 1474774.567 | GT19: 1492907.584 | GU19: 1490027.045 | GV19: 1506037.333 | GW19: 1501646.728 | GX19: 1514255.461 | GY19: 1506282.77 | GZ19: 1522168.601 | HA19: 1524685.9 | HB19: 1551218.238 | HC19: 1550814.272 | HD19: 1557435.288 | HE19: 1548197.219 | HF19: 1556572.355 | HG19: 1567807.583 | HH19: 1576174.222 | HI19: 1579468.125 | HJ19: 1599507.693 | HK19: 1593649.34 | HL19: 1615857.603 | HM19: 1621878.009 | HN19: 1632352.921 | HO19: 1629715.058 | HP19: 1647981.72 | HQ19: 1643051.053 | HR19: 1666431.065 | HS19: 1668646.694 | HT19: 1672139.446 | HU19: 1684681.958 | HV19: 1693487.727 | HW19: 1703897.901 | HX19: 1738248.483 | HY19: 1745852.927 | HZ19: 1762694.288 | IA19: 1772363.132 | IB19: 1786267.682 | IC19: 1796902.351 | ID19: 1810445.95 | IE19: 1821198.437 | IF19: 1838825.3 | IG19: 1945053 | IH19: 1968329 | II19: 1961570 | IJ19: 1993640 | IK19: 2007674 | IL19: 2046539 | IM19: 2051482 | IP19: d
A20: Innlend útlán og eignarleigusamningar / Domestic credit and leasing contracts | B20: 39112 | C20: 39028 | D20: 39016 | E20: 39151 | F20: 39045 | G20: 39148 | H20: 39395 | I20: 39504 | J20: 39581 | K20: 39614 | L20: 39585 | M20: 38196 | N20: 39665 | O20: 39537 | P20: 39696 | Q20: 39692 | R20: 39760 | S20: 39837 | T20: 40490 | U20: 40330 | V20: 40346 | W20: 40392 | X20: 40426 | Y20: 39366 | Z20: 40217 | AA20: 40226 | AB20: 40092 | AC20: 40527 | AD20: 40950 | AE20: 41287 | AF20: 41811 | AG20: 42358 | AH20: 43273 | AI20: 43742 | AJ20: 44228 | AK20: 44462 | AL20: 45062 | AM20: 45592 | AN20: 46553 | AO20: 47309 | AP20: 48587 | AQ20: 49722 | AR20: 50825 | AS20: 51613 | AT20: 52962 | AU20: 54285 | AV20: 55417 | AW20: 55942 | AX20: 58126 | AY20: 59004 | AZ20: 60012 | BA20: 61357 | BB20: 63347 | BC20: 65697 | BD20: 67264 | BE20: 68476 | BF20: 70004 | BG20: 71471 | BH20: 72667 | BI20: 71395 | BJ20: 74459 | BK20: 74990 | BL20: 75819 | BM20: 76922 | BN20: 77744 | BO20: 78823 | BP20: 80457 | BQ20: 80545 | BR20: 82031 | BS20: 83166 | BT20: 83574.52295 | BU20: 83455.11222 | BV20: 84007.78223 | BW20: 84158.7619 | BX20: 85360.53524 | BY20: 85863.028 | BZ20: 86305.67148 | CA20: 86803.04745 | CB20: 86968.16393 | CC20: 87293.4927 | CD20: 88666.8718 | CE20: 89834.34421 | CF20: 90414.8241 | CG20: 90825.80538 | CH20: 91596.84585 | CI20: 91624.75528 | CJ20: 92010.22611 | CK20: 92887.04248 | CL20: 93502.5707 | CM20: 94622.27746 | CN20: 94512.24937 | CO20: 94575.82064 | CP20: 93080.60534 | CQ20: 91461.74408 | CR20: 89366.52265 | CS20: 86825.50857 | CT20: 86998.70697 | CU20: 87560.38034 | CV20: 88534.66028 | CW20: 89139.57975 | CX20: 88027.20147 | CY20: 89482.86457 | CZ20: 90244.88046 | DA20: 90384.7241 | DB20: 91362.24001 | DC20: 92487.46854 | DD20: 93390.40459 | DE20: 92505.19936 | DF20: 95076.31818 | DG20: 95619.42515 | DH20: 96860.56156 | DI20: 99339.54027 | DJ20: 101722.349 | DK20: 103482.3781 | DL20: 104864.7984 | DM20: 106116.0799 | DN20: 107410.2728 | DO20: 108364.3577 | DP20: 108890.8484 | DQ20: 109176.952 | DR20: 110513.6025 | DS20: 111661.2515 | DT20: 112026.7864 | DU20: 113918.7322 | DV20: 113513.1161 | DW20: 116206.2085 | DX20: 117985.9645 | DY20: 119883.324 | DZ20: 123743.4903 | EA20: 126347.7504 | EB20: 129077.9406 | EC20: 129707.8658 | ED20: 132373.2242 | EE20: 131965.2067 | EF20: 133779.4677 | EG20: 136356.0645 | EH20: 144727.0403 | EI20: 147472.4509 | EJ20: 152121.9053 | EK20: 155230.4154 | EL20: 155957.6872 | EM20: 159453.7819 | EN20: 162141.4945 | EO20: 163282.2457 | EP20: 165825.7017 | EQ20: 167084.3422 | ER20: 168288.2247 | ES20: 167847.4031 | ET20: 168581.4675 | EU20: 170496.8045 | EV20: 172653.249 | EW20: 172877.5575 | EX20: 173225.3891 | EY20: 174120.9558 | EZ20: 175499.0033 | FA20: 174436.0663 | FB20: 175375.54 | FC20: 174778.1897 | FD20: 176270.0293 | FE20: 176887.26 | FF20: 177031.7941 | FG20: 177262.5332 | FH20: 176344.1733 | FI20: 175145.2422 | FJ20: 175126.0552 | FK20: 174833.4595 | FL20: 175440.9184 | FM20: 171889.3318 | FN20: 172078.1887 | FO20: 170478.6285 | FP20: 172393.6505 | FQ20: 174041.5473 | FR20: 175112.9915 | FS20: 176555.0359 | FT20: 183014.5602 | FU20: 183089.8439 | FV20: 183325.9425 | FW20: 183808.7065 | FX20: 183541.987 | FY20: 181351.8882 | FZ20: 180953.8841 | GA20: 180690.7753 | GB20: 181312.1952 | GC20: 181634.3182 | GD20: 181816.4378 | GE20: 181628.2063 | GF20: 181279.4976 | GG20: 181102.7259 | GH20: 179136.18 | GI20: 179756.1389 | GJ20: 179752.5888 | GK20: 180939.2798 | GL20: 180504.9496 | GM20: 179888.527 | GN20: 182690.5573 | GO20: 182512.7449 | GP20: 182415.2152 | GQ20: 182056.8555 | GR20: 182502.9263 | GS20: 182092.5839 | GT20: 182189.6206 | GU20: 182673.7185 | GV20: 182307.4138 | GW20: 181542.637 | GX20: 182128.5018 | GY20: 180382.5597 | GZ20: 180700.2426 | HA20: 180821.7522 | HB20: 180962.9376 | HC20: 180768.2751 | HD20: 180675.4574 | HE20: 179812.6664 | HF20: 179766.4015 | HG20: 179370.8496 | HH20: 179000.4131 | HI20: 175926.985 | HJ20: 172737.3467 | HK20: 170160.1856 | HL20: 171007.1611 | HM20: 171557.3183 | HN20: 170423.0477 | HO20: 169385.0516 | HP20: 170036.5633 | HQ20: 169754.6551 | HR20: 170266.1514 | HS20: 170422.1369 | HT20: 171536.5454 | HU20: 179315.6532 | HV20: 180719.9372 | HW20: 182942.7069 | HX20: 188629.8801 | HY20: 195089.1964 | HZ20: 200533.2174 | IA20: 206331.8474 | IB20: 211571.1591 | IC20: 217178.2896 | ID20: 223186.2225 | IE20: 230152.3588 | IF20: 236682.1253 | IG20: 242242 | IH20: 248448 | II20: 253368 | IJ20: 263348 | IK20: 267894 | IL20: 277471 | IM20: 288097
A21: Niðurfærslur innlendra útlána / Domestic provisions | FR21: 0 | FT21: 5742.345415 | FU21: 5867.683984 | FV21: 5877.775567 | FW21: 5879.865344 | FX21: 5897.236219 | FY21: 6096.851765 | FZ21: 6053.459577 | GA21: 6035.686878 | GB21: 6064.220244 | GC21: 5911.557955 | GD21: 5615.835602 | GE21: 5548.617059 | GF21: 5535.640949 | GG21: 5547.190044 | GH21: 5417.057608 | GI21: 5414.564884 | GJ21: 5419.187199 | GK21: 5767.429187 | GL21: 5246.597924 | GM21: 5246.186768 | GN21: 5307.131701 | GO21: 5308.663691 | GP21: 5315.458748 | GQ21: 5348.772872 | GR21: 5371.17713 | GS21: 5365.413341 | GT21: 5354.236048 | GU21: 5368.106191 | GV21: 5365.952566 | GW21: 5415.272237 | GX21: 5417.658526 | GY21: 5401.805768 | GZ21: 5324.485614 | HA21: 5334.764854 | HB21: 5341.223194 | HC21: 5347.059928 | HD21: 5310.097257 | HE21: 5306.601551 | HF21: 5313.035275 | HG21: 5302.813169 | HH21: 5306.555368 | HI21: 4863.594519 | HJ21: 4830.439168 | HK21: 4754.205305 | HL21: 4761.549962 | HM21: 4764.888256 | HN21: 4590.702015 | HO21: 4576.315252 | HP21: 4580.293352 | HQ21: 4501.995238 | HR21: 4506.092364 | HS21: 4511.522385 | HT21: 4529.348486 | HU21: 4062.248116 | HV21: 4042.364918 | HW21: 4211.105998 | HX21: 4184.616751 | HY21: 4222.96008 | HZ21: 4310.749587 | IA21: 4394.219689 | IB21: 4427.351012 | IC21: -4466.819251 | ID21: -4513.757541 | IE21: 4548.766793 | IF21: 4468.610682 | IG21: 4156 | IH21: 4114 | II21: 4215 | IJ21: 4274 | IK21: 4294 | IL21: 4349 | IM21: 4363
A22: Innlend markaðsskuldabréf og víxlar / Domestic marketable bonds and bills | B22: 232246 | C22: 230166 | D22: 232917 | E22: 235543 | F22: 236503 | G22: 237511 | H22: 238456 | I22: 239605 | J22: 240816 | K22: 241373 | L22: 241884 | M22: 251175 | N22: 249319 | O22: 248980 | P22: 249117 | Q22: 249435 | R22: 249879 | S22: 250398 | T22: 254308 | U22: 254694 | V22: 256069 | W22: 253887 | X22: 253146 | Y22: 252455 | Z22: 252921 | AA22: 253679 | AB22: 255020 | AC22: 257460 | AD22: 259519 | AE22: 262067 | AF22: 262868 | AG22: 265319 | AH22: 265177 | AI22: 267890 | AJ22: 265078 | AK22: 270829 | AL22: 269852 | AM22: 270729 | AN22: 271887 | AO22: 272720 | AP22: 274435 | AQ22: 273702 | AR22: 275871 | AS22: 274164 | AT22: 272859 | AU22: 275209 | AV22: 276893 | AW22: 275756 | AX22: 281324 | AY22: 279299 | AZ22: 280724 | BA22: 285704 | BB22: 291736 | BC22: 299302 | BD22: 302152 | BE22: 305252 | BF22: 309558 | BG22: 311804 | BH22: 315105 | BI22: 316067 | BJ22: 324632 | BK22: 324917 | BL22: 328150 | BM22: 330691 | BN22: 330297 | BO22: 330516 | BP22: 333701 | BQ22: 333550 | BR22: 334904 | BS22: 339096 | BT22: 340426.0958 | BU22: 341740.4376 | BV22: 347266.9448 | BW22: 345188.8562 | BX22: 347929.0159 | BY22: 351073.8218 | BZ22: 354670.1062 | CA22: 354908.3258 | CB22: 356995.248 | CC22: 358069.7076 | CD22: 358223.3507 | CE22: 361621.659 | CF22: 363808.3086 | CG22: 371173.4251 | CH22: 370263.6069 | CI22: 377447.845 | CJ22: 381769.9598 | CK22: 385123.6972 | CL22: 391139.9663 | CM22: 396540.875 | CN22: 418691.7959 | CO22: 426920.5602 | CP22: 428735.5131 | CQ22: 429333.1799 | CR22: 423107.0847 | CS22: 430725.2166 | CT22: 431160.3609 | CU22: 433318.2966 | CV22: 444406.5238 | CW22: 447774.2762 | CX22: 445108.9951 | CY22: 458983.9212 | CZ22: 460916.1919 | DA22: 472704.9399 | DB22: 479178.9485 | DC22: 479266.0051 | DD22: 484724.6499 | DE22: 491554.0663 | DF22: 490391.1886 | DG22: 491936.9408 | DH22: 502720.8194 | DI22: 507405.7892 | DJ22: 512864.0439 | DK22: 519629.533 | DL22: 523317.9915 | DM22: 527631.778 | DN22: 534219.1169 | DO22: 542667.5862 | DP22: 545047.1359 | DQ22: 552095.366 | DR22: 554407.1968 | DS22: 556577.6596 | DT22: 556826.8518 | DU22: 557632.1229 | DV22: 569855.8196 | DW22: 575355.277 | DX22: 582914.0845 | DY22: 587590.2936 | DZ22: 597613.1458 | EA22: 603153.5148 | EB22: 611897.0335 | EC22: 654814.9008 | ED22: 658212.6186 | EE22: 665482.2095 | EF22: 688535.1108 | EG22: 699596.5548 | EH22: 718254.9974 | EI22: 732489.2907 | EJ22: 743953.2787 | EK22: 749620.5013 | EL22: 770213.9211 | EM22: 696433.179 | EN22: 703410.7831 | EO22: 713235.4463 | EP22: 730757.5317 | EQ22: 746730.8289 | ER22: 770905.6521 | ES22: 755625.3255 | ET22: 759066.9073 | EU22: 775144.05 | EV22: 783504.6077 | EW22: 783249.3452 | EX22: 794777.5823 | EY22: 807341.9769 | EZ22: 829021.6668 | FA22: 855044.6163 | FB22: 872209.7313 | FC22: 868535.2103 | FD22: 883940.8559 | FE22: 891638.3997 | FF22: 911012.3968 | FG22: 918194.2963 | FH22: 923812.7717 | FI22: 923937.4412 | FJ22: 923863.6876 | FK22: 937929.7935 | FL22: 993728.7587 | FM22: 1024644.298 | FN22: 1038962.888 | FO22: 1044958.307 | FP22: 1060622.423 | FQ22: 1072802.597 | FR22: 1093041.822 | FS22: 1087261.604 | FT22: 1102295.242 | FU22: 1106402.57 | FV22: 1116400.789 | FW22: 1133621.836 | FX22: 1144220.463 | FY22: 1139061.252 | FZ22: 1149355.748 | GA22: 1163547.537 | GB22: 1186026.017 | GC22: 1197654.074 | GD22: 1215503.027 | GE22: 1198833.287 | GF22: 1208360.85 | GG22: 1209037.043 | GH22: 1205243.347 | GI22: 1217454.768 | GJ22: 1232827.717 | GK22: 1234252.686 | GL22: 1246849.891 | GM22: 1253800.587 | GN22: 1275460.017 | GO22: 1279267.222 | GP22: 1294726.074 | GQ22: 1277589.437 | GR22: 1302442.626 | GS22: 1298047.396 | GT22: 1316072.2 | GU22: 1312721.432 | GV22: 1329095.872 | GW22: 1325519.363 | GX22: 1337544.618 | GY22: 1331302.016 | GZ22: 1346792.844 | HA22: 1349198.913 | HB22: 1375596.523 | HC22: 1375393.057 | HD22: 1382069.928 | HE22: 1373691.154 | HF22: 1382118.989 | HG22: 1393739.547 | HH22: 1402480.365 | HI22: 1408404.735 | HJ22: 1431600.785 | HK22: 1428243.36 | HL22: 1449611.992 | HM22: 1455085.579 | HN22: 1466520.576 | HO22: 1464906.322 | HP22: 1482525.45 | HQ22: 1477798.393 | HR22: 1500671.007 | HS22: 1502736.08 | HT22: 1505132.249 | HU22: 1509428.553 | HV22: 1516810.155 | HW22: 1525166.3 | HX22: 1553803.22 | HY22: 1554986.691 | HZ22: 1566471.82 | IA22: 1570425.504 | IB22: 1579123.874 | IC22: 1584190.881 | ID22: 1591773.485 | IE22: 1595594.845 | IF22: 1606611.786 | IG22: 1706967 | IH22: 1723994 | II22: 1712417 | IJ22: 1734565 | IK22: 1744074 | IL22: 1773416 | IM22: 1767748
A23: Verðtryggð markaðsskuldabréf / Indexed marketable bonds | B23: 228839 | C23: 226947 | D23: 230349 | E23: 233000 | F23: 233960 | G23: 234983 | H23: 235372 | I23: 237201 | J23: 238439 | K23: 239049 | L23: 239284 | M23: 248938 | N23: 245889 | O23: 245462 | P23: 245208 | Q23: 245712 | R23: 245931 | S23: 246308 | T23: 250495 | U23: 250867 | V23: 252114 | W23: 249837 | X23: 249190 | Y23: 248876 | Z23: 249535 | AA23: 250311 | AB23: 251719 | AC23: 254157 | AD23: 256258 | AE23: 259003 | AF23: 259750 | AG23: 262220 | AH23: 262232 | AI23: 264964 | AJ23: 262226 | AK23: 268275 | AL23: 267230 | AM23: 268158 | AN23: 269337 | AO23: 270164 | AP23: 271946 | AQ23: 271196 | AR23: 273350 | AS23: 271738 | AT23: 270739 | AU23: 272999 | AV23: 274657 | AW23: 273516 | AX23: 279177 | AY23: 277185 | AZ23: 278783 | BA23: 283456 | BB23: 289564 | BC23: 297180 | BD23: 299902 | BE23: 303006 | BF23: 307285 | BG23: 309728 | BH23: 312957 | BI23: 313974 | BJ23: 322498 | BK23: 322812 | BL23: 326063 | BM23: 328238 | BN23: 327749 | BO23: 328040 | BP23: 331243 | BQ23: 331100 | BR23: 332346 | BS23: 336452 | BT23: 337681.0997 | BU23: 337819.7469 | BV23: 343835.3548 | BW23: 341999.7238 | BX23: 344726.2133 | BY23: 347904.7364 | BZ23: 351543.6839 | CA23: 351929.8608 | CB23: 354005.1167 | CC23: 354671.8396 | CD23: 355051.4505 | CE23: 358446.7918 | CF23: 360656.0332 | CG23: 367440.4411 | CH23: 365938.771 | CI23: 372164.6068 | CJ23: 376481.6965 | CK23: 380105.194 | CL23: 386701.0105 | CM23: 392038.2148 | CN23: 414072.8808 | CO23: 422285.1995 | CP23: 423859.2451 | CQ23: 424240.6278 | CR23: 418166.2515 | CS23: 419628.2358 | CT23: 423025.8146 | CU23: 424942.6134 | CV23: 436395.5118 | CW23: 439698.4757 | CX23: 437568.3298 | CY23: 450768.2544 | CZ23: 452937.4182 | DA23: 464522.7568 | DB23: 471433.1048 | DC23: 471564.9477 | DD23: 477529.286 | DE23: 480610.0673 | DF23: 481118.8929 | DG23: 483609.795 | DH23: 495000.2829 | DI23: 499642.3685 | DJ23: 505021.2776 | DK23: 511712.5032 | DL23: 515325.7771 | DM23: 519505.6494 | DN23: 525909.8499 | DO23: 534566.0592 | DP23: 536882.1641 | DQ23: 546452.8101 | DR23: 547823.0741 | DS23: 550003.5259 | DT23: 549648.9429 | DU23: 550377.1304 | DV23: 562434.1562 | DW23: 567267.1069 | DX23: 574402.44 | DY23: 577056.0742 | DZ23: 587123.4568 | EA23: 594026.5124 | EB23: 603469.4086 | EC23: 646075.9288 | ED23: 650842.0287 | EE23: 658598.896 | EF23: 681824.1985 | EG23: 691867.0516 | EH23: 712145.8766 | EI23: 726058.6707 | EJ23: 735785.8294 | EK23: 741468.89 | EL23: 759938.0679 | EM23: 686222.0286 | EN23: 692419.4571 | EO23: 652337.6401 | EP23: 665100.2511 | EQ23: 673784.1018 | ER23: 693216.8728 | ES23: 678933.8668 | ET23: 683641.2738 | EU23: 697276.6721 | EV23: 704991.3575 | EW23: 702178.0203 | EX23: 710521.7071 | EY23: 719405.3365 | EZ23: 735670.943 | FA23: 737835.1511 | FB23: 793093.4701 | FC23: 790295.6294 | FD23: 803281.5874 | FE23: 811906.2826 | FF23: 822380.7519 | FG23: 830113.7601 | FH23: 835666.4726 | FI23: 833301.3421 | FJ23: 831142.3954 | FK23: 839298.4019 | FL23: 892164.115 | FM23: 921070.9697 | FN23: 925949.1441 | FO23: 926664.6118 | FP23: 940179.3101 | FQ23: 947912.3531 | FR23: 954362.1488 | FS23: 951412.5848 | FT23: 983111.8526 | FU23: 983238.07 | FV23: 994673.3913 | FW23: 1000203.084 | FX23: 1008727.441 | FY23: 1001170.725 | FZ23: 1009897.403 | GA23: 1013619.826 | GB23: 1034609.326 | GC23: 1044810.471 | GD23: 1053704.716 | GE23: 1042467.084 | GF23: 1049922.632 | GG23: 1046774.886 | GH23: 1037153.563 | GI23: 1048672.973 | GJ23: 1060283.198 | GK23: 1058920.816 | GL23: 1067854.956 | GM23: 1075298.649 | GN23: 1098274.145 | GO23: 1099251.943 | GP23: 1112117.789 | GQ23: 1099556.165 | GR23: 1121149.042 | GS23: 1114429.825 | GT23: 1126481.989 | GU23: 1123071.436 | GV23: 1134724.766 | GW23: 1132872.185 | GX23: 1147793.203 | GY23: 1141132.287 | GZ23: 1158040.777 | HA23: 1160638.302 | HB23: 1186200.7 | HC23: 1189219.279 | HD23: 1194256.606 | HE23: 1184721.144 | HF23: 1187557.235 | HG23: 1201208.127 | HH23: 1210857.09 | HI23: 1224248.341 | HJ23: 1239331.05 | HK23: 1234913.536 | HL23: 1258821.33 | HM23: 1261815.068 | HN23: 1271262.102 | HO23: 1274504.122 | HP23: 1287047.592 | HQ23: 1283800.182 | HR23: 1307052.147 | HS23: 1311307.944 | HT23: 1313084.523 | HU23: 1225808.481 | HV23: 1231035.517 | HW23: 1233838.633 | HX23: 1260605.252 | HY23: 1262685.092 | HZ23: 1270509.869 | IA23: 1271186.691 | IB23: 1277965.204 | IC23: 1287206.513 | ID23: 1298474.569 | IE23: 1301679.04 | IF23: 1311654.78 | IG23: 1381035 | IH23: 1395287 | II23: 1387372 | IJ23: 1408299 | IK23: 1417072 | IL23: 1442326 | IM23: 1442806
A24: Markaðsskuldabréf í erlendum gjaldmiðlum / Marketable bonds in foreign currency | B24: 3407 | C24: 3219 | D24: 2568 | E24: 2543 | F24: 2543 | G24: 2528 | H24: 3084 | I24: 2404 | J24: 2377 | K24: 2324 | L24: 2600 | M24: 2237 | N24: 3430 | O24: 3518 | P24: 3909 | Q24: 3723 | R24: 3948 | S24: 4090 | T24: 3813 | U24: 3827 | V24: 3955 | W24: 4050 | X24: 3956 | Y24: 3579 | Z24: 3386 | AA24: 3368 | AB24: 3301 | AC24: 3303 | AD24: 3261 | AE24: 3064 | AF24: 3118 | AG24: 3099 | AH24: 2945 | AI24: 2926 | AJ24: 2852 | AK24: 2554 | AL24: 2622 | AM24: 2571 | AN24: 2550 | AO24: 2556 | AP24: 2489 | AQ24: 2506 | AR24: 2521 | AS24: 2426 | AT24: 2120 | AU24: 2210 | AV24: 2236 | AW24: 2240 | AX24: 2147 | AY24: 2114 | AZ24: 1941 | BA24: 2248 | BB24: 2172 | BC24: 2122 | BD24: 2250 | BE24: 2246 | BF24: 2273 | BG24: 2076 | BH24: 2148 | BI24: 2093 | BJ24: 2134 | BK24: 2105 | BL24: 2087 | BM24: 2453 | BN24: 2548 | BO24: 2476 | BP24: 2458 | BQ24: 2450 | BR24: 2558 | BS24: 2644 | BT24: 2744.996165 | BU24: 3920.690727 | BV24: 3431.589979 | BW24: 3189.132379 | BX24: 3202.802587 | BY24: 3169.085357 | BZ24: 3126.422261 | CA24: 2978.46496 | CB24: 2990.13129 | CC24: 3397.86793 | CD24: 3171.90022 | CE24: 3174.86718 | CF24: 3152.275473 | CG24: 3732.984 | CH24: 4324.83588 | CI24: 5283.238135 | CJ24: 5288.263278 | CK24: 5018.503169 | CL24: 4438.955819 | CM24: 4502.660251 | CN24: 4618.915097 | CO24: 4635.360698 | CP24: 4876.26793 | CQ24: 5092.552094 | CR24: 4940.833184 | CS24: 11096.98081 | CT24: 8134.546289 | CU24: 8375.68318 | CV24: 8011.01194 | CW24: 8075.800544 | CX24: 7540.665312 | CY24: 8215.666766 | CZ24: 7978.77371 | DA24: 8182.183076 | DB24: 7745.843738 | DC24: 7701.057378 | DD24: 7195.363859 | DE24: 10943.999 | DF24: 9272.295763 | DG24: 8327.145837 | DH24: 7720.536568 | DI24: 7763.420714 | DJ24: 7842.766301 | DK24: 7917.029824 | DL24: 7992.214374 | DM24: 8126.12862 | DN24: 8309.266935 | DO24: 8101.526949 | DP24: 8164.971887 | DQ24: 5642.555938 | DR24: 6584.122706 | DS24: 6574.133737 | DT24: 7177.908948 | DU24: 7254.992543 | DV24: 7421.663406 | DW24: 8088.170147 | DX24: 8511.644468 | DY24: 10534.2194 | DZ24: 10489.68902 | EA24: 9127.002338 | EB24: 8427.624874 | EC24: 8738.972 | ED24: 7370.589896 | EE24: 6883.313518 | EF24: 6710.912274 | EG24: 7729.503136 | EH24: 6109.120782 | EI24: 6430.619931 | EJ24: 8167.449238 | EK24: 8151.611302 | EL24: 10275.85324 | EM24: 10211.15047 | EN24: 10991.32595 | EO24: 60897.80613 | EP24: 65657.28058 | EQ24: 72946.72707 | ER24: 77688.77987 | ES24: 76691.46036 | ET24: 75425.63351 | EU24: 77867.37799 | EV24: 78513.25014 | EW24: 81071.32492 | EX24: 84255.87517 | EY24: 87936.6404 | EZ24: 93350.72375 | FA24: 117209.4651 | FB24: 79116.26119 | FC24: 78239.58093 | FD24: 80659.26847 | FE24: 79732.11706 | FF24: 88631.64489 | FG24: 88080.53616 | FH24: 88146.29912 | FI24: 90636.09909 | FJ24: 92721.29217 | FK24: 98631.39159 | FL24: 101564.6436 | FM24: 103573.3281 | FN24: 113013.7438 | FO24: 118293.6949 | FP24: 120443.1126 | FQ24: 124890.244 | FR24: 138679.6728 | FS24: 135849.0195 | FT24: 119183.3891 | FU24: 123164.5 | FV24: 121727.3979 | FW24: 133418.7519 | FX24: 135493.0223 | FY24: 137890.5272 | FZ24: 139458.345 | GA24: 149927.7116 | GB24: 151416.6909 | GC24: 152843.6027 | GD24: 161798.3108 | GE24: 156366.2031 | GF24: 158438.2173 | GG24: 162262.1567 | GH24: 168089.7837 | GI24: 168781.7959 | GJ24: 172544.5198 | GK24: 175331.8694 | GL24: 178994.9349 | GM24: 178501.9374 | GN24: 177185.8721 | GO24: 180015.279 | GP24: 182608.2846 | GQ24: 178033.2719 | GR24: 181293.5844 | GS24: 183617.5708 | GT24: 189590.211 | GU24: 189649.9961 | GV24: 194371.1052 | GW24: 192647.1783 | GX24: 189751.4149 | GY24: 190169.7289 | GZ24: 188752.0673 | HA24: 188560.611 | HB24: 189395.8235 | HC24: 186173.7775 | HD24: 187813.3223 | HE24: 188970.0107 | HF24: 194561.7535 | HG24: 192531.4198 | HH24: 191623.2749 | HI24: 184156.3938 | HJ24: 192269.7356 | HK24: 193329.8235 | HL24: 190790.6617 | HM24: 193270.5113 | HN24: 195258.4742 | HO24: 190402.1998 | HP24: 195477.8578 | HQ24: 193998.2115 | HR24: 193618.8592 | HS24: 191428.1359 | HT24: 190369.8712 | HU24: 25203.2364 | HV24: 25412.54297 | HW24: 25297.27092 | HX24: 24272.41489 | HY24: 24324.18461 | HZ24: 25277.70207 | IA24: 25023.76249 | IB24: 24510.80893 | IC24: 23954.42244 | ID24: 23547.41517 | IE24: 21684.84962 | IF24: 23106.3193 | IG24: 23235 | IH24: 24099 | II24: 22189 | IJ24: 22690 | IK24: 22117 | IL24: 20931 | IM24: 21925
A25: Önnur markaðsskuldabréf og víxlar / Other marketable bonds and bills | HL25: 0 | HT25: 1677.855 | HU25: 258416.8355 | HV25: 260362.0951 | HW25: 266030.3964 | HX25: 268925.5533 | HY25: 267977.4137 | HZ25: 270684.2492 | IA25: 274215.0507 | IB25: 276647.8607 | IC25: 273029.9451 | ID25: 269751.5007 | IE25: 272230.9555 | IF25: 271850.6863 | IG25: 302698 | IH25: 304609 | II25: 302857 | IJ25: 303576 | IK25: 304885 | IL25: 310160 | IM25: 303017
A26: Innlend hlutabréf og hlutdeildarskírteini / Domestic equities and investment fund shares | B26: 15634 | C26: 16334 | D26: 16227 | E26: 20160 | F26: 20734 | G26: 20591 | H26: 22272 | I26: 21771 | J26: 22354 | K26: 22649 | L26: 23609 | M26: 27024 | N26: 28531 | O26: 28994 | P26: 30942 | Q26: 30938 | R26: 33228 | S26: 34501 | T26: 36143 | U26: 36398 | V26: 35848 | W26: 41319 | X26: 44955 | Y26: 52559 | Z26: 56943 | AA26: 58142 | AB26: 60709 | AC26: 61885 | AD26: 62872 | AE26: 64145 | AF26: 66350 | AG26: 66906 | AH26: 68975 | AI26: 69757 | AJ26: 79549 | AK26: 90890 | AL26: 94360 | AM26: 96530 | AN26: 101959 | AO26: 97462 | AP26: 94574 | AQ26: 96125 | AR26: 97465 | AS26: 98878 | AT26: 99321 | AU26: 97106 | AV26: 93954 | AW26: 93149 | AX26: 91767 | AY26: 92459 | AZ26: 93599 | BA26: 94330 | BB26: 94435 | BC26: 94563 | BD26: 93550 | BE26: 93399 | BF26: 94392 | BG26: 96997 | BH26: 99247 | BI26: 106926 | BJ26: 110989 | BK26: 111523 | BL26: 110422 | BM26: 114034 | BN26: 113395 | BO26: 115848 | BP26: 116668 | BQ26: 114952 | BR26: 119898 | BS26: 121354 | BT26: 125518.7308 | BU26: 129417.4687 | BV26: 133776.526 | BW26: 137457.8846 | BX26: 138661.8413 | BY26: 139318.5049 | BZ26: 140773.9864 | CA26: 144417.9934 | CB26: 144987.4738 | CC26: 151294.023 | CD26: 154232.2418 | CE26: 160393.7465 | CF26: 161085.505 | CG26: 166748.898 | CH26: 174286.8735 | CI26: 182650.7017 | CJ26: 182857.9245 | CK26: 184301.1751 | CL26: 182807.0103 | CM26: 196143.5396 | CN26: 195556.1232 | CO26: 214534.0981 | CP26: 229031.5564 | CQ26: 210229.2207 | CR26: 214135.7015 | CS26: 215199.6069 | CT26: 232567.8752 | CU26: 238320.0782 | CV26: 243671.6601 | CW26: 247205.4367 | CX26: 245940.5838 | CY26: 247701.3051 | CZ26: 254073.7475 | DA26: 262413.172 | DB26: 266501.8841 | DC26: 266731.1937 | DD26: 278306.1422 | DE26: 297468.5322 | DF26: 332932.3075 | DG26: 349941.7339 | DH26: 324692.057 | DI26: 317176.7879 | DJ26: 329659.2685 | DK26: 319076.2347 | DL26: 315612.7093 | DM26: 347487.2918 | DN26: 363942.144 | DO26: 361184.8441 | DP26: 358265.5559 | DQ26: 371066.1586 | DR26: 400943.1006 | DS26: 410810.7583 | DT26: 421819.0522 | DU26: 440627.6267 | DV26: 458132.9712 | DW26: 466922.2421 | DX26: 469841.235 | DY26: 447175.4613 | DZ26: 443866.3531 | EA26: 446898.3342 | EB26: 415198.3913 | EC26: 397757.1729 | ED26: 380252.4169 | EE26: 355779.966 | EF26: 366395.2863 | EG26: 382826.837 | EH26: 365119.3867 | EI26: 350496.1879 | EJ26: 348161.8904 | EK26: 352891.4127 | EL26: 328222.336 | EM26: 169947.7644 | EN26: 166309.6659 | EO26: 138090.6495 | EP26: 133702.4751 | EQ26: 122634.3491 | ER26: 120183.5797 | ES26: 117539.4096 | ET26: 123056.3024 | EU26: 119143.9695 | EV26: 117529.4882 | EW26: 116595.6036 | EX26: 113839.1749 | EY26: 115537.2033 | EZ26: 113567.3944 | FA26: 108632.5333 | FB26: 108166.0163 | FC26: 110740.1841 | FD26: 112897.404 | FE26: 115165.4263 | FF26: 114369.7927 | FG26: 117756.2167 | FH26: 122866.6499 | FI26: 128721.1907 | FJ26: 130774.1787 | FK26: 133906.6133 | FL26: 139458.0705 | FM26: 142923.9622 | FN26: 148726.9361 | FO26: 158498.7581 | FP26: 160639.9612 | FQ26: 161645.7062 | FR26: 170991.2143 | FS26: 178967.4911 | FT26: 181645.2205 | FU26: 181252.3341 | FV26: 180336.8041 | FW26: 186670.7373 | FX26: 193611.4047 | FY26: 210685.8326 | FZ26: 218360.3851 | GA26: 226662.6044 | GB26: 235810.2325 | GC26: 241374.8168 | GD26: 241196.569 | GE26: 253890.7983 | GF26: 262424.1079 | GG26: 266907.8539 | GH26: 271138.5196 | GI26: 273088.4561 | GJ26: 283872.9179 | GK26: 290942.6732 | GL26: 308476.7372 | GM26: 316766.8268 | GN26: 318991.0461 | GO26: 327470.079 | GP26: 333922.5985 | GQ26: 348897.6204 | GR26: 363457.4504 | GS26: 363716.8617 | GT26: 367185.2291 | GU26: 384484.4787 | GV26: 395703.3949 | GW26: 412587.7163 | GX26: 420913.6642 | GY26: 424777.434 | GZ26: 425175.2127 | HA26: 443518.3907 | HB26: 434470.0525 | HC26: 445629.4507 | HD26: 453622.6817 | HE26: 455925.091 | HF26: 456504.0014 | HG26: 467771.4568 | HH26: 486285.9033 | HI26: 511372.799 | HJ26: 532754.6236 | HK26: 535625.801 | HL26: 531986.047 | HM26: 547069.7054 | HN26: 563586.888 | HO26: 580010.1064 | HP26: 600959.9675 | HQ26: 614134.2813 | HR26: 635047.777 | HS26: 679349.3809 | HT26: 668096.9091 | HU26: 565003.7469 | HV26: 560401.028 | HW26: 570873.5537 | HX26: 581633.75 | HY26: 584159.3716 | HZ26: 577087.5173 | IA26: 568529.0999 | IB26: 554912.0229 | IC26: 565068.657 | ID26: 545513.4432 | IE26: 562356.212 | IF26: 559722.5246 | IG26: 551591 | IH26: 560718 | II26: 564982 | IJ26: 562761 | IK26: 586621 | IL26: 571708 | IM26: 559949
A27: Hlutabréf / Equities | B27: 15634 | C27: 16334 | D27: 16227 | E27: 20160 | F27: 20734 | G27: 20591 | H27: 22272 | I27: 21771 | J27: 22354 | K27: 22649 | L27: 23609 | M27: 27024 | N27: 28531 | O27: 28994 | P27: 30942 | Q27: 30938 | R27: 33228 | S27: 34501 | T27: 36143 | U27: 36398 | V27: 35848 | W27: 41319 | X27: 44955 | Y27: 52559 | Z27: 56943 | AA27: 58142 | AB27: 60709 | AC27: 61885 | AD27: 62872 | AE27: 64145 | AF27: 66350 | AG27: 66906 | AH27: 68975 | AI27: 69757 | AJ27: 79549 | AK27: 90890 | AL27: 94360 | AM27: 96530 | AN27: 101959 | AO27: 97462 | AP27: 94574 | AQ27: 96125 | AR27: 97465 | AS27: 98878 | AT27: 99321 | AU27: 97106 | AV27: 93954 | AW27: 93149 | AX27: 91767 | AY27: 92459 | AZ27: 93599 | BA27: 94330 | BB27: 94435 | BC27: 94563 | BD27: 93550 | BE27: 93399 | BF27: 94392 | BG27: 96997 | BH27: 99247 | BI27: 106926 | BJ27: 110989 | BK27: 111523 | BL27: 110422 | BM27: 114034 | BN27: 113395 | BO27: 115848 | BP27: 116668 | BQ27: 114952 | BR27: 119898 | BS27: 121354 | BT27: 125518.7308 | BU27: 129417.4687 | BV27: 133776.526 | BW27: 137457.8846 | BX27: 138661.8413 | BY27: 139318.5049 | BZ27: 140773.9864 | CA27: 144417.9934 | CB27: 144987.4738 | CC27: 151294.023 | CD27: 154232.2418 | CE27: 160393.7465 | CF27: 161085.505 | CG27: 166748.898 | CH27: 174286.8735 | CI27: 182650.7017 | CJ27: 182857.9245 | CK27: 184301.1751 | CL27: 182807.0103 | CM27: 196143.5396 | CN27: 195556.1232 | CO27: 214534.0981 | CP27: 229031.5564 | CQ27: 210229.2207 | CR27: 214135.7015 | CS27: 215199.6069 | CT27: 232567.8752 | CU27: 238320.0782 | CV27: 243671.6601 | CW27: 247205.4367 | CX27: 245940.5838 | CY27: 247701.3051 | CZ27: 254073.7475 | DA27: 262413.172 | DB27: 266501.8841 | DC27: 266731.1937 | DD27: 278306.1422 | DE27: 297468.5322 | DF27: 332932.3075 | DG27: 349941.7339 | DH27: 324692.057 | DI27: 317176.7879 | DJ27: 329659.2685 | DK27: 319076.2347 | DL27: 315612.7093 | DM27: 347487.2918 | DN27: 363942.144 | DO27: 361184.8441 | DP27: 358265.5559 | DQ27: 371066.1586 | DR27: 400943.1006 | DS27: 410810.7583 | DT27: 421819.0522 | DU27: 440627.6267 | DV27: 458132.9712 | DW27: 466922.2421 | DX27: 469841.235 | DY27: 447175.4613 | DZ27: 443866.3531 | EA27: 446898.3342 | EB27: 415198.3913 | EC27: 397757.1729 | ED27: 380252.4169 | EE27: 355779.966 | EF27: 366395.2863 | EG27: 382826.837 | EH27: 365119.3867 | EI27: 350496.1879 | EJ27: 348161.8904 | EK27: 352891.4127 | EL27: 328222.336 | EM27: 169947.7644 | EN27: 166309.6659 | EO27: 23896.72894 | EP27: 22088.26422 | EQ27: 20729.63605 | ER27: 17430.48294 | ES27: 18003.02282 | ET27: 20574.71958 | EU27: 21158.64214 | EV27: 20690.30072 | EW27: 19844.26036 | EX27: 19629.11096 | EY27: 20085.25746 | EZ27: 20183.25487 | FA27: 24212.71621 | FB27: 23654.59873 | FC27: 25769.83568 | FD27: 28261.05983 | FE27: 30477.85786 | FF27: 28457.40609 | FG27: 31679.75631 | FH27: 33525.64157 | FI27: 36547.19875 | FJ27: 37179.70999 | FK27: 40645.36205 | FL27: 43580.03313 | FM27: 47777.62542 | FN27: 52514.08991 | FO27: 61703.44672 | FP27: 64441.85484 | FQ27: 64528.49688 | FR27: 74693.25275 | FS27: 81519.56887 | FT27: 87223.35043 | FU27: 85993.52001 | FV27: 85625.50945 | FW27: 88172.25801 | FX27: 93559.51626 | FY27: 106985.9642 | FZ27: 111330.907 | GA27: 117747.8358 | GB27: 127177.98 | GC27: 130708.222 | GD27: 132300.7853 | GE27: 144967.2788 | GF27: 153074.1102 | GG27: 155377.0137 | GH27: 125190.7685 | GI27: 125033.5037 | GJ27: 135671.5655 | GK27: 145910.3611 | GL27: 158349.2811 | GM27: 166164.858 | GN27: 168213.6986 | GO27: 174154.4621 | GP27: 179093.3237 | GQ27: 197982.8727 | GR27: 209144.4451 | GS27: 208593.8927 | GT27: 210719.4457 | GU27: 224420.2106 | GV27: 232540.8329 | GW27: 243783.4537 | GX27: 251172.8236 | GY27: 256886.6038 | GZ27: 256609.5118 | HA27: 274457.2352 | HB27: 273768.4309 | HC27: 280716.0281 | HD27: 288107.2341 | HE27: 290385.0189 | HF27: 292038.9974 | HG27: 303631.6756 | HH27: 321817.8086 | HI27: 344411.2784 | HJ27: 363045.8349 | HK27: 367445.559 | HL27: 361504.8435 | HM27: 376440.0619 | HN27: 391275.8361 | HO27: 406677.3229 | HP27: 424330.732 | HQ27: 433249.0313 | HR27: 450101.1576 | HS27: 485610.429 | HT27: 476722.1641 | HU27: 423078.3761 | HV27: 417636.0136 | HW27: 428355.1209 | HX27: 437193.4695 | HY27: 441588.6644 | HZ27: 436596.7374 | IA27: 427237.598 | IB27: 413143.5955 | IC27: 419499.2907 | ID27: 405239.4342 | IE27: 422397.9413 | IF27: 421111.0013 | IG27: 416844 | IH27: 424769 | II27: 428410 | IJ27: 430083 | IK27: 454556 | IL27: 449468 | IM27: 449925 | IP27: b
A28: Hludeildarskírteini / Investment fund shares | B28: 0 | EO28: 114193.9205 | EP28: 111614.2108 | EQ28: 101904.713 | ER28: 102753.0968 | ES28: 99536.38683 | ET28: 102481.5828 | EU28: 97985.32737 | EV28: 96839.18752 | EW28: 96751.34329 | EX28: 94210.06398 | EY28: 95451.94581 | EZ28: 93384.13954 | FA28: 84419.81707 | FB28: 84511.4176 | FC28: 84970.34838 | FD28: 84636.34417 | FE28: 84687.56847 | FF28: 85912.38658 | FG28: 86076.4604 | FH28: 89341.00837 | FI28: 92173.99198 | FJ28: 93594.4687 | FK28: 93261.25127 | FL28: 95878.03738 | FM28: 95146.33676 | FN28: 96212.8462 | FO28: 96795.31137 | FP28: 96198.10639 | FQ28: 97117.20933 | FR28: 96297.9616 | FS28: 97447.92223 | FT28: 94421.87007 | FU28: 95258.81411 | FV28: 94711.29462 | FW28: 98498.47933 | FX28: 100051.8885 | FY28: 103699.8684 | FZ28: 107029.478 | GA28: 108914.7686 | GB28: 108632.2524 | GC28: 110666.5948 | GD28: 108895.7837 | GE28: 108923.5195 | GF28: 109349.9976 | GG28: 111530.8402 | GH28: 145947.7511 | GI28: 148054.9523 | GJ28: 148201.3524 | GK28: 145032.3121 | GL28: 150127.4561 | GM28: 150601.9688 | GN28: 150777.3474 | GO28: 153315.6169 | GP28: 154829.2747 | GQ28: 150914.7477 | GR28: 154313.0054 | GS28: 155122.9689 | GT28: 156465.7834 | GU28: 160064.2681 | GV28: 163162.562 | GW28: 168804.2627 | GX28: 169740.8407 | GY28: 167890.8302 | GZ28: 168565.7009 | HA28: 169061.1554 | HB28: 160701.6216 | HC28: 164913.4226 | HD28: 165515.4475 | HE28: 165540.0721 | HF28: 164465.004 | HG28: 164139.7812 | HH28: 164468.0946 | HI28: 166961.5205 | HJ28: 169708.7887 | HK28: 168180.242 | HL28: 170481.2035 | HM28: 170629.6436 | HN28: 172311.0519 | HO28: 173332.7835 | HP28: 176629.2355 | HQ28: 180885.25 | HR28: 184946.6194 | HS28: 193738.952 | HT28: 191374.7449 | HU28: 141925.3708 | HV28: 142765.0144 | HW28: 142518.4328 | HX28: 144440.2805 | HY28: 142570.7072 | HZ28: 140490.7799 | IA28: 141291.5019 | IB28: 141768.4273 | IC28: 145569.3663 | ID28: 140274.009 | IE28: 139958.2707 | IF28: 138611.5233 | IG28: 134747 | IH28: 135950 | II28: 136572 | IJ28: 132678 | IK28: 132065 | IL28: 122240 | IM28: 110023 | IP28: f
A29: Innlend hlutdeildarfyrirtæki / Share in associated domestic undertakings | B29: 0 | HU29: 127242.4038 | HV29: 119637.6861 | HW29: 124008.8326 | HX29: 117563.9762 | HY29: 115278.6264 | HZ29: 112064.1422 | IA29: 109020.5877 | IB29: 106351.4188 | IC29: 110491.4096 | ID29: 113182.7104 | IE29: 110864.2488 | IF29: 112703.3913 | IG29: 116689 | IH29: 114763 | II29: 112223 | IJ29: 113252 | IK29: 117281 | IL29: 112004 | IM29: 117032 | IP29: f
A30: Tengd fyrirtæki innanlands / Share in affiliated domestic undertakings | B30: 0 | HU30: 20.379518 | HV30: 0.635 | HW30: 0.635 | HX30: 0.635 | HY30: 0.635 | HZ30: 0.635 | IA30: 0.635 | IB30: 0.5 | IC30: 0.5 | ID30: 0.5 | IE30: 0.5 | IF30: 20 | IG30: 1 | IH30: 1 | II30: 1 | IJ30: 1 | IK30: 1 | IL30: 1 | IM30: 1 | IP30: b
A31: Afleiður við innlenda aðila / Derivatives, domestic counterparties | B31: 0 | ED31: 129.923313 | EE31: 0 | EF31: 43.247 | EG31: 119.43 | EH31: 219.414609 | EI31: 0 | EJ31: 18.02 | EK31: 4.992 | EL31: 0 | EM31: 0 | EN31: 0 | EO31: 119.024 | EP31: 76.573 | EQ31: 119.024 | ER31: 149.936 | ES31: 149.936 | ET31: 149.936 | EU31: 149.936 | EV31: 76.573 | EW31: 76.573 | EX31: 119.024 | EY31: 119.024 | EZ31: 119.024 | FA31: 171.694 | FB31: 171.695 | FC31: 171.695 | FD31: 171.695 | FE31: 171.695 | FF31: 171.695 | FG31: 171.695 | FH31: 171.695 | FI31: 171.695 | FJ31: 171.695 | FK31: 171.695 | FL31: 171.695 | FM31: 0 | FN31: 0 | FO31: 0 | FP31: 0 | FQ31: 0 | FR31: 0 | FS31: 0 | FT31: 0 | FU31: 0 | FV31: 0 | FW31: 0 | FX31: 0 | FY31: 0 | FZ31: 0 | GA31: 0 | GB31: 0 | GC31: 0 | GD31: 0 | GE31: 0 | GF31: 0 | GG31: 0 | GH31: 0 | GI31: 0 | GJ31: 0 | GK31: 0 | GL31: 0 | GM31: 0 | GN31: 0 | GO31: 0 | GP31: 0 | GQ31: 0 | GR31: 0 | GS31: 0 | GT31: 0 | GU31: 0 | GV31: 0 | GW31: 0 | GX31: 0 | GY31: 0 | GZ31: 0 | HA31: 0 | HB31: 0 | HC31: 0 | HD31: 0 | HE31: 0 | HF31: 0 | HG31: 0 | HH31: 0 | HI31: 0 | HJ31: 0 | HK31: 0 | HM31: 0.024 | HN31: 0.024 | HO31: 0 | HP31: 0 | HQ31: 0 | HR31: 0 | HS31: 0 | HT31: 0 | HU31: 0 | HV31: 0 | HW31: 0 | HX31: 0 | HY31: 0 | HZ31: 0 | IA31: 0 | IB31: 0 | IC31: 0 | ID31: 0 | IE31: 0 | IF31: 0 | IP31: a
A32: Innlendar vátrygginga- og lífeyriseignir / Domestic insurance and pension entitlements | B32: 0 | EO32: 11143.41534 | EP32: 8957.11428 | EQ32: 9062.067138 | ER32: 9535.17206 | ES32: 9676.140747 | ET32: 9555.198121 | EU32: 9680.526269 | EV32: 9489.00404 | EW32: 9532.820189 | EX32: 9618.185083 | EY32: 9785.283977 | EZ32: 10092.63563 | FA32: 13832.01657 | FB32: 11439.9564 | FC32: 11373.99207 | FD32: 11484.29701 | FE32: 11533.93873 | FF32: 11845.61031 | FG32: 12125.54555 | FH32: 12158.71141 | FI32: 10346.2699 | FJ32: 10292.46361 | FK32: 10452.03293 | FL32: 10290.59058 | FM32: 12402.10495 | FN32: 10653.29801 | FO32: 10827.89357 | FP32: 10636.83487 | FQ32: 10389.11326 | FR32: 10322.15262 | FS32: 10289.55712 | FT32: 10044.29424 | FU32: 10020.492 | FV32: 10031.11485 | FW32: 10887.44733 | FX32: 10522.60899 | FY32: 11886.6106 | FZ32: 10292.4009 | GA32: 10602.58606 | GB32: 10283.84575 | GC32: 9897.802689 | GD32: 9913.316518 | GE32: 10105.7304 | GF32: 9847.388597 | GG32: 9876.227841 | GH32: 10427.22289 | GI32: 10416.60562 | GJ32: 10560.51498 | GK32: 11952.77572 | GL32: 10009.20865 | GM32: 10348.10931 | GN32: 10138.43226 | GO32: 9929.349643 | GP32: 9939.181784 | GQ32: 10173.52554 | GR32: 9946.269585 | GS32: 9690.696743 | GT32: 10492.73814 | GU32: 10482.33163 | GV32: 10485.70203 | GW32: 13213.90373 | GX32: 11153.59931 | GY32: 11132.0917 | GZ32: 10963.07298 | HA32: 10871.54904 | HB32: 11194.72257 | HC32: 11354.91337 | HD32: 11077.56774 | HE32: 11197.15128 | HF32: 11081.95002 | HG32: 12049.48262 | HH32: 12574.27188 | HI32: 13290.80898 | HJ32: 11276.35397 | HK32: 11219.05322 | HL32: 11117.55587 | HM32: 11182.94021 | HN32: 11948.58563 | HO32: 11589.37713 | HP32: 11451.14689 | HQ32: 11169.34618 | HR32: 11356.21341 | HS32: 12128.80098 | HT32: 12120.69902 | HU32: 14281.43763 | HV32: 13465.82319 | HW32: 13500.99242 | HX32: 13236.51684 | HY32: 13211.07542 | HZ32: 13410.37574 | IA32: 13701.41726 | IB32: 13807.26552 | IC32: 13498.54422 | ID32: 14292.36317 | IE32: 14890.07878 | IF32: 14799.84234 | IG32: 16863 | IH32: 15866 | II32: 16034 | IJ32: 15438 | IK32: 15694 | IL32: 15044 | IM32: 16119 | IP32: a
A33: Iðgjaldakröfur / Domestic claims for unpaid premiums | B33: 0 | EO33: 11143.41534 | EP33: 8957.11428 | EQ33: 9062.067138 | ER33: 9535.17206 | ES33: 9676.140747 | ET33: 9555.198121 | EU33: 9680.526269 | EV33: 9489.00404 | EW33: 9532.820189 | EX33: 9618.185083 | EY33: 9785.283977 | EZ33: 10092.63563 | FA33: 13832.01657 | FB33: 11439.9564 | FC33: 11373.99207 | FD33: 11484.29701 | FE33: 11533.93873 | FF33: 11845.61031 | FG33: 12125.54555 | FH33: 12158.71141 | FI33: 10346.2699 | FJ33: 10292.46361 | FK33: 10452.03293 | FL33: 10290.59058 | FM33: 12402.10495 | FN33: 10653.29801 | FO33: 10827.89357 | FP33: 10636.83487 | FQ33: 10389.11326 | FR33: 10322.15262 | FS33: 10289.55712 | FT33: 10044.29424 | FU33: 10020.492 | FV33: 10031.11485 | FW33: 10887.44733 | FX33: 10522.60899 | FY33: 11886.6106 | FZ33: 10292.4009 | GA33: 10602.58606 | GB33: 10283.84575 | GC33: 9897.802689 | GD33: 9913.316518 | GE33: 10105.7304 | GF33: 9847.388597 | GG33: 9876.227841 | GH33: 10427.22289 | GI33: 10416.60562 | GJ33: 10560.51498 | GK33: 11952.77572 | GL33: 10009.20865 | GM33: 10348.10931 | GN33: 10138.43226 | GO33: 9929.349643 | GP33: 9939.181784 | GQ33: 10173.52554 | GR33: 9946.269585 | GS33: 9690.696743 | GT33: 10492.73814 | GU33: 10482.33163 | GV33: 10485.70203 | GW33: 13213.90373 | GX33: 11153.59931 | GY33: 11132.0917 | GZ33: 10963.07298 | HA33: 10871.54904 | HB33: 11194.72257 | HC33: 11354.91337 | HD33: 11077.56774 | HE33: 11197.15128 | HF33: 11081.95002 | HG33: 12049.48262 | HH33: 12574.27188 | HI33: 13290.80898 | HJ33: 11276.35397 | HK33: 11219.05322 | HL33: 11117.55587 | HM33: 11182.94021 | HN33: 11948.58563 | HO33: 11589.37713 | HP33: 11451.14689 | HQ33: 11169.34618 | HR33: 11356.21341 | HS33: 12128.80098 | HT33: 12120.69902 | HU33: 14281.43763 | HV33: 13465.82319 | HW33: 13500.99242 | HX33: 13236.51684 | HY33: 13211.07542 | HZ33: 13410.37574 | IA33: 13701.41726 | IB33: 13807.26552 | IC33: 13498.54422 | ID33: 14292.36317 | IE33: 14890.07878 | IF33: 14799.84234 | IG33: 16863 | IH33: 15866 | II33: 16034 | IJ33: 15438 | IK33: 15694 | IL33: 15044 | IM33: 16119
A34: Aðrar innlendar eignir ót.a. / Other domestic assets unacc. for elsewhere | B34: 11873 | C34: 14586 | D34: 11292 | E34: 12171 | F34: 12364 | G34: 13561 | H34: 14274 | I34: 14871 | J34: 16436 | K34: 16981 | L34: 17491 | M34: 5360 | N34: 5207 | O34: 4595 | P34: 6096 | Q34: 6053 | R34: 6249 | S34: 7421 | T34: 7453 | U34: 6017 | V34: 5803 | W34: 6571 | X34: 6650 | Y34: 5516 | Z34: 5874 | AA34: 6569 | AB34: 6697 | AC34: 6385 | AD34: 6441 | AE34: 6380 | AF34: 6578 | AG34: 7001 | AH34: 8050 | AI34: 8164 | AJ34: 7279 | AK34: 6148 | AL34: 4753 | AM34: 5885 | AN34: 6352 | AO34: 5925 | AP34: 6060 | AQ34: 6321 | AR34: 6925 | AS34: 7251 | AT34: 4881 | AU34: 6744 | AV34: 6549 | AW34: 7858 | AX34: 3377 | AY34: 3677 | AZ34: 3352 | BA34: 2996 | BB34: 2285 | BC34: 1563 | BD34: 2616 | BE34: 2575 | BF34: 2250 | BG34: 2282 | BH34: 2694 | BI34: 7756 | BJ34: 4322 | BK34: 4152 | BL34: 3640 | BM34: 3839 | BN34: 3793 | BO34: 3601 | BP34: 3616 | BQ34: 3767 | BR34: 3121 | BS34: 3211 | BT34: 2855.024461 | BU34: 7064.739 | BV34: 2251.479379 | BW34: 3648.965319 | BX34: 4830.665879 | BY34: 4776.535146 | BZ34: 5361.027292 | CA34: 5106.497788 | CB34: 5093.336277 | CC34: 4948.127986 | CD34: 4934.940215 | CE34: 5169.724616 | CF34: 5353.592178 | CG34: 16437.924 | CH34: 12807.89726 | CI34: 12386.41278 | CJ34: 11878.23602 | CK34: 12060.26903 | CL34: 13225.43091 | CM34: 12566.85898 | CN34: 13454.71907 | CO34: 12945.18142 | CP34: 12866.67451 | CQ34: 12802.00998 | CR34: 13253.31372 | CS34: 14267.052 | CT34: 10235.17456 | CU34: 11509.84932 | CV34: 11403.94095 | CW34: 9309.906902 | CX34: 8142.18998 | CY34: 7565.136618 | CZ34: 7696.908137 | DA34: 8417.503785 | DB34: 8687.232106 | DC34: 8560.289469 | DD34: 8789.497195 | DE34: 10154.866 | DF34: 9639.463427 | DG34: 9027.106973 | DH34: 8945.349526 | DI34: 7989.380137 | DJ34: 7038.615935 | DK34: 7079.385121 | DL34: 8051.254529 | DM34: 8487.632789 | DN34: 8994.831834 | DO34: 7364.288277 | DP34: 7440.837721 | DQ34: 12732.48156 | DR34: 3121.526731 | DS34: 2953.940842 | DT34: 3680.662542 | DU34: 4268.010605 | DV34: 5060.493742 | DW34: 4220.197413 | DX34: 4773.379425 | DY34: 6026.401937 | DZ34: 5345.633329 | EA34: 7427.190447 | EB34: 6516.683422 | EC34: 12703.20977 | ED34: 8236.988906 | EE34: 7995.466663 | EF34: 10299.88533 | EG34: 9578.413979 | EH34: 11802.6362 | EI34: 10867.7892 | EJ34: 10768.15037 | EK34: 11126.96225 | EL34: 11799.19073 | EM34: 10075.87909 | EN34: 11991.44304 | EO34: 8525.689815 | EP34: 8249.404003 | EQ34: 10098.0271 | ER34: 10406.55025 | ES34: 9055.697158 | ET34: 9652.531212 | EU34: 9707.364054 | EV34: 5295.639417 | EW34: 5442.96772 | EX34: 5952.843581 | EY34: 5755.527612 | EZ34: 6314.64617 | FA34: 4606.69589 | FB34: 3799.308621 | FC34: 3816.800138 | FD34: 4633.630378 | FE34: 4361.07754 | FF34: 3931.665699 | FG34: 4143.712175 | FH34: 4076.451362 | FI34: 4482.698305 | FJ34: 4779.565354 | FK34: 4895.176467 | FL34: 5107.836036 | FM34: 7374.375927 | FN34: 4425.555924 | FO34: 4391.288194 | FP34: 4470.346121 | FQ34: 4218.510739 | FR34: 4492.281777 | FS34: 4736.722212 | FT34: 8193.656819 | FU34: 7183.875003 | FV34: 5462.202995 | FW34: 5435.668141 | FX34: 5608.071834 | FY34: 6137.436268 | FZ34: 5920.283504 | GA34: 6165.262647 | GB34: 6679.207522 | GC34: 6685.601365 | GD34: 7107.851118 | GE34: 5616.334702 | GF34: 6438.461316 | GG34: 6753.33746 | GH34: 6983.101634 | GI34: 7013.622779 | GJ34: 6828.341932 | GK34: 7700.391425 | GL34: 7919.910268 | GM34: 7492.82646 | GN34: 7243.582256 | GO34: 6925.214029 | GP34: 6785.448603 | GQ34: 7012.534947 | GR34: 7166.320555 | GS34: 7077.623131 | GT34: 6947.310429 | GU34: 7357.437669 | GV34: 7317.53922 | GW34: 7578.171948 | GX34: 7480.164078 | GY34: 5639.776894 | GZ34: 5801.272507 | HA34: 5735.987423 | HB34: 5667.640903 | HC34: 5610.397555 | HD34: 6245.783502 | HE34: 5442.950151 | HF34: 5709.004557 | HG34: 5780.667283 | HH34: 6053.700335 | HI34: 6695.33675 | HJ34: 5598.370491 | HK34: 5392.434664 | HL34: 6211.718025 | HM34: 5422.4608 | HN34: 6352.558706 | HO34: 8438.631573 | HP34: 5828.598123 | HQ34: 5433.33942 | HR34: 6206.939426 | HS34: 6076.722984 | HT34: 5462.472028 | HU34: 6335.213775 | HV34: 4881.901943 | HW34: 4389.36605 | HX34: 5223.330212 | HY34: 4945.869346 | HZ34: 5589.682994 | IA34: 6256.410035 | IB34: 4645.059659 | IC34: 4662.965305 | ID34: 4941.536589 | IE34: 4706.961769 | IF34: 4880.899785 | IG34: 7179 | IH34: 5354 | II34: 6576 | IJ34: 6185 | IK34: 8088 | IL34: 6919 | IM34: 7039 | IP34: a
A36: Erlendar eignir, alls / Foreign assets, total | B36: 4405 | C36: 5421 | D36: 5037 | E36: 5051 | F36: 5695 | G36: 6794 | H36: 7411 | I36: 7912 | J36: 8301 | K36: 9315 | L36: 9757 | M36: 25598 | N36: 25976 | O36: 28340 | P36: 31602 | Q36: 34026 | R36: 35429 | S36: 38608 | T36: 39795 | U36: 37424 | V36: 38464 | W36: 41940 | X36: 45039 | Y36: 49651 | Z36: 51202 | AA36: 52756 | AB36: 57704 | AC36: 60144 | AD36: 61974 | AE36: 66870 | AF36: 67341 | AG36: 69977 | AH36: 72029 | AI36: 76051 | AJ36: 82176 | AK36: 98075 | AL36: 101137 | AM36: 109104 | AN36: 113938 | AO36: 116848 | AP36: 114157 | AQ36: 120736 | AR36: 122297 | AS36: 131404 | AT36: 131814 | AU36: 136169 | AV36: 129350 | AW36: 127991 | AX36: 133388 | AY36: 123948 | AZ36: 120048 | BA36: 132513 | BB36: 140219 | BC36: 140685 | BD36: 135427 | BE36: 132823 | BF36: 119602 | BG36: 128081 | BH36: 138648 | BI36: 134693 | BJ36: 132851 | BK36: 131408 | BL36: 139341 | BM36: 131320 | BN36: 129119 | BO36: 114216 | BP36: 111822 | BQ36: 116004 | BR36: 101179 | BS36: 108885 | BT36: 113628.2176 | BU36: 102921.7255 | BV36: 99001.85527 | BW36: 98561.52481 | BX36: 97089.05414 | BY36: 102522.3108 | BZ36: 106012.4789 | CA36: 118201.4362 | CB36: 125295.2427 | CC36: 134123.4689 | CD36: 135387.2246 | CE36: 146338.7831 | CF36: 152223.0499 | CG36: 159923.4485 | CH36: 165315.4047 | CI36: 173799.8484 | CJ36: 182791.9267 | CK36: 186728.4642 | CL36: 187544.7654 | CM36: 192809.4972 | CN36: 189981.2743 | CO36: 195641.2848 | CP36: 200635.3984 | CQ36: 204502.7259 | CR36: 210585.4088 | CS36: 217577.614 | CT36: 222224.3187 | CU36: 228605.9984 | CV36: 229541.7628 | CW36: 237328.034 | CX36: 249395.0934 | CY36: 257241.4197 | CZ36: 263713.8524 | DA36: 264392.2626 | DB36: 267876.4049 | DC36: 264459.1575 | DD36: 285431.1868 | DE36: 298355.6236 | DF36: 314249.075 | DG36: 334015.7127 | DH36: 373663.6698 | DI36: 403346.2515 | DJ36: 378673.2196 | DK36: 402474.6753 | DL36: 389486.1779 | DM36: 379966.7903 | DN36: 386605.1066 | DO36: 391491.6331 | DP36: 404050.0548 | DQ36: 443047.2095 | DR36: 432823.114 | DS36: 424713.397 | DT36: 427914.0301 | DU36: 436194.4143 | DV36: 433065.2595 | DW36: 437750.0769 | DX36: 430632.4479 | DY36: 448147.742 | DZ36: 456040.3215 | EA36: 461777.9548 | EB36: 454761.1711 | EC36: 458258.2161 | ED36: 443317.5961 | EE36: 451202.2947 | EF36: 514160.9869 | EG36: 520775.2787 | EH36: 530704.159 | EI36: 521184.0754 | EJ36: 494492.6123 | EK36: 495287.0067 | EL36: 517063.9414 | EM36: 485333.4966 | EN36: 529884.7836 | EO36: 461881.6106 | EP36: 414592.3917 | EQ36: 382211.903 | ER36: 424045.2207 | ES36: 466039.9695 | ET36: 480628.646 | EU36: 493293.8482 | EV36: 513940.4047 | EW36: 509638.6974 | EX36: 515840.3348 | EY36: 511303.4282 | EZ36: 514285.7464 | FA36: 530083.6888 | FB36: 525416.8389 | FC36: 527826.3891 | FD36: 553024.9189 | FE36: 553051.8892 | FF36: 517527.996 | FG36: 499386.0257 | FH36: 506538.7425 | FI36: 496047.6168 | FJ36: 502035.4965 | FK36: 512749.5856 | FL36: 485825.489 | FM36: 470971.5377 | FN36: 479329.4836 | FO36: 485763.1169 | FP36: 481653.8091 | FQ36: 486217.4681 | FR36: 496676.5998 | FS36: 494738.7204 | FT36: 489700.6154 | FU36: 454610.6793 | FV36: 440333.7376 | FW36: 457183.7815 | FX36: 466279.7303 | FY36: 471697.6949 | FZ36: 492050.1138 | GA36: 514537.8987 | GB36: 520587.1754 | GC36: 514735.3537 | GD36: 501312.3739 | GE36: 495611.7763 | GF36: 483984.6552 | GG36: 500181.2678 | GH36: 519517.0451 | GI36: 535238.2271 | GJ36: 535072.9769 | GK36: 553692.7797 | GL36: 564891.854 | GM36: 559321.3268 | GN36: 560589.2976 | GO36: 538545.252 | GP36: 568819.922 | GQ36: 562872.6002 | GR36: 566788.4594 | GS36: 561991.6682 | GT36: 588589.9936 | GU36: 604568.7871 | GV36: 612960.2879 | GW36: 599024.2671 | GX36: 588141.2997 | GY36: 591575.4565 | GZ36: 595111.5524 | HA36: 592745.4515 | HB36: 607209.1917 | HC36: 619636.0249 | HD36: 627100.0199 | HE36: 642348.7652 | HF36: 655176.002 | HG36: 662010.7571 | HH36: 681734.2606 | HI36: 694969.3547 | HJ36: 714774.8236 | HK36: 743654.917 | HL36: 757459.1539 | HM36: 743775.0606 | HN36: 767804.8802 | HO36: 740571.1518 | HP36: 771907.0701 | HQ36: 713677.2552 | HR36: 687566.5473 | HS36: 734332.0196 | HT36: 756337.5652 | HU36: 735039.5444 | HV36: 699720.1302 | HW36: 700620.2121 | HX36: 710327.5033 | HY36: 717124.356 | HZ36: 729981.536 | IA36: 715613.601 | IB36: 724224.7007 | IC36: 712288.7536 | ID36: 724513.7451 | IE36: 707337.1727 | IF36: 713811.8558 | IG36: 764623 | IH36: 810264 | II36: 770090 | IJ36: 823392 | IK36: 785562 | IL36: 761206 | IM36: 802680
A37: Innlán í erlendum innlánsstofnunum / Deposits in foreign deposit taking corporations | B37: 0 | FR37: 0 | FT37: 856.8798128 | FU37: 677.4909247 | FV37: 1631.855375 | FW37: 918.8589247 | FX37: 1999.431459 | FY37: 2886.898843 | FZ37: 1364.390295 | GA37: 1844.370799 | GB37: 2073.210421 | GC37: 1962.241513 | GD37: 2460.564536 | GE37: 2205.148971 | GF37: 2208.390046 | GG37: 2369.927944 | GH37: 2898.363563 | GI37: 7391.076379 | GJ37: 3630.358547 | GK37: 2621.8046 | GL37: 997.3256806 | GM37: 1667.976341 | GN37: 1354.230114 | GO37: 1502.923078 | GP37: 1578.081999 | GQ37: 3435.007497 | GR37: 2007.515259 | GS37: 2496.921327 | GT37: 2628.555587 | GU37: 2067.919078 | GV37: 2201.124359 | GW37: 3239.0788 | GX37: 3843.971568 | GY37: 3783.19504 | GZ37: 6361.590741 | HA37: 4451.326942 | HB37: 4628.15572 | HC37: 5855.332199 | HD37: 6397.097627 | HE37: 3597.44352 | HF37: 3831.303859 | HG37: 2888.534631 | HH37: 3193.142736 | HI37: 6272.569705 | HJ37: 6125.182715 | HK37: 7251.262335 | HL37: 11325.42648 | HM37: 10062.80576 | HN37: 9729.604529 | HO37: 8909.327851 | HP37: 9937.932652 | HQ37: 8378.953619 | HR37: 8221.558159 | HS37: 10512.27294 | HT37: 10401.63046 | HU37: 8604.7281 | HV37: 8617.19396 | HW37: 8698.127406 | HX37: 6007.911784 | HY37: 7311.37462 | HZ37: 7314.452855 | IA37: 8423.752854 | IB37: 7063.650716 | IC37: 8714.483171 | ID37: 10079.62934 | IE37: 7257.99659 | IF37: 4390.073203 | IG37: 18450 | IH37: 19813 | II37: 18230 | IJ37: 15041 | IK37: 11370 | IL37: 10960 | IM37: 10621 | IP37: a
A38: Erlend útlán og markaðsverðbréf / Foreign credit and marketable securities | B38: 4405 | C38: 5421 | D38: 5037 | E38: 5051 | F38: 5695 | G38: 6794 | H38: 7411 | I38: 7912 | J38: 8301 | K38: 9315 | L38: 9757 | M38: 25598 | N38: 25976 | O38: 28340 | P38: 31602 | Q38: 34026 | R38: 35429 | S38: 38608 | T38: 39795 | U38: 37424 | V38: 38464 | W38: 41940 | X38: 45039 | Y38: 49651 | Z38: 51202 | AA38: 52756 | AB38: 57704 | AC38: 60144 | AD38: 61974 | AE38: 66870 | AF38: 67341 | AG38: 69977 | AH38: 72029 | AI38: 76051 | AJ38: 82176 | AK38: 98075 | AL38: 101137 | AM38: 109104 | AN38: 113938 | AO38: 116848 | AP38: 114157 | AQ38: 120736 | AR38: 122297 | AS38: 131404 | AT38: 131814 | AU38: 136169 | AV38: 129350 | AW38: 127991 | AX38: 133388 | AY38: 123948 | AZ38: 120048 | BA38: 132513 | BB38: 140219 | BC38: 140685 | BD38: 135427 | BE38: 132823 | BF38: 119602 | BG38: 128081 | BH38: 138648 | BI38: 134693 | BJ38: 132851 | BK38: 131408 | BL38: 139341 | BM38: 131320 | BN38: 129119 | BO38: 114216 | BP38: 111822 | BQ38: 116004 | BR38: 101179 | BS38: 108885 | BT38: 113628.2176 | BU38: 102921.7255 | BV38: 99001.85527 | BW38: 98561.52481 | BX38: 97089.05414 | BY38: 102522.3108 | BZ38: 106012.4789 | CA38: 118201.4362 | CB38: 125295.2427 | CC38: 134123.4689 | CD38: 135387.2246 | CE38: 146338.7831 | CF38: 152223.0499 | CG38: 159923.4485 | CH38: 165315.4047 | CI38: 173799.8484 | CJ38: 182791.9267 | CK38: 186728.4642 | CL38: 187544.7654 | CM38: 192809.4972 | CN38: 189981.2743 | CO38: 195641.2848 | CP38: 200635.3984 | CQ38: 204502.7259 | CR38: 210585.4088 | CS38: 217577.614 | CT38: 222224.3187 | CU38: 228605.9984 | CV38: 229541.7628 | CW38: 237328.034 | CX38: 249395.0934 | CY38: 257241.4197 | CZ38: 263713.8524 | DA38: 264392.2626 | DB38: 267876.4049 | DC38: 264459.1575 | DD38: 285431.1868 | DE38: 298355.6236 | DF38: 314249.075 | DG38: 334015.7127 | DH38: 373663.6698 | DI38: 403346.2515 | DJ38: 378673.2196 | DK38: 402474.6753 | DL38: 389486.1779 | DM38: 379966.7903 | DN38: 386605.1066 | DO38: 391491.6331 | DP38: 404050.0548 | DQ38: 443047.2095 | DR38: 432823.114 | DS38: 424713.397 | DT38: 427914.0301 | DU38: 436194.4143 | DV38: 433065.2595 | DW38: 437750.0769 | DX38: 430632.4479 | DY38: 448147.742 | DZ38: 456040.3215 | EA38: 461777.9548 | EB38: 454761.1711 | EC38: 458258.2161 | ED38: 443317.5961 | EE38: 451202.2947 | EF38: 514160.9869 | EG38: 520775.2787 | EH38: 530704.159 | EI38: 521184.0754 | EJ38: 494492.6123 | EK38: 495287.0067 | EL38: 517063.9414 | EM38: 485333.4966 | EN38: 529884.7836 | EO38: 461881.6106 | EP38: 414592.3917 | EQ38: 382211.903 | ER38: 424045.2207 | ES38: 466039.9695 | ET38: 480628.646 | EU38: 493293.8482 | EV38: 513940.4047 | EW38: 509638.6974 | EX38: 515840.3348 | EY38: 511303.4282 | EZ38: 514285.7464 | FA38: 530083.6888 | FB38: 525416.8389 | FC38: 527826.3891 | FD38: 553024.9189 | FE38: 553051.8892 | FF38: 517527.996 | FG38: 499386.0257 | FH38: 506538.7425 | FI38: 496047.6168 | FJ38: 502035.4965 | FK38: 512749.5856 | FL38: 485825.489 | FM38: 470971.5377 | FN38: 479329.4836 | FO38: 485763.1169 | FP38: 481653.8091 | FQ38: 486217.4681 | FR38: 496676.5998 | FS38: 494738.7204 | FT38: 488843.7356 | FU38: 453933.1883 | FV38: 438701.8822 | FW38: 456264.9226 | FX38: 464280.2988 | FY38: 468810.7961 | FZ38: 490685.7235 | GA38: 512693.5279 | GB38: 518513.965 | GC38: 512773.1122 | GD38: 498851.8094 | GE38: 493406.6274 | GF38: 481776.2652 | GG38: 497811.3399 | GH38: 516618.6815 | GI38: 527847.1507 | GJ38: 531442.6183 | GK38: 551070.9751 | GL38: 563894.5283 | GM38: 557653.3505 | GN38: 559235.0675 | GO38: 537042.3289 | GP38: 567241.8401 | GQ38: 559437.5927 | GR38: 564780.9441 | GS38: 559494.7469 | GT38: 585961.438 | GU38: 602500.8681 | GV38: 610759.1635 | GW38: 595785.1883 | GX38: 584297.3282 | GY38: 587792.2615 | GZ38: 588749.9617 | HA38: 588294.1245 | HB38: 602581.0359 | HC38: 613780.6927 | HD38: 620702.9223 | HE38: 638751.3217 | HF38: 651344.6981 | HG38: 659122.2225 | HH38: 678541.1179 | HI38: 688696.785 | HJ38: 708649.6409 | HK38: 736403.6547 | HL38: 746133.7274 | HM38: 733712.2549 | HN38: 758075.2757 | HO38: 731661.8239 | HP38: 761969.1375 | HQ38: 705298.3015 | HR38: 679344.9892 | HS38: 723819.7467 | HT38: 745935.9347 | HU38: 706105.0636 | HV38: 674952.4153 | HW38: 674178.2339 | HX38: 687625.186 | HY38: 693716.5171 | HZ38: 705755.706 | IA38: 690742.3195 | IB38: 701368.579 | IC38: 689881.1103 | ID38: 699640.761 | IE38: 686425.6218 | IF38: 695933.9569 | IG38: 727695 | IH38: 770337 | II38: 736353 | IJ38: 792547 | IK38: 758948 | IL38: 735793 | IM38: 772855
A39: Erlend útlán og markaðsskuldabréf / Foreign credit and marketable bonds | B39: 592 | C39: 942 | D39: 885 | E39: 890 | F39: 904 | G39: 954 | H39: 1024 | I39: 1113 | J39: 1121 | K39: 1098 | L39: 1232 | M39: 1417 | N39: 1174 | O39: 1224 | P39: 1374 | Q39: 1384 | R39: 1434 | S39: 2138 | T39: 2084 | U39: 1932 | V39: 1859 | W39: 1893 | X39: 1960 | Y39: 2876 | Z39: 2823 | AA39: 2826 | AB39: 2857 | AC39: 3270 | AD39: 3213 | AE39: 2977 | AF39: 2909 | AG39: 2788 | AH39: 2623 | AI39: 3123 | AJ39: 2730 | AK39: 3814 | AL39: 3477 | AM39: 3543 | AN39: 3494 | AO39: 3468 | AP39: 3548 | AQ39: 3560 | AR39: 3597 | AS39: 3702 | AT39: 3706 | AU39: 2677 | AV39: 2545 | AW39: 2963 | AX39: 2792 | AY39: 2753 | AZ39: 3214 | BA39: 3329 | BB39: 3557 | BC39: 3451 | BD39: 3380 | BE39: 2985 | BF39: 3016 | BG39: 3087 | BH39: 3189 | BI39: 3337 | BJ39: 3507 | BK39: 3244 | BL39: 3293 | BM39: 3171 | BN39: 3251 | BO39: 3261 | BP39: 3457 | BQ39: 3389 | BR39: 3386 | BS39: 3572 | BT39: 3332.748271 | BU39: 2586.919078 | BV39: 2879.080395 | BW39: 2831.30857 | BX39: 2954.785313 | BY39: 2896.985944 | BZ39: 2985.636817 | CA39: 3135.044918 | CB39: 3131.032293 | CC39: 3098.95855 | CD39: 3747.112425 | CE39: 3824.421435 | CF39: 3903.615658 | CG39: 4294.468558 | CH39: 4759.88045 | CI39: 4464.261747 | CJ39: 5306.601371 | CK39: 5438.925514 | CL39: 5716.619937 | CM39: 5941.420775 | CN39: 5303.405999 | CO39: 5157.640569 | CP39: 5853.970807 | CQ39: 5844.812952 | CR39: 5664.371612 | CS39: 6775.560404 | CT39: 6211.13746 | CU39: 6514.063716 | CV39: 7705.906181 | CW39: 7912.412606 | CX39: 8487.905653 | CY39: 9819.759895 | CZ39: 10045.38899 | DA39: 10311.61634 | DB39: 10803.99665 | DC39: 11128.80877 | DD39: 11946.86672 | DE39: 11135.59443 | DF39: 13629.7608 | DG39: 14718.16052 | DH39: 16107.18415 | DI39: 15905.7702 | DJ39: 16474.72549 | DK39: 18394.22041 | DL39: 18042.55956 | DM39: 18187.78549 | DN39: 17572.07753 | DO39: 17556.55592 | DP39: 19991.78401 | DQ39: 20821.79898 | DR39: 21971.85135 | DS39: 21840.77796 | DT39: 21601.05784 | DU39: 22184.48778 | DV39: 22195.90047 | DW39: 22353.56818 | DX39: 22844.74875 | DY39: 23868.38022 | DZ39: 24508.29599 | EA39: 25099.16309 | EB39: 24341.14589 | EC39: 24486.48853 | ED39: 27130.60991 | EE39: 27799.54306 | EF39: 30754.64118 | EG39: 31660.67495 | EH39: 32288.04791 | EI39: 33272.21399 | EJ39: 33945.50486 | EK39: 32510.89306 | EL39: 37660.36005 | EM39: 33594.83113 | EN39: 34784.09251 | EO39: 28325.98264 | EP39: 30666.80677 | EQ39: 31120.96526 | ER39: 31617.85191 | ES39: 35891.84643 | ET39: 35843.76963 | EU39: 36541.18202 | EV39: 36607.93985 | EW39: 32581.7061 | EX39: 31537.68788 | EY39: 30868.1182 | EZ39: 30690.78905 | FA39: 23286.5772 | FB39: 22318.24431 | FC39: 21620.23505 | FD39: 20177.00204 | FE39: 19568.67131 | FF39: 18496.78104 | FG39: 17332.97772 | FH39: 17843.50049 | FI39: 18018.07771 | FJ39: 17574.86205 | FK39: 16822.89498 | FL39: 15907.75917 | FM39: 14700.62885 | FN39: 14365.41848 | FO39: 12560.0744 | FP39: 12126.92668 | FQ39: 12058.95177 | FR39: 12448.85007 | FS39: 11310.92905 | FT39: 10930.94743 | FU39: 8742.269849 | FV39: 8990.942509 | FW39: 9778.302502 | FX39: 9660.939186 | FY39: 9136.932873 | FZ39: 9178.981755 | GA39: 9021.108818 | GB39: 8643.451939 | GC39: 8716.472623 | GD39: 8312.27582 | GE39: 6504.349754 | GF39: 5970.113657 | GG39: 5857.340577 | GH39: 6281.346545 | GI39: 6183.477667 | GJ39: 5934.767023 | GK39: 6037.126247 | GL39: 6026.356113 | GM39: 5686.236872 | GN39: 6234.775409 | GO39: 5659.350294 | GP39: 5864.11328 | GQ39: 5938.036834 | GR39: 5752.650277 | GS39: 5554.516954 | GT39: 5677.693724 | GU39: 5661.521595 | GV39: 4650.255349 | GW39: 4244.633332 | GX39: 4243.67461 | GY39: 4130.547186 | GZ39: 4134.387362 | HA39: 4100.578632 | HB39: 4054.55262 | HC39: 3543.88712 | HD39: 3387.27815 | HE39: 3224.274423 | HF39: 2083.43727 | HG39: 2920.5853 | HH39: 2922.533249 | HI39: 3268.804954 | HJ39: 3068.273752 | HK39: 3086.035465 | HL39: 2423.279214 | HM39: 2526.900165 | HN39: 2552.874172 | HO39: 2922.026601 | HP39: 2789.345169 | HQ39: 2621.268929 | HR39: 2569.861169 | HS39: 2085.822005 | HT39: 2442.798057 | HU39: 1857.301934 | HV39: 1861.623493 | HW39: 1849.728869 | HX39: 1810.188713 | HY39: 1853.872351 | HZ39: 1586.275589 | IA39: 1579.86065 | IB39: 1545.372518 | IC39: 1217.943899 | ID39: 1240.799856 | IE39: 1248.780047 | IF39: 1284.607387 | IG39: 1204 | IH39: 1222 | II39: 1457 | IJ39: 1494 | IK39: 1465 | IL39: 1438 | IM39: 1502 | IP39: e
A40: Erlend útlán og eignarleigusamningar / Foreign credit and leasing contracts | B40: 0 | HU40: 80.156591 | HV40: 87.127546 | HW40: 77.640602 | HX40: 77.599089 | HY40: 77.638478 | HZ40: 77.365922 | IA40: 77.299726 | IB40: 77.277549 | IC40: 76.679038 | ID40: 116.546649 | IE40: 157.285072 | IF40: 199.653286 | IG40: 199 | IH40: 199 | II40: 181 | IJ40: 184 | IK40: 184 | IL40: 171 | IM40: 218
A41: Niðurfærslur erlendra útlána / Non-resident provisions | B41: 0 | HU41: 0 | HV41: 0 | HW41: 0 | HX41: 0 | HY41: 0 | HZ41: 0 | IA41: 0 | IB41: 0 | IC41: 0 | ID41: 0 | IE41: 0 | IF41: 0
A42: Erlend markaðsskuldabréf og víxlar / Foreign marketable bonds and bills | B42: 592 | C42: 942 | D42: 885 | E42: 890 | F42: 904 | G42: 954 | H42: 1024 | I42: 1113 | J42: 1121 | K42: 1098 | L42: 1232 | M42: 1417 | N42: 1174 | O42: 1224 | P42: 1374 | Q42: 1384 | R42: 1434 | S42: 2138 | T42: 2084 | U42: 1932 | V42: 1859 | W42: 1893 | X42: 1960 | Y42: 2876 | Z42: 2823 | AA42: 2826 | AB42: 2857 | AC42: 3270 | AD42: 3213 | AE42: 2977 | AF42: 2909 | AG42: 2788 | AH42: 2623 | AI42: 3123 | AJ42: 2730 | AK42: 3814 | AL42: 3477 | AM42: 3543 | AN42: 3494 | AO42: 3468 | AP42: 3548 | AQ42: 3560 | AR42: 3597 | AS42: 3702 | AT42: 3706 | AU42: 2677 | AV42: 2545 | AW42: 2963 | AX42: 2792 | AY42: 2753 | AZ42: 3214 | BA42: 3329 | BB42: 3557 | BC42: 3451 | BD42: 3380 | BE42: 2985 | BF42: 3016 | BG42: 3087 | BH42: 3189 | BI42: 3337 | BJ42: 3507 | BK42: 3244 | BL42: 3293 | BM42: 3171 | BN42: 3251 | BO42: 3261 | BP42: 3457 | BQ42: 3389 | BR42: 3386 | BS42: 3572 | BT42: 3332.748271 | BU42: 2586.919078 | BV42: 2879.080395 | BW42: 2831.30857 | BX42: 2954.785313 | BY42: 2896.985944 | BZ42: 2985.636817 | CA42: 3135.044918 | CB42: 3131.032293 | CC42: 3098.95855 | CD42: 3747.112425 | CE42: 3824.421435 | CF42: 3903.615658 | CG42: 4294.468558 | CH42: 4759.88045 | CI42: 4464.261747 | CJ42: 5306.601371 | CK42: 5438.925514 | CL42: 5716.619937 | CM42: 5941.420775 | CN42: 5303.405999 | CO42: 5157.640569 | CP42: 5853.970807 | CQ42: 5844.812952 | CR42: 5664.371612 | CS42: 6775.560404 | CT42: 6211.13746 | CU42: 6514.063716 | CV42: 7705.906181 | CW42: 7912.412606 | CX42: 8487.905653 | CY42: 9819.759895 | CZ42: 10045.38899 | DA42: 10311.61634 | DB42: 10803.99665 | DC42: 11128.80877 | DD42: 11946.86672 | DE42: 11135.59443 | DF42: 13629.7608 | DG42: 14718.16052 | DH42: 16107.18415 | DI42: 15905.7702 | DJ42: 16474.72549 | DK42: 18394.22041 | DL42: 18042.55956 | DM42: 18187.78549 | DN42: 17572.07753 | DO42: 17556.55592 | DP42: 19991.78401 | DQ42: 20821.79898 | DR42: 21971.85135 | DS42: 21840.77796 | DT42: 21601.05784 | DU42: 22184.48778 | DV42: 22195.90047 | DW42: 22353.56818 | DX42: 22844.74875 | DY42: 23868.38022 | DZ42: 24508.29599 | EA42: 25099.16309 | EB42: 24341.14589 | EC42: 24486.48853 | ED42: 27130.60991 | EE42: 27799.54306 | EF42: 30754.64118 | EG42: 31660.67495 | EH42: 32288.04791 | EI42: 33272.21399 | EJ42: 33945.50486 | EK42: 32510.89306 | EL42: 37660.36005 | EM42: 33594.83113 | EN42: 34784.09251 | EO42: 28325.98264 | EP42: 30666.80677 | EQ42: 31120.96526 | ER42: 31617.85191 | ES42: 35891.84643 | ET42: 35843.76963 | EU42: 36541.18202 | EV42: 36607.93985 | EW42: 32581.7061 | EX42: 31537.68788 | EY42: 30868.1182 | EZ42: 30690.78905 | FA42: 23286.5772 | FB42: 22318.24431 | FC42: 21620.23505 | FD42: 20177.00204 | FE42: 19568.67131 | FF42: 18496.78104 | FG42: 17332.97772 | FH42: 17843.50049 | FI42: 18018.07771 | FJ42: 17574.86205 | FK42: 16822.89498 | FL42: 15907.75917 | FM42: 14700.62885 | FN42: 14365.41848 | FO42: 12560.0744 | FP42: 12126.92668 | FQ42: 12058.95177 | FR42: 12448.85007 | FS42: 11310.92905 | FT42: 10930.94743 | FU42: 8742.269849 | FV42: 8990.942509 | FW42: 9778.302502 | FX42: 9660.939186 | FY42: 9136.932873 | FZ42: 9178.981755 | GA42: 9021.108818 | GB42: 8643.451939 | GC42: 8716.472623 | GD42: 8312.27582 | GE42: 6504.349754 | GF42: 5970.113657 | GG42: 5857.340577 | GH42: 6281.346545 | GI42: 6183.477667 | GJ42: 5934.767023 | GK42: 6037.126247 | GL42: 6026.356113 | GM42: 5686.236872 | GN42: 6234.775409 | GO42: 5659.350294 | GP42: 5864.11328 | GQ42: 5938.036834 | GR42: 5752.650277 | GS42: 5554.516954 | GT42: 5677.693724 | GU42: 5661.521595 | GV42: 4650.255349 | GW42: 4244.633332 | GX42: 4243.67461 | GY42: 4130.547186 | GZ42: 4134.387362 | HA42: 4100.578632 | HB42: 4054.55262 | HC42: 3543.88712 | HD42: 3387.27815 | HE42: 3224.274423 | HF42: 2083.43727 | HG42: 2920.5853 | HH42: 2922.533249 | HI42: 3268.804954 | HJ42: 3068.273752 | HK42: 3086.035465 | HL42: 2423.279214 | HM42: 2526.900165 | HN42: 2552.874172 | HO42: 2922.026601 | HP42: 2789.345169 | HQ42: 2621.268929 | HR42: 2569.861169 | HS42: 2085.822005 | HT42: 2442.798057 | HU42: 1777.145343 | HV42: 1774.495947 | HW42: 1772.088267 | HX42: 1732.589624 | HY42: 1776.233873 | HZ42: 1508.909667 | IA42: 1502.560924 | IB42: 1468.094969 | IC42: 1141.264861 | ID42: 1124.253207 | IE42: 1091.494975 | IF42: 1084.954101 | IG42: 1005 | IH42: 1023 | II42: 1276 | IJ42: 1310 | IK42: 1281 | IL42: 1267 | IM42: 1284
A43: Erlend hlutabréf og hlutdeildarskírteini / Foreign equities and investment fund shares | B43: 3813 | C43: 4479 | D43: 4152 | E43: 4161 | F43: 4791 | G43: 5840 | H43: 6387 | I43: 6799 | J43: 7180 | K43: 8217 | L43: 8525 | M43: 24181 | N43: 24802 | O43: 27116 | P43: 30228 | Q43: 32642 | R43: 33995 | S43: 36470 | T43: 37711 | U43: 35492 | V43: 36605 | W43: 40047 | X43: 43079 | Y43: 46775 | Z43: 48379 | AA43: 49930 | AB43: 54847 | AC43: 56874 | AD43: 58761 | AE43: 63893 | AF43: 64432 | AG43: 67189 | AH43: 69406 | AI43: 72928 | AJ43: 79446 | AK43: 94261 | AL43: 97660 | AM43: 105561 | AN43: 110444 | AO43: 113380 | AP43: 110609 | AQ43: 117176 | AR43: 118700 | AS43: 127702 | AT43: 128108 | AU43: 133492 | AV43: 126805 | AW43: 125028 | AX43: 130596 | AY43: 121195 | AZ43: 116834 | BA43: 129184 | BB43: 136662 | BC43: 137234 | BD43: 132047 | BE43: 129838 | BF43: 116586 | BG43: 124994 | BH43: 135459 | BI43: 131356 | BJ43: 129344 | BK43: 128164 | BL43: 136048 | BM43: 128149 | BN43: 125868 | BO43: 110955 | BP43: 108365 | BQ43: 112615 | BR43: 97793 | BS43: 105313 | BT43: 110295.4693 | BU43: 100334.8065 | BV43: 96122.77487 | BW43: 95730.21624 | BX43: 94134.26882 | BY43: 99625.32485 | BZ43: 103026.842 | CA43: 115066.3913 | CB43: 122164.2105 | CC43: 131024.5104 | CD43: 131640.1122 | CE43: 142514.3617 | CF43: 148319.4343 | CG43: 155628.9799 | CH43: 160555.5243 | CI43: 169335.5867 | CJ43: 177485.3253 | CK43: 181289.5387 | CL43: 181828.1454 | CM43: 186868.0765 | CN43: 184677.8683 | CO43: 190483.6442 | CP43: 194781.4276 | CQ43: 198657.9129 | CR43: 204921.0371 | CS43: 210802.0536 | CT43: 216013.1813 | CU43: 222091.9346 | CV43: 221835.8566 | CW43: 229415.6214 | CX43: 240907.1878 | CY43: 247421.6598 | CZ43: 253668.4634 | DA43: 254080.6463 | DB43: 257072.4083 | DC43: 253330.3488 | DD43: 273484.3201 | DE43: 287220.0292 | DF43: 300619.3142 | DG43: 319297.5522 | DH43: 357556.4857 | DI43: 387440.4813 | DJ43: 362198.4941 | DK43: 384080.4549 | DL43: 371443.6183 | DM43: 361779.0048 | DN43: 369033.0291 | DO43: 373935.0772 | DP43: 384058.2708 | DQ43: 422225.4105 | DR43: 410851.2626 | DS43: 402872.6191 | DT43: 406312.9723 | DU43: 414009.9265 | DV43: 410869.359 | DW43: 415396.5087 | DX43: 407787.6992 | DY43: 424279.3618 | DZ43: 431532.0256 | EA43: 436678.7917 | EB43: 430420.0252 | EC43: 433771.7276 | ED43: 416186.9862 | EE43: 423402.7516 | EF43: 483406.3458 | EG43: 489114.6038 | EH43: 498416.1111 | EI43: 487911.8614 | EJ43: 460547.1075 | EK43: 462776.1136 | EL43: 479403.5814 | EM43: 451738.6655 | EN43: 495100.6911 | EO43: 433555.628 | EP43: 383925.585 | EQ43: 351090.9377 | ER43: 392427.3688 | ES43: 430148.1231 | ET43: 444784.8764 | EU43: 456752.6662 | EV43: 477332.4648 | EW43: 477056.9913 | EX43: 484302.6469 | EY43: 480435.31 | EZ43: 483594.9573 | FA43: 506797.1116 | FB43: 503098.5946 | FC43: 506206.154 | FD43: 532847.9168 | FE43: 533483.2179 | FF43: 499031.2149 | FG43: 482053.048 | FH43: 488695.242 | FI43: 478029.5391 | FJ43: 484460.6345 | FK43: 495926.6906 | FL43: 469917.7298 | FM43: 456270.9088 | FN43: 464964.0651 | FO43: 473203.0425 | FP43: 469526.8824 | FQ43: 474158.5163 | FR43: 484227.7498 | FS43: 483427.7914 | FT43: 477912.7881 | FU43: 445190.9185 | FV43: 429710.9397 | FW43: 446486.6201 | FX43: 454619.3596 | FY43: 459673.8632 | FZ43: 481506.7418 | GA43: 503672.4191 | GB43: 509870.513 | GC43: 504056.6396 | GD43: 490539.5336 | GE43: 486902.2776 | GF43: 475806.1515 | GG43: 491953.9993 | GH43: 510337.3349 | GI43: 521663.6731 | GJ43: 525507.8513 | GK43: 545033.8489 | GL43: 557868.1722 | GM43: 551967.1136 | GN43: 553000.2921 | GO43: 531382.9786 | GP43: 561377.7268 | GQ43: 553499.5559 | GR43: 559028.2938 | GS43: 553940.2299 | GT43: 580283.7443 | GU43: 596839.3465 | GV43: 606108.9082 | GW43: 591540.555 | GX43: 580053.6536 | GY43: 583661.7143 | GZ43: 584615.5743 | HA43: 584193.5459 | HB43: 598526.4833 | HC43: 610236.8056 | HD43: 617315.6441 | HE43: 635527.0473 | HF43: 649261.2609 | HG43: 656201.6372 | HH43: 675618.5846 | HI43: 685427.9801 | HJ43: 705581.3672 | HK43: 733317.6192 | HL43: 743710.4482 | HM43: 731185.3547 | HN43: 755522.4015 | HO43: 728739.7973 | HP43: 759179.7923 | HQ43: 702677.0326 | HR43: 676775.128 | HS43: 721733.9247 | HT43: 743493.1366 | HU43: 704247.7617 | HV43: 673090.7918 | HW43: 672328.5051 | HX43: 685814.9972 | HY43: 691862.6448 | HZ43: 704169.4305 | IA43: 689162.4588 | IB43: 699823.2065 | IC43: 688663.1664 | ID43: 698399.9611 | IE43: 685176.8417 | IF43: 694649.3495 | IG43: 726491 | IH43: 769116 | II43: 734897 | IJ43: 791053 | IK43: 757484 | IL43: 734354 | IM43: 771353
A44: Hlutabréf / Equities | B44: 1213 | C44: 1299 | D44: 1400 | E44: 1425 | F44: 1901 | G44: 2463 | H44: 2571 | I44: 3164 | J44: 3430 | K44: 4066 | L44: 4348 | M44: 7126 | N44: 7512 | O44: 8521 | P44: 8596 | Q44: 10004 | R44: 14019 | S44: 15600 | T44: 17927 | U44: 16432 | V44: 17320 | W44: 19382 | X44: 20375 | Y44: 21054 | Z44: 21013 | AA44: 21715 | AB44: 23841 | AC44: 25459 | AD44: 26267 | AE44: 28139 | AF44: 28191 | AG44: 28764 | AH44: 29683 | AI44: 31282 | AJ44: 32844 | AK44: 41515 | AL44: 41349 | AM44: 43879 | AN44: 45683 | AO44: 48163 | AP44: 46145 | AQ44: 48309 | AR44: 49086 | AS44: 52340 | AT44: 56184 | AU44: 58530 | AV44: 54592 | AW44: 53662 | AX44: 55593 | AY44: 51942 | AZ44: 50311 | BA44: 55038 | BB44: 58095 | BC44: 58104 | BD44: 55467 | BE44: 52958 | BF44: 46918 | BG44: 49167 | BH44: 53906 | BI44: 53323 | BJ44: 52159 | BK44: 50700 | BL44: 51036 | BM44: 47828 | BN44: 46462 | BO44: 39066 | BP44: 37223 | BQ44: 38557 | BR44: 31780 | BS44: 32275 | BT44: 33273.16932 | BU44: 32502.19341 | BV44: 30668.85255 | BW44: 30868.47051 | BX44: 29663.64619 | BY44: 31249.56662 | BZ44: 31548.10549 | CA44: 35165.83392 | CB44: 37019.87469 | CC44: 38777.36447 | CD44: 39131.10273 | CE44: 42022.73513 | CF44: 41716.94528 | CG44: 43617.62422 | CH44: 42466.90051 | CI44: 43244.42318 | CJ44: 44293.51606 | CK44: 44629.35899 | CL44: 43816.94178 | CM44: 43550.85512 | CN44: 38501.3552 | CO44: 39727.87495 | CP44: 39091.3914 | CQ44: 38615.78137 | CR44: 38729.51345 | CS44: 38441.70691 | CT44: 39053.5063 | CU44: 39789.70916 | CV44: 38312.41508 | CW44: 37814.98379 | CX44: 40540.80764 | CY44: 42782.83743 | CZ44: 42865.95447 | DA44: 43938.13444 | DB44: 42500.93985 | DC44: 42111.37268 | DD44: 45106.4868 | DE44: 37395.4484 | DF44: 47114.27841 | DG44: 49020.64352 | DH44: 55442.4789 | DI44: 60297.87488 | DJ44: 55667.82236 | DK44: 59990.81936 | DL44: 56940.64341 | DM44: 55578.32579 | DN44: 56995.00751 | DO44: 57886.73016 | DP44: 59136.36226 | DQ44: 60477.76544 | DR44: 61496.0765 | DS44: 60924.00031 | DT44: 61118.49919 | DU44: 59127.20409 | DV44: 59267.53555 | DW44: 63326.18942 | DX44: 62086.14878 | DY44: 64362.24987 | DZ44: 66748.77643 | EA44: 68255.62281 | EB44: 67920.87992 | EC44: 69405.88404 | ED44: 68551.97456 | EE44: 69240.7814 | EF44: 78357.08688 | EG44: 77569.80247 | EH44: 80431.61676 | EI44: 80719.2521 | EJ44: 80968.12464 | EK44: 81590.51591 | EL44: 87302.61881 | EM44: 81291.36229 | EN44: 87068.04097 | EO44: 66850.3343 | EP44: 59783.3916 | EQ44: 54437.75479 | ER44: 59845.70374 | ES44: 66216.71834 | ET44: 70584.12596 | EU44: 75671.2033 | EV44: 81656.9989 | EW44: 83023.85393 | EX44: 84495.98505 | EY44: 82382.47411 | EZ44: 82441.17904 | FA44: 85917.57086 | FB44: 84222.82815 | FC44: 84120.55875 | FD44: 90509.07259 | FE44: 90343.06912 | FF44: 81909.02498 | FG44: 78339.27867 | FH44: 79226.55363 | FI44: 76397.58331 | FJ44: 79412.50901 | FK44: 81558.32647 | FL44: 80614.71486 | FM44: 78037.90148 | FN44: 80124.41726 | FO44: 82064.73112 | FP44: 80639.3171 | FQ44: 81737.41083 | FR44: 83300.27323 | FS44: 81836.03102 | FT44: 80740.17805 | FU44: 72413.77947 | FV44: 68409.71894 | FW44: 74653.65506 | FX44: 77133.73986 | FY44: 78603.89402 | FZ44: 82121.71982 | GA44: 85961.69304 | GB44: 87584.79044 | GC44: 86317.49639 | GD44: 84542.87719 | GE44: 81855.8766 | GF44: 80248.139 | GG44: 82517.90228 | GH44: 86532.05907 | GI44: 88309.03558 | GJ44: 89925.75707 | GK44: 96548.72957 | GL44: 98582.26017 | GM44: 98149.78587 | GN44: 103077.0191 | GO44: 99024.25341 | GP44: 104527.9576 | GQ44: 101271.9863 | GR44: 102597.1688 | GS44: 101473.9627 | GT44: 108603.7226 | GU44: 112916.3032 | GV44: 116222.1478 | GW44: 109018.5429 | GX44: 107126.1519 | GY44: 107528.2823 | GZ44: 107318.307 | HA44: 107182.9943 | HB44: 109778.5542 | HC44: 112207.2589 | HD44: 112655.1197 | HE44: 116626.767 | HF44: 118569.5292 | HG44: 120569.34 | HH44: 124676.5028 | HI44: 127185.9996 | HJ44: 128408.3831 | HK44: 141637.8805 | HL44: 145548.7213 | HM44: 144771.4696 | HN44: 149768.1586 | HO44: 143981.3145 | HP44: 149842.846 | HQ44: 135193.6555 | HR44: 129019.0044 | HS44: 139018.3535 | HT44: 144414.0983 | HU44: 129779.9664 | HV44: 122314.4045 | HW44: 117991.6389 | HX44: 119103.8334 | HY44: 94580.48582 | HZ44: 98150.56173 | IA44: 101578.4003 | IB44: 103113.3015 | IC44: 100139.7585 | ID44: 101712.0966 | IE44: 99914.68498 | IF44: 100120.1954 | IG44: 101834 | IH44: 107538 | II44: 100013 | IJ44: 104750 | IK44: 99104 | IL44: 94991 | IM44: 105500 | IP44: c
A45: Hlutdeildarskírteini / Investment fund shares | B45: 2600 | C45: 3180 | D45: 2752 | E45: 2736 | F45: 2890 | G45: 3377 | H45: 3816 | I45: 3635 | J45: 3750 | K45: 4151 | L45: 4177 | M45: 17055 | N45: 17290 | O45: 18595 | P45: 21632 | Q45: 22638 | R45: 19976 | S45: 20870 | T45: 19784 | U45: 19060 | V45: 19285 | W45: 20665 | X45: 22704 | Y45: 25721 | Z45: 27366 | AA45: 28215 | AB45: 31006 | AC45: 31415 | AD45: 32494 | AE45: 35754 | AF45: 36241 | AG45: 38425 | AH45: 39723 | AI45: 41646 | AJ45: 46602 | AK45: 52746 | AL45: 56311 | AM45: 61682 | AN45: 64761 | AO45: 65217 | AP45: 64464 | AQ45: 68867 | AR45: 69614 | AS45: 75362 | AT45: 71924 | AU45: 74962 | AV45: 72213 | AW45: 71366 | AX45: 75003 | AY45: 69253 | AZ45: 66523 | BA45: 74146 | BB45: 78567 | BC45: 79130 | BD45: 76580 | BE45: 76880 | BF45: 69668 | BG45: 75827 | BH45: 81553 | BI45: 78033 | BJ45: 77185 | BK45: 77464 | BL45: 85012 | BM45: 80321 | BN45: 79406 | BO45: 71889 | BP45: 71142 | BQ45: 74058 | BR45: 66013 | BS45: 73038 | BT45: 77022.29998 | BU45: 67832.61304 | BV45: 65453.92232 | BW45: 64861.74574 | BX45: 64470.62264 | BY45: 68375.75824 | BZ45: 71478.73655 | CA45: 79900.55735 | CB45: 85144.33577 | CC45: 92247.14593 | CD45: 92509.00947 | CE45: 100491.6265 | CF45: 106602.489 | CG45: 112011.3557 | CH45: 118088.6238 | CI45: 126091.1635 | CJ45: 133191.8092 | CK45: 136660.1797 | CL45: 138011.2037 | CM45: 143317.2213 | CN45: 146176.5131 | CO45: 150755.7693 | CP45: 155690.0362 | CQ45: 160042.1315 | CR45: 166191.5237 | CS45: 172360.3467 | CT45: 176959.675 | CU45: 182302.2255 | CV45: 183523.4415 | CW45: 191600.6376 | CX45: 200366.3802 | CY45: 204638.8223 | CZ45: 210802.5089 | DA45: 210142.5118 | DB45: 214571.4684 | DC45: 211218.9761 | DD45: 228377.8333 | DE45: 249824.5808 | DF45: 253505.0358 | DG45: 270276.9087 | DH45: 302114.0068 | DI45: 327142.6064 | DJ45: 306530.6717 | DK45: 324089.6355 | DL45: 314502.9749 | DM45: 306200.679 | DN45: 312038.0216 | DO45: 316048.347 | DP45: 324921.9085 | DQ45: 361747.6451 | DR45: 349355.1861 | DS45: 341948.6187 | DT45: 345194.4731 | DU45: 354882.7224 | DV45: 351601.8235 | DW45: 352070.3193 | DX45: 345701.5504 | DY45: 359917.1119 | DZ45: 364783.2491 | EA45: 368423.1689 | EB45: 362499.1452 | EC45: 364365.8435 | ED45: 347635.0116 | EE45: 354161.9702 | EF45: 405049.2589 | EG45: 411544.8013 | EH45: 417984.4943 | EI45: 407192.6093 | EJ45: 379578.9828 | EK45: 381185.5977 | EL45: 392100.9626 | EM45: 370447.3032 | EN45: 408032.6501 | EO45: 366705.2937 | EP45: 324142.1934 | EQ45: 296653.1829 | ER45: 332581.665 | ES45: 363931.4047 | ET45: 374200.7504 | EU45: 381081.4629 | EV45: 395675.4659 | EW45: 394033.1374 | EX45: 399806.6619 | EY45: 398052.8358 | EZ45: 401153.7783 | FA45: 420879.5407 | FB45: 418875.7665 | FC45: 422085.5953 | FD45: 442338.8442 | FE45: 443140.1488 | FF45: 417122.19 | FG45: 403713.7693 | FH45: 409468.6884 | FI45: 401631.9558 | FJ45: 405048.1254 | FK45: 414368.3642 | FL45: 389303.0149 | FM45: 378233.0074 | FN45: 384839.6478 | FO45: 391138.3113 | FP45: 388887.5653 | FQ45: 392421.1055 | FR45: 400927.4765 | FS45: 401591.7603 | FT45: 397172.6101 | FU45: 372777.139 | FV45: 361301.2208 | FW45: 371832.9651 | FX45: 377485.6198 | FY45: 381069.9692 | FZ45: 399385.0219 | GA45: 417710.7261 | GB45: 422285.7226 | GC45: 417739.1432 | GD45: 405996.6564 | GE45: 405046.401 | GF45: 395558.0125 | GG45: 409436.097 | GH45: 423805.2759 | GI45: 433354.6375 | GJ45: 435582.0943 | GK45: 448485.1193 | GL45: 459285.912 | GM45: 453817.3277 | GN45: 449923.273 | GO45: 432358.7252 | GP45: 456849.7692 | GQ45: 452227.5696 | GR45: 456431.125 | GS45: 452466.2672 | GT45: 471680.0217 | GU45: 483923.0432 | GV45: 489886.7604 | GW45: 482522.0121 | GX45: 472927.5016 | GY45: 476133.432 | GZ45: 477297.2673 | HA45: 477010.5516 | HB45: 488747.9291 | HC45: 498029.5467 | HD45: 504660.5245 | HE45: 518900.2802 | HF45: 530691.7317 | HG45: 535632.2971 | HH45: 550942.0818 | HI45: 558241.9805 | HJ45: 577172.9841 | HK45: 591679.7388 | HL45: 598161.7269 | HM45: 586413.8851 | HN45: 605754.2429 | HO45: 584758.4828 | HP45: 609336.9464 | HQ45: 567483.3771 | HR45: 547756.1236 | HS45: 582715.5712 | HT45: 599079.0384 | HU45: 574467.7953 | HV45: 550776.3873 | HW45: 554336.8662 | HX45: 566711.1639 | HY45: 597282.1589 | HZ45: 606018.8687 | IA45: 587584.0586 | IB45: 596709.905 | IC45: 588523.4079 | ID45: 596687.8645 | IE45: 585262.1567 | IF45: 594529.1541 | IG45: 624657 | IH45: 661578 | II45: 634884 | IJ45: 686303 | IK45: 658380 | IL45: 639363 | IM45: 665853 | IP45: g
A46: Erlend hlutdeildarfyrirtæki / Share in associated foreign undertakings | B46: 0 | HU46: 20292.23962 | HV46: 16113.93698 | HW46: 17705.42878 | HX46: 16654.0496 | HY46: 16055.26128 | HZ46: 16869.90513 | IA46: 16405.73068 | IB46: 15749.09997 | IC46: 13659.42818 | ID46: 14744.66579 | IE46: 13603.09738 | IF46: 13447.31475 | IG46: 18432 | IH46: 20068 | II46: 15426 | IJ46: 15768 | IK46: 15211 | IL46: 14421 | IM46: 19172 | IP46: g
A47: Tengd fyrirtæki erlendis / Share in affiliated foreign undertakings | B47: 0 | HU47: 0 | HV47: 0 | HW47: 0 | HX47: 0 | HY47: 0 | HZ47: 0 | IA47: 0 | IB47: 0 | IC47: 0 | ID47: 0 | IE47: 0 | IF47: 0
A48: Afleiður við erlenda aðila / Derivatives, non-resident counterparties | B48: 0 | HU48: 0 | HV48: 0 | HW48: 0 | HX48: 0 | HY48: 0 | HZ48: 0 | IA48: 0 | IB48: 0 | IC48: 0 | ID48: 0 | IE48: 0 | IF48: 0
A49: Erlendar vátrygginga- og lífeyriseignir / Foreign insurance and pension entitlements | B49: 0 | HU49: 34.912 | HV49: 33.983 | HW49: 35.821 | HX49: 37.755 | HY49: 38.602 | HZ49: 38.871 | IA49: 39.197 | IB49: 40.77 | IC49: 31.131 | ID49: 46.088 | IE49: 47.856 | IF49: 37.91 | IG49: 44 | IH49: 45 | II49: 45 | IJ49: 35 | IK49: 32 | IL49: 31 | IM49: 31
A50: Iðgjaldakröfur / Foreign claims for unpaid premiums | B50: 0 | HU50: 34.912 | HV50: 33.983 | HW50: 35.821 | HX50: 37.755 | HY50: 38.602 | HZ50: 38.871 | IA50: 39.197 | IB50: 40.77 | IC50: 31.131 | ID50: 46.088 | IE50: 47.856 | IF50: 37.91 | IG50: 44 | IH50: 45 | II50: 45 | IJ50: 35 | IK50: 32 | IL50: 31 | IM50: 31 | IP50: a
A51: Aðrar erlendar eignir ót.a. / Other foreign assets unacc. for elsewhere | B51: 0 | HU51: 2.601 | HV51: 2.601 | HW51: 2.601 | HX51: 2.601 | HY51: 2.601 | HZ51: 2.601 | IA51: 2.601 | IB51: 2.601 | IC51: 2.601 | ID51: 2.601 | IE51: 2.601 | IF51: 2.601 | IG51: 1 | IH51: 1 | II51: 35 | IJ51: 1 | IK51: 1 | IL51: 1 | IM51: 1 | IP51: g
A54: SKULDIR OG EIGIÐ FÉ / LIABILITIES AND EQUITY: | B54: 309777 | C54: 313079 | D54: 313436 | E54: 320772 | F54: 323120 | G54: 325797 | H54: 329894 | I54: 331111 | J54: 334386 | K54: 337130 | L54: 339480 | M54: 354435 | N54: 354918 | O54: 356375 | P54: 363680 | Q54: 366986 | R54: 371504 | S54: 376530 | T54: 385293 | U54: 382987 | V54: 386024 | W54: 392837 | X54: 399553 | Y54: 408641 | Z54: 412328 | AA54: 416323 | AB54: 425525 | AC54: 432551 | AD54: 436723 | AE54: 446451 | AF54: 450229 | AG54: 455843 | AH54: 462399 | AI54: 471922 | AJ54: 484226 | AK54: 520727 | AL54: 522840 | AM54: 534054 | AN54: 548690 | AO54: 547825 | AP54: 544679 | AQ54: 553357 | AR54: 560684 | AS54: 570504 | AT54: 571291 | AU54: 577091 | AV54: 568491 | AW54: 569503 | AX54: 575741 | AY54: 565653 | AZ54: 566016 | BA54: 585266 | BB54: 600624 | BC54: 609897 | BD54: 610243 | BE54: 611467 | BF54: 602876 | BG54: 618561 | BH54: 635177 | BI54: 648116 | BJ54: 655789 | BK54: 655668 | BL54: 664045 | BM54: 663947 | BN54: 662796 | BO54: 654846 | BP54: 657042 | BQ54: 660938 | BR54: 656473 | BS54: 668203 | BT54: 677084.1642 | BU54: 678930.4111 | BV54: 680439.7819 | BW54: 683280.0859 | BX54: 688643.0653 | BY54: 699119.7815 | BZ54: 710621.2142 | CA54: 728770.3376 | CB54: 739308.2632 | CC54: 757400.7848 | CD54: 765026.0566 | CE54: 784571.6473 | CF54: 792392.6009 | CG54: 823994.0736 | CH54: 836509.6597 | CI54: 855458.2704 | CJ54: 867106.9653 | CK54: 879223.0312 | CL54: 888045.8137 | CM54: 912737.9567 | CN54: 932493.9507 | CO54: 966254.9527 | CP54: 990050.2036 | CQ54: 977272.4492 | CR54: 978759.952 | CS54: 986534.7774 | CT54: 1003207.549 | CU54: 1020401.733 | CV54: 1033852.652 | CW54: 1049277.756 | CX54: 1058362.758 | CY54: 1080408.652 | CZ54: 1096523.208 | DA54: 1122880.589 | DB54: 1136305.944 | DC54: 1134311.572 | DD54: 1177285.575 | DE54: 1218597 | DF54: 1262720.925 | DG54: 1295845.016 | DH54: 1325427.407 | DI54: 1352393.669 | DJ54: 1342484.337 | DK54: 1365135.114 | DL54: 1356517.599 | DM54: 1384188.929 | DN54: 1415948.015 | DO54: 1424943.879 | DP54: 1438932.149 | DQ54: 1503154.982 | DR54: 1509508.753 | DS54: 1519490.466 | DT54: 1533953.89 | DU54: 1569399.94 | DV54: 1594773.747 | DW54: 1620176.854 | DX54: 1635725.661 | DY54: 1642482.156 | DZ54: 1664680.655 | EA54: 1679309.949 | EB54: 1647541.229 | EC54: 1698205.817 | ED54: 1658692.104 | EE54: 1651220.945 | EF54: 1757422.645 | EG54: 1788574.691 | EH54: 1813558.006 | EI54: 1821855.899 | EJ54: 1821151.597 | EK54: 1851876.528 | EL54: 1868381.987 | EM54: 1659237.182 | EN54: 1732372.921 | EO54: 1665309.613 | EP54: 1625724.345 | EQ54: 1606389.329 | ER54: 1665163.186 | ES54: 1693820.369 | ET54: 1719849.769 | EU54: 1745184.643 | EV54: 1765233.743 | EW54: 1769956.851 | EX54: 1796272.674 | EY54: 1802894.785 | EZ54: 1821410.738 | FA54: 1849336.726 | FB54: 1856009.703 | FC54: 1858764.024 | FD54: 1901816.819 | FE54: 1919258.396 | FF54: 1897849.287 | FG54: 1899927.864 | FH54: 1911020.389 | FI54: 1904815.792 | FJ54: 1913293.19 | FK54: 1929826.748 | FL54: 1970982.987 | FM54: 1988850.016 | FN54: 2011322.517 | FO54: 2024843.43 | FP54: 2044045.672 | FQ54: 2064822.118 | FR54: 2089848.644 | FS54: 2104235.074 | FT54: 2124432.987 | FU54: 2092362.879 | FV54: 2086318.187 | FW54: 2124773.085 | FX54: 2147853.987 | FY54: 2169144.779 | FZ54: 2200926.607 | GA54: 2250458.46 | GB54: 2280970.321 | GC54: 2301672.438 | GD54: 2303992.612 | GE54: 2305672.112 | GF54: 2303166.495 | GG54: 2324710.828 | GH54: 2353259.847 | GI54: 2386217.43 | GJ54: 2396546.445 | GK54: 2438978.558 | GL54: 2472497.728 | GM54: 2479977.829 | GN54: 2509577.981 | GO54: 2497925.704 | GP54: 2541110.79 | GQ54: 2545595.839 | GR54: 2575658.198 | GS54: 2577199.064 | GT54: 2620181.154 | GU54: 2657677.981 | GV54: 2684659.828 | GW54: 2695575.34 | GX54: 2703358.521 | GY54: 2697082.329 | GZ54: 2713141.372 | HA54: 2735427.85 | HB54: 2760761.803 | HC54: 2774607.44 | HD54: 2801458.539 | HE54: 2828793.26 | HF54: 2850676.495 | HG54: 2881605.471 | HH54: 2928221.214 | HI54: 2935071.707 | HJ54: 2989536.678 | HK54: 3020036.847 | HL54: 3053150.903 | HM54: 3070186.97 | HN54: 3123275.266 | HO54: 3121865.179 | HP54: 3185217.98 | HQ54: 3142101.691 | HR54: 3150608.799 | HS54: 3246025.515 | HT54: 3260458.822 | HU54: 3284330.843 | HV54: 3241482.033 | HW54: 3260314.383 | HX54: 3292563.593 | HY54: 3313155.196 | HZ54: 3333561.657 | IA54: 3319370.436 | IB54: 3323166.793 | IC54: 3340596.758 | ID54: 3332504.265 | IE54: 3342357.127 | IF54: 3351232.2
A55: Innlendar skuldir, alls / Domestic liabilities, total | B55: 309777 | C55: 313079 | D55: 313436 | E55: 320772 | F55: 323120 | G55: 325797 | H55: 329894 | I55: 331111 | J55: 334386 | K55: 337130 | L55: 339480 | M55: 354435 | N55: 354918 | O55: 356375 | P55: 363680 | Q55: 366986 | R55: 371504 | S55: 376530 | T55: 385293 | U55: 382987 | V55: 386024 | W55: 392837 | X55: 399553 | Y55: 408641 | Z55: 412328 | AA55: 416323 | AB55: 425525 | AC55: 432551 | AD55: 436723 | AE55: 446451 | AF55: 450229 | AG55: 455843 | AH55: 462399 | AI55: 471922 | AJ55: 484226 | AK55: 520727 | AL55: 522840 | AM55: 534054 | AN55: 548690 | AO55: 547825 | AP55: 544679 | AQ55: 553357 | AR55: 560684 | AS55: 570504 | AT55: 571291 | AU55: 577091 | AV55: 568491 | AW55: 569503 | AX55: 575741 | AY55: 565653 | AZ55: 566016 | BA55: 585266 | BB55: 600624 | BC55: 609897 | BD55: 610243 | BE55: 611467 | BF55: 602876 | BG55: 618561 | BH55: 635177 | BI55: 648116 | BJ55: 655789 | BK55: 655668 | BL55: 664045 | BM55: 663947 | BN55: 662796 | BO55: 654846 | BP55: 657042 | BQ55: 660938 | BR55: 656473 | BS55: 668203 | BT55: 677084.1642 | BU55: 678930.4111 | BV55: 680439.7819 | BW55: 683280.0859 | BX55: 688643.0653 | BY55: 699119.7815 | BZ55: 710621.2142 | CA55: 728770.3376 | CB55: 739308.2632 | CC55: 757400.7848 | CD55: 765026.0566 | CE55: 784571.6473 | CF55: 792392.6009 | CG55: 823994.0736 | CH55: 836509.6597 | CI55: 855458.2704 | CJ55: 867106.9653 | CK55: 879223.0312 | CL55: 888045.8137 | CM55: 912737.9567 | CN55: 932493.9507 | CO55: 966254.9527 | CP55: 990050.2036 | CQ55: 977272.4492 | CR55: 978759.952 | CS55: 986534.7774 | CT55: 1003207.549 | CU55: 1020401.733 | CV55: 1033852.652 | CW55: 1049277.756 | CX55: 1058362.758 | CY55: 1080408.652 | CZ55: 1096523.208 | DA55: 1122880.589 | DB55: 1136305.944 | DC55: 1134311.572 | DD55: 1177285.575 | DE55: 1218597 | DF55: 1262720.925 | DG55: 1295845.016 | DH55: 1325427.407 | DI55: 1352393.669 | DJ55: 1342484.337 | DK55: 1365135.114 | DL55: 1356517.599 | DM55: 1384188.929 | DN55: 1415948.015 | DO55: 1424943.879 | DP55: 1438932.149 | DQ55: 1503154.982 | DR55: 1509508.753 | DS55: 1519490.466 | DT55: 1533953.89 | DU55: 1569399.94 | DV55: 1594773.747 | DW55: 1620176.854 | DX55: 1635725.661 | DY55: 1642482.156 | DZ55: 1664680.655 | EA55: 1679309.949 | EB55: 1647541.229 | EC55: 1698205.817 | ED55: 1658692.104 | EE55: 1651220.945 | EF55: 1757422.645 | EG55: 1788574.691 | EH55: 1813558.006 | EI55: 1821855.899 | EJ55: 1821151.597 | EK55: 1851876.528 | EL55: 1868381.987 | EM55: 1659237.182 | EN55: 1732372.921 | EO55: 1665309.613 | EP55: 1625724.345 | EQ55: 1606389.329 | ER55: 1665163.186 | ES55: 1693820.369 | ET55: 1719849.769 | EU55: 1745184.643 | EV55: 1765233.743 | EW55: 1769956.851 | EX55: 1796272.674 | EY55: 1802894.785 | EZ55: 1821410.738 | FA55: 1849336.726 | FB55: 1856009.703 | FC55: 1858764.024 | FD55: 1901816.819 | FE55: 1919258.396 | FF55: 1897849.287 | FG55: 1899927.864 | FH55: 1911020.389 | FI55: 1904815.792 | FJ55: 1913293.19 | FK55: 1929826.748 | FL55: 1970982.987 | FM55: 1988850.016 | FN55: 2011322.517 | FO55: 2024843.43 | FP55: 2044045.672 | FQ55: 2064822.118 | FR55: 2089848.644 | FS55: 2104235.074 | FT55: 2124432.986 | FU55: 2092362.879 | FV55: 2086318.188 | FW55: 2124773.085 | FX55: 2147853.987 | FY55: 2169144.779 | FZ55: 2200926.607 | GA55: 2250458.46 | GB55: 2280970.321 | GC55: 2301672.438 | GD55: 2303992.612 | GE55: 2305672.112 | GF55: 2303166.495 | GG55: 2324710.828 | GH55: 2353259.847 | GI55: 2386217.429 | GJ55: 2396546.445 | GK55: 2438978.558 | GL55: 2472497.728 | GM55: 2479977.829 | GN55: 2509577.981 | GO55: 2497925.704 | GP55: 2541110.79 | GQ55: 2545595.839 | GR55: 2575658.198 | GS55: 2577199.064 | GT55: 2620181.154 | GU55: 2657677.981 | GV55: 2684659.828 | GW55: 2695575.34 | GX55: 2703358.521 | GY55: 2697082.329 | GZ55: 2713141.371 | HA55: 2735427.849 | HB55: 2760761.803 | HC55: 2774607.44 | HD55: 2801458.539 | HE55: 2828793.26 | HF55: 2850676.495 | HG55: 2881605.471 | HH55: 2928221.215 | HI55: 2935071.707 | HJ55: 2989536.678 | HK55: 3020036.847 | HL55: 3053150.903 | HM55: 3070186.969 | HN55: 3123275.266 | HO55: 3121865.179 | HP55: 3185217.98 | HQ55: 3142101.691 | HR55: 3150608.799 | HS55: 3246025.515 | HT55: 3260458.822 | HU55: 3190674.298 | HV55: 3149127.749 | HW55: 3167223.901 | HX55: 3198420.288 | HY55: 3218268.851 | HZ55: 3228643.106 | IA55: 3211039.466 | IB55: 3214892.622 | IC55: 3229601.099 | ID55: 3222771.549 | IE55: 3219281.432 | IF55: 3228486.732
A56: Skuldir við Seðlabankann / Debt to the Central Bank | HU56: 0 | HV56: 0 | HW56: 0 | HX56: 0 | HY56: 0 | HZ56: 0 | IA56: 0 | IB56: 0 | IC56: 0 | ID56: 0 | IE56: 0 | IF56: 0
A57: Innlend verðbréfaútgáfa / Domestic securities issuance | HU57: 0 | HV57: 0 | HW57: 0 | HX57: 0 | HY57: 0 | HZ57: 0 | IA57: 0 | IB57: 0 | IC57: 0 | ID57: 0 | IE57: 0 | IF57: 0
A58: Víkjandi lán, innlend / Subordinated domestic loans | HU58: 0 | HV58: 0 | HW58: 0 | HX58: 0 | HY58: 0 | HZ58: 0 | IA58: 0 | IB58: 0 | IC58: 0 | ID58: 0 | IE58: 0 | IF58: 0
A59: Beinar lántökur innanlands/ Domestic direct borrowing | EO59: 5883.4014 | EP59: 231.65259 | EQ59: 233.9691159 | ER59: 236.3088071 | ES59: 238.6718951 | ET59: 241.0586141 | EU59: 243.4692002 | EV59: 245.9038922 | EW59: 366.3172631 | EX59: 250.8465605 | EY59: 253.3550261 | EZ59: 255.8885763 | FA59: 277.327498 | FB59: 203.015656 | FC59: 205.0458126 | FD59: 207.0962707 | FE59: 209.1672334 | FF59: 211.2589057 | FG59: 213.3714948 | FH59: 215.5052097 | FI59: 217.6602618 | FJ59: 219.8368644 | FK59: 222.0352331 | FL59: 224.2555854 | FM59: 217.086 | FN59: 392.20086 | FO59: 393.9124286 | FP59: 396.1269229 | FQ59: 398.8445621 | FR59: 398.7565677 | FS59: 400.9041634 | FT59: 232.745575 | FU59: 235.0730308 | FV59: 237.4237611 | FW59: 239.7979987 | FX59: 242.1959787 | FY59: 573.763 | FZ59: 236.79753 | GA59: 239.1655053 | GB59: 267.2231604 | GC59: 269.638732 | GD59: 272.0784593 | GE59: 274.5425839 | GF59: 277.0313497 | GG59: 279.5450032 | GH59: 264.1367932 | GI59: 266.7009712 | GJ59: 269.2907909 | GK59: 434.719 | GL59: 244.51653 | GM59: 239.1655053 | GN59: 326.8231604 | GO59: 329.238732 | GP59: 331.6784593 | GQ59: 317.0895839 | GR59: 319.5783497 | GS59: 322.0920032 | GT59: 324.6307932 | GU59: 327.1949712 | GV59: 842.6607909 | GW59: 81.322 | GX59: 68.213 | GY59: -246.264 | GZ59: 68.213 | HA59: 68.213 | HB59: 100.032579 | HC59: 224.018195 | HD59: 62.425 | HE59: 62.425 | HF59: 62.425 | HG59: 4099.231414 | HH59: 129.5065303 | HI59: 22.486 | HJ59: 22.486 | HK59: 22.486 | HL59: 22.51 | HM59: 22.51 | HN59: 22.51 | HO59: 22.49 | HP59: 0.004 | HQ59: 0.004 | HR59: 0 | HS59: 0 | HT59: 0 | HU59: 0 | HV59: 0 | HW59: 0 | HX59: 0 | HY59: 0 | HZ59: 0 | IA59: 0 | IB59: 0 | IC59: 0 | ID59: 0 | IE59: 0 | IF59: 0
A60: Innlendar afleiður / Domestic derivatives | ED60: 8085.949832 | EE60: 11839.62312 | EF60: 56658.32559 | EG60: 45397.73749 | EH60: 43370.40154 | EI60: 65884.102 | EJ60: 60466.50611 | EK60: 56494.50218 | EL60: 96394.0114 | EM60: 83044.97799 | EN60: 86876.00285 | EO60: 56927.19108 | EP60: 60149.30708 | EQ60: 59921.71211 | ER60: 58379.34278 | ES60: 60041.81444 | ET60: 60225.96732 | EU60: 64728.97939 | EV60: 65262.3898 | EW60: 66373.6351 | EX60: 66937.45481 | EY60: 67616.49234 | EZ60: 67704.56671 | FA60: 69865.33466 | FB60: 69641.33827 | FC60: 69715.3412 | FD60: 70048.325 | FE60: 70386.22839 | FF60: 70764.03586 | FG60: 72147.82433 | FH60: 72634.56151 | FI60: 73020.92884 | FJ60: 73130.33755 | FK60: 73281.26277 | FL60: 73340.13501 | FM60: 72165.17827 | FN60: 72207.41989 | FO60: 72446.66174 | FP60: 72897.53882 | FQ60: 73003.4615 | FR60: 73353.41652 | FS60: 74195.7514 | FT60: 73934.92519 | FU60: 66706.80287 | FV60: 62919.49129 | FW60: 63256.18025 | FX60: 63256.33563 | FY60: 60161.5257 | FZ60: 61883.08968 | GA60: 62062.37541 | GB60: 61378.42025 | GC60: 61469.02236 | GD60: 53710.34371 | GE60: 44982.85736 | GF60: 44878.44933 | GG60: 44958.33163 | GH60: 45236.83509 | GI60: 45339.64236 | GJ60: 45508.86362 | GK60: 31941.03604 | GL60: 24365.77252 | GM60: 24160.21616 | GN60: 24223.86357 | GO60: 24264.9121 | GP60: 24421.61215 | GQ60: 22836.1514 | GR60: 23008.26734 | GS60: 23120.77525 | GT60: 22307.99917 | GU60: 22293.53325 | GV60: 21898.82403 | GW60: 21575.12221 | GX60: 21695.9051 | GY60: 21781.78096 | GZ60: 21895.94968 | HA60: 22012.41419 | HB60: 22127.38515 | HC60: 19977.97633 | HD60: 20111.69639 | HE60: 20317.68499 | HF60: 20435.51708 | HG60: 20550.34318 | HH60: 20552.06947 | HI60: 2170.842046 | HJ60: 2174.145334 | HK60: 2174.347798 | HL60: 2182.857119 | HM60: 2183.063653 | HN60: 1352.907452 | HO60: 1353.118138 | HP60: 211.5964143 | HQ60: 211.8113345 | HR60: 212.028404 | HS60: 212.2476441 | HT60: 212.4690767 | HU60: 12.763 | HV60: 194 | HW60: 194 | HX60: 167.714 | HY60: 167.714 | HZ60: 167.714324 | IA60: 167.714324 | IB60: 167.714324 | IC60: 167.714 | ID60: 167.714324 | IE60: 167.714324 | IF60: 167.714
A61: Innlendar vátrygginga og lífeyrisskuldir / Domestic insurance and pension entitlements | B61: 309724 | C61: 313035 | D61: 313397 | E61: 320733 | F61: 323082 | G61: 325759 | H61: 329861 | I61: 331078 | J61: 334353 | K61: 337097 | L61: 339476 | M61: 352690 | N61: 354839 | O61: 356297 | P61: 363602 | Q61: 366908 | R61: 371426 | S61: 376452 | T61: 385214 | U61: 382908 | V61: 385945 | W61: 392758 | X61: 399447 | Y61: 407329 | Z61: 412215 | AA61: 416210 | AB61: 425411 | AC61: 432437 | AD61: 436608 | AE61: 446361 | AF61: 450143 | AG61: 455756 | AH61: 462313 | AI61: 471835 | AJ61: 484139 | AK61: 517573 | AL61: 522759 | AM61: 533972 | AN61: 548575 | AO61: 547743 | AP61: 544598 | AQ61: 553277 | AR61: 560604 | AS61: 570424 | AT61: 571211 | AU61: 577015 | AV61: 568415 | AW61: 566088 | AX61: 575659 | AY61: 565571 | AZ61: 565934 | BA61: 585183 | BB61: 600541 | BC61: 609815 | BD61: 610162 | BE61: 611383 | BF61: 602802 | BG61: 618480 | BH61: 635095 | BI61: 644757 | BJ61: 655706 | BK61: 655585 | BL61: 663962 | BM61: 663864 | BN61: 662715 | BO61: 654764 | BP61: 656959 | BQ61: 660855 | BR61: 656401 | BS61: 668132 | BT61: 677013.2152 | BU61: 678930.4111 | BV61: 680369.9609 | BW61: 683210.2979 | BX61: 688573.3143 | BY61: 699062.2085 | BZ61: 710563.5862 | CA61: 728700.2166 | CB61: 739238.1402 | CC61: 757330.3958 | CD61: 764955.5026 | CE61: 784513.6823 | CF61: 792334.6249 | CG61: 823977.2626 | CH61: 836443.4627 | CI61: 855391.1904 | CJ61: 867039.9643 | CK61: 879155.9402 | CL61: 887987.7807 | CM61: 912679.7847 | CN61: 932435.2077 | CO61: 966196.2497 | CP61: 989991.6606 | CQ61: 977213.8622 | CR61: 978700.923 | CS61: 986534.7774 | CT61: 1003139.781 | CU61: 1020333.971 | CV61: 1033794.756 | CW61: 1049219.559 | CX61: 1058292.053 | CY61: 1080337.866 | CZ61: 1096452.397 | DA61: 1122809.729 | DB61: 1136234.835 | DC61: 1134252.825 | DD61: 1177226.684 | DE61: 1218597 | DF61: 1259427.604 | DG61: 1295535.727 | DH61: 1325081.339 | DI61: 1350528.213 | DJ61: 1339373.931 | DK61: 1364394.408 | DL61: 1356230.988 | DM61: 1383889.324 | DN61: 1415719.9 | DO61: 1424690.598 | DP61: 1438648.67 | DQ61: 1498809.937 | DR61: 1505285.39 | DS61: 1515806.714 | DT61: 1534197.298 | DU61: 1569474.049 | DV61: 1594666.094 | DW61: 1620023.671 | DX61: 1635531.207 | DY61: 1641867.709 | DZ61: 1664450.94 | EA61: 1678606.553 | EB61: 1646831.433 | EC61: 1697207.59 | ED61: 1649503.502 | EE61: 1638693.216 | EF61: 1700058.17 | EG61: 1742507.849 | EH61: 1769488.56 | EI61: 1755250.924 | EJ61: 1759897.897 | EK61: 1794589.991 | EL61: 1771144.246 | EM61: 1553820.717 | EN61: 1623006.623 | EO61: 1598007.301 | EP61: 1562060.631 | EQ61: 1542489.868 | ER61: 1594818.89 | ES61: 1628420.688 | ET61: 1654489.63 | EU61: 1674631.355 | EV61: 1694357.608 | EW61: 1698821.16 | EX61: 1724782.708 | EY61: 1731236.443 | EZ61: 1749585.628 | FA61: 1774819.622 | FB61: 1782389.097 | FC61: 1785029.205 | FD61: 1828141.94 | FE61: 1845183.361 | FF61: 1823491.183 | FG61: 1824182.554 | FH61: 1834681.582 | FI61: 1828117.787 | FJ61: 1836527.688 | FK61: 1852978.156 | FL61: 1894069.095 | FM61: 1910191.004 | FN61: 1932630.623 | FO61: 1946006.299 | FP61: 1964806.034 | FQ61: 1984380.094 | FR61: 2007504.248 | FS61: 2023751.755 | FT61: 2044049.153 | FU61: 2018881.654 | FV61: 2017628.268 | FW61: 2055752.415 | FX61: 2078626.923 | FY61: 2097993.686 | FZ61: 2131825.45 | GA61: 2178877.906 | GB61: 2212961.267 | GC61: 2233576.524 | GD61: 2239950.234 | GE61: 2244548.019 | GF61: 2242254.04 | GG61: 2264752.293 | GH61: 2295002.223 | GI61: 2327187.721 | GJ61: 2337339.553 | GK61: 2392285.889 | GL61: 2434405.555 | GM61: 2442078.743 | GN61: 2471568.68 | GO61: 2460106.613 | GP61: 2502993.189 | GQ61: 2510437.389 | GR61: 2540639.396 | GS61: 2541822.904 | GT61: 2584881.499 | GU61: 2622833.48 | GV61: 2649870.273 | GW61: 2660777.028 | GX61: 2669029.533 | GY61: 2663038.374 | GZ61: 2678640.93 | HA61: 2700867.797 | HB61: 2725991.425 | HC61: 2743792.996 | HD61: 2770809.494 | HE61: 2798437.23 | HF61: 2820525.718 | HG61: 2847690.649 | HH61: 2896777.211 | HI61: 2924558.497 | HJ61: 2980813.001 | HK61: 3011469.174 | HL61: 3044618.28 | HM61: 3061483.655 | HN61: 3115455.783 | HO61: 3113266.138 | HP61: 3179526.359 | HQ61: 3134534.277 | HR61: 3140392.3 | HS61: 3239517.833 | HT61: 3252812.491 | HU61: 3182046.272 | HV61: 3141805.629 | HW61: 3160578.94 | HX61: 3190854.128 | HY61: 3214110.922 | HZ61: 3223279.738 | IA61: 3205525.943 | IB61: 3210348.158 | IC61: 3224981.168 | ID61: 3216281.732 | IE61: 3213762.03 | IF61: 3222601.867
A62: Iðgjaldaskuld / Provisions for unearned premiums | HU62: 0 | HV62: 0 | HW62: 0 | HX62: 0 | HY62: 0 | HZ62: 0 | IA62: 0 | IB62: 0 | IC62: 0 | ID62: 0 | IE62: 0 | IF62: 0
A63: Tjónaskuld og lífeyrisskuldir / Provisions for outstanding claims | EO63: 110.878511 | EP63: 575.9503251 | EQ63: 526.4049451 | ER63: 576.1379212 | ES63: 608.1073462 | ET63: 554.6741856 | EU63: 765.2987816 | EV63: 754.0572774 | EW63: 573.1392493 | EX63: 838.3149781 | EY63: 842.0782686 | EZ63: 844.051041 | FA63: 96.148176 | FB63: 794.377303 | FC63: 798.128172 | FD63: 183.059357 | FE63: 839.218574 | FF63: 819.533699 | FG63: 553.144126 | FH63: 516.978223 | FI63: 539.599007 | FJ63: 551.849458 | FK63: 821.117 | FL63: 835.577495 | FM63: 674.080057 | FN63: 1104.011651 | FO63: 877.255151 | FP63: 890.152999 | FQ63: 599.5452232 | FR63: 606.1441736 | FS63: 906.4575474 | FT63: 932.2581428 | FU63: 895.1841901 | FV63: 873.2915605 | FW63: 580.8076684 | FX63: 599.4974571 | FY63: 145.134789 | FZ63: 144.43437 | GA63: 140.770436 | GB63: 141.670497 | GC63: 139.758758 | GD63: 140.2002 | GE63: 144.50658 | GF63: 145.94954 | GG63: 146.136562 | GH63: 171.880247 | GI63: 145.107054 | GJ63: 144.623504 | GK63: 143.577282 | GL63: 148.31211 | GM63: 146.897984 | GN63: 148.483167 | GO63: 131.491118 | GP63: 145.461696 | GQ63: 143.046965 | GR63: 131.51001 | GS63: 143.747389 | GT63: 145.811061 | GU63: 145.970295 | GV63: 147.145967 | GW63: 158.760105 | GX63: 165.416685 | GY63: 170.067903 | GZ63: 172.436326 | HA63: 173.316239 | HB63: 170.973048 | HC63: 167.514433 | HD63: 165.643085 | HE63: 165.407573 | HF63: 166.903711 | HG63: 165.940832 | HH63: 164.786228 | HI63: 166.598595 | HJ63: 153.58512 | HK63: 159.747935 | HL63: 168.406292 | HM63: 167.932823 | HN63: 169.790276 | HO63: 170.25705 | HP63: 172.423962 | HQ63: 172.343819 | HR63: 173.851098 | HS63: 175.078889 | HT63: 178.055703 | HU63: 0.003 | HV63: 0.003 | HW63: 0.277 | HX63: 0.276 | HY63: 0.003 | HZ63: 0.002761 | IA63: 0.002761 | IB63: 0.002761 | IC63: 0.003 | ID63: -0.197239 | IE63: -0.002761 | IF63: 0
A64: Lífeyrisréttindi / Pension rights | B64: 309724 | C64: 313035 | D64: 313397 | E64: 320733 | F64: 323082 | G64: 325759 | H64: 329861 | I64: 331078 | J64: 334353 | K64: 337097 | L64: 339476 | M64: 352690 | N64: 354839 | O64: 356297 | P64: 363602 | Q64: 366908 | R64: 371426 | S64: 376452 | T64: 385214 | U64: 382908 | V64: 385945 | W64: 392758 | X64: 399447 | Y64: 407329 | Z64: 412215 | AA64: 416210 | AB64: 425411 | AC64: 432437 | AD64: 436608 | AE64: 446361 | AF64: 450143 | AG64: 455756 | AH64: 462313 | AI64: 471835 | AJ64: 484139 | AK64: 517573 | AL64: 522759 | AM64: 533972 | AN64: 548575 | AO64: 547743 | AP64: 544598 | AQ64: 553277 | AR64: 560604 | AS64: 570424 | AT64: 571211 | AU64: 577015 | AV64: 568415 | AW64: 566088 | AX64: 575659 | AY64: 565571 | AZ64: 565934 | BA64: 585183 | BB64: 600541 | BC64: 609815 | BD64: 610162 | BE64: 611383 | BF64: 602802 | BG64: 618480 | BH64: 635095 | BI64: 644757 | BJ64: 655706 | BK64: 655585 | BL64: 663962 | BM64: 663864 | BN64: 662715 | BO64: 654764 | BP64: 656959 | BQ64: 660855 | BR64: 656401 | BS64: 668132 | BT64: 677013.2152 | BU64: 678930.4111 | BV64: 680369.9609 | BW64: 683210.2979 | BX64: 688573.3143 | BY64: 699062.2085 | BZ64: 710563.5862 | CA64: 728700.2166 | CB64: 739238.1402 | CC64: 757330.3958 | CD64: 764955.5026 | CE64: 784513.6823 | CF64: 792334.6249 | CG64: 823977.2626 | CH64: 836443.4627 | CI64: 855391.1904 | CJ64: 867039.9643 | CK64: 879155.9402 | CL64: 887987.7807 | CM64: 912679.7847 | CN64: 932435.2077 | CO64: 966196.2497 | CP64: 989991.6606 | CQ64: 977213.8622 | CR64: 978700.923 | CS64: 986534.7774 | CT64: 1003139.781 | CU64: 1020333.971 | CV64: 1033794.756 | CW64: 1049219.559 | CX64: 1058292.053 | CY64: 1080337.866 | CZ64: 1096452.397 | DA64: 1122809.729 | DB64: 1136234.835 | DC64: 1134252.825 | DD64: 1177226.684 | DE64: 1218597 | DF64: 1259427.604 | DG64: 1295535.727 | DH64: 1325081.339 | DI64: 1350528.213 | DJ64: 1339373.931 | DK64: 1364394.408 | DL64: 1356230.988 | DM64: 1383889.324 | DN64: 1415719.9 | DO64: 1424690.598 | DP64: 1438648.67 | DQ64: 1498809.937 | DR64: 1505285.39 | DS64: 1515806.714 | DT64: 1534197.298 | DU64: 1569474.049 | DV64: 1594666.094 | DW64: 1620023.671 | DX64: 1635531.207 | DY64: 1641867.709 | DZ64: 1664450.94 | EA64: 1678606.553 | EB64: 1646831.433 | EC64: 1697207.59 | ED64: 1649503.502 | EE64: 1638693.216 | EF64: 1700058.17 | EG64: 1742507.849 | EH64: 1769488.56 | EI64: 1755250.924 | EJ64: 1759897.897 | EK64: 1794589.991 | EL64: 1771144.246 | EM64: 1553820.717 | EN64: 1623006.623 | EO64: 1597896.423 | EP64: 1561484.681 | EQ64: 1541963.463 | ER64: 1594242.752 | ES64: 1627812.581 | ET64: 1653934.955 | EU64: 1673866.056 | EV64: 1693603.551 | EW64: 1698248.021 | EX64: 1723944.393 | EY64: 1730394.365 | EZ64: 1748741.577 | FA64: 1774723.474 | FB64: 1781594.72 | FC64: 1784231.077 | FD64: 1827958.881 | FE64: 1844344.143 | FF64: 1822671.649 | FG64: 1823629.409 | FH64: 1834164.603 | FI64: 1827578.188 | FJ64: 1835975.839 | FK64: 1852157.039 | FL64: 1893233.517 | FM64: 1909516.924 | FN64: 1931526.612 | FO64: 1945129.044 | FP64: 1963915.881 | FQ64: 1983780.549 | FR64: 2006898.103 | FS64: 2022845.298 | FT64: 2043116.895 | FU64: 2017986.47 | FV64: 2016754.976 | FW64: 2055171.607 | FX64: 2078027.426 | FY64: 2097848.551 | FZ64: 2131681.016 | GA64: 2178737.135 | GB64: 2212819.597 | GC64: 2233436.765 | GD64: 2239810.034 | GE64: 2244403.512 | GF64: 2242108.09 | GG64: 2264606.157 | GH64: 2294830.343 | GI64: 2327042.614 | GJ64: 2337194.929 | GK64: 2392142.312 | GL64: 2434257.243 | GM64: 2441931.845 | GN64: 2471420.197 | GO64: 2459975.122 | GP64: 2502847.728 | GQ64: 2510294.342 | GR64: 2540507.886 | GS64: 2541679.157 | GT64: 2584735.688 | GU64: 2622687.51 | GV64: 2649723.127 | GW64: 2660618.268 | GX64: 2668864.116 | GY64: 2662868.306 | GZ64: 2678468.494 | HA64: 2700694.481 | HB64: 2725820.452 | HC64: 2743625.481 | HD64: 2770643.851 | HE64: 2798271.822 | HF64: 2820358.815 | HG64: 2847524.708 | HH64: 2896612.424 | HI64: 2924391.898 | HJ64: 2980659.416 | HK64: 3011309.426 | HL64: 3044449.874 | HM64: 3061315.722 | HN64: 3115285.992 | HO64: 3113095.881 | HP64: 3179353.935 | HQ64: 3134361.933 | HR64: 3140218.449 | HS64: 3239342.754 | HT64: 3252634.435 | HU64: 3182046.269 | HV64: 3141805.626 | HW64: 3160578.663 | HX64: 3190853.852 | HY64: 3214110.919 | HZ64: 3223279.735 | IA64: 3205525.94 | IB64: 3210348.155 | IC64: 3224981.165 | ID64: 3216281.929 | IE64: 3213762.033 | IF64: 3222601.867
A65: Aðrar innlendar skuldir / Other domestic liabilities | B65: 53 | C65: 44 | D65: 39 | E65: 39 | F65: 38 | G65: 38 | H65: 33 | I65: 33 | J65: 33 | K65: 33 | L65: 4 | M65: 1745 | N65: 79 | O65: 78 | P65: 78 | Q65: 78 | R65: 78 | S65: 78 | T65: 79 | U65: 79 | V65: 79 | W65: 79 | X65: 106 | Y65: 1312 | Z65: 113 | AA65: 113 | AB65: 114 | AC65: 114 | AD65: 115 | AE65: 90 | AF65: 86 | AG65: 87 | AH65: 86 | AI65: 87 | AJ65: 87 | AK65: 3154 | AL65: 81 | AM65: 82 | AN65: 115 | AO65: 82 | AP65: 81 | AQ65: 80 | AR65: 80 | AS65: 80 | AT65: 80 | AU65: 76 | AV65: 76 | AW65: 3415 | AX65: 82 | AY65: 82 | AZ65: 82 | BA65: 83 | BB65: 83 | BC65: 82 | BD65: 81 | BE65: 84 | BF65: 74 | BG65: 81 | BH65: 82 | BI65: 3359 | BJ65: 83 | BK65: 83 | BL65: 83 | BM65: 83 | BN65: 81 | BO65: 82 | BP65: 83 | BQ65: 83 | BR65: 72 | BS65: 71 | BT65: 70.949 | BU65: 0 | BV65: 69.821 | BW65: 69.788 | BX65: 69.751 | BY65: 57.573 | BZ65: 57.628 | CA65: 70.121 | CB65: 70.123 | CC65: 70.389 | CD65: 70.554 | CE65: 57.965 | CF65: 57.976 | CG65: 16.811 | CH65: 66.197 | CI65: 67.08 | CJ65: 67.001 | CK65: 67.091 | CL65: 58.033 | CM65: 58.172 | CN65: 58.743 | CO65: 58.703 | CP65: 58.543 | CQ65: 58.587 | CR65: 59.029 | CS65: 0 | CT65: 67.768 | CU65: 67.762 | CV65: 57.896 | CW65: 58.197 | CX65: 70.705 | CY65: 70.786 | CZ65: 70.811 | DA65: 70.86 | DB65: 71.109 | DC65: 58.747 | DD65: 58.891 | DE65: 0 | DF65: 3293.321 | DG65: 309.289 | DH65: 346.068 | DI65: 1865.456 | DJ65: 3110.406 | DK65: 740.706 | DL65: 286.611 | DM65: 299.605 | DN65: 228.115 | DO65: 253.281 | DP65: 283.479 | DQ65: 4345.045 | DR65: 4223.363238 | DS65: 3683.75228 | DT65: -243.408091 | DU65: -74.10905 | DV65: 107.652982 | DW65: 153.182594 | DX65: 194.454 | DY65: 614.447 | DZ65: 229.715592 | EA65: 703.396456 | EB65: 709.796 | EC65: 998.227 | ED65: 1102.652437 | EE65: 688.105437 | EF65: 706.149 | EG65: 669.105 | EH65: 699.044 | EI65: 720.873 | EJ65: 787.194 | EK65: 792.035 | EL65: 843.73 | EM65: 22371.48682 | EN65: 22490.29482 | EO65: 4491.719784 | EP65: 3282.754877 | EQ65: 3743.779454 | ER65: 11728.64479 | ES65: 5119.195119 | ET65: 4893.113251 | EU65: 5580.839731 | EV65: 5367.841404 | EW65: 4395.738596 | EX65: 4301.664356 | EY65: 3788.494367 | EZ65: 3864.655091 | FA65: 4374.442186 | FB65: 3776.252095 | FC65: 3814.43208 | FD65: 3419.457588 | FE65: 3479.639245 | FF65: 3382.808929 | FG65: 3384.114343 | FH65: 3488.740327 | FI65: 3459.415793 | FJ65: 3415.327829 | FK65: 3345.293694 | FL65: 3349.502177 | FM65: 6276.747744 | FN65: 6092.273126 | FO65: 5996.55635 | FP65: 5945.97177 | FQ65: 7039.718182 | FR65: 8592.223754 | FS65: 5886.663264 | FT65: 6216.162607 | FU65: 6539.348676 | FV65: 5533.004577 | FW65: 5524.692057 | FX65: 5728.532338 | FY65: 10415.80481 | FZ65: 6981.26926 | GA65: 9279.012857 | GB65: 6363.409924 | GC65: 6357.252812 | GD65: 10059.95602 | GE65: 15866.69359 | GF65: 15756.97438 | GG65: 14720.65792 | GH65: 12756.65187 | GI65: 13423.36478 | GJ65: 13428.7375 | GK65: 14316.91418 | GL65: 13481.88353 | GM65: 13499.70424 | GN65: 13458.61374 | GO65: 13224.93962 | GP65: 13364.31057 | GQ65: 12005.20888 | GR65: 11690.956 | GS65: 11933.29232 | GT65: 12667.02471 | GU65: 12223.7729 | GV65: 12048.06959 | GW65: 13141.86811 | GX65: 12564.87033 | GY65: 12508.43851 | GZ65: 12536.27877 | HA65: 12479.42542 | HB65: 12542.96031 | HC65: 10612.44998 | HD65: 10474.92331 | HE65: 9975.920668 | HF65: 9652.834208 | HG65: 9265.247102 | HH65: 10762.42783 | HI65: 8319.88226 | HJ65: 6527.045703 | HK65: 6370.840012 | HL65: 6327.255168 | HM65: 6497.740966 | HN65: 6444.065715 | HO65: 7223.432969 | HP65: 5480.021208 | HQ65: 7355.598456 | HR65: 10004.47077 | HS65: 6295.433786 | HT65: 7433.862558 | HU65: 8615.262826 | HV65: 7128.119974 | HW65: 6450.961191 | HX65: 7398.445668 | HY65: 3990.214941 | HZ65: 5195.65434 | IA65: 5345.809199 | IB65: 4376.749741 | IC65: 4452.216342 | ID65: 6322.103084 | IE65: 5351.688346 | IF65: 5717.151041
A66: Erlendar skuldir, alls / Foreign liabilities, total 1 | HU66: 93656.54582 | HV66: 92354.28444 | HW66: 93090.48192 | HX66: 94143.30496 | HY66: 94886.34485 | HZ66: 104918.5507 | IA66: 108330.9703 | IB66: 108274.1713 | IC66: 110995.6589 | ID66: 109732.7157 | IE66: 123075.6943 | IF66: 122745.4681
A67: Erlend verðbréfaútgáfa / Foreign securities issuance | HU67: 0 | HV67: 0 | HW67: 0 | HX67: 0 | HY67: 0 | HZ67: 0 | IA67: 0 | IB67: 0 | IC67: 0 | ID67: 0 | IE67: 0 | IF67: 0
A68: Víkjandi lán, erlend / Subordinated foreign loans | HU68: 0 | HV68: 0 | HW68: 0 | HX68: 0 | HY68: 0 | HZ68: 0 | IA68: 0 | IB68: 0 | IC68: 0 | ID68: 0 | IE68: 0 | IF68: 0
A69: Beinar lántökur erlendis / Direct foreign borrowing | HU69: 0 | HV69: 0 | HW69: 0 | HX69: 0 | HY69: 0 | HZ69: 0 | IA69: 0 | IB69: 0 | IC69: 0 | ID69: 0 | IE69: 0 | IF69: 0
A70: Erlendar afleiður / Foreign derivatives | HU70: 0 | HV70: 0 | HW70: 0 | HX70: 0 | HY70: 0 | HZ70: 0 | IA70: 0 | IB70: 0 | IC70: 0 | ID70: 0 | IE70: 0 | IF70: 0
A71: Erlendar vátrygginga- og lífeyrisskuldir / Foreign insurance and pension entitlements | HU71: 93656.54582 | HV71: 92354.28444 | HW71: 93090.48192 | HX71: 94143.30496 | HY71: 94886.34485 | HZ71: 104918.5507 | IA71: 108056.9784 | IB71: 108274.1713 | IC71: 110995.6589 | ID71: 109161.2657 | IE71: 123075.6943 | IF71: 122745.4681
A72: Lífeyrisréttindi / Pension rights | HU72: 93656.54582 | HV72: 92354.28444 | HW72: 93090.48192 | HX72: 94143.30496 | HY72: 94886.34485 | HZ72: 104918.5507 | IA72: 108056.9784 | IB72: 108274.1713 | IC72: 110995.6589 | ID72: 109161.2657 | IE72: 123075.6943 | IF72: 122745.4681
A73: Aðrar erlendar skuldir / Other foreign liabilities | HU73: 0 | HV73: 0 | HW73: 0 | HX73: 0 | HY73: 0 | HZ73: 0 | IA73: 273.991869 | IB73: 0 | IC73: 0 | ID73: 571.449999 | IE73: 0 | IF73: 0
A74: Eigið fé / Equity | HU74: 0 | HV74: 0 | HW74: 0 | HX74: 0 | HY74: 0 | HZ74: 0 | IA74: 0 | IB74: 0 | IC74: 0 | ID74: 0 | IE74: 0 | IF74: 0
A76: * Nýjustu tölur eru bráðabirgðatölur / The latest data is preliminary
A77: Heimild: Gagnasöfnun og upplýsingavinnsla / Source: Statistics, Central Bank of Iceland | HU77: =+HU11-HU54 -> 0.0008429996669
B79: 1997-01-31 | C79: 1997-02-28 | D79: 1997-03-31 | E79: 1997-04-30 | F79: 1997-05-31 | G79: 1997-06-30 | H79: 1997-07-31 | I79: 1997-08-31 | J79: 1997-09-30 | K79: 1997-10-31 | L79: 1997-11-30 | M79: 1997-12-31 | N79: 1998-01-31 | O79: 1998-02-28 | P79: 1998-03-31 | Q79: 1998-04-30 | R79: 1998-05-31 | S79: 1998-06-30 | T79: 1998-07-31 | U79: 1998-08-31 | V79: 1998-09-30 | W79: 1998-10-31 | X79: 1998-11-30 | Y79: 1998-12-31 | Z79: 1999-01-31 | AA79: 1999-02-28 | AB79: 1999-03-31 | AC79: 1999-04-30 | AD79: 1999-05-31 | AE79: 1999-06-30 | AF79: 1999-07-31 | AG79: 1999-08-31 | AH79: 1999-09-30 | AI79: 1999-10-31 | AJ79: 1999-11-30 | AK79: 1999-12-31 | AL79: 2000-01-31 | AM79: 2000-02-29 | AN79: 2000-03-31 | AO79: 2000-04-30 | AP79: 2000-05-31 | AQ79: 2000-06-30 | AR79: 2000-07-31 | AS79: 2000-08-31 | AT79: 2000-09-30 | AU79: 2000-10-31 | AV79: 2000-11-30 | AW79: 2000-12-31 | AX79: 2001-01-31 | AY79: 2001-02-28 | AZ79: 2001-03-31 | BA79: 2001-04-30 | BB79: 2001-05-31 | BC79: 2001-06-30 | BD79: 2001-07-31 | BE79: 2001-08-31 | BF79: 2001-09-30 | BG79: 2001-10-31 | BH79: 2001-11-30 | BI79: 2001-12-31 | BJ79: 2002-01-31 | BK79: 2002-02-28 | BL79: 2002-03-31 | BM79: 2002-04-30 | BN79: 2002-05-31 | BO79: 2002-06-30 | BP79: 2002-07-31 | BQ79: 2002-08-31 | BR79: 2002-09-30 | BS79: 2002-10-31 | BT79: 2002-11-30 | BU79: 2002-12-31 | BV79: 2003-01-31 | BW79: 2003-02-28 | BX79: 2003-03-31 | BY79: 2003-04-30 | BZ79: 2003-05-31 | CA79: 2003-06-30 | CB79: 2003-07-31 | CC79: 2003-08-31 | CD79: 2003-09-30 | CE79: 2003-10-31 | CF79: 2003-11-30 | CG79: 2003-12-31 | CH79: 2004-01-31 | CI79: 2004-02-29 | CJ79: 2004-03-31 | CK79: 2004-04-30 | CL79: 2004-05-31 | CM79: 2004-06-30 | CN79: 2004-07-31 | CO79: 2004-08-31 | CP79: 2004-09-30 | CQ79: 2004-10-31 | CR79: 2004-11-30 | CS79: 2004-12-31 | CT79: 2005-01-31 | CU79: 2005-02-28 | CV79: 2005-03-31 | CW79: 2005-04-30 | CX79: 2005-05-31 | CY79: 2005-06-30 | CZ79: 2005-07-31 | DA79: 2005-08-31 | DB79: 2005-09-30 | DC79: 2005-10-31 | DD79: 2005-11-30 | DE79: 2005-12-31 | DF79: 2006-01-31 | DG79: 2006-02-28 | DH79: 2006-03-31 | DI79: 2006-04-30 | DJ79: 2006-05-31 | DK79: 2006-06-30 | DL79: 2006-07-31 | DM79: 2006-08-31 | DN79: 2006-09-30 | DO79: 2006-10-31 | DP79: 2006-11-30 | DQ79: 2006-12-31 | DR79: 2007-01-31 | DS79: 2007-02-28 | DT79: 2007-03-31 | DU79: 2007-04-30 | DV79: 2007-05-31 | DW79: 2007-06-30 | DX79: 2007-07-31 | DY79: 2007-08-31 | DZ79: 2007-09-30 | EA79: 2007-10-31 | EB79: 2007-11-30 | EC79: 2007-12-31 | ED79: 2008-01-31 | EE79: 2008-02-29 | EF79: 2008-03-31 | EG79: 2008-04-30 | EH79: 2008-05-31 | EI79: 2008-06-30 | EJ79: 2008-07-31 | EK79: 2008-08-31 | EL79: 2008-09-30 | EM79: 2008-10-31 | EN79: 2008-11-30 | EO79: 2008-12-31 | EP79: 2009-01-31 | EQ79: 2009-02-28 | ER79: 2009-03-31 | ES79: 2009-04-30 | ET79: 2009-05-31 | EU79: 2009-06-30 | EV79: 2009-07-31 | EW79: 2009-08-31 | EX79: 2009-09-30 | EY79: 2009-10-31 | EZ79: 2009-11-30 | FA79: 2009-12-31 | FB79: 2010-01-31 | FC79: 2010-02-28 | FD79: 2010-03-31 | FE79: 2010-04-30 | FF79: 2010-05-31 | FG79: 2010-06-30 | FH79: 2010-07-31 | FI79: 2010-08-31 | FJ79: 2010-09-30 | FK79: 2010-10-31 | FL79: 2010-11-30 | FM79: 2010-12-31 | FN79: 2011-01-31 | FO79: 2011-02-28 | FP79: 2011-03-31 | FQ79: 2011-04-30 | FR79: 2011-05-31 | FS79: 2011-06-30 | FT79: 2011-07-31 | FU79: 2011-08-31 | FV79: 2011-09-30 | FW79: 2011-10-31 | FX79: 2011-11-30 | FY79: 2011-12-31 | FZ79: 2012-01-31 | GA79: 2012-02-29 | GB79: 2012-03-31 | GC79: 2012-04-30 | GD79: 2012-05-31 | GE79: 2012-06-30 | GF79: 2012-07-31 | GG79: 2012-08-31 | GH79: 2012-09-30 | GI79: 2012-10-31 | GJ79: 2012-11-30 | GK79: 2012-12-31 | GL79: 2013-01-31 | GM79: 2013-02-28 | GN79: 2013-03-31 | GO79: 2013-04-30 | GP79: 2013-05-31 | GQ79: 2013-06-30 | GR79: 2013-07-31 | GS79: 2013-08-31 | GT79: 2013-09-30 | GU79: 2013-10-31 | GV79: 2013-11-30 | GW79: 2013-12-31 | GX79: 2014-01-31 | GY79: 2014-02-28 | GZ79: 2014-03-31 | HA79: 2014-04-30 | HB79: 2014-05-31 | HC79: 2014-06-30 | HD79: 2014-07-31 | HE79: 2014-08-31 | HF79: 2014-09-30 | HG79: 2014-10-31 | HH79: 2014-11-30 | HI79: 2014-12-31 | HJ79: 2015-01-31 | HK79: 2015-02-28 | HL79: 2015-03-31 | HM79: 2015-04-30 | HN79: 2015-05-31 | HO79: 2015-06-30 | HP79: 2015-07-31 | HQ79: 2015-08-31 | HR79: 2015-09-30 | HS79: 2015-10-31 | HT79: 2015-11-30 | HU79: 2015-12-31 | HV79: 2016-01-31 | HW79: 2016-02-29 | HX79: 2016-03-31 | HY79: 2016-04-30 | HZ79: 2016-05-31 | IA79: 2016-06-30 | IB79: 2016-07-31 | IC79: 2016-08-31 | ID79: 2016-09-30 | IE79: 2016-10-31 | IF79: 2016-11-30 | IG79: 2016-12-31 | IH79: 2017-01-31 | II79: 2017-02-28 | IJ79: 2017-03-31 | IK79: 2017-04-30 | IL79: 2017-05-31 | IM79: 2017-06-30 | IP79: 2016-11-30
A80: Innlán, afleiðusamningar og aðrar eignir | B80: =+B17+B32+B34+B37+B50+B31 -> 18381 | C80: 22127 | D80: 20238 | E80: 20867 | F80: 21143 | G80: 21753 | H80: 22361 | I80: 22318 | J80: 23333 | K80: 24178 | L80: 24646 | M80: 12443 | N80: 11427 | O80: 10523 | P80: 12322 | Q80: 12895 | R80: 13207 | S80: 13185 | T80: 14556 | U80: 14142 | V80: 15294 | W80: 15298 | X80: 15986 | Y80: 14610 | Z80: 11045 | AA80: 11519 | AB80: 11998 | AC80: 12533 | AD80: 11407 | AE80: 12082 | AF80: 11860 | AG80: 11283 | AH80: 12945 | AI80: 14482 | AJ80: 13194 | AK80: 16471 | AL80: 12430 | AM80: 12096 | AN80: 14354 | AO80: 13486 | AP80: 12926 | AQ80: 13074 | AR80: 14226 | AS80: 14447 | AT80: 14334 | AU80: 14321 | AV80: 12874 | AW80: 16663 | AX80: 11139 | AY80: 10944 | AZ80: 11635 | BA80: 11363 | BB80: 10887 | BC80: 9647 | BD80: 11851 | BE80: 11518 | BF80: 9323 | BG80: 10207 | BH80: 9510 | BI80: 19036 | BJ80: 12857 | BK80: 12832 | BL80: 10312 | BM80: 10981 | BN80: =+BN17+BN32+BN34+BN37+BN50+BN31 -> 12242 | BO80: 15446 | BP80: 14392 | BQ80: 15887 | BR80: 18460 | BS80: 15704 | BT80: 13936.59699 | BU80: 21395.66705 | BV80: 16386.67363 | BW80: 17913.0584 | BX80: 19602.61883 | BY80: 20342.11603 | BZ80: 22858.97119 | CA80: 24439.53479 | CB80: 25062.13469 | CC80: 26620.09253 | CD80: 28516.36768 | CE80: 26383.11448 | CF80: 24860.91325 | CG80: 35323.19062 | CH80: 35046.92878 | CI80: 29935.12006 | CJ80: 27676.92822 | CK80: 30182.65224 | CL80: 33051.50094 | CM80: 32621.76742 | CN80: 33752.50797 | CO80: 34583.18896 | CP80: 38567.13044 | CQ80: 41745.57864 | CR80: 41565.23441 | CS80: 36206.83125 | CT80: 30256.28673 | CU80: 32596.97989 | CV80: 27698.04492 | CW80: 27830.42891 | CX80: 29890.88452 | CY80: 26999.14128 | CZ80: 27574.53629 | DA80: 32985.4902 | DB80: 31386.46652 | DC80: 31367.74736 | DD80: 35433.1918 | DE80: 38713.74001 | DF80: 30072.03589 | DG80: 24331.20334 | DH80: 27490.29881 | DI80: 25125.30015 | DJ80: 19565.45649 | DK80: 20472.29313 | DL80: 23235.92228 | DM80: 22986.98909 | DN80: 23771.37923 | DO80: 21235.45963 | DP80: 22678.54895 | DQ80: 27769.29639 | DR80: 10821.73958 | DS80: 15727.39964 | DT80: 15367.16919 | DU80: 21027.04393 | DV80: 20206.58059 | DW80: 23943.04903 | DX80: 34351.92918 | DY80: 39685.33568 | DZ80: =+DZ17+DZ32+DZ34+DZ37+DZ50+DZ31 -> 43417.34455 | EA80: 41132.39486 | EB80: 36606.69217 | EC80: 57667.66137 | ED80: 44536.24831 | EE80: 46791.26777 | EF80: 54551.79313 | EG80: 49019.95613 | EH80: 54752.42245 | EI80: 70213.89422 | EJ80: 82421.91082 | EK80: 98847.19209 | EL80: 96924.1017 | EM80: 148068.9599 | EN80: 170626.1939 | EO80: 188819.6613 | EP80: 180846.2453 | EQ80: 187727.9056 | ER80: 181740.5108 | ES80: 186768.2615 | ET80: 188516.4456 | EU80: 187105.9708 | EV80: 177605.9935 | EW80: 187595.6474 | EX80: 198590.1928 | EY80: 194591.2205 | EZ80: 189036.9275 | FA80: 181139.8216 | FB80: 174841.5763 | FC80: 176884.0511 | FD80: 175683.611 | FE80: 182515.4209 | FF80: 177907.3072 | FG80: 187328.7918 | FH80: 181458.0513 | FI80: 180964.3006 | FJ80: 181493.7724 | FK80: 170407.296 | FL80: 176529.7508 | FM80: 178420.8861 | FN80: 172225.021 | FO80: 165144.6193 | FP80: 168735.8285 | FQ80: 170114.7994 | FR80: 154026.0172 | FS80: 166712.2224 | FT80: 174376.5737 | FU80: 173552.6268 | FV80: 173430.545 | FW80: 170286.7475 | FX80: 168097.0697 | FY80: 175331.8618 | FZ80: 167624.3256 | GA80: 172899.7015 | GB80: 165372.1313 | GC80: 174147.6744 | GD80: 172240.6043 | GE80: 183461.8099 | GF80: 174861.4157 | GG80: 175399.0551 | GH80: 186540.1768 | GI80: 193485.4802 | GJ80: 174069.7896 | GK80: 187540.3736 | GL80: =+GL17+GL32+GL34+GL37+GL50+GL31 -> 178018.2192 | GM80: 177114.7252 | GN80: 178508.4242 | GO80: 176941.9925 | GP80: 168120.5218 | GQ80: 182963.1068 | GR80: 167845.4281 | GS80: 179212.8889 | GT80: 174126.9024 | GU80: 180665.5895 | GV80: 172159.9366 | GW80: 185555.7077 | GX80: 183892.0675 | GY80: 178229.8634 | GZ80: 177047.5962 | HA80: 178929.4342 | HB80: 172492.4768 | HC80: 164383.0249 | HD80: 169697.6466 | HE80: 185919.6283 | HF80: 186255.4401 | HG80: 186904.2082 | HH80: 187219.9711 | HI80: 155533.9974 | HJ80: 148624.7205 | HK80: 154358.0514 | HL80: 159173.5011 | HM80: 167527 | HN80: 169260.1805 | HO80: 180478.1904 | HP80: 174307.1554 | HQ80: 179618.0549 | HR80: 169784.9673 | HS80: 174209.6926 | HT80: 174286.5323 | HU80: 180982.4485 | HV80: 176885.9993 | HW80: 169647.1864 | HX80: 150834.9096 | HY80: 158089.2427 | HZ80: 159086.854 | IA80: 162306.3236 | IB80: 158514.8927 | IC80: 164590.694 | ID80: 148973.623 | IE80: =+IE17+IE32+IE34+IE37+IE50+IE31 -> 147906.3994 | IF80: 130576.7336 | IG80: =+IG17+IG32+IG34+IG37+IG50+IG31 -> 160797 | IH80: 153676 | II80: 159869 | IJ80: 158817 | IK80: 160479 | IL80: 152847 | IM80: 162824
A81: Innlend hlutabréf | B81: =+B27+B30 -> 15634 | C81: 16334 | D81: 16227 | E81: 20160 | F81: 20734 | G81: 20591 | H81: 22272 | I81: 21771 | J81: 22354 | K81: 22649 | L81: 23609 | M81: 27024 | N81: 28531 | O81: 28994 | P81: 30942 | Q81: 30938 | R81: 33228 | S81: 34501 | T81: 36143 | U81: 36398 | V81: 35848 | W81: 41319 | X81: 44955 | Y81: 52559 | Z81: 56943 | AA81: 58142 | AB81: 60709 | AC81: 61885 | AD81: 62872 | AE81: 64145 | AF81: 66350 | AG81: 66906 | AH81: 68975 | AI81: 69757 | AJ81: 79549 | AK81: 90890 | AL81: 94360 | AM81: 96530 | AN81: 101959 | AO81: 97462 | AP81: 94574 | AQ81: 96125 | AR81: 97465 | AS81: 98878 | AT81: 99321 | AU81: 97106 | AV81: 93954 | AW81: 93149 | AX81: 91767 | AY81: 92459 | AZ81: 93599 | BA81: 94330 | BB81: 94435 | BC81: 94563 | BD81: 93550 | BE81: 93399 | BF81: 94392 | BG81: 96997 | BH81: 99247 | BI81: 106926 | BJ81: 110989 | BK81: 111523 | BL81: 110422 | BM81: 114034 | BN81: =+BN27+BN30 -> 113395 | BO81: 115848 | BP81: 116668 | BQ81: 114952 | BR81: 119898 | BS81: 121354 | BT81: 125518.7308 | BU81: 129417.4687 | BV81: 133776.526 | BW81: 137457.8846 | BX81: 138661.8413 | BY81: 139318.5049 | BZ81: 140773.9864 | CA81: 144417.9934 | CB81: 144987.4738 | CC81: 151294.023 | CD81: 154232.2418 | CE81: 160393.7465 | CF81: 161085.505 | CG81: 166748.898 | CH81: 174286.8735 | CI81: 182650.7017 | CJ81: 182857.9245 | CK81: 184301.1751 | CL81: 182807.0103 | CM81: 196143.5396 | CN81: 195556.1232 | CO81: 214534.0981 | CP81: 229031.5564 | CQ81: 210229.2207 | CR81: 214135.7015 | CS81: 215199.6069 | CT81: 232567.8752 | CU81: 238320.0782 | CV81: 243671.6601 | CW81: 247205.4367 | CX81: 245940.5838 | CY81: 247701.3051 | CZ81: 254073.7475 | DA81: 262413.172 | DB81: 266501.8841 | DC81: 266731.1937 | DD81: 278306.1422 | DE81: 297468.5322 | DF81: 332932.3075 | DG81: 349941.7339 | DH81: 324692.057 | DI81: 317176.7879 | DJ81: 329659.2685 | DK81: 319076.2347 | DL81: 315612.7093 | DM81: 347487.2918 | DN81: 363942.144 | DO81: 361184.8441 | DP81: 358265.5559 | DQ81: 371066.1586 | DR81: 400943.1006 | DS81: 410810.7583 | DT81: 421819.0522 | DU81: 440627.6267 | DV81: 458132.9712 | DW81: 466922.2421 | DX81: 469841.235 | DY81: 447175.4613 | DZ81: =+DZ27+DZ30 -> 443866.3531 | EA81: 446898.3342 | EB81: 415198.3913 | EC81: 397757.1729 | ED81: 380252.4169 | EE81: 355779.966 | EF81: 366395.2863 | EG81: 382826.837 | EH81: 365119.3867 | EI81: 350496.1879 | EJ81: 348161.8904 | EK81: 352891.4127 | EL81: 328222.336 | EM81: 169947.7644 | EN81: 166309.6659 | EO81: 23896.72894 | EP81: 22088.26422 | EQ81: 20729.63605 | ER81: 17430.48294 | ES81: 18003.02282 | ET81: 20574.71958 | EU81: 21158.64214 | EV81: 20690.30072 | EW81: 19844.26036 | EX81: 19629.11096 | EY81: 20085.25746 | EZ81: 20183.25487 | FA81: 24212.71621 | FB81: 23654.59873 | FC81: 25769.83568 | FD81: 28261.05983 | FE81: 30477.85786 | FF81: 28457.40609 | FG81: 31679.75631 | FH81: 33525.64157 | FI81: 36547.19875 | FJ81: 37179.70999 | FK81: 40645.36205 | FL81: 43580.03313 | FM81: 47777.62542 | FN81: 52514.08991 | FO81: 61703.44672 | FP81: 64441.85484 | FQ81: 64528.49688 | FR81: 74693.25275 | FS81: 81519.56887 | FT81: 87223.35043 | FU81: 85993.52001 | FV81: 85625.50945 | FW81: 88172.25801 | FX81: 93559.51626 | FY81: 106985.9642 | FZ81: 111330.907 | GA81: 117747.8358 | GB81: 127177.98 | GC81: 130708.222 | GD81: 132300.7853 | GE81: 144967.2788 | GF81: 153074.1102 | GG81: 155377.0137 | GH81: 125190.7685 | GI81: 125033.5037 | GJ81: 135671.5655 | GK81: 145910.3611 | GL81: =+GL27+GL30 -> 158349.2811 | GM81: 166164.858 | GN81: 168213.6986 | GO81: 174154.4621 | GP81: 179093.3237 | GQ81: 197982.8727 | GR81: 209144.4451 | GS81: 208593.8927 | GT81: 210719.4457 | GU81: 224420.2106 | GV81: 232540.8329 | GW81: 243783.4537 | GX81: 251172.8236 | GY81: 256886.6038 | GZ81: 256609.5118 | HA81: 274457.2352 | HB81: 273768.4309 | HC81: 280716.0281 | HD81: 288107.2341 | HE81: 290385.0189 | HF81: 292038.9974 | HG81: 303631.6756 | HH81: 321817.8086 | HI81: 344411.2784 | HJ81: 363045.8349 | HK81: 367445.559 | HL81: 361504.8435 | HM81: 376440.0619 | HN81: 391275.8361 | HO81: 406677.3229 | HP81: 424330.732 | HQ81: 433249.0313 | HR81: 450101.1576 | HS81: 485610.429 | HT81: 476722.1641 | HU81: 423098.7556 | HV81: 417636.6486 | HW81: 428355.7559 | HX81: 437194.1045 | HY81: 441589.2994 | HZ81: 436597.3724 | IA81: 427238.233 | IB81: 413144.0955 | IC81: 419499.7907 | ID81: 405239.9342 | IE81: =+IE27+IE30 -> 422398.4413 | IF81: 421131.0013 | IG81: =+IG27+IG30 -> 416845 | IH81: 424770 | II81: 428411 | IJ81: 430084 | IK81: 454557 | IL81: 449469 | IM81: 449926
A82: Erlend hlutabréf | B82: =+B44 -> 1213 | C82: 1299 | D82: 1400 | E82: 1425 | F82: 1901 | G82: 2463 | H82: 2571 | I82: 3164 | J82: 3430 | K82: 4066 | L82: 4348 | M82: 7126 | N82: 7512 | O82: 8521 | P82: 8596 | Q82: 10004 | R82: 14019 | S82: 15600 | T82: 17927 | U82: 16432 | V82: 17320 | W82: 19382 | X82: 20375 | Y82: 21054 | Z82: 21013 | AA82: 21715 | AB82: 23841 | AC82: 25459 | AD82: 26267 | AE82: 28139 | AF82: 28191 | AG82: 28764 | AH82: 29683 | AI82: 31282 | AJ82: 32844 | AK82: 41515 | AL82: 41349 | AM82: 43879 | AN82: 45683 | AO82: 48163 | AP82: 46145 | AQ82: 48309 | AR82: 49086 | AS82: 52340 | AT82: 56184 | AU82: 58530 | AV82: 54592 | AW82: 53662 | AX82: 55593 | AY82: 51942 | AZ82: 50311 | BA82: 55038 | BB82: 58095 | BC82: 58104 | BD82: 55467 | BE82: 52958 | BF82: 46918 | BG82: 49167 | BH82: 53906 | BI82: 53323 | BJ82: 52159 | BK82: 50700 | BL82: 51036 | BM82: 47828 | BN82: =+BN44 -> 46462 | BO82: 39066 | BP82: 37223 | BQ82: 38557 | BR82: 31780 | BS82: 32275 | BT82: 33273.16932 | BU82: 32502.19341 | BV82: 30668.85255 | BW82: 30868.47051 | BX82: 29663.64619 | BY82: 31249.56662 | BZ82: 31548.10549 | CA82: 35165.83392 | CB82: 37019.87469 | CC82: 38777.36447 | CD82: 39131.10273 | CE82: 42022.73513 | CF82: 41716.94528 | CG82: 43617.62422 | CH82: 42466.90051 | CI82: 43244.42318 | CJ82: 44293.51606 | CK82: 44629.35899 | CL82: 43816.94178 | CM82: 43550.85512 | CN82: 38501.3552 | CO82: 39727.87495 | CP82: 39091.3914 | CQ82: 38615.78137 | CR82: 38729.51345 | CS82: 38441.70691 | CT82: 39053.5063 | CU82: 39789.70916 | CV82: 38312.41508 | CW82: 37814.98379 | CX82: 40540.80764 | CY82: 42782.83743 | CZ82: 42865.95447 | DA82: 43938.13444 | DB82: 42500.93985 | DC82: 42111.37268 | DD82: 45106.4868 | DE82: 37395.4484 | DF82: 47114.27841 | DG82: 49020.64352 | DH82: 55442.4789 | DI82: 60297.87488 | DJ82: 55667.82236 | DK82: 59990.81936 | DL82: 56940.64341 | DM82: 55578.32579 | DN82: 56995.00751 | DO82: 57886.73016 | DP82: 59136.36226 | DQ82: 60477.76544 | DR82: 61496.0765 | DS82: 60924.00031 | DT82: 61118.49919 | DU82: 59127.20409 | DV82: 59267.53555 | DW82: 63326.18942 | DX82: 62086.14878 | DY82: 64362.24987 | DZ82: =+DZ44 -> 66748.77643 | EA82: 68255.62281 | EB82: 67920.87992 | EC82: 69405.88404 | ED82: 68551.97456 | EE82: 69240.7814 | EF82: 78357.08688 | EG82: 77569.80247 | EH82: 80431.61676 | EI82: 80719.2521 | EJ82: 80968.12464 | EK82: 81590.51591 | EL82: 87302.61881 | EM82: 81291.36229 | EN82: 87068.04097 | EO82: 66850.3343 | EP82: 59783.3916 | EQ82: 54437.75479 | ER82: 59845.70374 | ES82: 66216.71834 | ET82: 70584.12596 | EU82: 75671.2033 | EV82: 81656.9989 | EW82: 83023.85393 | EX82: 84495.98505 | EY82: 82382.47411 | EZ82: 82441.17904 | FA82: 85917.57086 | FB82: 84222.82815 | FC82: 84120.55875 | FD82: 90509.07259 | FE82: 90343.06912 | FF82: 81909.02498 | FG82: 78339.27867 | FH82: 79226.55363 | FI82: 76397.58331 | FJ82: 79412.50901 | FK82: 81558.32647 | FL82: 80614.71486 | FM82: 78037.90148 | FN82: 80124.41726 | FO82: 82064.73112 | FP82: 80639.3171 | FQ82: 81737.41083 | FR82: 83300.27323 | FS82: 81836.03102 | FT82: 80740.17805 | FU82: 72413.77947 | FV82: 68409.71894 | FW82: 74653.65506 | FX82: 77133.73986 | FY82: 78603.89402 | FZ82: 82121.71982 | GA82: 85961.69304 | GB82: 87584.79044 | GC82: 86317.49639 | GD82: 84542.87719 | GE82: 81855.8766 | GF82: 80248.139 | GG82: 82517.90228 | GH82: 86532.05907 | GI82: 88309.03558 | GJ82: 89925.75707 | GK82: 96548.72957 | GL82: =+GL44 -> 98582.26017 | GM82: 98149.78587 | GN82: 103077.0191 | GO82: 99024.25341 | GP82: 104527.9576 | GQ82: 101271.9863 | GR82: 102597.1688 | GS82: 101473.9627 | GT82: 108603.7226 | GU82: 112916.3032 | GV82: 116222.1478 | GW82: 109018.5429 | GX82: 107126.1519 | GY82: 107528.2823 | GZ82: 107318.307 | HA82: 107182.9943 | HB82: 109778.5542 | HC82: 112207.2589 | HD82: 112655.1197 | HE82: 116626.767 | HF82: 118569.5292 | HG82: 120569.34 | HH82: 124676.5028 | HI82: 127185.9996 | HJ82: 128408.3831 | HK82: 141637.8805 | HL82: 145548.7213 | HM82: 144771.4696 | HN82: 149768.1586 | HO82: 143981.3145 | HP82: 149842.846 | HQ82: 135193.6555 | HR82: 129019.0044 | HS82: 139018.3535 | HT82: 144414.0983 | HU82: 129779.9664 | HV82: 122314.4045 | HW82: 117991.6389 | HX82: 119103.8334 | HY82: 94580.48582 | HZ82: 98150.56173 | IA82: 101578.4003 | IB82: 103113.3015 | IC82: 100139.7585 | ID82: 101712.0966 | IE82: =+IE44 -> 99914.68498 | IF82: 100120.1954 | IG82: =+IG44 -> 101834 | IH82: 107538 | II82: 100013 | IJ82: 104750 | IK82: 99104 | IL82: 94991 | IM82: 105500
A83: Innlend skuldabréf | B83: =+B19 -> 271358 | C83: 269194 | D83: 271933 | E83: 274694 | F83: 275548 | G83: 276659 | H83: 277851 | I83: 279109 | J83: 280397 | K83: 280987 | L83: 281469 | M83: 289371 | N83: 288984 | O83: 288517 | P83: 288813 | Q83: 289127 | R83: 289639 | S83: 290235 | T83: 294798 | U83: 295024 | V83: 296415 | W83: 294279 | X83: 293572 | Y83: 291821 | Z83: 293138 | AA83: 293905 | AB83: 295112 | AC83: 297987 | AD83: 300469 | AE83: 303354 | AF83: 304679 | AG83: 307677 | AH83: 308450 | AI83: 311632 | AJ83: 309306 | AK83: 315291 | AL83: 314914 | AM83: 316321 | AN83: 318440 | AO83: 320029 | AP83: 323022 | AQ83: 323424 | AR83: 326696 | AS83: 325777 | AT83: 325821 | AU83: 329494 | AV83: 332310 | AW83: 331698 | AX83: 339450 | AY83: 338303 | AZ83: 340736 | BA83: 347061 | BB83: 355083 | BC83: 364999 | BD83: 369416 | BE83: 373728 | BF83: 379562 | BG83: 383275 | BH83: 387772 | BI83: 387462 | BJ83: 399091 | BK83: 399907 | BL83: 403969 | BM83: 407613 | BN83: =+BN19 -> 408041 | BO83: 409339 | BP83: 414158 | BQ83: 414095 | BR83: 416935 | BS83: 422262 | BT83: 424000.6188 | BU83: 425195.5498 | BV83: 431274.727 | BW83: 429347.6181 | BX83: 433289.5511 | BY83: 436936.8498 | BZ83: 440975.7777 | CA83: 441711.3732 | CB83: 443963.412 | CC83: 445363.2003 | CD83: 446890.2225 | CE83: 451456.0032 | CF83: 454223.1327 | CG83: 461999.2305 | CH83: 461860.4527 | CI83: 469072.6002 | CJ83: 473780.1859 | CK83: 478010.7396 | CL83: 484642.537 | CM83: 491163.1525 | CN83: 513204.0453 | CO83: 521496.3808 | CP83: 521816.1184 | CQ83: 520794.924 | CR83: 512473.6073 | CS83: 517550.7252 | CT83: 518159.0679 | CU83: 520878.677 | CV83: 532941.1841 | CW83: 536913.856 | CX83: 533136.1966 | CY83: 548466.7858 | CZ83: 551161.0723 | DA83: 563089.664 | DB83: 570541.1886 | DC83: 571753.4736 | DD83: 578115.0545 | DE83: 584059.2657 | DF83: 585467.5068 | DG83: 587556.366 | DH83: 599581.381 | DI83: 606745.3295 | DJ83: 614586.3929 | DK83: 623111.911 | DL83: 628182.7899 | DM83: 633747.8579 | DN83: 641629.3897 | DO83: 651031.9438 | DP83: 653937.9844 | DQ83: 661272.318 | DR83: 664920.7993 | DS83: 668238.9111 | DT83: 668853.6382 | DU83: 671550.8551 | DV83: 683368.9357 | DW83: 691561.4856 | DX83: 700900.049 | DY83: 707473.6175 | DZ83: =+DZ19 -> 721356.6361 | EA83: 729501.2651 | EB83: 740974.974 | EC83: 784522.7666 | ED83: 790585.8428 | EE83: 797447.4162 | EF83: 822314.5785 | EG83: 835952.6193 | EH83: 862982.0377 | EI83: 879961.7415 | EJ83: 896075.1839 | EK83: 904850.9167 | EL83: 926171.6083 | EM83: 855886.9609 | EN83: 865552.2775 | EO83: 876517.692 | EP83: 896583.2334 | EQ83: 913815.1711 | ER83: 939193.8773 | ES83: 923472.7303 | ET83: 927648.3748 | EU83: 945640.8546 | EV83: 956157.8567 | EW83: 956126.9027 | EX83: 968002.9714 | EY83: 981462.9327 | EZ83: 1004520.67 | FA83: 1029480.683 | FB83: 1047585.271 | FC83: 1043313.4 | FD83: 1060210.885 | FE83: 1068525.66 | FF83: 1088044.191 | FG83: 1095456.829 | FH83: 1100156.945 | FI83: 1099082.683 | FJ83: 1098989.743 | FK83: 1112763.253 | FL83: 1169169.677 | FM83: 1196533.63 | FN83: 1211041.077 | FO83: 1215436.935 | FP83: 1233016.073 | FQ83: 1246844.144 | FR83: 1268154.813 | FS83: 1263816.64 | FT83: 1279567.456 | FU83: 1283624.73 | FV83: 1293848.956 | FW83: 1311550.677 | FX83: 1321865.214 | FY83: 1314316.289 | FZ83: 1324256.173 | GA83: 1338202.626 | GB83: 1361273.992 | GC83: 1373376.834 | GD83: 1391703.629 | GE83: 1374912.877 | GF83: 1384104.706 | GG83: 1384592.579 | GH83: 1378962.469 | GI83: 1391796.342 | GJ83: 1407161.119 | GK83: 1409424.536 | GL83: =+GL19 -> 1422108.243 | GM83: 1428442.927 | GN83: 1452843.443 | GO83: 1456471.304 | GP83: 1471825.83 | GQ83: 1454297.519 | GR83: 1479574.375 | GS83: 1474774.567 | GT83: 1492907.584 | GU83: 1490027.045 | GV83: 1506037.333 | GW83: 1501646.728 | GX83: 1514255.461 | GY83: 1506282.77 | GZ83: 1522168.601 | HA83: 1524685.9 | HB83: 1551218.238 | HC83: 1550814.272 | HD83: 1557435.288 | HE83: 1548197.219 | HF83: 1556572.355 | HG83: 1567807.583 | HH83: 1576174.222 | HI83: 1579468.125 | HJ83: 1599507.693 | HK83: 1593649.34 | HL83: 1615857.603 | HM83: 1621878.009 | HN83: 1632352.921 | HO83: 1629715.058 | HP83: 1647981.72 | HQ83: 1643051.053 | HR83: 1666431.065 | HS83: 1668646.694 | HT83: 1672139.446 | HU83: 1684681.958 | HV83: 1693487.727 | HW83: 1703897.901 | HX83: 1738248.483 | HY83: 1745852.927 | HZ83: 1762694.288 | IA83: 1772363.132 | IB83: 1786267.682 | IC83: 1796902.351 | ID83: 1810445.95 | IE83: =+IE19 -> 1821198.437 | IF83: 1838825.3 | IG83: =+IG19 -> 1945053 | IH83: 1968329 | II83: 1961570 | IJ83: 1993640 | IK83: 2007674 | IL83: 2046539 | IM83: 2051482
A84: Erlend skuldabréf | B84: =+B39 -> 592 | C84: 942 | D84: 885 | E84: 890 | F84: 904 | G84: 954 | H84: 1024 | I84: 1113 | J84: 1121 | K84: 1098 | L84: 1232 | M84: 1417 | N84: 1174 | O84: 1224 | P84: 1374 | Q84: 1384 | R84: 1434 | S84: 2138 | T84: 2084 | U84: 1932 | V84: 1859 | W84: 1893 | X84: 1960 | Y84: 2876 | Z84: 2823 | AA84: 2826 | AB84: 2857 | AC84: 3270 | AD84: 3213 | AE84: 2977 | AF84: 2909 | AG84: 2788 | AH84: 2623 | AI84: 3123 | AJ84: 2730 | AK84: 3814 | AL84: 3477 | AM84: 3543 | AN84: 3494 | AO84: 3468 | AP84: 3548 | AQ84: 3560 | AR84: 3597 | AS84: 3702 | AT84: 3706 | AU84: 2677 | AV84: 2545 | AW84: 2963 | AX84: 2792 | AY84: 2753 | AZ84: 3214 | BA84: 3329 | BB84: 3557 | BC84: 3451 | BD84: 3380 | BE84: 2985 | BF84: 3016 | BG84: 3087 | BH84: 3189 | BI84: 3337 | BJ84: 3507 | BK84: 3244 | BL84: 3293 | BM84: 3171 | BN84: =+BN39 -> 3251 | BO84: 3261 | BP84: 3457 | BQ84: 3389 | BR84: 3386 | BS84: 3572 | BT84: 3332.748271 | BU84: 2586.919078 | BV84: 2879.080395 | BW84: 2831.30857 | BX84: 2954.785313 | BY84: 2896.985944 | BZ84: 2985.636817 | CA84: 3135.044918 | CB84: 3131.032293 | CC84: 3098.95855 | CD84: 3747.112425 | CE84: 3824.421435 | CF84: 3903.615658 | CG84: 4294.468558 | CH84: 4759.88045 | CI84: 4464.261747 | CJ84: 5306.601371 | CK84: 5438.925514 | CL84: 5716.619937 | CM84: 5941.420775 | CN84: 5303.405999 | CO84: 5157.640569 | CP84: 5853.970807 | CQ84: 5844.812952 | CR84: 5664.371612 | CS84: 6775.560404 | CT84: 6211.13746 | CU84: 6514.063716 | CV84: 7705.906181 | CW84: 7912.412606 | CX84: 8487.905653 | CY84: 9819.759895 | CZ84: 10045.38899 | DA84: 10311.61634 | DB84: 10803.99665 | DC84: 11128.80877 | DD84: 11946.86672 | DE84: 11135.59443 | DF84: 13629.7608 | DG84: 14718.16052 | DH84: 16107.18415 | DI84: 15905.7702 | DJ84: 16474.72549 | DK84: 18394.22041 | DL84: 18042.55956 | DM84: 18187.78549 | DN84: 17572.07753 | DO84: 17556.55592 | DP84: 19991.78401 | DQ84: 20821.79898 | DR84: 21971.85135 | DS84: 21840.77796 | DT84: 21601.05784 | DU84: 22184.48778 | DV84: 22195.90047 | DW84: 22353.56818 | DX84: 22844.74875 | DY84: 23868.38022 | DZ84: =+DZ39 -> 24508.29599 | EA84: 25099.16309 | EB84: 24341.14589 | EC84: 24486.48853 | ED84: 27130.60991 | EE84: 27799.54306 | EF84: 30754.64118 | EG84: 31660.67495 | EH84: 32288.04791 | EI84: 33272.21399 | EJ84: 33945.50486 | EK84: 32510.89306 | EL84: 37660.36005 | EM84: 33594.83113 | EN84: 34784.09251 | EO84: 28325.98264 | EP84: 30666.80677 | EQ84: 31120.96526 | ER84: 31617.85191 | ES84: 35891.84643 | ET84: 35843.76963 | EU84: 36541.18202 | EV84: 36607.93985 | EW84: 32581.7061 | EX84: 31537.68788 | EY84: 30868.1182 | EZ84: 30690.78905 | FA84: 23286.5772 | FB84: 22318.24431 | FC84: 21620.23505 | FD84: 20177.00204 | FE84: 19568.67131 | FF84: 18496.78104 | FG84: 17332.97772 | FH84: 17843.50049 | FI84: 18018.07771 | FJ84: 17574.86205 | FK84: 16822.89498 | FL84: 15907.75917 | FM84: 14700.62885 | FN84: 14365.41848 | FO84: 12560.0744 | FP84: 12126.92668 | FQ84: 12058.95177 | FR84: 12448.85007 | FS84: 11310.92905 | FT84: 10930.94743 | FU84: 8742.269849 | FV84: 8990.942509 | FW84: 9778.302502 | FX84: 9660.939186 | FY84: 9136.932873 | FZ84: 9178.981755 | GA84: 9021.108818 | GB84: 8643.451939 | GC84: 8716.472623 | GD84: 8312.27582 | GE84: 6504.349754 | GF84: 5970.113657 | GG84: 5857.340577 | GH84: 6281.346545 | GI84: 6183.477667 | GJ84: 5934.767023 | GK84: 6037.126247 | GL84: =+GL39 -> 6026.356113 | GM84: 5686.236872 | GN84: 6234.775409 | GO84: 5659.350294 | GP84: 5864.11328 | GQ84: 5938.036834 | GR84: 5752.650277 | GS84: 5554.516954 | GT84: 5677.693724 | GU84: 5661.521595 | GV84: 4650.255349 | GW84: 4244.633332 | GX84: 4243.67461 | GY84: 4130.547186 | GZ84: 4134.387362 | HA84: 4100.578632 | HB84: 4054.55262 | HC84: 3543.88712 | HD84: 3387.27815 | HE84: 3224.274423 | HF84: 2083.43727 | HG84: 2920.5853 | HH84: 2922.533249 | HI84: 3268.804954 | HJ84: 3068.273752 | HK84: 3086.035465 | HL84: 2423.279214 | HM84: 2526.900165 | HN84: 2552.874172 | HO84: 2922.026601 | HP84: 2789.345169 | HQ84: 2621.268929 | HR84: 2569.861169 | HS84: 2085.822005 | HT84: 2442.798057 | HU84: 1857.301934 | HV84: 1861.623493 | HW84: 1849.728869 | HX84: 1810.188713 | HY84: 1853.872351 | HZ84: 1586.275589 | IA84: 1579.86065 | IB84: 1545.372518 | IC84: 1217.943899 | ID84: 1240.799856 | IE84: =+IE39 -> 1248.780047 | IF84: 1284.607387 | IG84: =+IG39 -> 1204 | IH84: 1222 | II84: 1457 | IJ84: 1494 | IK84: 1465 | IL84: 1438 | IM84: 1502
A85: Innlendir blandaðir sjóðir | B85: =+B28+B29 -> 0 | C85: 0 | D85: 0 | E85: 0 | F85: 0 | G85: 0 | H85: 0 | I85: 0 | J85: 0 | K85: 0 | L85: 0 | M85: 0 | N85: 0 | O85: 0 | P85: 0 | Q85: 0 | R85: 0 | S85: 0 | T85: 0 | U85: 0 | V85: 0 | W85: 0 | X85: 0 | Y85: 0 | Z85: 0 | AA85: 0 | AB85: 0 | AC85: 0 | AD85: 0 | AE85: 0 | AF85: 0 | AG85: 0 | AH85: 0 | AI85: 0 | AJ85: 0 | AK85: 0 | AL85: 0 | AM85: 0 | AN85: 0 | AO85: 0 | AP85: 0 | AQ85: 0 | AR85: 0 | AS85: 0 | AT85: 0 | AU85: 0 | AV85: 0 | AW85: 0 | AX85: 0 | AY85: 0 | AZ85: 0 | BA85: 0 | BB85: 0 | BC85: 0 | BD85: 0 | BE85: 0 | BF85: 0 | BG85: 0 | BH85: 0 | BI85: 0 | BJ85: 0 | BK85: 0 | BL85: 0 | BM85: 0 | BN85: =+BN28+BN29 -> 0 | BO85: 0 | BP85: 0 | BQ85: 0 | BR85: 0 | BS85: 0 | BT85: 0 | BU85: 0 | BV85: 0 | BW85: 0 | BX85: 0 | BY85: 0 | BZ85: 0 | CA85: 0 | CB85: 0 | CC85: 0 | CD85: 0 | CE85: 0 | CF85: 0 | CG85: 0 | CH85: 0 | CI85: 0 | CJ85: 0 | CK85: 0 | CL85: 0 | CM85: 0 | CN85: 0 | CO85: 0 | CP85: 0 | CQ85: 0 | CR85: 0 | CS85: 0 | CT85: 0 | CU85: 0 | CV85: 0 | CW85: 0 | CX85: 0 | CY85: 0 | CZ85: 0 | DA85: 0 | DB85: 0 | DC85: 0 | DD85: 0 | DE85: 0 | DF85: 0 | DG85: 0 | DH85: 0 | DI85: 0 | DJ85: 0 | DK85: 0 | DL85: 0 | DM85: 0 | DN85: 0 | DO85: 0 | DP85: 0 | DQ85: 0 | DR85: 0 | DS85: 0 | DT85: 0 | DU85: 0 | DV85: 0 | DW85: 0 | DX85: 0 | DY85: 0 | DZ85: =+DZ28+DZ29 -> 0 | EA85: 0 | EB85: 0 | EC85: 0 | ED85: 0 | EE85: 0 | EF85: 0 | EG85: 0 | EH85: 0 | EI85: 0 | EJ85: 0 | EK85: 0 | EL85: 0 | EM85: 0 | EN85: 0 | EO85: 114193.9205 | EP85: 111614.2108 | EQ85: 101904.713 | ER85: 102753.0968 | ES85: 99536.38683 | ET85: 102481.5828 | EU85: 97985.32737 | EV85: 96839.18752 | EW85: 96751.34329 | EX85: 94210.06398 | EY85: 95451.94581 | EZ85: 93384.13954 | FA85: 84419.81707 | FB85: 84511.4176 | FC85: 84970.34838 | FD85: 84636.34417 | FE85: 84687.56847 | FF85: 85912.38658 | FG85: 86076.4604 | FH85: 89341.00837 | FI85: 92173.99198 | FJ85: 93594.4687 | FK85: 93261.25127 | FL85: 95878.03738 | FM85: 95146.33676 | FN85: 96212.8462 | FO85: 96795.31137 | FP85: 96198.10639 | FQ85: 97117.20933 | FR85: 96297.9616 | FS85: 97447.92223 | FT85: 94421.87007 | FU85: 95258.81411 | FV85: 94711.29462 | FW85: 98498.47933 | FX85: 100051.8885 | FY85: 103699.8684 | FZ85: 107029.478 | GA85: 108914.7686 | GB85: 108632.2524 | GC85: 110666.5948 | GD85: 108895.7837 | GE85: 108923.5195 | GF85: 109349.9976 | GG85: 111530.8402 | GH85: 145947.7511 | GI85: 148054.9523 | GJ85: 148201.3524 | GK85: 145032.3121 | GL85: =+GL28+GL29 -> 150127.4561 | GM85: 150601.9688 | GN85: 150777.3474 | GO85: 153315.6169 | GP85: 154829.2747 | GQ85: 150914.7477 | GR85: 154313.0054 | GS85: 155122.9689 | GT85: 156465.7834 | GU85: 160064.2681 | GV85: 163162.562 | GW85: 168804.2627 | GX85: 169740.8407 | GY85: 167890.8302 | GZ85: 168565.7009 | HA85: 169061.1554 | HB85: 160701.6216 | HC85: 164913.4226 | HD85: 165515.4475 | HE85: 165540.0721 | HF85: 164465.004 | HG85: 164139.7812 | HH85: 164468.0946 | HI85: 166961.5205 | HJ85: 169708.7887 | HK85: 168180.242 | HL85: 170481.2035 | HM85: 170629.6436 | HN85: 172311.0519 | HO85: 173332.7835 | HP85: 176629.2355 | HQ85: 180885.25 | HR85: 184946.6194 | HS85: 193738.952 | HT85: 191374.7449 | HU85: 269167.7746 | HV85: 262402.7005 | HW85: 266527.2654 | HX85: 262004.2568 | HY85: 257849.3336 | HZ85: 252554.9221 | IA85: 250312.0896 | IB85: 248119.8461 | IC85: 256060.7759 | ID85: 253456.7194 | IE85: =+IE28+IE29 -> 250822.5194 | IF85: 251314.9146 | IG85: =+IG28+IG29 -> 251436 | IH85: 250713 | II85: 248795 | IJ85: 245930 | IK85: 249346 | IL85: 234244 | IM85: 227055
A86: Erlendir blandaðir sjóðir | B86: =+B45+B46+B51 -> 2600 | C86: 3180 | D86: 2752 | E86: 2736 | F86: 2890 | G86: 3377 | H86: 3816 | I86: 3635 | J86: 3750 | K86: 4151 | L86: 4177 | M86: 17055 | N86: 17290 | O86: 18595 | P86: 21632 | Q86: 22638 | R86: 19976 | S86: 20870 | T86: 19784 | U86: 19060 | V86: 19285 | W86: 20665 | X86: 22704 | Y86: 25721 | Z86: 27366 | AA86: 28215 | AB86: 31006 | AC86: 31415 | AD86: 32494 | AE86: 35754 | AF86: 36241 | AG86: 38425 | AH86: 39723 | AI86: 41646 | AJ86: 46602 | AK86: 52746 | AL86: 56311 | AM86: 61682 | AN86: 64761 | AO86: 65217 | AP86: 64464 | AQ86: 68867 | AR86: 69614 | AS86: 75362 | AT86: 71924 | AU86: 74962 | AV86: 72213 | AW86: 71366 | AX86: 75003 | AY86: 69253 | AZ86: 66523 | BA86: 74146 | BB86: 78567 | BC86: 79130 | BD86: 76580 | BE86: 76880 | BF86: 69668 | BG86: 75827 | BH86: 81553 | BI86: 78033 | BJ86: 77185 | BK86: 77464 | BL86: 85012 | BM86: 80321 | BN86: =+BN45+BN46+BN51 -> 79406 | BO86: 71889 | BP86: 71142 | BQ86: 74058 | BR86: 66013 | BS86: 73038 | BT86: 77022.29998 | BU86: 67832.61304 | BV86: 65453.92232 | BW86: 64861.74574 | BX86: 64470.62264 | BY86: 68375.75824 | BZ86: 71478.73655 | CA86: 79900.55735 | CB86: 85144.33577 | CC86: 92247.14593 | CD86: 92509.00947 | CE86: 100491.6265 | CF86: 106602.489 | CG86: 112011.3557 | CH86: 118088.6238 | CI86: 126091.1635 | CJ86: 133191.8092 | CK86: 136660.1797 | CL86: 138011.2037 | CM86: 143317.2213 | CN86: 146176.5131 | CO86: 150755.7693 | CP86: 155690.0362 | CQ86: 160042.1315 | CR86: 166191.5237 | CS86: 172360.3467 | CT86: 176959.675 | CU86: 182302.2255 | CV86: 183523.4415 | CW86: 191600.6376 | CX86: 200366.3802 | CY86: 204638.8223 | CZ86: 210802.5089 | DA86: 210142.5118 | DB86: 214571.4684 | DC86: 211218.9761 | DD86: 228377.8333 | DE86: 249824.5808 | DF86: 253505.0358 | DG86: 270276.9087 | DH86: 302114.0068 | DI86: 327142.6064 | DJ86: 306530.6717 | DK86: 324089.6355 | DL86: 314502.9749 | DM86: 306200.679 | DN86: 312038.0216 | DO86: 316048.347 | DP86: 324921.9085 | DQ86: 361747.6451 | DR86: 349355.1861 | DS86: 341948.6187 | DT86: 345194.4731 | DU86: 354882.7224 | DV86: 351601.8235 | DW86: 352070.3193 | DX86: 345701.5504 | DY86: 359917.1119 | DZ86: =+DZ45+DZ46+DZ51 -> 364783.2491 | EA86: 368423.1689 | EB86: 362499.1452 | EC86: 364365.8435 | ED86: 347635.0116 | EE86: 354161.9702 | EF86: 405049.2589 | EG86: 411544.8013 | EH86: 417984.4943 | EI86: 407192.6093 | EJ86: 379578.9828 | EK86: 381185.5977 | EL86: 392100.9626 | EM86: 370447.3032 | EN86: 408032.6501 | EO86: 366705.2937 | EP86: 324142.1934 | EQ86: 296653.1829 | ER86: 332581.665 | ES86: 363931.4047 | ET86: 374200.7504 | EU86: 381081.4629 | EV86: 395675.4659 | EW86: 394033.1374 | EX86: 399806.6619 | EY86: 398052.8358 | EZ86: 401153.7783 | FA86: 420879.5407 | FB86: 418875.7665 | FC86: 422085.5953 | FD86: 442338.8442 | FE86: 443140.1488 | FF86: 417122.19 | FG86: 403713.7693 | FH86: 409468.6884 | FI86: 401631.9558 | FJ86: 405048.1254 | FK86: 414368.3642 | FL86: 389303.0149 | FM86: 378233.0074 | FN86: 384839.6478 | FO86: 391138.3113 | FP86: 388887.5653 | FQ86: 392421.1055 | FR86: 400927.4765 | FS86: 401591.7603 | FT86: 397172.6101 | FU86: 372777.139 | FV86: 361301.2208 | FW86: 371832.9651 | FX86: 377485.6198 | FY86: 381069.9692 | FZ86: 399385.0219 | GA86: 417710.7261 | GB86: 422285.7226 | GC86: 417739.1432 | GD86: 405996.6564 | GE86: 405046.401 | GF86: 395558.0125 | GG86: 409436.097 | GH86: 423805.2759 | GI86: 433354.6375 | GJ86: 435582.0943 | GK86: 448485.1193 | GL86: =+GL45+GL46+GL51 -> 459285.912 | GM86: 453817.3277 | GN86: 449923.273 | GO86: 432358.7252 | GP86: 456849.7692 | GQ86: 452227.5696 | GR86: 456431.125 | GS86: 452466.2672 | GT86: 471680.0217 | GU86: 483923.0432 | GV86: 489886.7604 | GW86: 482522.0121 | GX86: 472927.5016 | GY86: 476133.432 | GZ86: 477297.2673 | HA86: 477010.5516 | HB86: 488747.9291 | HC86: 498029.5467 | HD86: 504660.5245 | HE86: 518900.2802 | HF86: 530691.7317 | HG86: 535632.2971 | HH86: 550942.0818 | HI86: 558241.9805 | HJ86: 577172.9841 | HK86: 591679.7388 | HL86: 598161.7269 | HM86: 586413.8851 | HN86: 605754.2429 | HO86: 584758.4828 | HP86: 609336.9464 | HQ86: 567483.3771 | HR86: 547756.1236 | HS86: 582715.5712 | HT86: 599079.0384 | HU86: 594762.6359 | HV86: 566892.9252 | HW86: 572044.8959 | HX86: 583367.8145 | HY86: 613340.0212 | HZ86: 622891.3749 | IA86: 603992.3903 | IB86: 612461.606 | IC86: 602185.4371 | ID86: 611435.1313 | IE86: =+IE45+IE46+IE51 -> 598867.8551 | IF86: 607979.0698 | IG86: =+IG45+IG46+IG51 -> 643090 | IH86: 681647 | II86: 650345 | IJ86: 702072 | IK86: 673592 | IL86: 653785 | IM86: 685026
A93: Heimild:
A94: Seðlabanki Íslands / Central Bank of Iceland | ID94: Birtingardagur / Date of publication: 2/11/2016 | IP94: Innlán, afleiðusamningar og aðrar eignir | IQ94: a
A95: Gagnasöfnun og upplýsingavinnsla SÍ / Statistics | IP95: Innlend hlutabréf | IQ95: b
A98: Fyrirvari
A99: Landssamtök lífeyrissjóða hafa skipað vinnuhóp sem hefur unnið úr ýmsum birtum upplýsingum eftir bestu getu og þekkingu
A100: en árétta ber að samtökin taka ekki ábyrgð á réttmæti gagnanna né villum sem kunna að koma upp við vinnslu þeirra.

Sheet Gögn M3&M5
A1: Fara á efnisyfirlit
A2: Skoða Mynd 3 Árleg þróun hreinna eigna lífeyrisjóða
A3: Skoða Mynd 5 Eignasamsetning lífeyrisjóða frá 1997
A6: Ár | B6: Innlán, afleiðusamningar og aðrar eignir | C6: Innlend hlutabréf | D6: Erlend hlutabréf | E6: Innlend skuldabréf | F6: Erlend skuldabréf | G6: Innlendir blandaðir sjóðir | H6: Erlendir blandaðir sjóðir | I6: Samtals | J6: Innlán, afleiðusamningar og aðrar eignir | K6: Innlend hlutabréf | L6: Erlend hlutabréf | M6: Innlend skuldabréf | N6: Erlend skuldabréf | O6: Innlendir blandaðir sjóðir | P6: Erlendir blandaðir sjóðir | Q6: Samtals
A7: 1997-12-31 | B7: =HLOOKUP(A7,'Gögn M2&M4'!$B$79:$IM$86,2,FALSE) -> 12443 | C7: =HLOOKUP(A7,'Gögn M2&M4'!$B$79:$IM$86,3,FALSE) -> 27024 | D7: =HLOOKUP(A7,'Gögn M2&M4'!$B$79:$IM$86,4,FALSE) -> 7126 | E7: =HLOOKUP(A7,'Gögn M2&M4'!$B$79:$IM$86,5,FALSE) -> 289371 | F7: =HLOOKUP(A7,'Gögn M2&M4'!$B$79:$IM$86,6,FALSE) -> 1417 | G7: =HLOOKUP(A7,'Gögn M2&M4'!$B$79:$IM$86,7,FALSE) -> 0 | H7: =HLOOKUP(A7,'Gögn M2&M4'!$B$79:$IM$86,8,FALSE) -> 17055 | I7: =SUM(B7:H7) -> 354436 | J7: =+B7/$I$7 -> 0.03510647903 | K7: =+C7/$I$7 -> 0.07624507669 | L7: =+D7/$I$7 -> 0.02010518119 | M7: 0.8164266609 | N7: 0.00399790089 | O7: 0 | P7: 0.04811870126 | Q7: =SUM(J7:P7) -> 1
A8: 1998-12-31 | B8: =HLOOKUP(A8,'Gögn M2&M4'!$B$79:$IM$86,2,FALSE) -> 14610 | C8: =HLOOKUP(A8,'Gögn M2&M4'!$B$79:$IM$86,3,FALSE) -> 52559 | D8: =HLOOKUP(A8,'Gögn M2&M4'!$B$79:$IM$86,4,FALSE) -> 21054 | E8: =HLOOKUP(A8,'Gögn M2&M4'!$B$79:$IM$86,5,FALSE) -> 291821 | F8: =HLOOKUP(A8,'Gögn M2&M4'!$B$79:$IM$86,6,FALSE) -> 2876 | G8: =HLOOKUP(A8,'Gögn M2&M4'!$B$79:$IM$86,7,FALSE) -> 0 | H8: =HLOOKUP(A8,'Gögn M2&M4'!$B$79:$IM$86,8,FALSE) -> 25721 | I8: =SUM(B8:H8) -> 408641 | J8: =+B8/$I$8 -> 0.03575265331 | K8: =+C8/$I$8 -> 0.1286190079 | L8: =+D8/$I$8 -> 0.05152199608 | M8: 0.7141256017 | N8: 0.007037962417 | O8: 0 | P8: 0.06294277862 | Q8: =SUM(J8:P8) -> 1
A9: 1999-12-31 | B9: =HLOOKUP(A9,'Gögn M2&M4'!$B$79:$IM$86,2,FALSE) -> 16471 | C9: =HLOOKUP(A9,'Gögn M2&M4'!$B$79:$IM$86,3,FALSE) -> 90890 | D9: =HLOOKUP(A9,'Gögn M2&M4'!$B$79:$IM$86,4,FALSE) -> 41515 | E9: =HLOOKUP(A9,'Gögn M2&M4'!$B$79:$IM$86,5,FALSE) -> 315291 | F9: =HLOOKUP(A9,'Gögn M2&M4'!$B$79:$IM$86,6,FALSE) -> 3814 | G9: =HLOOKUP(A9,'Gögn M2&M4'!$B$79:$IM$86,7,FALSE) -> 0 | H9: =HLOOKUP(A9,'Gögn M2&M4'!$B$79:$IM$86,8,FALSE) -> 52746 | I9: 520727 | J9: =+B9/$I$9 -> 0.03163077774 | K9: =+C9/$I$9 -> 0.174544435 | L9: 0.07972507667 | M9: 0.6054823353 | N9: 0.007324375344 | O9: 0 | P9: 0.101293 | Q9: 1
A10: 2000-12-31 | B10: =HLOOKUP(A10,'Gögn M2&M4'!$B$79:$IM$86,2,FALSE) -> 16663 | C10: =HLOOKUP(A10,'Gögn M2&M4'!$B$79:$IM$86,3,FALSE) -> 93149 | D10: =HLOOKUP(A10,'Gögn M2&M4'!$B$79:$IM$86,4,FALSE) -> 53662 | E10: =HLOOKUP(A10,'Gögn M2&M4'!$B$79:$IM$86,5,FALSE) -> 331698 | F10: =HLOOKUP(A10,'Gögn M2&M4'!$B$79:$IM$86,6,FALSE) -> 2963 | G10: =HLOOKUP(A10,'Gögn M2&M4'!$B$79:$IM$86,7,FALSE) -> 0 | H10: =HLOOKUP(A10,'Gögn M2&M4'!$B$79:$IM$86,8,FALSE) -> 71366 | I10: 569501 | J10: =+B10/$I$10 -> 0.02925894775 | K10: =+C10/$I$10 -> 0.1635624872 | L10: 0.09422634903 | M10: 0.5824362029 | N10: 0.005202800346 | O10: 0 | P10: 0.1253132128 | Q10: 1
A11: 2001-12-31 | B11: =HLOOKUP(A11,'Gögn M2&M4'!$B$79:$IM$86,2,FALSE) -> 19036 | C11: =HLOOKUP(A11,'Gögn M2&M4'!$B$79:$IM$86,3,FALSE) -> 106926 | D11: =HLOOKUP(A11,'Gögn M2&M4'!$B$79:$IM$86,4,FALSE) -> 53323 | E11: =HLOOKUP(A11,'Gögn M2&M4'!$B$79:$IM$86,5,FALSE) -> 387462 | F11: =HLOOKUP(A11,'Gögn M2&M4'!$B$79:$IM$86,6,FALSE) -> 3337 | G11: =HLOOKUP(A11,'Gögn M2&M4'!$B$79:$IM$86,7,FALSE) -> 0 | H11: =HLOOKUP(A11,'Gögn M2&M4'!$B$79:$IM$86,8,FALSE) -> 78033 | I11: 648117 | J11: =+B11/$I$11 -> 0.02937124007 | K11: =+C11/$I$11 -> 0.1649794713 | L11: 0.08227372527 | M11: 0.5978272442 | N11: 0.00514876172 | O11: 0 | P11: 0.1203995575 | Q11: 1
A12: 2002-12-31 | B12: =HLOOKUP(A12,'Gögn M2&M4'!$B$79:$IM$86,2,FALSE) -> 21395.66705 | C12: =HLOOKUP(A12,'Gögn M2&M4'!$B$79:$IM$86,3,FALSE) -> 129417.4687 | D12: =HLOOKUP(A12,'Gögn M2&M4'!$B$79:$IM$86,4,FALSE) -> 32502.19341 | E12: =HLOOKUP(A12,'Gögn M2&M4'!$B$79:$IM$86,5,FALSE) -> 425195.5498 | F12: =HLOOKUP(A12,'Gögn M2&M4'!$B$79:$IM$86,6,FALSE) -> 2586.919078 | G12: =HLOOKUP(A12,'Gögn M2&M4'!$B$79:$IM$86,7,FALSE) -> 0 | H12: =HLOOKUP(A12,'Gögn M2&M4'!$B$79:$IM$86,8,FALSE) -> 67832.61304 | I12: 678930.4111 | J12: =+B12/$I$12 -> 0.03151378506 | K12: =+C12/$I$12 -> 0.1906196372 | L12: 0.04787264332 | M12: 0.6262726531 | N12: 0.003810286055 | O12: 0 | P12: 0.0999109952 | Q12: 1
A13: 2003-12-31 | B13: =HLOOKUP(A13,'Gögn M2&M4'!$B$79:$IM$86,2,FALSE) -> 35323.19062 | C13: =HLOOKUP(A13,'Gögn M2&M4'!$B$79:$IM$86,3,FALSE) -> 166748.898 | D13: =HLOOKUP(A13,'Gögn M2&M4'!$B$79:$IM$86,4,FALSE) -> 43617.62422 | E13: =HLOOKUP(A13,'Gögn M2&M4'!$B$79:$IM$86,5,FALSE) -> 461999.2305 | F13: =HLOOKUP(A13,'Gögn M2&M4'!$B$79:$IM$86,6,FALSE) -> 4294.468558 | G13: =HLOOKUP(A13,'Gögn M2&M4'!$B$79:$IM$86,7,FALSE) -> 0 | H13: =HLOOKUP(A13,'Gögn M2&M4'!$B$79:$IM$86,8,FALSE) -> 112011.3557 | I13: 823994.7676 | J13: =+B13/$I$13 -> 0.042868222 | K13: =+C13/$I$13 -> 0.2023664525 | L13: 0.05293434611 | M13: 0.5606822381 | N13: 0.005211766782 | O13: 0 | P13: 0.1359369745 | Q13: 1
A14: 2004-12-31 | B14: =HLOOKUP(A14,'Gögn M2&M4'!$B$79:$IM$86,2,FALSE) -> 36206.83125 | C14: =HLOOKUP(A14,'Gögn M2&M4'!$B$79:$IM$86,3,FALSE) -> 215199.6069 | D14: =HLOOKUP(A14,'Gögn M2&M4'!$B$79:$IM$86,4,FALSE) -> 38441.70691 | E14: =HLOOKUP(A14,'Gögn M2&M4'!$B$79:$IM$86,5,FALSE) -> 517550.7252 | F14: =HLOOKUP(A14,'Gögn M2&M4'!$B$79:$IM$86,6,FALSE) -> 6775.560404 | G14: =HLOOKUP(A14,'Gögn M2&M4'!$B$79:$IM$86,7,FALSE) -> 0 | H14: =HLOOKUP(A14,'Gögn M2&M4'!$B$79:$IM$86,8,FALSE) -> 172360.3467 | I14: 986534.7774 | J14: =+B14/$I$14 -> 0.03670101864 | K14: =+C14/$I$14 -> 0.2181368684 | L14: 0.03896639814 | M14: 0.52461478 | N14: 0.006868040093 | O14: 0 | P14: 0.1747128947 | Q14: 1
A15: 2005-12-31 | B15: =HLOOKUP(A15,'Gögn M2&M4'!$B$79:$IM$86,2,FALSE) -> 38713.74001 | C15: =HLOOKUP(A15,'Gögn M2&M4'!$B$79:$IM$86,3,FALSE) -> 297468.5322 | D15: =HLOOKUP(A15,'Gögn M2&M4'!$B$79:$IM$86,4,FALSE) -> 37395.4484 | E15: =HLOOKUP(A15,'Gögn M2&M4'!$B$79:$IM$86,5,FALSE) -> 584059.2657 | F15: =HLOOKUP(A15,'Gögn M2&M4'!$B$79:$IM$86,6,FALSE) -> 11135.59443 | G15: =HLOOKUP(A15,'Gögn M2&M4'!$B$79:$IM$86,7,FALSE) -> 0 | H15: =HLOOKUP(A15,'Gögn M2&M4'!$B$79:$IM$86,8,FALSE) -> 249824.5808 | I15: 1218597.162 | J15: =+B15/$I$15 -> 0.03176910404 | K15: =+C15/$I$15 -> 0.2441073569 | L15: 0.03068729321 | M15: 0.479288221 | N15: 0.009138043962 | O15: 0 | P15: 0.2050099809 | Q15: 1
A16: 2006-12-31 | B16: =HLOOKUP(A16,'Gögn M2&M4'!$B$79:$IM$86,2,FALSE) -> 27769.29639 | C16: =HLOOKUP(A16,'Gögn M2&M4'!$B$79:$IM$86,3,FALSE) -> 371066.1586 | D16: =HLOOKUP(A16,'Gögn M2&M4'!$B$79:$IM$86,4,FALSE) -> 60477.76544 | E16: =HLOOKUP(A16,'Gögn M2&M4'!$B$79:$IM$86,5,FALSE) -> 661272.318 | F16: =HLOOKUP(A16,'Gögn M2&M4'!$B$79:$IM$86,6,FALSE) -> 20821.79898 | G16: =HLOOKUP(A16,'Gögn M2&M4'!$B$79:$IM$86,7,FALSE) -> 0 | H16: =HLOOKUP(A16,'Gögn M2&M4'!$B$79:$IM$86,8,FALSE) -> 361747.6451 | I16: 1503154.982 | J16: =+B16/$I$16 -> 0.01847400748 | K16: =+C16/$I$16 -> 0.2468582168 | L16: 0.04023388549 | M16: 0.4399229126 | N16: 0.01385206397 | O16: 0 | P16: 0.2406589136 | Q16: 1
A17: 2007-12-31 | B17: =HLOOKUP(A17,'Gögn M2&M4'!$B$79:$IM$86,2,FALSE) -> 57667.66137 | C17: =HLOOKUP(A17,'Gögn M2&M4'!$B$79:$IM$86,3,FALSE) -> 397757.1729 | D17: =HLOOKUP(A17,'Gögn M2&M4'!$B$79:$IM$86,4,FALSE) -> 69405.88404 | E17: =HLOOKUP(A17,'Gögn M2&M4'!$B$79:$IM$86,5,FALSE) -> 784522.7666 | F17: =HLOOKUP(A17,'Gögn M2&M4'!$B$79:$IM$86,6,FALSE) -> 24486.48853 | G17: =HLOOKUP(A17,'Gögn M2&M4'!$B$79:$IM$86,7,FALSE) -> 0 | H17: =HLOOKUP(A17,'Gögn M2&M4'!$B$79:$IM$86,8,FALSE) -> 364365.8435 | I17: 1698205.817 | J17: =+B17/$I$17 -> 0.03395799308 | K17: =+C17/$I$17 -> 0.2342220059 | L17: 0.04087012502 | M17: 0.4619715459 | N17: 0.01441903466 | O17: 0 | P17: 0.2145592954 | Q17: 1
A18: 2008-12-31 | B18: =HLOOKUP(A18,'Gögn M2&M4'!$B$79:$IM$86,2,FALSE) -> 188819.6613 | C18: =HLOOKUP(A18,'Gögn M2&M4'!$B$79:$IM$86,3,FALSE) -> 23896.72894 | D18: =HLOOKUP(A18,'Gögn M2&M4'!$B$79:$IM$86,4,FALSE) -> 66850.3343 | E18: =HLOOKUP(A18,'Gögn M2&M4'!$B$79:$IM$86,5,FALSE) -> 876517.692 | F18: =HLOOKUP(A18,'Gögn M2&M4'!$B$79:$IM$86,6,FALSE) -> 28325.98264 | G18: =HLOOKUP(A18,'Gögn M2&M4'!$B$79:$IM$86,7,FALSE) -> 114193.9205 | H18: =HLOOKUP(A18,'Gögn M2&M4'!$B$79:$IM$86,8,FALSE) -> 366705.2937 | I18: 1665309.613 | J18: =+B18/$I$18 -> 0.1133841177 | K18: =+C18/$I$18 -> 0.01434972137 | L18: 0.0401428862 | M18: 0.5263391774 | N18: 0.01700943921 | O18: 0.06857218598 | P18: 0.2202024721 | Q18: 1
A19: 2009-12-31 | B19: =HLOOKUP(A19,'Gögn M2&M4'!$B$79:$IM$86,2,FALSE) -> 181139.8216 | C19: =HLOOKUP(A19,'Gögn M2&M4'!$B$79:$IM$86,3,FALSE) -> 24212.71621 | D19: =HLOOKUP(A19,'Gögn M2&M4'!$B$79:$IM$86,4,FALSE) -> 85917.57086 | E19: =HLOOKUP(A19,'Gögn M2&M4'!$B$79:$IM$86,5,FALSE) -> 1029480.683 | F19: =HLOOKUP(A19,'Gögn M2&M4'!$B$79:$IM$86,6,FALSE) -> 23286.5772 | G19: =HLOOKUP(A19,'Gögn M2&M4'!$B$79:$IM$86,7,FALSE) -> 84419.81707 | H19: =HLOOKUP(A19,'Gögn M2&M4'!$B$79:$IM$86,8,FALSE) -> 420879.5407 | I19: 1849336.726 | J19: =+B19/$I$19 -> 0.0979485342 | K19: =+C19/$I$19 -> 0.01309264877 | L19: 0.04645858682 | M19: 0.5566756275 | N19: 0.01259185354 | O19: 0.04564869981 | P19: 0.2275840493 | Q19: 1
A20: 2010-12-31 | B20: =HLOOKUP(A20,'Gögn M2&M4'!$B$79:$IM$86,2,FALSE) -> 178420.8861 | C20: =HLOOKUP(A20,'Gögn M2&M4'!$B$79:$IM$86,3,FALSE) -> 47777.62542 | D20: =HLOOKUP(A20,'Gögn M2&M4'!$B$79:$IM$86,4,FALSE) -> 78037.90148 | E20: =HLOOKUP(A20,'Gögn M2&M4'!$B$79:$IM$86,5,FALSE) -> 1196533.63 | F20: =HLOOKUP(A20,'Gögn M2&M4'!$B$79:$IM$86,6,FALSE) -> 14700.62885 | G20: =HLOOKUP(A20,'Gögn M2&M4'!$B$79:$IM$86,7,FALSE) -> 95146.33676 | H20: =HLOOKUP(A20,'Gögn M2&M4'!$B$79:$IM$86,8,FALSE) -> 378233.0074 | I20: 1988850.016 | J20: =+B20/$I$20 -> 0.08971057884 | K20: =+C20/$I$20 -> 0.0240227393 | L20: 0.03923770062 | M20: 0.6016208463 | N20: 0.007391522103 | O20: 0.04783987531 | P20: 0.1901767375 | Q20: 1
A21: 2011-12-31 | B21: =HLOOKUP(A21,'Gögn M2&M4'!$B$79:$IM$86,2,FALSE) -> 175331.8618 | C21: =HLOOKUP(A21,'Gögn M2&M4'!$B$79:$IM$86,3,FALSE) -> 106985.9642 | D21: =HLOOKUP(A21,'Gögn M2&M4'!$B$79:$IM$86,4,FALSE) -> 78603.89402 | E21: =HLOOKUP(A21,'Gögn M2&M4'!$B$79:$IM$86,5,FALSE) -> 1314316.289 | F21: =HLOOKUP(A21,'Gögn M2&M4'!$B$79:$IM$86,6,FALSE) -> 9136.932873 | G21: =HLOOKUP(A21,'Gögn M2&M4'!$B$79:$IM$86,7,FALSE) -> 103699.8684 | H21: =HLOOKUP(A21,'Gögn M2&M4'!$B$79:$IM$86,8,FALSE) -> 381069.9692 | I21: 2169144.779 | J21: =+B21/$I$21 -> 0.08082994898 | K21: =+C21/$I$21 -> 0.0493217259 | L21: 0.03623727414 | M21: 0.6059145066 | N21: 0.004212228229 | O21: 0.04780679896 | P21: 0.1756775171 | Q21: 1
A22: 2012-12-31 | B22: =HLOOKUP(A22,'Gögn M2&M4'!$B$79:$IM$86,2,FALSE) -> 187540.3736 | C22: =HLOOKUP(A22,'Gögn M2&M4'!$B$79:$IM$86,3,FALSE) -> 145910.3611 | D22: =HLOOKUP(A22,'Gögn M2&M4'!$B$79:$IM$86,4,FALSE) -> 96548.72957 | E22: =HLOOKUP(A22,'Gögn M2&M4'!$B$79:$IM$86,5,FALSE) -> 1409424.536 | F22: =HLOOKUP(A22,'Gögn M2&M4'!$B$79:$IM$86,6,FALSE) -> 6037.126247 | G22: =HLOOKUP(A22,'Gögn M2&M4'!$B$79:$IM$86,7,FALSE) -> 145032.3121 | H22: =HLOOKUP(A22,'Gögn M2&M4'!$B$79:$IM$86,8,FALSE) -> 448485.1193 | I22: 2438978.558 | J22: =+B22/$I$22 -> 0.07689299806 | K22: =+C22/$I$22 -> 0.05982437221 | L22: 0.03958572299 | M22: 0.5778749188 | N22: 0.002475268274 | O22: 0.05946436538 | P22: 0.1838823543 | Q22: 1
A23: 2013-12-31 | B23: =HLOOKUP(A23,'Gögn M2&M4'!$B$79:$IM$86,2,FALSE) -> 185555.7077 | C23: =HLOOKUP(A23,'Gögn M2&M4'!$B$79:$IM$86,3,FALSE) -> 243783.4537 | D23: =HLOOKUP(A23,'Gögn M2&M4'!$B$79:$IM$86,4,FALSE) -> 109018.5429 | E23: =HLOOKUP(A23,'Gögn M2&M4'!$B$79:$IM$86,5,FALSE) -> 1501646.728 | F23: =HLOOKUP(A23,'Gögn M2&M4'!$B$79:$IM$86,6,FALSE) -> 4244.633332 | G23: =HLOOKUP(A23,'Gögn M2&M4'!$B$79:$IM$86,7,FALSE) -> 168804.2627 | H23: =HLOOKUP(A23,'Gögn M2&M4'!$B$79:$IM$86,8,FALSE) -> 482522.0121 | I23: 2695575.34 | J23: =+B23/$I$23 -> 0.06883714393 | K23: =+C23/$I$23 -> 0.09043837507 | L23: 0.04044351544 | M23: 0.5570783742 | N23: 0.001574666925 | O23: 0.06262272108 | P23: 0.1790052034 | Q23: 1
A24: 2014-12-31 | B24: =HLOOKUP(A24,'Gögn M2&M4'!$B$79:$IM$86,2,FALSE) -> 155533.9974 | C24: =HLOOKUP(A24,'Gögn M2&M4'!$B$79:$IM$86,3,FALSE) -> 344411.2784 | D24: =HLOOKUP(A24,'Gögn M2&M4'!$B$79:$IM$86,4,FALSE) -> 127185.9996 | E24: =HLOOKUP(A24,'Gögn M2&M4'!$B$79:$IM$86,5,FALSE) -> 1579468.125 | F24: =HLOOKUP(A24,'Gögn M2&M4'!$B$79:$IM$86,6,FALSE) -> 3268.804954 | G24: =HLOOKUP(A24,'Gögn M2&M4'!$B$79:$IM$86,7,FALSE) -> 166961.5205 | H24: =HLOOKUP(A24,'Gögn M2&M4'!$B$79:$IM$86,8,FALSE) -> 558241.9805 | I24: 2935071.707 | J24: =+B24/$I$24 -> 0.05299154942 | K24: =+C24/$I$24 -> 0.1173433949 | L24: 0.04333318307 | M24: 0.5381361286 | N24: 0.001113705313 | O24: 0.05688498858 | P24: 0.1901970501 | Q24: 1
A25: 2015-12-31 | B25: =HLOOKUP(A25,'Gögn M2&M4'!$B$79:$IM$86,2,FALSE) -> 180982.4485 | C25: =HLOOKUP(A25,'Gögn M2&M4'!$B$79:$IM$86,3,FALSE) -> 423098.7556 | D25: =HLOOKUP(A25,'Gögn M2&M4'!$B$79:$IM$86,4,FALSE) -> 129779.9664 | E25: =HLOOKUP(A25,'Gögn M2&M4'!$B$79:$IM$86,5,FALSE) -> 1684681.958 | F25: =HLOOKUP(A25,'Gögn M2&M4'!$B$79:$IM$86,6,FALSE) -> 1857.301934 | G25: =HLOOKUP(A25,'Gögn M2&M4'!$B$79:$IM$86,7,FALSE) -> 269167.7746 | H25: =HLOOKUP(A25,'Gögn M2&M4'!$B$79:$IM$86,8,FALSE) -> 594762.6359 | I25: 3284330.841 | J25: =+B25/$I$25 -> 0.05510481657 | K25: =+C25/$I$25 -> 0.1288234274 | L25: 0.03951488832 | M25: 0.5129452663 | N25: 0.0005655039107 | O25: 0.08195513414 | P25: 0.1810909634 | Q25: 1
A26: 2016-12-31 | B26: =HLOOKUP(A26,'Gögn M2&M4'!$B$79:$IM$86,2,FALSE) -> 160797 | C26: =HLOOKUP(A26,'Gögn M2&M4'!$B$79:$IM$86,3,FALSE) -> 416845 | D26: =HLOOKUP(A26,'Gögn M2&M4'!$B$79:$IM$86,4,FALSE) -> 101834 | E26: =HLOOKUP(A26,'Gögn M2&M4'!$B$79:$IM$86,5,FALSE) -> 1945053 | F26: =HLOOKUP(A26,'Gögn M2&M4'!$B$79:$IM$86,6,FALSE) -> 1204 | G26: =HLOOKUP(A26,'Gögn M2&M4'!$B$79:$IM$86,7,FALSE) -> 251436 | H26: =HLOOKUP(A26,'Gögn M2&M4'!$B$79:$IM$86,8,FALSE) -> 643090 | I26: 3520259 | J26: =+B26/$I$26 -> 0.04567760497 | K26: =+C26/$I$26 -> 0.1184131622 | L26: 0.02892798513 | M26: 0.55253122 | N26: 0.0003420202888 | O26: 0.07142542637 | P26: 0.182682581 | Q26: 1
A28: Heimild:
A29: Slóð heimildar | B29: =HYPERLINK("http://sedlabanki.is","http://sedlabanki.is") -> http://sedlabanki.is
A30: Einingar | B30: Milljónir króna
A32: Fyrirvari
A33: Landssamtök lífeyrissjóða hafa skipað vinnuhóp sem hefur unnið úr ýmsum birtum upplýsingum eftir bestu getu og þekkingu
A34: en árétta ber að samtökin taka ekki ábyrgð á réttmæti gagnanna né villum sem kunna að koma upp við vinnslu þeirra.

Sheet Gögn M6
A1: Fara á efnisyfirlit
A2: Skoða mynd
A5: Ár | B5: Heildar eignir kerfis sem % af VLF | C5: Heildar eignir lífeyrissjóða sem % af VLF | D5: Samtrygging sem % af VLF | E5: Séreign lífeyrissjóða sem % af VLF | G5: Verg Landsframleiðsla | H5: Heilareignir lsj. | I5: Samtrygging | J5: Séreign | K5: Vörsluaðilar aðrir en lsj. | L5: Heildareignir kerfis
A6: 1997 | C6: =H6/G6 -> 0.5699984033 | G6: 538.598 | H6: 307
A7: 1998 | C7: =H7/G7 -> 0.6778660034 | D7: =I7/G7 -> 0.6496353564 | E7: =J7/G7 -> 0.02823064775 | G7: 600.899 | H7: 407.3290036 | I7: 390.365236 | J7: 16.963768
A8: 1999 | C8: 0.8011711298 | D8: =I8/G8 -> 0.7547177167 | E8: =J8/G8 -> 0.04645341326 | G8: 646.053 | H8: 517.5990119 | I8: 487.587645 | J8: 30.011367
A9: 2000 | C9: 0.8048966704 | D9: 0.7551720875 | E9: 0.04972458322 | G9: 703.305 | H9: 566.0878528 | I9: 531.116305 | J9: 34.971548
A10: 2001 | B10: =L10/G10 -> 0.8193794996 | C10: 0.8124165396 | D10: 0.7584957751 | E10: 0.05392076514 | G10: 793.628 | H10: 644.7565135 | I10: 601.963485 | J10: 42.793029 | K10: 5.526 | L10: =H10+K10 -> 650.2825135
A11: 2002 | B11: 0.8158769856 | C11: 0.8051309752 | D11: 0.74598821 | E11: 0.05914276583 | G11: 843.255 | H11: 678.9307205 | I11: 629.058288 | J11: 49.872433 | K11: 9.061627 | L11: =H11+K11 -> 687.9923475
A12: 2003 | B12: 0.9689362803 | C12: 0.9502405836 | D12: 0.8731019415 | E12: 0.07713864206 | G12: 867.125 | H12: 823.9773661 | I12: 757.088521 | J12: 66.888845 | K12: 16.211506 | L12: 840.1888721
A13: 2004 | B13: 1.05535551 | C13: 1.025653157 | D13: 0.9404422484 | E13: 0.08521090907 | G13: 961.86 | H13: 986.5347461 | I13: 904.573781 | J13: 81.960965 | K13: 28.569505 | L13: 1015.104251
A14: 2005 | B14: 1.198933659 | C14: 1.160085217 | D14: 1.059824198 | E14: 0.1002610191 | G14: 1051.241 | H14: 1219.529144 | I14: 1114.13065 | J14: 105.398494 | K14: 40.839075 | L14: 1260.368219
A15: 2006 | B15: 1.299652815 | C15: 1.253084978 | D15: 1.134451997 | E15: 0.118632981 | G15: 1196.096 | H15: 1498.80993 | I15: 1356.913496 | J15: 141.896434 | K15: 55.699603 | L15: 1554.509533
A16: 2007 | B16: 1.297940737 | C16: 1.244239646 | D16: 1.123640016 | E16: 0.1205996296 | G16: 1364.052 | H16: 1697.207577 | I16: 1532.703411 | J16: 164.504166 | K16: 73.251081 | L16: 1770.458658
A17: 2008 | B17: 1.091190538 | C17: 1.028896243 | D17: 0.9266521732 | E17: 0.1022440696 | G17: 1553.02 | H17: 1597.896443 | I17: 1439.109358 | J17: 158.787085 | K17: 96.744287 | L17: 1694.64073
A18: 2009 | B18: 1.181998695 | C18: 1.108929569 | D18: 1.001808653 | E18: 0.1071209168 | G18: 1600.39 | H18: 1774.719793 | I18: 1603.28455 | J18: 171.435244 | K18: 116.939098 | L18: 1891.658891
A19: 2010 | B19: 1.249609776 | C19: 1.173564953 | D19: 1.056403772 | E19: 0.1171611811 | G19: 1627.108 | H19: 1909.516924 | I19: 1718.883029 | J19: 190.633895 | K19: 123.733139 | L19: 2033.250063
A20: 2011 | B20: 1.305490598 | C20: 1.22802209 | D20: 1.105603026 | E20: 0.1224190644 | G20: 1708.315 | H20: 2097.848557 | I20: 1888.718233 | J20: 209.130324 | K20: 132.340614 | L20: 2230.189171
A21: 2012 | B21: 1.421315526 | C21: 1.339693657 | D21: 1.20759337 | E21: 0.1321002867 | G21: 1787.684 | H21: 2394.948915 | I21: 2158.795346 | J21: 236.153569 | K21: 145.914109 | L21: 2540.863024
A22: 2013 | B22: 1.480956333 | C22: 1.400561292 | D22: 1.263817881 | E22: 0.136743411 | G22: 1899.68 | H22: 2660.618276 | I22: 2400.849553 | J22: 259.768723 | K22: 152.724851 | L22: 2813.343127
A23: 2014 | B23: 1.528649043 | C23: 1.44889043 | D23: 1.309478734 | E23: 0.1394116966 | G23: 2019.038 | H23: 2925.364837 | I23: 2643.887324 | J23: 281.477513 | K23: 161.03567 | L23: 3086.400507
A24: 2015 | B24: =L24/G24 -> 1.547084675 | C24: =H24/G24 -> 1.467370802 | D24: =I24/G24 -> 1.323508359 | E24: =J24/G24 -> 0.143862443 | G24: 2232.362 | H24: 3275.702819 | I24: 2954.549767 | J24: 321.153051 | K24: 177.95022 | L24: =H24+K24 -> 3453.653039
A25: 2016 | B25: 1.521132608 | C25: 1.442870582 | D25: 1.304150301 | E25: 0.1387202806 | G25: 2448.809 | H25: 3533.314467 | I25: 3193.614996 | J25: 339.6994715 | K25: 191.648753 | L25: 3724.96322
A27: Heimildir: | C27: http://www.fme.is/utgefid-efni/tolulegar-upplysingar/
C28: Vefsíða Hagstofunnar. Landsframleiðsla og Þjóðartekjur 1980-2016
C29: Við innleiðingu nýs staðals ESA2010 í september 2014 var talnaefni uppfært aftur til 1997 (á við um verga landsframleiðslu)
A31: Fyrirvari
A32: Landssamtök lífeyrissjóða hafa skipað vinnuhóp sem hefur unnið úr ýmsum birtum upplýsingum eftir bestu getu og þekkingu
A33: en árétta ber að samtökin taka ekki ábyrgð á réttmæti gagnanna né villum sem kunna að koma upp við vinnslu þeirra.

Sheet Gögn M7
A1: Fara á efnisyfirlit
A2: Skoða mynd
B5: Samtrygging og séreign lífeyrissjóða | I5: Samtrygging lífeyrissjóða | P5: Séreign lífeyrissjóða
A7: Ár | B7: Rekstar- kostnaður | C7: Bein fjárfestingar-gjöld | D7: Áætluð umsýsluþóknun | E7: Heildar eignir lífeyrissjóða - Samtrygging & séreign (án annarra vörsluaðila) | F7: Skrifstofu- og stjórnunarkostnaður sem % af heildareignum | G7: Skrifstofu- og stjórnunarkostnaður og fjárfestingargjöld sem % af heildareignum | H7: Skrifstofu- og stjórnunarkostnaður, fjárfestingargjöld og áætluð umsýsluþóknun sem % af heildareignum | I7: Rekstar- kostnaður | J7: Fjárfestingar-gjöld | K7: Áætluð umsýsluþóknun | L7: Heildar eignir - samtrygging | M7: Skrifstofu- og stjórnunarkostnaður sem % af heildareignum | N7: Skrifstofu- og stjórnunarkostnaður og fjárfestingargjöld sem % af heildareignum | O7: Skrifstofu- og stjórnunarkostnaður, fjárfestingargjöld og áætluð umsýsluþóknun sem % af heildareignum | P7: Rekstar- kostnaður | Q7: Fjárfestingar-gjöld | R7: Áætluð umsýsluþóknun | S7: Heildar eignir lífeyrissjóða séreign (án annarra vörsluaðila) | T7: Skrifstofu- og stjórnunarkostnaður sem % af heildareignum | U7: Skrifstofu- og stjórnunarkostnaður og fjárfestingargjöld sem % af heildareignum | V7: Skrifstofu- og stjórnunarkostnaður, fjárfestingargjöld og áætluð umsýsluþóknun sem % af heildareignum
A8: 1997 | B8: 632797 | C8: 358889.951 | E8: 352690134 | I8: 593979 | J8: 335666.492 | L8: 337332728 | P8: 38817 | Q8: 23223.459 | S8: 15357406
A9: 1998 | B9: 679443 | C9: 482768.6369 | E9: 407329004 | G9: =+(B9+C9)/AVERAGE(E8:E9) -> 0.003058374661 | I9: 651021 | J9: 443511.586 | L9: 390365236.2 | N9: =+(I9+J9)/AVERAGE(L8:L9) -> 0.003008205711 | P9: 28422 | Q9: 39257.0509 | S9: 16963768 | U9: =+(P9+Q9)/AVERAGE(S8:S9) -> 0.004187907958
A10: 1999 | B10: 760427 | C10: 598527.058 | E10: 517599011 | G10: 0.002938507724 | I10: 737318 | J10: 543111.833 | L10: 487587643 | N10: 0.002916853201 | P10: 23109 | Q10: 55415.225 | S10: 30011367 | U10: 0.003343225091
A11: 2000 | B11: 891571.422 | C11: 741066.018 | E11: 566087853 | G11: 0.003013116601 | I11: 826118.052 | J11: 710369.971 | L11: 531116305 | N11: 0.003016554566 | P11: 65453.37 | Q11: 30696.047 | S11: 34971548 | U11: 0.00295922142
A12: 2001 | B12: 1006239.404 | C12: 822458.329 | E12: 644756514 | G12: 0.003020533081 | I12: 963482 | J12: 728258.539 | L12: 601963485 | N12: 0.002986092513 | P12: 42757 | Q12: 94200 | S12: 42793029 | U12: 0.003522349257
A13: 2002 | B13: 1181577.164 | C13: 1055349.475 | E13: 678930721 | G13: 0.003379841672 | I13: 1069692.148 | J13: 943349.513 | L13: 629058290 | N13: 0.003270521614 | P13: 111884.743 | Q13: 111998.1 | S13: 49872432 | U13: 0.004832066675
A14: 2003 | B14: 1302871.512 | C14: 1231967.159 | E14: 823977366 | G14: 0.003373245101 | I14: 1179816.39 | J14: 1122922.733 | L14: 757088522 | N14: 0.003322503941 | P14: 123054.083 | Q14: 109044.673 | S14: 66888845 | U14: 0.003975611812
A15: 2004 | B15: 1456591.455 | C15: 1545278.027 | E15: 986534746 | G15: 0.003316044629 | I15: 1306019.266 | J15: 1387097.92 | L15: 904573782 | N15: 0.003241473529 | P15: 150572.1895 | Q15: 158180.1071 | S15: 81960966 | U15: 0.004148507741
A16: 2005 | B16: 1589122 | C16: 1807730 | E16: 1219529144 | G16: 0.003079559042 | I16: 1413770 | J16: 1604165 | L16: 1114130641 | N16: 0.002989972148 | P16: 175352 | Q16: 203565 | S16: 105398494 | U16: 0.00404481311
A17: 2006 | B17: 1711783 | C17: 1808052 | E17: 1498809930 | G17: 0.002589695328 | I17: 1520446 | J17: 1569844 | L17: 1356913496 | N17: 0.002501201782 | P17: 191337 | Q17: 238208 | S17: 141896434 | U17: 0.00347394913
A18: 2007 | B18: 1869864 | C18: 1984321 | E18: 1697207577 | G18: 0.002411867264 | I18: 1617769 | J18: 1699490 | L18: 1532703415 | N18: 0.002295985317 | P18: 252096 | Q18: 284831 | S18: 164504166 | U18: 0.003504738568
A19: 2008 | B19: 1923997 | C19: 1615257 | E19: 1597896444 | G19: 0.002148189543 | I19: 1720242 | J19: 1326313 | L19: 1439109361 | N19: 0.002050300762 | P19: 203005 | Q19: 289694 | S19: 158787085 | U19: 0.003048019385
A20: 2009 | B20: 2133595.4 | C20: 1782932.9 | E20: 1774719794 | G20: 0.002322546073 | I20: 1882747 | J20: 1532653 | L20: 1603284553 | N20: 0.002245205648 | P20: 250847 | Q20: 250279 | S20: 171435250 | U20: 0.003035082409
A21: 2010 | B21: 2412487 | C21: 2026173 | E21: 1909516918 | G21: 0.00240954116 | I21: 2033991 | J21: 1634576 | L21: 1718883029 | N21: 0.002208538196 | P21: 378496 | Q21: 391597 | S21: 190633889 | U21: 0.004253845009
A22: 2011 | B22: 2944758.059 | C22: 2406181.231 | E22: 2097848557 | G22: 0.002670552174 | I22: 2632935.059 | J22: 2026478.231 | L22: 1888718233 | N22: 0.002583108804 | P22: 311823 | Q22: 379703 | S22: 209130324 | U22: 0.003459669363
A23: 2012 | B23: 2945683 | C23: 2704383 | E23: 2394948915 | G23: 0.002515166123 | I23: 2538522 | J23: 2293375 | L23: 2158795346 | N23: 0.00238758779 | P23: 407161 | Q23: =+C23-J23 -> 411008 | S23: 236153569 | U23: 0.00367481965
A24: 2013 | B24: 3133713 | C24: 3082968 | E24: 2660618274 | G24: 0.00245934067 | I24: 2708373 | J24: 2643428 | L24: 2400849551 | N24: 0.002347463946 | P24: 425340 | Q24: =+C24-J24 -> 439540 | S24: 259768723 | U24: 0.003487965812
A25: 2014 | B25: 3358969 | C25: 3148627 | E25: 2925364837 | G25: =+(B25+C25)/AVERAGE(E24:E25) -> 0.002329973389 | I25: 2918879 | J25: 2681823 | L25: 2643887324 | N25: =+(I25+J25)/AVERAGE(L24:L25) -> 0.002220413924 | P25: 440090 | Q25: =+C25-J25 -> 466804 | S25: 281477513 | U25: 0.003351132774
A26: 2015 | B26: =+I26+P26 -> 4083269 | C26: =+J26+Q26 -> 4082367 | E26: =+L26+S26 -> 3275702819 | G26: =+(B26+C26)/AVERAGE(E25:E26) -> 0.002633622613 | I26: 3642899 | J26: 3506095 | L26: 2954549767 | N26: =+(I26+J26)/AVERAGE(L25:L26) -> 0.00255392492 | P26: 440370 | Q26: 576272 | S26: 321153051.4 | U26: =+(P26+Q26)/AVERAGE(S25:S26) -> 0.003374014065
A27: 2016 | B27: =+I27+P27 -> 6382654.926 | C27: =+J27+Q27 -> 1839094.249 | D27: 6937599.562 | E27: 3533308686 | F27: =+(B27)/AVERAGE(E26:E27) -> 0.001874766968 | G27: =+(B27+C27)/AVERAGE(E26:E27) -> 0.002414961164 | H27: =+(D27+C27+B27)/AVERAGE(E26:E27) -> 0.004452731128 | I27: 5634792.44 | J27: 1478981.301 | K27: 6156970.496 | L27: 3193614996 | M27: =+(I27)/AVERAGE(L26:L27) -> 0.001832999816 | N27: =+(I27+J27)/AVERAGE(L26:L27) -> 0.002314112915 | O27: =+(K27+J27+I27)/AVERAGE(L26:L27) -> 0.004316977423 | P27: 747862.486 | Q27: 360112.948 | R27: 780629.066 | S27: 339693690 | T27: =+(P27)/AVERAGE(S26:S27) -> 0.002263346217 | U27: =+(P27+Q27)/AVERAGE(S26:S27) -> 0.003353199357 | V27: =+(R27+Q27+P27)/AVERAGE(S26:S27) -> 0.005715711017
A37: Heimild: | B37: http://www.fme.is/utgefid-efni/tolulegar-upplysingar/
A39: Fyrirvari
A40: Landssamtök lífeyrissjóða hafa skipað vinnuhóp sem hefur unnið úr ýmsum birtum upplýsingum eftir bestu getu og þekkingu
A41: en árétta ber að samtökin taka ekki ábyrgð á réttmæti gagnanna né villum sem kunna að koma upp við vinnslu þeirra.

Sheet Gögn M8
A1: Fara á efnisyfirlit
A2: Skoða mynd
A5: Ártal | B5: Samtrygging | C5: Samtrygging 5 ára meðaltal | D5: Samtrygging 10 ára meðaltal | E5: Séreign lífeyrissjóða | F5: Séreign lífeyrissjóða 5 ára meðaltal | G5: Séreign lífeyrissjóða 10 ára meðaltal
A6: 1997 | B6: 0.07976566572 | E6: 0.06921114642
A7: 1998 | B7: 0.07336481256 | E7: 0.09465703223
A8: 1999 | B8: 0.1243496716 | E8: 0.04673303329
A9: 2000 | B9: -0.003679565955 | E9: -0.06368575566
A10: 2001 | B10: -0.01827738016 | C10: =+((1+B6)*(1+B7)*(1+B8)*(1+B9)*(1+B10))^(0.2)-1 -> 0.04971939162 | E10: -0.02905239361 | F10: =+((1+E6)*(1+E7)*(1+E8)*(1+E9)*(1+E10))^(0.2)-1 -> 0.02178372508
A11: 2002 | B11: -0.02728280945 | C11: 0.02802727096 | E11: -0.06311494832 | F11: -0.004861456888
A12: 2003 | B12: 0.111051979 | C12: 0.03514702952 | E12: 0.1333243707 | F12: 0.002071657336
A13: 2004 | B13: 0.1058015856 | C13: 0.03170896037 | E13: 0.08595698881 | F13: 0.009471628796
A14: 2005 | B14: 0.1360399613 | C14: 0.05914669791 | E14: 0.09803168269 | F14: 0.04215607816
A15: 2006 | B15: 0.1024161203 | C15: 0.08399547189 | D15: =+((1+B6)*(1+B7)*(1+B8)*(1+B9)*(1+B10)*(1+B11)*(1+B12)*(1+B13)*(1+B14)*(1+B15))^(0.1)-1 -> 0.06671976979 | E15: 0.1004636767 | F15: 0.06858420177 | G15: =+((1+E6)*(1+E7)*(1+E8)*(1+E9)*(1+E10)*(1+E11)*(1+E12)*(1+E13)*(1+E14)*(1+E15))^(0.1)-1 -> 0.04492198094
A16: 2007 | B16: 0.006948827469 | C16: 0.09151982962 | D16: 0.05929795225 | E16: -0.01563693599 | F16: 0.07920152192 | G16: =+((1+E7)*(1+E8)*(1+E9)*(1+E10)*(1+E11)*(1+E12)*(1+E13)*(1+E14)*(1+E15)*(1+E16))^(0.1)-1 -> 0.03631801598
A17: 2008 | B17: -0.2178396805 | C17: 0.01752224003 | D17: 0.02629680124 | E17: -0.235401211 | F17: -0.002487320607 | G17: =+((1+E8)*(1+E9)*(1+E10)*(1+E11)*(1+E12)*(1+E13)*(1+E14)*(1+E15)*(1+E16)*(1+E17))^(0.1)-1 -> -0.0002104302137
A18: 2009 | B18: -0.0001666765037 | C18: =+((1+B14)*(1+B15)*(1+B16)*(1+B17)*(1+B18))^(0.2)-1 -> -0.002773088093 | D18: =+((1+B9)*(1+B10)*(1+B11)*(1+B12)*(1+B13)*(1+B14)*(1+B15)*(1+B16)*(1+B17)*(1+B18))^(0.1)-1 -> 0.01432141875 | E18: 0.03925366137 | F18: =+((1+E14)*(1+E15)*(1+E16)*(1+E17)*(1+E18))^(0.2)-1 -> -0.0112187727 | G18: =+((1+E9)*(1+E10)*(1+E11)*(1+E12)*(1+E13)*(1+E14)*(1+E15)*(1+E16)*(1+E17)*(1+E18))^(0.1)-1 -> -0.0009271317658
A19: 2010 | B19: 0.02351830211 | C19: -0.023360262 | D19: 0.01705690772 | E19: 0.05510905845 | F19: -0.01907295523 | G19: =+((1+E10)*(1+E11)*(1+E12)*(1+E13)*(1+E14)*(1+E15)*(1+E16)*(1+E17)*(1+E18)*(1+E19))^(0.1)-1 -> 0.01107817796
A20: 2011 | B20: 0.0232 | C20: -0.03781764935 | D20: 0.02127435649 | E20: 0.0402 | F20: -0.0300598525 | G20: =+((1+E19)*(1+E11)*(1+E12)*(1+E13)*(1+E14)*(1+E15)*(1+E16)*(1+E17)*(1+E18)*(1+E20))^(0.1)-1 -> 0.01806813047
A21: 2012 | B21: 0.074 | C21: -0.02533187691 | D21: 0.03144053811 | E21: 0.0638 | F21: -0.01488740612 | G21: =+((1+E20)*(1+E12)*(1+E13)*(1+E14)*(1+E15)*(1+E16)*(1+E17)*(1+E18)*(1+E19)*(1+E21))^(0.1)-1 -> 0.03108438577
A22: 2013 | B22: 0.05621 | C22: =+((1+B18)*(1+B19)*(1+B20)*(1+B21)*(1+B22))^(0.2)-1 -> 0.03501742549 | D22: =+((1+B13)*(1+B14)*(1+B15)*(1+B16)*(1+B17)*(1+B18)*(1+B19)*(1+B20)*(1+B21)*(1+B22))^(0.1)-1 -> 0.02623255125 | E22: 0.035 | F22: =+((1+E18)*(1+E19)*(1+E20)*(1+E21)*(1+E22))^(0.2)-1 -> 0.04661563933 | G22: =+((1+E21)*(1+E13)*(1+E14)*(1+E15)*(1+E16)*(1+E17)*(1+E18)*(1+E19)*(1+E20)*(1+E22))^(0.1)-1 -> 0.02176923553
A23: 2014 | B23: 0.075 | C23: =+((1+B19)*(1+B20)*(1+B21)*(1+B22)*(1+B23))^(0.2)-1 -> 0.05013185575 | D23: =+((1+B14)*(1+B15)*(1+B16)*(1+B17)*(1+B18)*(1+B19)*(1+B20)*(1+B21)*(1+B22)*(1+B23))^(0.1)-1 -> 0.02333755311 | E23: 0.052 | F23: =+((1+E19)*(1+E20)*(1+E21)*(1+E22)*(1+E23))^(0.2)-1 -> 0.04917046254 | G23: =+((1+E22)*(1+E14)*(1+E15)*(1+E16)*(1+E17)*(1+E18)*(1+E19)*(1+E20)*(1+E21)*(1+E23))^(0.1)-1 -> 0.01852837839
A24: 2015 | B24: 0.08 | C24: =+((1+B20)*(1+B21)*(1+B22)*(1+B23)*(1+B24))^(0.2)-1 -> 0.06147424587 | D24: =+((1+B15)*(1+B16)*(1+B17)*(1+B18)*(1+B19)*(1+B20)*(1+B21)*(1+B22)*(1+B23)*(1+B24))^(0.1)-1 -> 0.01817382081 | E24: 0.078 | F24: =+((1+E20)*(1+E21)*(1+E22)*(1+E23)*(1+E24))^(0.2)-1 -> 0.05368388296 | G24: =+((1+E23)*(1+E15)*(1+E16)*(1+E17)*(1+E18)*(1+E19)*(1+E20)*(1+E21)*(1+E22)*(1+E24))^(0.1)-1 -> 0.01665481725
A25: 2016 | B25: 0.0003728852573 | C25: 0.05669520711 | D25: 0.008332027805 | E25: -0.007124903431 | F25: 0.04391680962 | G25: 0.006248887854
A27: Heimild: | B27: http://www.fme.is/utgefid-efni/tolulegar-upplysingar/
A29: Fyrirvari
A30: Landssamtök lífeyrissjóða hafa skipað vinnuhóp sem hefur unnið úr ýmsum birtum upplýsingum eftir bestu getu og þekkingu
A31: en árétta ber að samtökin taka ekki ábyrgð á réttmæti gagnanna né villum sem kunna að koma upp við vinnslu þeirra.

Sheet Gögn M9
A1: Fara á efnisyfirlit
A2: Skoða mynd
B5: Án ábyrgðar | E5: Með ábyrgð | H5: Allir lífeyrissjóðir
B6: Heildarstaða samtals | C6: Heildar- skuldbinding | D6: Heildarstaða % | E6: Heildarstaða samtals | F6: Heildar-skuldbinding | G6: Heildarstaða % | H6: Heildarstaða samtals | I6: Heildar- skuldbinding | J6: Heildarstaða %
A7: 2009 | B7: -212234878 | C7: 2013554340 | D7: -0.1054031042 | E7: -506349213 | F7: 1253921446 | G7: -0.4038125471 | H7: -718584091 | I7: 3267475786 | J7: -0.2199202498
A8: 2010 | B8: -150483475 | C8: 2331288726 | D8: -0.06454947999 | E8: -500791257 | F8: 1266468702 | G8: -0.3954233186 | H8: -651274732 | I8: 3597757428 | J8: -0.1810224133
A9: 2011 | B9: -122514591 | C9: 2517249447 | D9: -0.048670024 | E9: -545590045 | F9: 1364495872 | G9: -0.3998473401 | H9: -668104636 | I9: 3881745319 | J9: -0.1721144952
A10: 2012 | B10: -100089009 | C10: 2733593805 | D10: -0.03661444097 | E10: -573831301 | F10: 1465425286 | G10: -0.391580046 | H10: -673920310 | I10: 4199019091 | J10: -0.1604947002
A11: 2013 | B11: -68013650 | C11: 2957115217 | D11: -0.023 | E11: -595792243 | F11: 1567874324 | G11: -0.38 | H11: -663805893 | I11: 4524989541 | J11: -0.146697774
A12: 2014 | B12: 2728411 | C12: 2728411000 | D12: 0.001 | E12: -623086004 | F12: 1661562677 | G12: -0.375 | H12: -620357593 | I12: 4389973677 | J12: -0.1413123719
A13: 2015 | B13: 106604579 | C13: 3352345252 | D13: 0.0318 | E13: -702928768 | F13: 1844957396 | G13: -0.381 | H13: -596324189 | I13: 5185427730 | J13: -0.115
A14: 2016 | B14: -23818284.6 | C14: =+B14/D14 -> 3765300929 | D14: -0.006325732007 | E14: -749119027.5 | F14: =+E14/G14 -> 2057943041 | G14: -0.3640134895 | H14: -772937312.1 | I14: =+H14/J14 -> 5823243970 | J14: -0.1327331151
A16: Heimild: | B16: http://www.fme.is/utgefid-efni/tolulegar-upplysingar/
A18: ATH | B18: Sjóðir með ákvæði um hækkun mótframlags á ábyrgð launagreiðenda flokkast með sjóðum með ábyrgð, t.d. eins og A-deild LSR.
A20: Fyrirvari
A21: Landssamtök lífeyrissjóða hafa skipað vinnuhóp sem hefur unnið úr ýmsum birtum upplýsingum eftir bestu getu og þekkingu
A22: en árétta ber að samtökin taka ekki ábyrgð á réttmæti gagnanna né villum sem kunna að koma upp við vinnslu þeirra.
C24: =+B13/D13 -> 3352345252

Sheet Gögn M10
A1: Fara á efnisyfirlit
A2: Skoða mynd
A3: Skoða töflu
A5: 2016 | C5: Lífeyrissj. starfsm. ríkisins | E5: Lífeyrissj. verslunar-manna | F5: Gildi lífeyris-sjóður | G5: Stapi lífeyrissjóður | H5: Almenni lífeyris-sjóðurinn | I5: Birta lífeyrissjóður | J5: Frjálsi lífeyris-sjóðurinn | K5: Söfnunarsj. lífeyrisréttinda | L5: Festa lífeyris-sjóður | M5: Brú lífeyrissj. starfsm. sveitarfél. | P5: Lífeyrissj. starfsm. Reykjavíkurb. | Q5: Lífeyrissjóður bankamanna | S5: Lífsverk lífeyrissjóður | T5: Íslenski lífeyris-sjóðurinn | U5: Lífeyrissj. Vestmanna-eyja | V5: Lífeyrissjóður bænda | W5: Lífeyrissj. hjúkrunar-fræðinga | X5: Eftirlauna-sjóður FÍA | Y5: Lífeyrissj. starfsm. Búnaðarb. | Z5: Lífeyrissj. starfsm. Akureyrarb. | AA5: Lífeyris-sjóður Rangæinga | AB5: Lífeyrissj. Tannlækna-félags Ísl. | AC5: Lífeyrissj. starfsm. Kópavogsb. | AD5: Eftirlaunasj. Reykjanes-bæjar | AE5: Eftirlaunasj. starfsm. Útvegsb. Ísl.
E6: verslunar- | AF6: LÍFEYRISSJ.
E7: manna | AF7: SAMTALS
A8: Fjárhæðir í þús. kr. | C8: (1) | E8: (2) | F8: (3) | G8: (4) | H8: (5) | I8: (6) | J8: (7) | K8: (8) | L8: (10) | M8: (11) | P8: (12) | Q8: (13) | S8: (14) | T8: (15) | U8: (16) | V8: (18) | W8: (19) | X8: (20) | Y8: (21) | Z8: (22) | AA8: (23) | AB8: (24) | AC8: (25) | AD8: (26) | AE8: (27)
C9: B-deild | D9: A-deild | M9: A-deild | N9: B-deild | O9: V-deild | Q9: Hlutfallsd. | R9: Aldursd.
A10: Lífeyrir | C10: 38238582 | D10: 4891954 | E10: 11570072 | F10: 14052332 | G10: 4780953 | H10: 1532493 | I10: 8661769 | J10: 536508 | K10: 3823163 | L10: 3208051 | M10: 2020601 | N10: 1348159 | O10: 159684 | P10: 4135578 | Q10: 2281095 | R10: 309801 | S10: 682576 | T10: 69942 | U10: 1446714 | V10: 1448909 | W10: 3721607 | X10: 785387 | Y10: 1129598 | Z10: 682096 | AA10: 244015 | AB10: 6568 | AC10: 436289 | AD10: 337894 | AE10: 309344 | AF10: =SUM(C10:AE10) -> 112851734
A11: Ellilífeyrir (%) | C11: 82.1 | D11: 59.4 | E11: 73.9 | F11: 60.4 | G11: 67.4 | H11: 78.7 | I11: 75.9 | J11: 37.3 | K11: 77.6 | L11: 62.1 | M11: 62.4 | N11: 77 | O11: 32.9 | P11: 79 | Q11: 83.9 | R11: 56.9 | S11: 80 | T11: 21.7 | U11: 62 | V11: 85 | W11: 90.6 | X11: 75.2 | Y11: 87.8 | Z11: 82.2 | AA11: 76 | AB11: 58 | AC11: 76.6 | AD11: 79.5 | AE11: 76.3
A12: Örorkulífeyrir (%) | C12: 2.6 | D12: 35.5 | E12: 19.2 | F12: 32.1 | G12: 26.9 | H12: 8.5 | I12: 14.3 | J12: 53.3 | K12: 12.5 | L12: 32.9 | M12: 32.8 | N12: 7.5 | O12: 58.3 | P12: 4.4 | Q12: 6 | R12: 38.2 | S12: 7.9 | T12: 73 | U12: 31.1 | V12: 8.5 | W12: 5.8 | X12: 10.3 | Y12: 3.4 | Z12: 4 | AA12: 20.1 | AB12: 35.3 | AC12: 5.5 | AD12: 5 | AE12: 1.7
A13: Makalífeyrir (%) | C13: 15.3 | D13: 2.5 | E13: 6 | F13: 6.4 | G13: 4.7 | H13: 11.6 | I13: 9.1 | J13: 5.9 | K13: 9.5 | L13: 3.7 | M13: 2.4 | N13: 15.6 | O13: 1 | P13: 16.5 | Q13: 10.1 | R13: 3.6 | S13: 11.2 | T13: 2.6 | U13: 6.4 | V13: 6.2 | W13: 3.6 | X13: 12.2 | Y13: 8.7 | Z13: 13.7 | AA13: 2.8 | AB13: 6.7 | AC13: 17.9 | AD13: 15.5 | AE13: 21.9
A14: Barnalífeyrir (%) | C14: 0 | D14: 2.6 | E14: 0.9 | F14: 1.1 | G14: 0.9 | H14: 1.2 | I14: 0.8 | J14: 3.5 | K14: 0.4 | L14: 1.2 | M14: 2.5 | N14: 0.1 | O14: 7.8 | P14: 0.1 | Q14: 0 | R14: 1.3 | S14: 0.9 | T14: 2.7 | U14: 0.5 | V14: 0.3 | W14: 0 | X14: 2.4 | Y14: 0 | Z14: 0.1 | AA14: 1.1 | AB14: 0 | AC14: 0 | AD14: 0 | AE14: 0.1
A15: Annar lífeyrir (%) | C15: 0 | D15: 0 | E15: 0 | F15: 0 | G15: 0 | H15: 0 | I15: 0 | J15: 0 | K15: 0 | L15: 0 | M15: 0 | N15: 0 | O15: 0 | P15: 0 | Q15: 0 | R15: 0 | S15: 0 | T15: 0 | U15: 0 | V15: 0 | W15: 0 | X15: 0 | Y15: 0 | Z15: 0 | AA15: 0 | AB15: 0 | AC15: 0 | AD15: 0 | AE15: 0
C16: =SUM(C11:C15) -> 100 | D16: =SUM(D11:D15) -> 100 | E16: 100 | F16: 100 | G16: 99.9 | H16: 100 | I16: 100.1 | J16: 100 | K16: 100 | L16: 99.9 | M16: 100.1 | N16: 100.2 | O16: 100 | P16: 100 | Q16: 100 | R16: 100 | S16: 100 | T16: 100 | U16: 100 | V16: 100 | W16: 100 | X16: 100.1 | Y16: 99.9 | Z16: 100 | AA16: 100 | AB16: 100 | AC16: 100 | AD16: 100 | AE16: 100
A18: Ellilífeyrir | C18: =C$10*C11% -> 31393875.82 | D18: =D$10*D11% -> 2905820.676 | E18: 8550283.208 | F18: 8487608.528 | G18: 3222362.322 | H18: 1206071.991 | I18: 6574282.671 | J18: 200117.484 | K18: 2966774.488 | L18: 1992199.671 | M18: 1260855.024 | N18: 1038082.43 | O18: 52536.036 | P18: 3267106.62 | Q18: 1913838.705 | R18: 176276.769 | S18: 546060.8 | T18: 15177.414 | U18: 896962.68 | V18: 1231572.65 | W18: 3371775.942 | X18: 590611.024 | Y18: 991787.044 | Z18: =Z$10*Z11% -> 560682.912 | AA18: 185451.4 | AB18: 3809.44 | AC18: 334197.374 | AD18: 268625.73 | AE18: 236029.472 | AF18: =SUM(C18:AE18) -> 84440836.33
A19: Örorkulífeyrir | C19: =C$10*C12% -> 994203.132 | D19: =D$10*D12% -> 1736643.67 | E19: 2221453.824 | F19: 4510798.572 | G19: 1286076.357 | H19: 130261.905 | I19: 1238632.967 | J19: 285958.764 | K19: 477895.375 | L19: 1055448.779 | M19: 662757.128 | N19: 101111.925 | O19: 93095.772 | P19: 181965.432 | Q19: 136865.7 | R19: 118343.982 | S19: 53923.504 | T19: 51057.66 | U19: 449928.054 | V19: 123157.265 | W19: 215853.206 | X19: 80894.861 | Y19: 38406.332 | Z19: =Z$10*Z12% -> 27283.84 | AA19: 49047.015 | AB19: 2318.504 | AC19: 23995.895 | AD19: 16894.7 | AE19: 5258.848 | AF19: =SUM(C19:AE19) -> 16369532.97
A20: Makalífeyrir | C20: =C$10*C13% -> 5850503.046 | D20: 122298.85 | E20: 694204.32 | F20: 899349.248 | G20: 224704.791 | H20: 177769.188 | I20: 788220.979 | J20: 31653.972 | K20: 363200.485 | L20: 118697.887 | M20: 48494.424 | N20: 210312.804 | O20: 1596.84 | P20: 682370.37 | Q20: 230390.595 | R20: 11152.836 | S20: 76448.512 | T20: 1818.492 | U20: 92589.696 | V20: 89832.358 | W20: 133977.852 | X20: 95817.214 | Y20: 98275.026 | Z20: 93447.152 | AA20: 6832.42 | AB20: 440.056 | AC20: 78095.731 | AD20: =AD$10*AD13% -> 52373.57 | AE20: 67746.336 | AF20: =SUM(C20:AE20) -> 11342615.05
A21: Barnalífeyrir | C21: 0 | D21: 127190.804 | E21: 104130.648 | F21: 154575.652 | G21: 43028.577 | H21: 18389.916 | I21: 69294.152 | J21: 18777.78 | K21: 15292.652 | L21: 38496.612 | M21: 50515.025 | N21: 1348.159 | O21: 12455.352 | P21: 4135.578 | Q21: 0 | R21: 4027.413 | S21: 6143.184 | T21: 1888.434 | U21: 7233.57 | V21: 4346.727 | W21: 0 | X21: 18849.288 | Y21: 0 | Z21: 682.096 | AA21: 2684.165 | AB21: 0 | AC21: 0 | AD21: 0 | AE21: 309.344 | AF21: 703795.128
A22: Annar lífeyrir | C22: 0 | D22: 0 | E22: 0 | F22: 0 | G22: 0 | H22: 0 | I22: 0 | J22: 0 | K22: 0 | L22: 0 | M22: 0 | N22: 0 | O22: 0 | P22: 0 | Q22: 0 | R22: 0 | S22: 0 | T22: 0 | U22: 0 | V22: 0 | W22: 0 | X22: 0 | Y22: 0 | Z22: 0 | AA22: 0 | AB22: 0 | AC22: 0 | AD22: 0 | AE22: 0 | AF22: 0
A26: 2015 | C26: Lífeyrissj. starfsm. ríkisins | E26: Lífeyrissj. verslunar-manna | F26: Gildi lífeyris-sjóður | G26: Stapi lífeyrissjóður | H26: Almenni lífeyris-sjóðurinn | I26: Sameinaði lífeyrissjóðurinn | J26: Frjálsi lífeyris-sjóðurinn | K26: Söfnunarsj. lífeyrisréttinda | L26: Stafir lífeyris-sjóður | M26: Festa lífeyris-sjóður | N26: Lífeyrissj. starfsm. sveitarfél. | Q26: Lífeyrissj. starfsm. Reykjavíkurb. | R26: Lífeyrissjóður bankamanna | T26: Lífsverk lífeyrissjóður | U26: Íslenski lífeyris-sjóðurinn | V26: Lífeyrissj. Vestmanna-eyja | W26: Lífeyrissjóður bænda | X26: Lífeyrissj. hjúkrunar-fræðinga | Y26: Eftirlauna-sjóður FÍA | Z26: Lífeyrissj. starfsm. Búnaðarb. | AA26: Lífeyrissj. starfsm. Akureyrarb. | AB26: Lífeyris-sjóður Rangæinga | AC26: Lífeyrissj. Tannlækna-félags Ísl. | AD26: Lífeyrissj. starfsm. Kópavogsb. | AE26: Eftirlaunasj. Reykjanes-bæjar | AF26: Eftirlaunasj. starfsm. Útvegsb. Ísl.
E27: verslunar- | AG27: LÍFEYRISSJ.
E28: manna | AG28: SAMTALS
A29: Fjárhæðir í þús. kr. | C29: (1) | E29: (2) | F29: (3) | G29: (4) | H29: (5) | I29: (6) | J29: (7) | K29: (8) | L29: (9) | M29: (10) | N29: (11) | Q29: (12) | R29: (13) | T29: (14) | U29: (15) | V29: (16) | W29: (18) | X29: (19) | Y29: (20) | Z29: (21) | AA29: (22) | AB29: (23) | AC29: (24) | AD29: (25) | AE29: (26) | AF29: (27)
C30: B-deild | D30: A-deild | N30: A-deild | O30: B-deild | P30: V-deild | R30: Hlutfallsd. | S30: Aldursd.
A31: Lífeyrir | C31: 32717039 | D31: 4223736 | E31: 10463540 | F31: 13130008 | G31: 4469815 | H31: 1373299 | I31: 4834121 | J31: 493942 | K31: 3476457 | L31: 3299520 | M31: 2981364 | N31: 1704931 | O31: 1119692 | P31: 135263 | Q31: 3601583 | R31: 2190395 | S31: 256601 | T31: 621018 | U31: 45774 | V31: 1334603 | W31: 1380213 | X31: 3184608 | Y31: 740654 | Z31: 1017995 | AA31: 583419 | AB31: 229499 | AC31: 9303 | AD31: 335643 | AE31: 279363 | AF31: 284466 | AG31: =SUM(C31:AF31) -> 100517864
A32: Ellilífeyrir (%) | C32: 81.1 | D32: 52.6 | E32: 73.2 | F32: 60.1 | G32: 65.6 | H32: 77.5 | I32: 74.3 | J32: 36.5 | K32: 76.8 | L32: 73.1 | M32: 61.3 | N32: 60.2 | O32: 76.1 | P32: 31.3 | Q32: 77.7 | R32: 83.2 | S32: 55.8 | T32: 74.3 | U32: 19.1 | V32: 59.3 | W32: 83.5 | X32: 90 | Y32: 74.4 | Z32: 88 | AA32: 80 | AB32: 73.6 | AC32: 40.5 | AD32: 72.5 | AE32: 82.2 | AF32: 74.3
A33: Örorkulífeyrir (%) | C33: 2.9 | D33: 41.7 | E33: 19.6 | F33: 32.4 | G33: 28.4 | H33: 9.7 | I33: 14.9 | J33: 52.2 | K33: 12.9 | L33: 16.4 | M33: 33.4 | N33: 34.1 | O33: 8.7 | P33: 58.9 | Q33: 5.8 | R33: 6.5 | S33: 39.5 | T33: 12.1 | U33: 75 | V33: 31.8 | W33: 9.3 | X33: 6.8 | Y33: 12.7 | Z33: 2.7 | AA33: 4.9 | AB33: 22.4 | AC33: 52.8 | AD33: 6.4 | AE33: 1.7 | AF33: 2.6
A34: Makalífeyrir (%) | C34: 16 | D34: 2.7 | E34: 6.2 | F34: 6.4 | G34: 4.9 | H34: 11.5 | I34: 9.5 | J34: 7.3 | K34: 9.9 | L34: 9.2 | M34: 3.9 | N34: 2.8 | O34: 15.1 | P34: 1.1 | Q34: 16.4 | R34: 10.3 | S34: 3 | T34: 12.4 | U34: 3.4 | V34: 6.6 | W34: 6.7 | X34: 3.3 | Y34: 10.4 | Z34: 9.3 | AA34: 15.1 | AB34: 3 | AC34: 6.7 | AD34: 21.2 | AE34: 16 | AF34: 22.8
A35: Barnalífeyrir (%) | C35: 0 | D35: 3 | E35: 1 | F35: 1.1 | G35: 1 | H35: 1.3 | I35: 0.8 | J35: 4 | K35: 0.4 | L35: 1.3 | M35: 1.4 | N35: 2.9 | O35: 0.1 | P35: 8.8 | Q35: 0.1 | R35: 0 | S35: 1.7 | T35: 1.2 | U35: 2.5 | V35: 0.6 | W35: 0.5 | X35: 0 | Y35: 2.5 | Z35: 0 | AA35: 0 | AB35: 1.1 | AC35: 0 | AD35: 0 | AE35: 0.1 | AF35: 0
A36: Annar lífeyrir (%) | C36: 0 | D36: 0 | E36: 0 | F36: 0 | G36: 0 | H36: 0 | I36: 0.5 | J36: 0 | K36: 0 | L36: 0 | M36: 0 | N36: 0 | O36: 0 | P36: 0 | Q36: 0 | R36: 0 | S36: 0 | T36: 0 | U36: 0 | V36: 1.7 | W36: 0 | X36: 0 | Y36: 0 | Z36: 0 | AA36: 0 | AB36: 0 | AC36: 0 | AD36: 0 | AE36: 0 | AF36: 0.3
C37: =SUM(C32:C36) -> 100 | D37: =SUM(D32:D36) -> 100 | E37: 100 | F37: 100 | G37: 99.9 | H37: 100 | I37: 100 | J37: 100 | K37: 100 | L37: 100 | M37: 100 | N37: 100 | O37: 100 | P37: 100.1 | Q37: 100 | R37: 100 | S37: 100 | T37: 100 | U37: 100 | V37: 100 | W37: 100 | X37: 100.1 | Y37: 100 | Z37: 100 | AA37: 100 | AB37: 100.1 | AC37: 100 | AD37: 100.1 | AE37: 100 | AF37: 100
A39: Ellilífeyrir | C39: =$C$31*C32% -> 26533518.63 | D39: =D$31*D32% -> 2221685.136 | E39: =E$31*E32% -> 7659311.28 | F39: 7891134.808 | G39: 2932198.64 | H39: 1064306.725 | I39: 3591751.903 | J39: 180288.83 | K39: 2669918.976 | L39: 2411949.12 | M39: 1827576.132 | N39: 1026368.462 | O39: 852085.612 | P39: 42337.319 | Q39: 2798429.991 | R39: 1822408.64 | S39: 143183.358 | T39: 461416.374 | U39: 8742.834 | V39: 791419.579 | W39: 1152477.855 | X39: 2866147.2 | Y39: 551046.576 | Z39: 895835.6 | AA39: 466735.2 | AB39: 168911.264 | AC39: 3767.715 | AD39: 243341.175 | AE39: 229636.386 | AF39: 211358.238 | AG39: =SUM(C39:AF39) -> 73719289.56
A40: Örorkulífeyrir | C40: =$C$31*C33% -> 948794.131 | D40: =D$31*D33% -> 1761297.912 | E40: 2050853.84 | F40: 4254122.592 | G40: 1269427.46 | H40: 133210.003 | I40: 720284.029 | J40: 257837.724 | K40: 448462.953 | L40: 541121.28 | M40: 995775.576 | N40: 581381.471 | O40: 97413.204 | P40: 79669.907 | Q40: 208891.814 | R40: 142375.675 | S40: 101357.395 | T40: 75143.178 | U40: 34330.5 | V40: 424403.754 | W40: 128359.809 | X40: 216553.344 | Y40: 94063.058 | Z40: 27485.865 | AA40: 28587.531 | AB40: 51407.776 | AC40: 4911.984 | AD40: 21481.152 | AE40: 4749.171 | AF40: 7396.116 | AG40: =SUM(C40:AF40) -> 15711150.2
A41: Makalífeyrir | C41: 5234726.24 | D41: =D$31*D34% -> 114040.872 | E41: 648739.48 | F41: 840320.512 | G41: 219020.935 | H41: 157929.385 | I41: 459241.495 | J41: 36057.766 | K41: 344169.243 | L41: 303555.84 | M41: 116273.196 | N41: 47738.068 | O41: 169073.492 | P41: 1487.893 | Q41: 590659.612 | R41: 225610.685 | S41: 7698.03 | T41: 77006.232 | U41: 1556.316 | V41: 88083.798 | W41: 92474.271 | X41: 105092.064 | Y41: 77028.016 | Z41: 94673.535 | AA41: 88096.269 | AB41: =AB$31*AB34% -> 6884.97 | AC41: 623.301 | AD41: 71156.316 | AE41: 44698.08 | AF41: 64858.248 | AG41: 10328574.16
A42: Barnalífeyrir | C42: 0 | D42: =D$31*D35% -> 126712.08 | E42: 104635.4 | F42: 144430.088 | G42: 44698.15 | H42: 17852.887 | I42: 38672.968 | J42: 19757.68 | K42: 13905.828 | L42: 42893.76 | M42: 41739.096 | N42: 49442.999 | O42: 1119.692 | P42: 11903.144 | Q42: 3601.583 | R42: 0 | S42: 4362.217 | T42: 7452.216 | U42: 1144.35 | V42: 8007.618 | W42: 6901.065 | X42: 0 | Y42: 18516.35 | Z42: 0 | AA42: 0 | AB42: 2524.489 | AC42: 0 | AD42: 0 | AE42: 279.363 | AF42: 0 | AG42: 710553.023
A43: Annar lífeyrir | C43: 0 | D43: =D$31*D36% -> 0 | E43: 0 | F43: 0 | G43: 0 | H43: 0 | I43: 24170.605 | J43: 0 | K43: 0 | L43: 0 | M43: 0 | N43: 0 | O43: 0 | P43: 0 | Q43: 0 | R43: 0 | S43: 0 | T43: 0 | U43: 0 | V43: 22688.251 | W43: 0 | X43: 0 | Y43: 0 | Z43: 0 | AA43: 0 | AB43: 0 | AC43: 0 | AD43: 0 | AE43: 0 | AF43: =AF$31*AF36% -> 853.398 | AG43: 47712.254
A47: 2014 | C47: Lífeyrissj. starfsm. ríkisins | E47: Lífeyrissj. verslunar-manna | F47: Gildi lífeyris-sjóður | G47: Stapi lífeyrissjóður | H47: Almenni lífeyris-sjóðurinn | I47: Sameinaði lífeyrissjóðurinn | J47: Frjálsi lífeyris-sjóðurinn | K47: Söfnunarsj. lífeyrisréttinda | L47: Stafir lífeyris-sjóður | M47: Festa lífeyris-sjóður | N47: Lífeyrissj. starfsm. sveitarfél. | Q47: Lífeyrissj. starfsm. Reykjavíkurb. | R47: Lífeyrissjóður bankamanna | T47: Lífeyrissj. verk-fræðinga | U47: Íslenski lífeyris-sjóðurinn | V47: Lífeyrissj. Vestmanna-eyja | W47: Lífeyrissjóður Vestfirðinga | X47: Lífeyrissjóður bænda | Y47: Lífeyrissj. hjúkrunar-fræðinga | Z47: Eftirlauna-sjóður FÍA | AA47: Lífeyrissj. starfsm. Búnaðarb. | AB47: Lífeyrissj. starfsm. Akureyrarb. | AC47: Lífeyris-sjóður Rangæinga | AD47: Lífeyrissj. Tannlækna-félags Ísl. | AE47: Lífeyrissj. starfsm. Kópavogsb. | AF47: Eftirlaunasj. Reykjanes-bæjar | AG47: Eftirlaunasj. starfsm. Útvegsb. Ísl.
E48: verslunar- | AH48: LÍFEYRISSJ.
E49: manna | AH49: SAMTALS
A50: Fjárhæðir í þús. kr. | C50: (1) | E50: (2) | F50: (3) | G50: (4) | H50: (5) | I50: (6) | J50: (7) | K50: (8) | L50: (9) | M50: (10) | N50: (11) | Q50: (12) | R50: (13) | T50: (14) | U50: (15) | V50: (16) | W50: (17) | X50: (18) | Y50: (19) | Z50: (20) | AA50: (21) | AB50: (22) | AC50: (23) | AD50: (24) | AE50: (25) | AF50: (26) | AG50: (27)
C51: B-deild | D51: A-deild | N51: A-deild | O51: B-deild | P51: V-deild | R51: Hlutfallsd. | S51: Aldursd.
A52: Lífeyrir | C52: 28988499 | D52: 3344893 | E52: 9565770 | F52: 11025976 | G52: 4081557 | H52: 1150811 | I52: 4434868 | J52: 423330 | K52: 3122104 | L52: 3087241 | M52: 2733769 | N52: 1473124 | O52: 991087 | P52: 101094 | Q52: 3207421 | R52: 2295723 | S52: 217676 | T52: 550042 | U52: 44990 | V52: 1231785 | W52: 1024732 | X52: 1285191 | Y52: 2740938 | Z52: 723285 | AA52: 982059 | AB52: 533154 | AC52: 202831 | AD52: 5951 | AE52: 304014 | AF52: 237263 | AG52: 268494 | AH52: 90379672
A53: Ellilífeyrir (%) | C53: 80.7 | D53: 51.1 | E53: 71.5 | F53: 60.3 | G53: 65.5 | H53: 77.1 | I53: 73.7 | J53: 35.3 | K53: 76.8 | L53: 72.2 | M53: 60.1 | N53: 59.3 | O53: 75.2 | P53: 37.2 | Q53: 77.2 | R53: 82 | S53: 50.9 | T53: 76.7 | U53: 14.2 | V53: 57.2 | W53: 62.5 | X53: 84.9 | Y53: 89.4 | Z53: 74.8 | AA53: 88.5 | AB53: 77.9 | AC53: 75.6 | AD53: 61.6 | AE53: 71.8 | AF53: 80.5 | AG53: 75
A54: Örorkulífeyrir (%) | C54: 2.9 | D54: 42.6 | E54: 20.5 | F54: 32 | G54: 28.1 | H54: 9.5 | I54: 15.2 | J54: 53.3 | K54: 12.4 | L54: 17.4 | M54: 34 | N54: 34.5 | O54: 9.2 | P54: 53.9 | Q54: 5.6 | R54: 7.6 | S54: 43.1 | T54: 8.3 | U54: 80.4 | V54: 32.3 | W54: 28.1 | X54: 7.8 | Y54: 7.3 | Z54: 13.7 | AA54: 2.1 | AB54: 5.2 | AC54: 20 | AD54: 31.6 | AE54: 3.3 | AF54: 2 | AG54: 2.9
A55: Makalífeyrir (%) | C55: 16.4 | D55: 3.1 | E55: 7 | F55: 6.6 | G55: 5.3 | H55: 12 | I55: 10 | J55: 7.2 | K55: 10.4 | L55: 9.4 | M55: 4.2 | N55: 2.9 | O55: 15.5 | P55: 0.9 | Q55: 17.1 | R55: 10.4 | S55: 3.8 | T55: 13.6 | U55: 4.9 | V55: 7 | W55: 8 | X55: 7 | Y55: 3.2 | Z55: 9.3 | AA55: 9.4 | AB55: 16.9 | AC55: 3.4 | AD55: 6.8 | AE55: 24.9 | AF55: 17.4 | AG55: 21.8
A56: Barnalífeyrir (%) | C56: 0 | D56: 3.2 | E56: 1 | F56: 1 | G56: 1.1 | H56: 1.4 | I56: 0.8 | J56: 4.2 | K56: 0.4 | L56: 1 | M56: 1.6 | N56: 3.3 | O56: 0.1 | P56: 8 | Q56: 0.1 | R56: 0 | S56: 2.2 | T56: 1.4 | U56: 0.5 | V56: 0.7 | W56: 1.5 | X56: 0.3 | Y56: 0 | Z56: 2.3 | AA56: 0 | AB56: 0 | AC56: 1.1 | AD56: 0 | AE56: 0 | AF56: 0.1 | AG56: 0.3
A57: Annar lífeyrir (%) | C57: 0 | D57: 0 | E57: 0 | F57: 0 | G57: 0 | H57: 0 | I57: 0.3 | J57: 0 | K57: 0 | L57: 0 | M57: 0 | N57: 0 | O57: 0 | P57: 0 | Q57: 0 | R57: 0 | S57: 0 | T57: 0 | U57: 0 | V57: 2.8 | W57: 0 | X57: 0 | Y57: 0 | Z57: 0 | AA57: 0 | AB57: 0 | AC57: 0 | AD57: 0 | AE57: 0 | AF57: 0 | AG57: 0
C58: 99.9 | D58: 100 | E58: 100 | F58: 100 | G58: 100 | H58: 100 | I58: 99.9 | J58: 100.1 | K58: 100 | L58: 100.1 | M58: 100 | N58: 100 | O58: 100 | P58: 100 | Q58: 100 | R58: 100 | S58: 100.1 | T58: 100 | U58: 100 | V58: 100 | W58: 97.9 | X58: 99.9 | Y58: 99.99 | Z58: 100 | AA58: 100 | AB58: 100 | AC58: 100 | AD58: 100 | AE58: 100 | AF58: 100.1 | AG58: 100
A60: Ellilífeyrir | C60: =C52*C53% -> 23393718.69 | D60: =D52*D53% -> 1709240.323 | E60: 6839525.55 | F60: 6648663.528 | G60: 2673419.835 | H60: 887275.281 | I60: 3268497.716 | J60: 149435.49 | K60: 2397775.872 | L60: 2228988.002 | M60: 1642995.169 | N60: 873562.532 | O60: 745297.424 | P60: 37606.968 | Q60: 2476129.012 | R60: 1882492.86 | S60: 110797.084 | T60: 421882.214 | U60: 6388.58 | V60: 704581.02 | W60: 640457.5 | X60: 1091127.159 | Y60: 2450398.572 | Z60: 541017.18 | AA60: 869122.215 | AB60: 415326.966 | AC60: 153340.236 | AD60: 3665.816 | AE60: 218282.052 | AF60: 190996.715 | AG60: 201370.5 | AH60: =SUM(C60:AG60) -> 65873378.06
A61: Örorkulífeyrir | C61: =C$52*C54% -> 840666.471 | D61: 1424924.418 | E61: 1960982.85 | F61: 3528312.32 | G61: 1146917.517 | H61: 109327.045 | I61: 674099.936 | J61: 225634.89 | K61: 387140.896 | L61: 537179.934 | M61: 929481.46 | N61: 508227.78 | O61: 91180.004 | P61: 54489.666 | Q61: 179615.576 | R61: 174474.948 | S61: 93818.356 | T61: 45653.486 | U61: 36171.96 | V61: 397866.555 | W61: 287949.692 | X61: 100244.898 | Y61: 200088.474 | Z61: 99090.045 | AA61: 20623.239 | AB61: 27724.008 | AC61: 40566.2 | AD61: 1880.516 | AE61: 10032.462 | AF61: 4745.26 | AG61: 7786.326 | AH61: =SUM(C61:AG61) -> 14146897.19
A62: Makalífeyrir | C62: =C$52*C55% -> 4754113.836 | D62: =D$52*D55% -> 103691.683 | E62: 669603.9 | F62: 727714.416 | G62: 216322.521 | H62: 138097.32 | I62: 443486.8 | J62: 30479.76 | K62: 324698.816 | L62: 290200.654 | M62: 114818.298 | N62: 42720.596 | O62: 153618.485 | P62: 909.846 | Q62: 548468.991 | R62: 238755.192 | S62: 8271.688 | T62: 74805.712 | U62: 2204.51 | V62: 86224.95 | W62: 81978.56 | X62: 89963.37 | Y62: 87710.016 | Z62: 67265.505 | AA62: 92313.546 | AB62: 90103.026 | AC62: 6896.254 | AD62: 404.668 | AE62: 75699.486 | AF62: 41283.762 | AG62: 58531.692 | AH62: =SUM(C62:AG62) -> 9661357.859
A63: Barnalífeyrir | C63: =C$52*C56% -> 0 | D63: 107036.576 | E63: 95657.7 | F63: 110259.76 | G63: 44897.127 | H63: 16111.354 | I63: 35478.944 | J63: 17779.86 | K63: 12488.416 | L63: 30872.41 | M63: 43740.304 | N63: 48613.092 | O63: 991.087 | P63: 8087.52 | Q63: 3207.421 | R63: 0 | S63: 4788.872 | T63: 7700.588 | U63: 224.95 | V63: 8622.495 | W63: 15370.98 | X63: 3855.573 | Y63: 0 | Z63: 16635.555 | AA63: 0 | AB63: 0 | AC63: 2231.141 | AD63: 0 | AE63: 0 | AF63: 237.263 | AG63: 805.482 | AH63: =SUM(C63:AG63) -> 635694.47
A64: Annar lífeyrir | C64: =C$52*C57% -> 0 | D64: =D$52*D57% -> 0 | E64: 0 | F64: 0 | G64: 0 | H64: 0 | I64: 13304.604 | J64: 0 | K64: 0 | L64: 0 | M64: 0 | N64: 0 | O64: 0 | P64: 0 | Q64: 0 | R64: 0 | S64: 0 | T64: 0 | U64: 0 | V64: 34489.98 | W64: 0 | X64: 0 | Y64: 0 | Z64: 0 | AA64: 0 | AB64: 0 | AC64: 0 | AD64: 0 | AE64: 0 | AF64: 0 | AG64: 0 | AH64: =SUM(C64:AG64) -> 47794.584
AH65: =SUM(AH60:AH64) -> 90365122.17
A68: 2013 | C68: Lífeyrissj. starfsm. ríkisins | E68: Lífeyrissj. verslunar-manna | F68: Gildi lífeyris-sjóður | G68: Sameinaði lífeyris-sjóðurinn | H68: Stapi lífeyris-sjóður | I68: Almenni lífeyris-sjóðurinn | J68: Frjálsi lífeyris-sjóðurinn | K68: Söfnunarsj. lífeyrisréttinda | L68: Stafir lífeyris-sjóður | M68: Festa lífeyris-sjóður | N68: Lífeyrissj. starfsm. sveitarfél. | Q68: Lífeyrissj. starfsm. Reykjavíkurb. | R68: Lífeyrissjóður bankamanna | T68: Lífeyrissj. verk-fræðinga | U68: Íslenski lífeyris-sjóðurinn | V68: Lífeyrissj. Vestmanna-eyja | W68: Lífeyrissjóður Vestfirðinga | X68: Lífeyrissjóður bænda | Y68: Lífeyrissj. hjúkrunar-fræðinga | Z68: Eftirlauna-sjóður FÍA | AA68: Lífeyrissj. starfsm. Búnaðarb. | AB68: Lífeyrissj. starfsm. Akureyrarb. | AC68: Lífeyris-sjóður Rangæinga | AD68: Lífeyrissj. Tannlækna-félags Ísl. | AE68: Lífeyrissj. starfsm. Kópavogsb. | AF68: Eftirlaunasj. Reykjanes-bæjar | AG68: Eftirlaunasj. starfsm. Útvegsb. Ísl.
E69: verslunar- | AH69: LÍFEYRISSJ.
E70: manna | AH70: SAMTALS
A71: Fjárhæðir í þús. kr. | C71: (1) | E71: (2) | F71: (3) | G71: (4) | H71: (5) | I71: (6) | J71: (7) | K71: (8) | L71: (9) | M71: (10) | N71: (11) | Q71: (12) | R71: (13) | T71: (14) | U71: (15) | V71: (16) | W71: (17) | X71: (18) | Y71: (19) | Z71: (20) | AA71: (21) | AB71: (22) | AC71: (23) | AD71: (24) | AE71: (25) | AF71: (26) | AG71: (27)
C72: B-deild | D72: A-deild | N72: A-deild | O72: B-deild | P72: V-deild | R72: Hlutfallsd. | S72: Aldursd.
A73: Lífeyrir | C73: 26365729 | D73: 2534952 | E73: 8886407 | F73: 9936163 | G73: 4107538 | H73: 3670742 | I73: 1128383 | J73: 317111 | K73: 2771310 | L73: 2861393 | M73: 2480711 | N73: 1196298 | O73: 482095 | P73: 76624 | Q73: 2924838 | R73: 2148529 | S73: 164490 | T73: 512399 | U73: 44787 | V73: 1068550 | W73: 943767 | X73: 1219349 | Y73: 2472053 | Z73: 742574 | AA73: 888712 | AB73: 491404 | AC73: 178377 | AD73: 3276 | AE73: 285537 | AF73: 223404 | AG73: 260118 | AH73: 81387620
A74: Ellilífeyrir (%) | C74: 79.8 | D74: 49.5 | E74: 70.7 | F74: 61.6 | G74: 72.6 | H74: 65.9 | I74: 75.7 | J74: 37.9 | K74: 76.5 | L74: 72.8 | M74: 62 | N74: 56.8 | O74: 74.8 | P74: 56.8 | Q74: 75 | R74: 82.1 | S74: 53.9 | T74: 76.6 | U74: 13.5 | V74: 56.9 | W74: 59.1 | X74: 84.4 | Y74: 89.29 | Z74: 77.3 | AA74: 86.9 | AB74: 76.6 | AC74: 74.7 | AD74: 39.3 | AE74: 71.3 | AF74: 80.3 | AG74: 75.6
A75: Örorkulífeyrir (%) | C75: 3 | D75: 43.3 | E75: 21 | F75: 30.7 | G75: 16 | H75: 27.5 | I75: 10.2 | J75: 50.7 | K75: 12 | L75: 16.4 | M75: 32 | N75: 36.2 | O75: 8.9 | P75: 36.2 | Q75: 18.4 | R75: 7.3 | S75: 41 | T75: 7.9 | U75: 81 | V75: 31.9 | W75: 28.6 | X75: 8 | Y75: 7.49 | Z75: 11.4 | AA75: 2.5 | AB75: 4.6 | AC75: 20.4 | AD75: 58.1 | AE75: 4 | AF75: 1.9 | AG75: 2.8
A76: Makalífeyrir (%) | C76: 17.1 | D76: 3.7 | E76: 7.2 | F76: 6.7 | G76: 10.4 | H76: 5.6 | I76: 12.5 | J76: 7.9 | K76: 11 | L76: 10 | M76: 4.6 | N76: 3.9 | O76: 16.2 | P76: 3.9 | Q76: 6.5 | R76: 10.6 | S76: 4.1 | T76: 14 | U76: 5.5 | V76: 8 | W76: 8.5 | X76: 7.2 | Y76: 3.19 | Z76: 9.2 | AA76: 10.5 | AB76: 18.7 | AC76: 3.4 | AD76: 2.6 | AE76: 24.7 | AF76: 17.7 | AG76: 21.6
A77: Barnalífeyrir (%) | C77: 0 | D77: 3.4 | E77: 1.1 | F77: 1 | G77: 0.8 | H77: 1 | I77: 1.5 | J77: 3.6 | K77: 0.5 | L77: 0.9 | M77: 1.4 | N77: 3.1 | O77: 0.1 | P77: 3.1 | Q77: 0.1 | R77: 0 | S77: 1.1 | T77: 1.5 | U77: 0 | V77: 0.8 | W77: 1.7 | X77: 0.3 | Y77: 0.02 | Z77: 2.1 | AA77: 0.1 | AB77: 0.1 | AC77: 1.5 | AD77: 0 | AE77: 0 | AF77: 0.2 | AG77: 0
A78: Annar lífeyrir (%) | C78: 0 | D78: 0 | E78: 0 | F78: 0 | G78: 0.2 | H78: 0 | I78: 0 | J78: 0 | K78: 0 | L78: 0 | M78: 0 | N78: 0 | O78: 0 | P78: 0 | Q78: 0 | R78: 0 | S78: 0 | T78: 0 | U78: 0 | V78: 2.4 | W78: 0 | X78: 0 | Y78: 0 | Z78: 0 | AA78: 0 | AB78: 0 | AC78: 0 | AD78: 0 | AE78: 0 | AF78: 0 | AG78: 0
C79: 99.9 | D79: 100 | E79: 100 | F79: 100 | G79: 100 | H79: 100 | I79: 99.9 | J79: 100.1 | K79: 100 | L79: 100.1 | M79: 100 | N79: 100 | O79: 100 | P79: 100 | Q79: 100 | R79: 100 | S79: 100.1 | T79: 100 | U79: 100 | V79: 100 | W79: 97.9 | X79: 99.9 | Y79: 99.99 | Z79: 100 | AA79: 100 | AB79: 100 | AC79: 100 | AD79: 100 | AE79: 100 | AF79: 100.1 | AG79: 100
A81: Ellilífeyrir | C81: =C$73*C74% -> 21039851.74 | D81: =D$73*D74% -> 1254801.24 | E81: 6282689.749 | F81: 6120676.408 | G81: 2982072.588 | H81: 2419018.978 | I81: 854185.931 | J81: 120185.069 | K81: 2120052.15 | L81: 2083094.104 | M81: 1538040.82 | N81: 679497.264 | O81: 360607.06 | P81: 43522.432 | Q81: 2193628.5 | R81: 1763942.309 | S81: 88660.11 | T81: 392497.634 | U81: 6046.245 | V81: 608004.95 | W81: 557766.297 | X81: 1029130.556 | Y81: 2207296.124 | Z81: 574009.702 | AA81: 772290.728 | AB81: 376415.464 | AC81: 133247.619 | AD81: 1287.468 | AE81: 203587.881 | AF81: 179393.412 | AG81: 196649.208 | AH81: =SUM(C81:AG81) -> 59182149.74
A82: Örorkulífeyrir | C82: =C$73*C75% -> 790971.87 | D82: 1097634.216 | E82: 1866145.47 | F82: 3050402.041 | G82: 657206.08 | H82: 1009454.05 | I82: 115095.066 | J82: 160775.277 | K82: 332557.2 | L82: 469268.452 | M82: 793827.52 | N82: 433059.876 | O82: 42906.455 | P82: 27737.888 | Q82: 538170.192 | R82: 156842.617 | S82: 67440.9 | T82: 40479.521 | U82: 36277.47 | V82: 340867.45 | W82: 269917.362 | X82: 97547.92 | Y82: 185156.7697 | Z82: 84653.436 | AA82: 22217.8 | AB82: 22604.584 | AC82: 36388.908 | AD82: 1903.356 | AE82: 11421.48 | AF82: 4244.676 | AG82: 7283.304 | AH82: =SUM(C82:AG82) -> 12770459.21
A83: Makalífeyrir | C83: =C$73*C76% -> 4508539.659 | D83: 93793.224 | E83: 639821.304 | F83: 665722.921 | G83: 427183.952 | H83: 205561.552 | I83: 141047.875 | J83: 25051.769 | K83: 304844.1 | L83: 286139.3 | M83: 114112.706 | N83: 46655.622 | O83: 78099.39 | P83: 2988.336 | Q83: 190114.47 | R83: 227744.074 | S83: 6744.09 | T83: 71735.86 | U83: 2463.285 | V83: 85484 | W83: 80220.195 | X83: 87793.128 | Y83: 78858.4907 | Z83: 68316.808 | AA83: 93314.76 | AB83: 91892.548 | AC83: 6064.818 | AD83: 85.176 | AE83: 70527.639 | AF83: 39542.508 | AG83: 56185.488 | AH83: =SUM(C83:AG83) -> 8796649.048
A84: Barnalífeyrir | C84: =C$73*C77% -> 0 | D84: 86188.368 | E84: 97750.477 | F84: 99361.63 | G84: 32860.304 | H84: 36707.42 | I84: 16925.745 | J84: 11415.996 | K84: 13856.55 | L84: 25752.537 | M84: 34729.954 | N84: 37085.238 | O84: 482.095 | P84: 2375.344 | Q84: 2924.838 | R84: 0 | S84: 1809.39 | T84: 7685.985 | U84: 0 | V84: 8548.4 | W84: 16044.039 | X84: 3658.047 | Y84: 494.4106 | Z84: 15594.054 | AA84: 888.712 | AB84: 491.404 | AC84: 2675.655 | AD84: 0 | AE84: 0 | AF84: 446.808 | AG84: 0 | AH84: =SUM(C84:AG84) -> 556753.4006
A85: Annar lífeyrir | C85: =C$73*C78% -> 0 | D85: 0 | E85: 0 | F85: 0 | G85: 8215.076 | H85: 0 | I85: 0 | J85: 0 | K85: 0 | L85: 0 | M85: 0 | N85: 0 | O85: 0 | P85: 0 | Q85: 0 | R85: 0 | S85: 0 | T85: 0 | U85: 0 | V85: 25645.2 | W85: 0 | X85: 0 | Y85: 0 | Z85: 0 | AA85: 0 | AB85: 0 | AC85: 0 | AD85: 0 | AE85: 0 | AF85: 0 | AG85: 0 | AH85: =SUM(C85:AG85) -> 33860.276
AH86: =SUM(AH81:AH85) -> 81339871.67
A88: 2012 | C88: Lífeyrissjóður stm. ríkisins | E88: Lífeyrissjóður verslunar-manna | F88: Gildi lífeyrissjóður | G88: Stapi lífeyrissjóður | H88: Sameinaði lífeyris-sjóðurinn | I88: Almenni lífeyris-sjóðurinn | J88: Frjálsi lífeyris-sjóðurinn | K88: Söfnunarsj. lífeyris-réttinda | L88: Stafir lífeyrissjóður | M88: Festa lífeyrissjóður | N88: Lífeyrissj. stm. sveitarfél. | P88: Lífeyrissj. stm. Reykjavíkurb. | Q88: Lífeyrissjóður bankamanna | S88: Lífeyrissj. Verk-fræðinga | T88: Íslenski lífeyris-sjóðurinn | U88: Lífeyrissj. Vestmanna-eyja | V88: Lífeyrissj. Vestfirðinga | W88: Lífeyrissj. bænda | X88: Lífeyrissj. hjúkrunar-fræðinga | Y88: Eftirlaunasj. FÍA | Z88: Lífeyrissj. stm. Búnaðarb. Ísl. | AA88: Lífeyrissj. stm. Akureyrarb. | AB88: Lífeyrissj. Rangæinga | AC88: Lífeyrissj. Tannlæknafél. Íslands | AD88: Lífeyrissj. stm. Kópavogsb. | AE88: Eftirlaunasj. Reykjanesbæjar | AF88: Eftirlaunasj. stm. Hafnarfjarðark. | AG88: Lífeyrissj. Akranes-kaupstaðar | AH88: Lífeyrissj. stm. Húsavíkurk. | AI88: Lífeyrissj. Neskaupstaðar | AJ88: Lífeyrissj. stm. Vestm.eyjab. | AK88: Eftirlaunasj.stm. Útvegsb. Íslands | AM88: LÍFEYRISSJ. SAMTALS
A89: Fjárhæðir í þús. kr. | C89: (1) | E89: (2) | F89: (3) | G89: (4) | H89: (5) | I89: (6) | J89: (7) | K89: (8) | L89: (9) | M89: (10) | N89: (11) | P89: (12) | Q89: (13) | S89: (14) | T89: (15) | U89: (16) | V89: (17) | W89: (18) | X89: (19) | Y89: (20) | Z89: (21) | AA89: (23) | AB89: (24) | AC89: (25) | AD89: (26) | AE89: (27) | AF89: (28) | AG89: (29) | AH89: (30) | AI89: (31) | AJ89: (32) | AK89: (33)
C90: B-deild | D90: A-deild | N90: A-deild | O90: V-deild | Q90: Hluttfallsd. | R90: Aldursdeild
A91: Lífeyrir | C91: 24193465 | D91: 2022769 | E91: 7717502 | F91: 8920911 | G91: 3421037 | H91: 3680522 | I91: 963499 | J91: 287476 | K91: 2446414 | L91: 2574975 | M91: 2251554 | N91: 895982 | O91: 51753 | P91: 2708539 | Q91: 1948713 | R91: 134748 | S91: 489652 | T91: 31799 | U91: 983444 | V91: 894584 | W91: 1224580 | X91: 2205676 | Y91: 736098 | Z91: 752876 | AA91: 460999 | AB91: 164851 | AC91: 3418 | AD91: 252337 | AE91: 212309 | AF91: 328985 | AG91: 199244 | AH91: 88864 | AI91: 83539 | AJ91: 127359 | AK91: 253517 | AM91: 73713990
A92: Ellilífeyrir (%) | C92: 79.1 | D92: 45.1 | E92: 68.8 | F92: 61.5 | G92: 65.6 | H92: 71.3 | I92: 76 | J92: 35.2 | K92: 75.6 | L92: 71.8 | M92: 61.9 | N92: 60.5 | O92: 42.8 | P92: 73.9 | Q92: 81.6 | R92: 52.6 | S92: 77.7 | T92: 10.5 | U92: 56.5 | V92: 58.7 | W92: 84.7 | X92: 88.7 | Y92: 78.7 | Z92: 85 | AA92: 77.3 | AB92: 74.1 | AC92: 46.3 | AD92: 70.5 | AE92: 82 | AF92: 76 | AG92: 79.2 | AH92: 73.5 | AI92: 65.9 | AJ92: 70.8 | AK92: 75.8
A93: Örorkulífeyrir (%) | C93: 3.3 | D93: 46.3 | E93: 22.2 | F93: 30.4 | G93: 27.4 | H93: 16.4 | I93: 8.9 | J93: 52.2 | K93: 12.1 | L93: 16.8 | M93: 31.5 | N93: 31.7 | O93: 48.9 | P93: 7 | Q93: 7.2 | R93: 41.1 | S93: 7.7 | T93: 82.5 | U93: 32.1 | V93: 30.5 | W93: 7.5 | X93: 8.3 | Y93: 9.1 | Z93: 1.6 | AA93: 3.8 | AB93: 20.6 | AC93: 53.6 | AD93: 8.2 | AE93: 1.7 | AF93: 6.6 | AG93: 8 | AH93: 11.5 | AI93: 4.9 | AJ93: 11.1 | AK93: 2
A94: Makalífeyrir (%) | C94: 17.6 | D94: 4.4 | E94: 7.7 | F94: 7 | G94: 5.9 | H94: 11.2 | I94: 11.8 | J94: 8.6 | K94: 11.7 | L94: 10.7 | M94: 5.2 | N94: 4 | O94: 0.3 | P94: 19 | Q94: 11.2 | R94: 5 | S94: 13.4 | T94: 6.8 | U94: 7.8 | V94: 9 | W94: 7.5 | X94: 3 | Y94: 10 | Z94: 13.3 | AA94: 18.8 | AB94: 4 | AC94: 0.1 | AD94: 21.3 | AE94: 16.3 | AF94: 17.4 | AG94: 12.8 | AH94: 14.5 | AI94: 29.1 | AJ94: 18 | AK94: 22.2
A95: Barnalífeyrir (%) | C95: 0 | D95: 4.2 | E95: 1.3 | F95: 1.1 | G95: 1.1 | H95: 0.9 | I95: 1.3 | J95: 3.7 | K95: 0.6 | L95: 0.8 | M95: 1.4 | N95: 3.8 | O95: 7.9 | P95: 0.1 | Q95: 0 | R95: 1.2 | S95: 1.2 | T95: 0.2 | U95: 0.7 | V95: 1.8 | W95: 0.3 | X95: 0 | Y95: 2.1 | Z95: 0.1 | AA95: 0.1 | AB95: 1.3 | AC95: 0 | AD95: 0 | AE95: 0 | AF95: 0 | AG95: 0 | AH95: 0.5 | AI95: 0.1 | AJ95: 0.1 | AK95: 0
A96: Annar lífeyrir (%) | C96: 0 | D96: 0 | E96: 0 | F96: 0 | G96: 0 | H96: 0.2 | I96: 2 | J96: 0 | K96: 0 | L96: 0 | M96: 0 | N96: 0 | O96: 0 | P96: 0 | Q96: 0 | R96: 0 | S96: 0 | T96: 0 | U96: 2.9 | V96: 0 | W96: 0 | X96: 0 | Y96: 0 | Z96: 0 | AA96: 0 | AB96: 0 | AC96: 0 | AD96: 0 | AE96: 0 | AF96: 0 | AG96: 0 | AH96: 0 | AI96: 0 | AJ96: 0 | AK96: 0
A98: Ellilífeyrir | C98: =C91*C92% -> 19137030.81 | D98: =D91*D92% -> 912268.819 | E98: 5309641.376 | F98: 5486360.265 | G98: 2244200.272 | H98: 2624212.186 | I98: 732259.24 | J98: 101191.552 | K98: 1849488.984 | L98: 1848832.05 | M98: 1393711.926 | N98: 542069.11 | O98: 22150.284 | P98: 2001610.321 | Q98: 1590149.808 | R98: 70877.448 | S98: 380459.604 | T98: 3338.895 | U98: 555645.86 | V98: 525120.808 | W98: 1037219.26 | X98: 1956434.612 | Y98: 579309.126 | Z98: 639944.6 | AA98: 356352.227 | AB98: 122154.591 | AC98: 1582.534 | AD98: 177897.585 | AE98: 174093.38 | AF98: 250028.6 | AG98: 157801.248 | AH98: 65315.04 | AI98: 55052.201 | AJ98: 90170.172 | AK98: 192165.886 | AM98: =SUM(C98:AK98) -> 53186140.69
A99: Örorkulífeyrir | C99: =C91*C93% -> 798384.345 | D99: =D91*D93% -> 936542.047 | E99: 1713285.444 | F99: 2711956.944 | G99: 937364.138 | H99: 603605.608 | I99: 85751.411 | J99: 150062.472 | K99: 296016.094 | L99: 432595.8 | M99: 709239.51 | N99: 284026.294 | O99: 25307.217 | P99: 189597.73 | Q99: 140307.336 | R99: 55381.428 | S99: 37703.204 | T99: 26234.175 | U99: 315685.524 | V99: 272848.12 | W99: 91843.5 | X99: 183071.108 | Y99: 66984.918 | Z99: 12046.016 | AA99: 17517.962 | AB99: 33959.306 | AC99: 1832.048 | AD99: 20691.634 | AE99: 3609.253 | AF99: 21713.01 | AG99: 15939.52 | AH99: 10219.36 | AI99: 4093.411 | AJ99: 14136.849 | AK99: 5070.34 | AM99: =SUM(C99:AK99) -> 11224623.08
A100: Makalífeyrir | C100: =C91*C94% -> 4258049.84 | D100: =D91*D94% -> 89001.836 | E100: 594247.654 | F100: 624463.77 | G100: 201841.183 | H100: 412218.464 | I100: 113692.882 | J100: 24722.936 | K100: 286230.438 | L100: 275522.325 | M100: 117080.808 | N100: 35839.28 | O100: 155.259 | P100: 514622.41 | Q100: 218255.856 | R100: 6737.4 | S100: 65613.368 | T100: 2162.332 | U100: 76708.632 | V100: 80512.56 | W100: 91843.5 | X100: 66170.28 | Y100: 73609.8 | Z100: 100132.508 | AA100: 86667.812 | AB100: 6594.04 | AC100: 3.418 | AD100: 53747.781 | AE100: 34606.367 | AF100: 57243.39 | AG100: 25503.232 | AH100: 12885.28 | AI100: 24309.849 | AJ100: 22924.62 | AK100: 56280.774 | AM100: =SUM(C100:AK100) -> 8710201.884
A101: Barnalífeyrir | C101: =C91*C95% -> 0 | D101: =D91*D95% -> 84956.298 | E101: 100327.526 | F101: 98130.021 | G101: 37631.407 | H101: 33124.698 | I101: 12525.487 | J101: 10636.612 | K101: 14678.484 | L101: 20599.8 | M101: 31521.756 | N101: 34047.316 | O101: 4088.487 | P101: 2708.539 | Q101: 0 | R101: 1616.976 | S101: 5875.824 | T101: 63.598 | U101: 6884.108 | V101: 16102.512 | W101: 3673.74 | X101: 0 | Y101: 15458.058 | Z101: 752.876 | AA101: 460.999 | AB101: 2143.063 | AC101: 0 | AD101: 0 | AE101: 0 | AF101: 0 | AG101: 0 | AH101: 444.32 | AI101: 83.539 | AJ101: 127.359 | AK101: 0 | AM101: =SUM(C101:AK101) -> 538663.403
A102: Annar lífeyrir | C102: =C91*C96% -> 0 | D102: =D91*D96% -> 0 | E102: 0 | F102: 0 | G102: 0 | H102: 7361.044 | I102: 19269.98 | J102: 0 | K102: 0 | L102: 0 | M102: 0 | N102: 0 | O102: 0 | P102: 0 | Q102: 0 | R102: 0 | S102: 0 | T102: 0 | U102: 28519.876 | V102: 0 | W102: 0 | X102: 0 | Y102: 0 | Z102: 0 | AA102: 0 | AB102: 0 | AC102: 0 | AD102: 0 | AE102: 0 | AF102: 0 | AG102: 0 | AH102: 0 | AI102: 0 | AJ102: 0 | AK102: 0 | AM102: =SUM(C102:AK102) -> 55150.9
AM103: =SUM(AM98:AM102) -> 73714779.95
A105: 2011 | C105: Lífeyrissjóður stm. ríkisins | E105: Lífeyrissjóður verslunarmanna | F105: Gildi lífeyrissjóður | G105: Stapi lífeyrissjóður | H105: Sameinaði lífeyris-sjóðurinn | I105: Almenni lífeyris-sjóðurinn | J105: Frjálsi lífeyris-sjóðurinn | K105: Stafir lífeyrissjóður | L105: Söfnunarsj. lífeyris-réttinda | M105: Festa lífeyrissjóður | N105: Lífeyrissj. stm. sveitarfél. | P105: Lífeyrissj. stm. Reykjavíkurb. | Q105: Lífeyrissjóður bankamanna | S105: Lífeyrissj. verk-fræðinga | T105: Íslenski lífeyris-sjóðurinn | U105: Lífeyrissj. Vestmannaeyja | V105: Lífeyrissj. Vestfirðinga | W105: Lífeyrissj. bænda | X105: Lífeyrissj. hjúkrunar-fræðinga | Y105: Eftirlaunasj. FÍA | Z105: Lífeyrissj. stm. Búnaðarb. Ísl. | AA105: Kjölur lífeyrissj. | AB105: Lífeyrissj. stm. Akureyrarb. | AC105: Lífeyrissj. Rangæinga | AD105: Lífeyrissj. Tannlæknafél. Íslands | AE105: Lífeyrissj. stm. Kópavogsb. | AF105: Eftirlaunasj. Reykjanesbæjar | AG105: Eftirlaunasj. stm. Hafnarfjarðark. | AH105: Lífeyrissj. Akranes-kaupstaðar | AI105: Lífeyrissj. stm. Húsavíkurk. | AJ105: Lífeyrissj. Nes-kaupstaðar | AK105: Lífeyrissj. stm. Vestm.eyjab. | AL105: Eftirlaunasj.stm Útvegsb. Íslands | AN105: Lífeyrissj. Samtals
E107: Samtryggingardeild | F107: Samtryggingardeild | K107: Samtryggingardeild | L107: Samtryggingardeild | P107: Samtryggingardeild | S107: Samtryggingardeild | T107: Samtryggingardeild | V107: Samtryggingardeild | W107: Samtryggingardeild | X107: Samtryggingardeild
A108: Fjárhæðir í þús. kr. | C108: (1) | E108: (2) | F108: (3) | G108: (4) | H108: (5) | I108: (6) | J108: (7) | K108: (8) | L108: (9) | M108: (10) | N108: (11) | P108: (12) | Q108: (13) | S108: (14) | T108: (15) | U108: (16) | V108: (17) | W108: (18) | X108: (19) | Y108: (20) | Z108: (21) | AA108: (22) | AB108: (23) | AC108: (24) | AD108: (25) | AE108: (26) | AF108: (27) | AG108: (28) | AH108: (29) | AI108: (30) | AJ108: (31) | AK108: (32) | AL108: (33)
C109: B-deild | D109: A-deild | N109: A-deild | O109: V-deild | Q109: Hlutfallsd. | R109: Aldursdeild
A110: Lífeyrir | C110: 21737031 | D110: 1476966 | E110: 6690990 | F110: 7888753 | G110: 3254836 | H110: 3258075 | I110: 892415 | J110: 255956 | K110: 2282743 | L110: 1693630 | M110: 1963508 | N110: 718319 | O110: 38078 | P110: 2473918 | Q110: 1734616 | R110: 114154 | S110: 451953 | T110: 26797 | U110: 882500 | V110: 815106 | W110: 1149161 | X110: 1911245.029 | Y110: 693279 | Z110: 665734 | AA110: 465838 | AB110: 400488 | AC110: 147633 | AD110: 1892 | AE110: 230958 | AF110: 192138 | AG110: 296177 | AH110: 189060 | AI110: 94277 | AJ110: 79028 | AK110: 113792 | AL110: 236012 | AN110: =SUM(C110:AL110) -> 65517056.03
A111: Ellilífeyrir (%) | C111: 78.3 | D111: 38 | E111: 66.4 | F111: 61.1 | G111: 64.3 | H111: 69.9 | I111: 77.8 | J111: 35.1 | K111: 70.3 | L111: 75.3 | M111: 61.6 | N111: 54.8 | O111: 42.7 | P111: 73.8 | Q111: 81.9 | R111: 47.9 | S111: 79.4 | T111: 89.6 | U111: 54.7 | V111: 58.7 | W111: 83.7 | X111: 88.3 | Y111: 77 | Z111: 85.9 | AA111: 76.3 | AB111: 76.9 | AC111: 74.3 | AD111: 0 | AE111: 71.5 | AF111: 82 | AG111: 79.4 | AH111: 77.4 | AI111: 77.7 | AJ111: 67.6 | AK111: 68.6 | AL111: 75
A112: Örorkulífeyrir (%) | C112: 3.5 | D112: 52 | E112: 24 | F112: 30.2 | G112: 28.3 | H112: 17.1 | I112: 8.6 | J112: 51.6 | K112: 17.1 | L112: 13.9 | M112: 31 | N112: 35.6 | O112: 48.9 | P112: 7.1 | Q112: 7.6 | R112: 41.6 | S112: 6.5 | T112: 5.1 | U112: 33.8 | V112: 30.2 | W112: 7.9 | X112: 8.8 | Y112: 10.6 | Z112: 2 | AA112: 5.1 | AB112: 3.8 | AC112: 19.6 | AD112: 100 | AE112: 8.9 | AF112: 2.8 | AG112: 12.1 | AH112: 8.5 | AI112: 9.5 | AJ112: 3.8 | AK112: 9.6 | AL112: 1.7
A113: Makalífeyrir (%) | C113: 18.2 | D113: 4.7 | E113: 8.1 | F113: 7.5 | G113: 6.3 | H113: 11.9 | I113: 12.1 | J113: 9.5 | K113: 11.9 | L113: 10.3 | M113: 5.9 | N113: 4.6 | O113: 0.5 | P113: 19 | Q113: 10.4 | R113: 8.9 | S113: 12.7 | T113: 4.9 | U113: 8.1 | V113: 9.2 | W113: 8.1 | X113: 2.8 | Y113: 9.6 | Z113: 12 | AA113: 18.6 | AB113: 19.2 | AC113: 4.8 | AD113: 0 | AE113: 19.6 | AF113: 15.2 | AG113: 8.4 | AH113: 14 | AI113: 12.4 | AJ113: 28.6 | AK113: 21.6 | AL113: 23.2
A114: Barnalífeyrir (%) | C114: 0 | D114: 5.3 | E114: 1.5 | F114: 1.2 | G114: 1.1 | H114: 1 | I114: 1.5 | J114: 3.7 | K114: 0.7 | L114: 0.5 | M114: 1.6 | N114: 5 | O114: 7.9 | P114: 0.1 | Q114: 0.1 | R114: 1.7 | S114: 1.4 | T114: 0.4 | U114: 0.8 | V114: 1.9 | W114: 0.3 | X114: 0 | Y114: 2.7 | Z114: 0.1 | AA114: 0 | AB114: 0.1 | AC114: 1.3 | AD114: 0 | AE114: 0 | AF114: 0 | AG114: 0.1 | AH114: 0.1 | AI114: 0.4 | AJ114: 0 | AK114: 0.2 | AL114: 0.1
A115: Annar lífeyrir (%) | C115: 0 | D115: 0 | E115: 0 | F115: 0 | G115: 0 | H115: 0.1 | I115: 0 | J115: 0.1 | K115: 0 | L115: 0 | M115: 0 | N115: 0 | O115: 0 | P115: 0 | Q115: 0 | R115: 0 | S115: 0 | T115: 0 | U115: 2.6 | V115: 0 | W115: 0 | X115: 0 | Y115: 0 | Z115: 0 | AA115: 0 | AB115: 0 | AC115: 0 | AD115: 0 | AE115: 0 | AF115: 0 | AG115: 0 | AH115: 0 | AI115: 0 | AJ115: 0 | AK115: 0 | AL115: 0
A117: Ellilífeyrir | C117: =C110*C111% -> 17020095.27 | D117: =D110*D111% -> 561247.08 | E117: 4442817.36 | F117: =F110*F111% -> 4820028.083 | G117: 2092859.548 | H117: 2277394.425 | I117: 694298.87 | J117: 89840.556 | K117: 1604768.329 | L117: 1275303.39 | M117: 1209520.928 | N117: 393638.812 | O117: 16259.306 | P117: 1825751.484 | Q117: 1420650.504 | R117: 54679.766 | S117: 358850.682 | T117: 24010.112 | U117: 482727.5 | V117: 478467.222 | W117: 961847.757 | X117: 1687629.361 | Y117: 533824.83 | Z117: 571865.506 | AA117: 355434.394 | AB117: 307975.272 | AC117: 109691.319 | AD117: 0 | AE117: 165134.97 | AF117: 157553.16 | AG117: 235164.538 | AH117: 146332.44 | AI117: 73253.229 | AJ117: 53422.928 | AK117: 78061.312 | AL117: 177009 | AN117: =SUM(C117:AL117) -> 46757409.25
A118: Örorkulífeyrir | C118: =C110*C112% -> 760796.085 | D118: =D110*D112% -> 768022.32 | E118: 1605837.6 | F118: 2382403.406 | G118: 921118.588 | H118: 557130.825 | I118: 76747.69 | J118: 132073.296 | K118: 390349.053 | L118: 235414.57 | M118: 608687.48 | N118: 255721.564 | O118: 18620.142 | P118: 175648.178 | Q118: 131830.816 | R118: 47488.064 | S118: 29376.945 | T118: 1366.647 | U118: 298285 | V118: 246162.012 | W118: 90783.719 | X118: 168189.5626 | Y118: 73487.574 | Z118: 13314.68 | AA118: 23757.738 | AB118: 15218.544 | AC118: 28936.068 | AD118: 1892 | AE118: 20555.262 | AF118: 5379.864 | AG118: 35837.417 | AH118: 16070.1 | AI118: 8956.315 | AJ118: 3003.064 | AK118: 10924.032 | AL118: 4012.204 | AN118: =SUM(C118:AL118) -> 10163398.42
A119: Makalífeyrir | C119: =C110*C113% -> 3956139.642 | D119: =D110*D113% -> 69417.402 | E119: 541970.19 | F119: 591656.475 | G119: 205054.668 | H119: 387710.925 | I119: 107982.215 | J119: 24315.82 | K119: 271646.417 | L119: 174443.89 | M119: 115846.972 | N119: 33042.674 | O119: 190.39 | P119: 470044.42 | Q119: 180400.064 | R119: 10159.706 | S119: 57398.031 | T119: 1313.053 | U119: 71482.5 | V119: 74989.752 | W119: 93082.041 | X119: 53514.86081 | Y119: 66554.784 | Z119: 79888.08 | AA119: 86645.868 | AB119: 76893.696 | AC119: 7086.384 | AD119: 0 | AE119: 45267.768 | AF119: 29204.976 | AG119: 24878.868 | AH119: 26468.4 | AI119: 11690.348 | AJ119: 22602.008 | AK119: 24579.072 | AL119: 54754.784 | AN119: =SUM(C119:AL119) -> 8048317.144
A120: Barnalífeyrir | C120: =C110*C114% -> 0 | D120: =D110*D114% -> 78279.198 | E120: 100364.85 | F120: 94665.036 | G120: 35803.196 | H120: 32580.75 | I120: 13386.225 | J120: 9470.372 | K120: 15979.201 | L120: 8468.15 | M120: 31416.128 | N120: 35915.95 | O120: 3008.162 | P120: 2473.918 | Q120: 1734.616 | R120: 1940.618 | S120: 6327.342 | T120: 107.188 | U120: 7060 | V120: 15487.014 | W120: 3447.483 | X120: 0 | Y120: 18718.533 | Z120: 665.734 | AA120: 0 | AB120: 400.488 | AC120: 1919.229 | AD120: 0 | AE120: 0 | AF120: 0 | AG120: 296.177 | AH120: 189.06 | AI120: 377.108 | AJ120: 0 | AK120: 227.584 | AL120: 236.012 | AN120: =SUM(C120:AL120) -> 520945.322
A121: Annar lífeyrir | C121: =C110*C115% -> 0 | D121: =D110*D115% -> 0 | E121: 0 | F121: 0 | G121: 0 | H121: 3258.075 | I121: 0 | J121: 255.956 | K121: 0 | L121: 0 | M121: 0 | N121: 0 | O121: 0 | P121: 0 | Q121: 0 | R121: 0 | S121: 0 | T121: 0 | U121: 22945 | V121: 0 | W121: 0 | X121: 0 | Y121: 0 | Z121: 0 | AA121: 0 | AB121: 0 | AC121: 0 | AD121: 0 | AE121: 0 | AF121: 0 | AG121: 0 | AH121: 0 | AI121: 0 | AJ121: 0 | AK121: 0 | AL121: 0 | AN121: =SUM(C121:AL121) -> 26459.031
A124: 2010 | C124: Lífeyrissjóður stm. ríkisins | E124: Lífeyrissjóður verslunar-manna | F124: Gildi lífeyrissjóður | G124: Stapi lífeyrissjóður | H124: Sameinaði lífeyris-sjóðurinn | I124: Almenni lífeyris-sjóðurinn | J124: Frjálsi lífeyris-sjóðurinn | K124: Stafir lífeyrissjóður | L124: Söfnunarsj. lífeyris-réttinda | M124: Festa lífeyrissjóður | N124: Lífeyrissj. stm. Reykjavíkurb. | O124: Lífeyrissj. stm. sveitarfél. | Q124: Lífeyrissjóður bankamanna | S124: Lífeyrissj. Verk-fræðinga | T124: Íslenski lífeyris-sjóðurinn | U124: Lífeyrissj. Vestmannaeyja | V124: Lífeyrissj. Vestfirðinga | W124: Lífeyrissj. bænda | X124: Lífeyrissj. hjúkrunar-fræðinga | Y124: Eftirlaunasj. FÍA | Z124: Lífeyrissj. stm. Búnaðarb. Ísl. | AA124: Kjölur lífeyrissj. | AB124: Lífeyrissj. stm. Akureyrarb. | AC124: Lífeyrissj. Rangæinga | AD124: Lífeyrissj. stm. Kópavogsb. | AE124: Eftirlaunasj. Reykjanesbæjar | AF124: Lífeyrissj. Tannlæknafél. Íslands | AG124: Eftirlaunasj. stm. Hafnarfjarðark. | AH124: Lífeyrissj. Akranes-kaupstaðar | AI124: Lífeyrissj. stm. Húsavíkurk. | AJ124: Lífeyrissj. Nes-kaupstaðar | AK124: Lífeyrissj. stm. Vestm.-eyjab. | AL124: Eftirlaunasj.stm. Útvegsb. Íslands | AN124: Lífeyrissj. samtals
E126: Samtryggingardeild | F126: Samtryggingardeild | K126: Samtryggingardeild | L126: Samtryggingardeild | N126: Samtryggingardeild | S126: Samtryggingardeild | T126: Samtryggingardeild | V126: Samtryggingardeild | W126: Samtryggingardeild | X126: Samtryggingardeild
A127: Fjárhæðir í þús. kr. | C127: (1) | E127: (2) | F127: (3) | G127: (4) | H127: (5) | I127: (6) | J127: (7) | K127: (8) | L127: (9) | M127: (10) | N127: (11) | O127: (12) | Q127: (13) | S127: (14) | T127: (15) | U127: (16) | V127: (17) | W127: (18) | X127: (19) | Y127: (20) | Z127: (21) | AA127: (22) | AB127: (23) | AC127: (24) | AD127: (25) | AE127: (26) | AF127: (27) | AG127: (28) | AH127: (29) | AI127: (30) | AJ127: (31) | AK127: (32) | AL127: (33)
C128: B-deild | D128: A-deild | O128: A-deild | P128: V-deild | Q128: Hluttfallsd. | R128: Aldursdeild
A129: Lífeyrir | C129: 20232656 | D129: 1273384 | E129: 6370345 | F129: 7494422 | G129: 2984493 | H129: 3115666 | I129: 881972 | J129: 235346 | K129: 2242359 | L129: 1491385 | M129: 1844851 | N129: 2377098 | O129: 594899 | P129: 32232 | Q129: 1551080 | R129: 104446 | S129: 433643 | T129: 33929 | U129: 787008 | V129: 755513 | W129: 1096677 | X129: 1738379 | Y129: 684963 | Z129: 577506 | AA129: 494263 | AB129: 366971 | AC129: 144651 | AD129: 223189 | AE129: 176010 | AF129: 1614 | AG129: 276186 | AH129: 176871 | AI129: 75723 | AJ129: 74361 | AK129: 106595 | AL129: 229106 | AN129: =SUM(B129:AL129) -> 61279792
A130: Ellilífeyrir (%) | C130: 77.8 | D130: 33.9 | E130: 64.9 | F130: 61 | G130: 64.6 | H130: 68.8 | I130: 78 | J130: 34.3 | K130: 70.9 | L130: 75.1 | M130: 62 | N130: 73.3 | O130: 54.1 | P130: 46.7 | Q130: 81.5 | R130: 40.3 | S130: 80 | T130: 15.5 | U130: 56.4 | V130: 58.4 | W130: 84.4 | X130: 88.2 | Y130: 80.8 | Z130: 84.8 | AA130: 74.9 | AB130: 75.8 | AC130: 73.8 | AD130: 74.4 | AE130: 80.8 | AF130: 0 | AG130: 83.8 | AH130: 76.5 | AI130: 75.2 | AJ130: 67 | AK130: 69.2 | AL130: 75.3
A131: Örorkulífeyrir (%) | C131: 3.5 | D131: 54.9 | E131: 25.2 | F131: 30.2 | G131: 27.3 | H131: 17.6 | I131: 8.7 | J131: 51.3 | K131: 16.3 | L131: 14.2 | M131: 30.3 | N131: 19.2 | O131: 35.9 | P131: 45.2 | Q131: 7.1 | R131: 47.4 | S131: 6.3 | T131: 78 | U131: 33.8 | V131: 29.4 | W131: 6.8 | X131: 9.1 | Y131: 8.6 | Z131: 2 | AA131: 5.5 | AB131: 5.1 | AC131: 19.9 | AD131: 16.9 | AE131: 3.4 | AF131: 100 | AG131: 5.2 | AH131: 8.7 | AI131: 9.5 | AJ131: 4.4 | AK131: 8.9 | AL131: 1.8
A132: Makalífeyrir (%) | C132: 18.6 | D132: 5.1 | E132: 8.3 | F132: 7.6 | G132: 6.9 | H132: 12.4 | I132: 11.7 | J132: 10.5 | K132: 12.1 | L132: 10.1 | M132: 6.1 | N132: 7.4 | O132: 4.9 | P132: 1.9 | Q132: 11.3 | R132: 10.1 | S132: 12.4 | T132: 6.5 | U132: 8.8 | V132: 9.7 | W132: 8.4 | X132: 2.7 | Y132: 9 | Z132: 13.1 | AA132: 19.6 | AB132: 19 | AC132: 5.1 | AD132: 8.7 | AE132: 15.7 | AF132: 0 | AG132: 10.9 | AH132: 14.7 | AI132: 14.8 | AJ132: 28.6 | AK132: 21.4 | AL132: 22.8
A133: Barnalífeyrir (%) | C133: 0.1 | D133: 6.1 | E133: 1.6 | F133: 1.2 | G133: 1.1 | H133: 0.9 | I133: 1.6 | J133: 3.9 | K133: 0.7 | L133: 0.6 | M133: 1.6 | N133: 0.1 | O133: 5.1 | P133: 6.2 | Q133: 0.1 | R133: 2.2 | S133: 1.3 | T133: 0 | U133: 1 | V133: 2.5 | W133: 0.4 | X133: 0.1 | Y133: 1.7 | Z133: 0.1 | AA133: 0 | AB133: 0 | AC133: 1.2 | AD133: 0 | AE133: 0.1 | AF133: 0 | AG133: 0.1 | AH133: 0.1 | AI133: 0.5 | AJ133: 0 | AK133: 0.5 | AL133: 0.1
A134: Annar lífeyrir (%) | C134: 0 | D134: 0 | E134: 0 | F134: 0 | G134: 0 | H134: 0.3 | I134: 0 | J134: 0 | K134: 0 | L134: 0 | M134: 0 | N134: 0 | O134: 0 | P134: 0 | Q134: 0 | R134: 0 | S134: 0 | T134: 0 | U134: 0 | V134: 0 | W134: 0 | X134: 0 | Y134: 0 | Z134: 0 | AA134: 0 | AB134: 0 | AC134: 0 | AD134: 0 | AE134: 0 | AF134: 0 | AG134: 0 | AH134: 0 | AI134: 0 | AJ134: 0 | AK134: 0 | AL134: 0
A136: Ellilífeyrir | C136: =C129*C130% -> 15741006.37 | D136: =D129*D130% -> 431677.176 | E136: 4134353.905 | F136: =F129*F130% -> 4571597.42 | G136: 1927982.478 | H136: 2143578.208 | I136: 687938.16 | J136: 80723.678 | K136: 1589832.531 | L136: 1120030.135 | M136: 1143807.62 | N136: 1742412.834 | O136: 321840.359 | P136: 15052.344 | Q136: 1264130.2 | R136: 42091.738 | S136: 346914.4 | T136: 5258.995 | U136: 443872.512 | V136: 441219.592 | W136: 925595.388 | X136: 1533250.278 | Y136: 553450.104 | Z136: 489725.088 | AA136: 370202.987 | AB136: 278164.018 | AC136: 106752.438 | AD136: 166052.616 | AE136: 142216.08 | AF136: 0 | AG136: 231443.868 | AH136: 135306.315 | AI136: 56943.696 | AJ136: 49821.87 | AK136: 73763.74 | AL136: 172516.818 | AN136: =SUM(C136:AL136) -> 43480525.96
A137: Örorkulífeyrir | C137: =C129*C131% -> 708142.96 | D137: =D129*D131% -> 699087.816 | E137: 1605326.94 | F137: 2263315.444 | G137: 814766.589 | H137: 548357.216 | I137: 76731.564 | J137: 120732.498 | K137: 365504.517 | L137: 211776.67 | M137: 558989.853 | N137: 456402.816 | O137: 213568.741 | P137: 14568.864 | Q137: 110126.68 | R137: 49507.404 | S137: 27319.509 | T137: 26464.62 | U137: 266008.704 | V137: 222120.822 | W137: 74574.036 | X137: 158192.489 | Y137: 58906.818 | Z137: 11550.12 | AA137: 27184.465 | AB137: 18715.521 | AC137: 28785.549 | AD137: 37718.941 | AE137: 5984.34 | AF137: 1614 | AG137: 14361.672 | AH137: 15387.777 | AI137: 7193.685 | AJ137: 3271.884 | AK137: 9486.955 | AL137: 4123.908 | AN137: =SUM(C137:AL137) -> 9835872.387
A138: Makalífeyrir | C138: =C129*C132% -> 3763274.016 | D138: =D129*D132% -> 64942.584 | E138: 528738.635 | F138: 569576.072 | G138: 205930.017 | H138: 386342.584 | I138: 103190.724 | J138: 24711.33 | K138: 271325.439 | L138: 150629.885 | M138: 112535.911 | N138: 175905.252 | O138: 29150.051 | P138: 612.408 | Q138: 175272.04 | R138: 10549.046 | S138: 53771.732 | T138: 2205.385 | U138: 69256.704 | V138: 73284.761 | W138: 92120.868 | X138: 46936.233 | Y138: 61646.67 | Z138: 75653.286 | AA138: 96875.548 | AB138: 69724.49 | AC138: 7377.201 | AD138: 19417.443 | AE138: 27633.57 | AF138: 0 | AG138: 30104.274 | AH138: 26000.037 | AI138: 11207.004 | AJ138: 21267.246 | AK138: 22811.33 | AL138: 52236.168 | AN138: =SUM(C138:AL138) -> 7432215.944
A139: Barnalífeyrir | C139: =C129*C133% -> 20232.656 | D139: =D129*D133% -> 77676.424 | E139: 101925.52 | F139: 89933.064 | G139: 32829.423 | H139: 28040.994 | I139: 14111.552 | J139: 9178.494 | K139: 15696.513 | L139: 8948.31 | M139: 29517.616 | N139: 2377.098 | O139: 30339.849 | P139: 1998.384 | Q139: 1551.08 | R139: 2297.812 | S139: 5637.359 | T139: 0 | U139: 7870.08 | V139: 18887.825 | W139: 4386.708 | X139: 1738.379 | Y139: 11644.371 | Z139: 577.506 | AA139: 0 | AB139: 0 | AC139: 1735.812 | AD139: 0 | AE139: 176.01 | AF139: 0 | AG139: 276.186 | AH139: 176.871 | AI139: 378.615 | AJ139: 0 | AK139: 532.975 | AL139: 229.106 | AN139: =SUM(C139:AL139) -> 520902.592
A140: Annar lífeyrir | C140: =C129*C134% -> 0 | D140: =D129*D134% -> 0 | E140: 0 | F140: 0 | G140: 0 | H140: 9346.998 | I140: 0 | J140: 0 | K140: 0 | L140: 0 | M140: 0 | N140: 0 | O140: 0 | P140: 0 | Q140: 0 | R140: 0 | S140: 0 | T140: 0 | U140: 0 | V140: 0 | W140: 0 | X140: 0 | Y140: 0 | Z140: 0 | AA140: 0 | AB140: 0 | AC140: 0 | AD140: 0 | AE140: 0 | AF140: 0 | AG140: 0 | AH140: 0 | AI140: 0 | AJ140: 0 | AK140: 0 | AL140: 0 | AN140: =SUM(C140:AL140) -> 9346.998
A143: 2009 | C143: Lífeyrissjóður stm. ríkisins | E143: Lífeyrissjóður verslunar-manna | F143: Gildi lífeyrissjóður | G143: Stapi lífeyrissjóður | H143: Sameinaði lífeyris-sjóðurinn | I143: Almenni lífeyris-sjóðurinn | J143: Stafir lífeyrissjóður | K143: Frjálsi lífeyrissjóðurinn | L143: Söfnunarsj. lífeyris-réttinda | M143: Festa lífeyrissjóður | N143: Lífeyrissj. stm. Reykjavíkurb. | O143: Lífeyrissjóður bankamanna | Q143: Lífeyrissj. stm. sveitarfél. | S143: Lífeyrissj. Verk-fræðinga | T143: Lífeyrissj. Vestmanna-eyja | U143: Íslenski lífeyris-sjóðurinn | V143: Lífeyrissj. Vestfirðinga | W143: Lífeyrissj. bænda | X143: Lífeyrissj. hjúkrunar-fræðinga | Y143: Lífeyrissj. stm. Búnaðarb. Ísl. | Z143: Eftirlaunasj. FÍA | AA143: Kjölur lífeyrissj. | AB143: Lífeyrissj. stm. Akureyrarb. | AC143: Eftirlaunasj. stm. Glitnis banka hf. | AD143: Lífeyrissj. Rangæinga | AE143: Eftirlaunasj. Reykjanesbæjar | AF143: Lífeyrissj. stm. Kópavogsb. | AG143: Lífeyrissj. Tannlæknafél. Íslands | AH143: Eftirlaunasj. stm. Hafnarfjarðark. | AI143: Lífeyrissj. Akranes-kaupstaðar | AJ143: Eftirlaunasj. Sláturfélags Suðurlands | AK143: Lífeyrissj. stm. Húsavíkurk. | AL143: Lífeyrissj. Nes-kaupstaðar | AM143: Lífeyris-sjóðurinn Skjöldur | AN143: Lífeyrissj. stm. Vestm.-eyjab. | AO143: Lífeyrissj. Eimskipaf. Ísl. | AP143: Eftirlaunasj.stm. Útvegsb. Íslands | AR143: Lífeyrissj. Samtals
E145: Samtryggingardeild | F145: Samtryggingardeild | J145: Samtryggingardeild | L145: Samtryggingardeild | N145: Samtryggingardeild | S145: Samtryggingardeild | T145: Samtryggingardeild | U145: Samtryggingardeild | V145: Samtryggingardeild | W145: Samtryggingardeild | X145: Samtryggingardeild | Y145: Samtryggingardeild
A146: Fjárhæðir í þús. kr. | C146: (1) | E146: (2) | F146: (3) | G146: (4) | H146: (5) | I146: (6) | J146: (7) | K146: (8) | L146: (9) | M146: (10) | N146: (11) | O146: (12) | Q146: (13) | S146: (14) | T146: (15) | U146: (16) | V146: (17) | W146: (18) | X146: (19) | Y146: (20) | Z146: (21) | AA146: (22) | AB146: (23) | AC146: (24) | AD146: (25) | AE146: (26) | AF146: (27) | AG146: (28) | AH146: (29) | AI146: (30) | AJ146: (31) | AK146: (32) | AL146: (33) | AM146: (34) | AN146: (35) | AO146: (36) | AP146: (37)
C147: B-deild | D147: A-deild | O147: Hluttfallsd. | P147: Aldursdeild | Q147: A-deild | R147: V-deild
A148: Lífeyrir | C148: 19327836 | D148: 982102 | E148: 5909565 | F148: 7356974 | G148: 2741584 | H148: 3063287 | I148: 897879 | J148: 2191193 | K148: 216502 | L148: 989979 | M148: 1767442 | N148: 2288330 | O148: 1364783 | P148: 71091 | Q148: 487450 | R148: 19579 | S148: 429324 | T148: 756328 | U148: 22375 | V148: 749517 | W148: 1031857 | X148: 1586560 | Y148: 495446 | Z148: 673228 | AA148: 574213 | AB148: 350294 | AC148: 204333 | AD148: 134970 | AE148: 159161 | AF148: 198050 | AG148: 1914 | AH148: 261764 | AI148: 176791 | AJ148: 48084 | AK148: 65383 | AL148: 71339 | AM148: 46058 | AN148: 102576 | AO148: 36034 | AP148: 227059 | AR148: =SUM(C148:AP148) -> 58078234
A149: Ellilífeyrir (%) | C149: 77.3 | D149: 29.24 | E149: 63.6 | F149: 62.1 | G149: 61.9 | H149: 68.2 | I149: 73.87532474 | J149: 72.15 | K149: 26.4 | L149: 68.9 | M149: 59.7 | N149: 72.8 | O149: 81.8 | P149: 48.2 | Q149: 52.4 | R149: 50.8 | S149: 77.9 | T149: 52.1 | U149: 6.5 | V149: 56.5 | W149: 81.5 | X149: 88.9 | Y149: 82.8 | Z149: 82.8 | AA149: 73.2 | AB149: 77.5 | AC149: 81.7 | AD149: 71.8 | AE149: 79.1 | AF149: 74.6 | AG149: 0 | AH149: 78.5 | AI149: 75.5 | AJ149: 82.7 | AK149: 74.6 | AL149: 70.6 | AM149: 75 | AN149: 63.6 | AO149: 89.8 | AP149: 74.2
A150: Örorkulífeyrir (%) | C150: 3.7 | D150: 59.44 | E150: 26.1 | F150: 29.6 | G150: 29.5 | H150: 18.1 | I150: 12.49648291 | J150: 14.15 | K150: 59.1 | L150: 22.2 | M150: 32.4 | N150: 20.3 | O150: 6.5 | P150: 37.6 | Q150: 37.6 | R150: 44.4 | S150: 8.6 | T150: 37.7 | U150: 84.9 | V150: 30.8 | W150: 8.3 | X150: 8.3 | Y150: 2.8 | Z150: 7.1 | AA150: 20.6 | AB150: 4.4 | AC150: 0.1 | AD150: 21.9 | AE150: 4.9 | AF150: 17.3 | AG150: 75.3 | AH150: 3.2 | AI150: 9.3 | AJ150: 13.3 | AK150: 9 | AL150: 4 | AM150: 1 | AN150: 8.5 | AO150: 0 | AP150: 1.5
A151: Makalífeyrir (%) | C151: 18.9 | D151: 4.22 | E151: 8.5 | F151: 7.1 | G151: 7.2 | H151: 12.5 | I151: 12.47205724 | J151: 12.8 | K151: 10.2 | L151: 7.8 | M151: 6.2 | N151: 6.8 | O151: 11.5 | P151: 12.6 | Q151: 4.8 | R151: 0.7 | S151: 12.2 | T151: 9.1 | U151: 7.9 | V151: 10.3 | W151: 9.8 | X151: 2.7 | Y151: 14.3 | Z151: 8.6 | AA151: 6.2 | AB151: 18 | AC151: 18.2 | AD151: 4.9 | AE151: 15.9 | AF151: 8.1 | AG151: 24.7 | AH151: 18.2 | AI151: 15.1 | AJ151: 4 | AK151: 15.8 | AL151: 25.4 | AM151: 24 | AN151: 27.3 | AO151: 10.2 | AP151: 24.2
A152: Barnalífeyrir (%) | C152: 0.1 | D152: 7.1 | E152: 1.8 | F152: 1.2 | G152: 1.4 | H152: 1 | I152: 1.156135114 | J152: 0.9 | K152: 4.3 | L152: 1.1 | M152: 1.7 | N152: 0.1 | O152: 0.2 | P152: 1.6 | Q152: 5.2 | R152: 4.1 | S152: 1.3 | T152: 1.1 | U152: 0.7 | V152: 2.4 | W152: 0.4 | X152: 0.1 | Y152: 0.1 | Z152: 1.5 | AA152: 0 | AB152: 0.1 | AC152: 0 | AD152: 1.4 | AE152: 0.1 | AF152: 0 | AG152: 0 | AH152: 0.1 | AI152: 0.1 | AJ152: 0 | AK152: 0.6 | AL152: 0 | AM152: 0 | AN152: 0.6 | AO152: 0 | AP152: 0.1
A153: Annar lífeyrir (%) | C153: 0 | D153: 0 | E153: 0 | F153: 0 | G153: 0 | H153: 0.2 | I153: 0 | J153: 0 | K153: 0 | L153: 0 | M153: 0 | N153: 0 | O153: 0 | P153: 0 | Q153: 0 | R153: 0 | S153: 0 | T153: 0 | U153: 0 | V153: 0 | W153: 0 | X153: 0 | Y153: 0 | Z153: 0 | AA153: 0 | AB153: 0 | AC153: 0 | AD153: 0 | AE153: 0 | AF153: 0 | AG153: 0 | AH153: 0 | AI153: 0 | AJ153: 0 | AK153: 0 | AL153: 0 | AM153: 0 | AN153: 0 | AO153: 0 | AP153: 0
A155: Ellilífeyrir | C155: =C$148*C149% -> 14940417.23 | D155: =D$148*D149% -> 287166.6248 | E155: 3758483.34 | F155: 4568680.854 | G155: 1697040.496 | H155: 2089161.734 | I155: 663311.0271 | J155: 1580945.75 | K155: 57156.528 | L155: 682095.531 | M155: 1055162.874 | N155: 1665904.24 | O155: 1116392.494 | P155: 34265.862 | Q155: 255423.8 | R155: 9946.132 | S155: 334443.396 | T155: 394046.888 | U155: 1454.375 | V155: 423477.105 | W155: 840963.455 | X155: 1410451.84 | Y155: 410229.288 | Z155: 557432.784 | AA155: 420323.916 | AB155: 271477.85 | AC155: 166940.061 | AD155: 96908.46 | AE155: 125896.351 | AF155: 147745.3 | AG155: 0 | AH155: 205484.74 | AI155: 133477.205 | AJ155: 39765.468 | AK155: 48775.718 | AL155: 50365.334 | AM155: 34543.5 | AN155: 65238.336 | AO155: 32358.532 | AP155: 168477.778 | AR155: =SUM(C155:AP155) -> 40841832.19
A156: Örorkulífeyrir | C156: =C$148*C150% -> 715129.932 | D156: =D$148*D150% -> 583761.4288 | E156: 1542396.465 | F156: 2177664.304 | G156: 808767.28 | H156: 554454.947 | I156: 112203.2958 | J156: 310053.8095 | K156: 127952.682 | L156: 219775.338 | M156: 572651.208 | N156: 464530.99 | O156: 88710.895 | P156: 26730.216 | Q156: 183281.2 | R156: 8693.076 | S156: 36921.864 | T156: 285135.656 | U156: 18996.375 | V156: 230851.236 | W156: 85644.131 | X156: 131684.48 | Y156: 13872.488 | Z156: 47799.188 | AA156: 118287.878 | AB156: 15412.936 | AC156: 204.333 | AD156: 29558.43 | AE156: 7798.889 | AF156: 34262.65 | AG156: 1441.242 | AH156: 8376.448 | AI156: 16441.563 | AJ156: 6395.172 | AK156: 5884.47 | AL156: 2853.56 | AM156: 460.58 | AN156: 8718.96 | AO156: 0 | AP156: 3405.885 | AR156: =SUM(C156:AP156) -> 9607165.481
A157: Makalífeyrir | C157: =C$148*C151% -> 3652961.004 | D157: 41444.7044 | E157: 502313.025 | F157: 522345.154 | G157: 197394.048 | H157: 382910.875 | I157: 111983.9828 | J157: 280472.704 | K157: 22083.204 | L157: 77218.362 | M157: 109581.404 | N157: 155606.44 | O157: 156950.045 | P157: 8957.466 | Q157: 23397.6 | R157: 137.053 | S157: 52377.528 | T157: 68825.848 | U157: 1767.625 | V157: 77200.251 | W157: 101121.986 | X157: 42837.12 | Y157: 70848.778 | Z157: 57897.608 | AA157: 35601.206 | AB157: 63052.92 | AC157: 37188.606 | AD157: 6613.53 | AE157: 25306.599 | AF157: 16042.05 | AG157: 472.758 | AH157: 47641.048 | AI157: 26695.441 | AJ157: 1923.36 | AK157: 10330.514 | AL157: 18120.106 | AM157: 11053.92 | AN157: 28003.248 | AO157: 3675.468 | AP157: 54948.278 | AR157: =SUM(C157:AP157) -> 7105302.867
A158: Barnalífeyrir | C158: =C$148*C152% -> 19327.836 | D158: 69729.242 | E158: 106372.17 | F158: 88283.688 | G158: 38382.176 | H158: 30632.87 | I158: 10380.6944 | J158: 19720.737 | K158: 9309.586 | L158: 10889.769 | M158: 30046.514 | N158: 2288.33 | O158: 2729.566 | P158: 1137.456 | Q158: 25347.4 | R158: 802.739 | S158: 5581.212 | T158: 8319.608 | U158: 156.625 | V158: 17988.408 | W158: 4127.428 | X158: 1586.56 | Y158: 495.446 | Z158: 10098.42 | AA158: 0 | AB158: 350.294 | AC158: 0 | AD158: 1889.58 | AE158: 159.161 | AF158: 0 | AG158: 0 | AH158: 261.764 | AI158: 176.791 | AJ158: 0 | AK158: 392.298 | AL158: 0 | AM158: 0 | AN158: 615.456 | AO158: 0 | AP158: 227.059 | AR158: =SUM(C158:AP158) -> 517806.8834
A159: Annar lífeyrir | C159: =C$148*C153% -> 0 | D159: 0 | E159: 0 | F159: 0 | G159: 0 | H159: 6126.574 | I159: 0 | J159: 0 | K159: 0 | L159: 0 | M159: 0 | N159: 0 | O159: 0 | P159: 0 | Q159: 0 | R159: 0 | S159: 0 | T159: 0 | U159: 0 | V159: 0 | W159: 0 | X159: 0 | Y159: 0 | Z159: 0 | AA159: 0 | AB159: 0 | AC159: 0 | AD159: 0 | AE159: 0 | AF159: 0 | AG159: 0 | AH159: 0 | AI159: 0 | AJ159: 0 | AK159: 0 | AL159: 0 | AM159: 0 | AN159: 0 | AO159: 0 | AP159: 0 | AR159: =SUM(C159:AP159) -> 6126.574
A162: 2008 | C162: Lífeyrissjóður stm. ríkisins | E162: Lífeyrissjóður verslunarmanna | F162: Gildi lífeyrissjóður | G162: Stapi lífeyrissjóður | H162: Sameinaði lífeyris-sjóðurinn | I162: Almenni lífeyrissjóðurinn | L162: Stafir lífeyris-sjóður | M162: Frjálsi lífeyris-sjóðurinn | N162: Söfnunarsj. lífeyris-réttinda | O162: Festa lífeyrissjóður | P162: Lífeyrissj. stm. Reykjavíkurb. | Q162: Lífeyrissjóður bankamanna | S162: Lífeyrissj. stm. sveitarfél. | U162: Lífeyrissj. Verkfræðinga | V162: Íslenski lífeyris-sjóðurinn | W162: Lífeyrissj. Vestmanna-eyja | X162: Lífeyrissj. Vestfirðinga | Y162: Lífeyrissj. bænda | Z162: Lífeyrissj. hjúkrunar-fræðinga | AA162: Lífeyrissj. stm. Búnaðarb. Ísl. | AB162: Eftirlaunasj. FÍA | AC162: Kjölur lífeyrissj. | AD162: Lífeyrissj. stm. Akureyrarb. | AE162: Eftirlaunasj. stm. Glitnis banka hf. | AF162: Lífeyrissj. Rangæinga | AG162: Lífeyrissj. stm. Kópavogsb. | AH162: Eftirlaunasj. Reykjanes-bæjar | AI162: Lífeyrissj. Tannlæknafél. Íslands | AJ162: Eftirlaunasj. stm. Hafnarfjarðark. | AK162: Lífeyrissj. Akranes-kaupstaðar | AL162: Eftirlaunasj. Sláturfélags Suðurlands | AM162: Lífeyrissj. stm. Húsavíkurk. | AN162: Lífeyrissj. Nes-kaupstaðar | AO162: Lífeyris-sjóðurinn Skjöldur | AP162: Lífeyrissj. Eimskipaf. Ísl. | AQ162: Lífeyrissj. stm. Vestm.eyjab. | AR162: Eftirlaunasj. stm. Útvegsb. Íslands | AT162: Lífeyrissj. Samtals
E164: Samtryggingardeild | F164: Samtryggingardeild | L164: Samtryggingardeild | N164: Samtryggingardeild | P164: Samtryggingardeild | U164: Samtryggingardeild | V164: Samtryggingardeild | W164: Samtryggingardeild | X164: Samtryggingardeild | Y164: Samtryggingardeild | Z164: Samtryggingardeild | AA164: Samtryggingardeild
A165: Fjárhæðir í þús. kr. | C165: (1) | E165: (2) | F165: (3) | G165: (4) | H165: (5) | J165: (6) | L165: (7) | M165: (8) | N165: (9) | O165: (10) | P165: (11) | Q165: (12) | S165: (13) | U165: (14) | V165: (15) | W165: (16) | X165: (17) | Y165: (18) | Z165: (19) | AA165: (20) | AB165: (21) | AC165: (22) | AD165: (23) | AE165: (24) | AF165: (25) | AG165: (26) | AH165: (27) | AI165: (28) | AJ165: (29) | AK165: (30) | AL165: (31) | AM165: (32) | AN165: (33) | AO165: (34) | AP165: (35) | AQ165: (36) | AR165: (37)
C166: B-deild | D166: A-deild | I166: Tryggingad. | J166: Lífeyrisdeild | K166: Eftirlaunad. | Q166: Hluttfallsd. | R166: Aldursdeild | S166: A-deild | T166: V-deild
A167: Lífeyrir | C167: 17382999 | D167: 718479 | E167: 4835823 | F167: 6610678 | G167: 2335790 | H167: 2694329 | I167: 200589 | J167: 569830 | K167: 0 | L167: 1797237 | M167: 147355 | N167: 753420 | O167: 1514956 | P167: 2064295 | Q167: 1130156 | R167: 49238 | S167: 359369 | T167: 14339 | U167: 358798 | V167: 12158 | W167: 595654 | X167: 698394 | Y167: 882933 | Z167: 1365662 | AA167: 488906 | AB167: 582726 | AC167: 553378 | AD167: 308905 | AE167: 200396 | AF167: 110910 | AG167: 179508 | AH167: 131368 | AI167: 2471 | AJ167: 126060 | AK167: 159010 | AL167: 44601 | AM167: 56738 | AN167: 66333 | AO167: 46180 | AP167: 36175 | AQ167: 95717 | AR167: 207568 | AT167: =SUM(C167:AR167) -> 50489431
A168: Ellilífeyrir (%) | C168: 76.2 | D168: 22.6 | E168: 62.4 | F168: 58.8 | G168: 65.5 | H168: 67 | I168: 0 | J168: 100 | K168: 0 | L168: 70.2 | M168: 31.4 | N168: 67.1 | O168: 57.9 | P168: 72.1 | Q168: 81.9 | R168: 51.5 | S168: 54 | T168: 41.3 | U168: 78.2 | V168: 3.4 | W168: 51.7 | X168: 54.3 | Y168: 80.3 | Z168: 86.7 | AA168: 83.7 | AB168: 83.3 | AC168: 71 | AD168: 77.4 | AE168: 82.3 | AF168: 76.2 | AG168: 71 | AH168: 78.2 | AI168: 0 | AJ168: 78.5 | AK168: 73.3 | AL168: 84.8 | AM168: 74.4 | AN168: 73.2 | AO168: 76 | AP168: 90.3 | AQ168: 56.5 | AR168: 71.5
A169: Örorkulífeyrir (%) | C169: 4.1 | D169: 65.5 | E169: 26.7 | F169: 32 | G169: 24.1 | H169: 18.4 | I169: 45.4 | J169: 0 | K169: 0 | L169: 14.9 | M169: 54.6 | N169: 24 | O169: 33.7 | P169: 21.4 | Q169: 6.3 | R169: 32.3 | S169: 35.4 | T169: 49 | U169: 7 | V169: 86.8 | W169: 37 | X169: 32.7 | Y169: 10.7 | Z169: 10.2 | AA169: 3.4 | AB169: 6.9 | AC169: 21.8 | AD169: 4.9 | AE169: 0.1 | AF169: 16.6 | AG169: 10.7 | AH169: 4.9 | AI169: 60.1 | AJ169: 3.2 | AK169: 10.6 | AL169: 12.3 | AM169: 9.2 | AN169: 4 | AO169: 1 | AP169: 0 | AQ169: 9.6 | AR169: 2.1
A170: Makalífeyrir (%) | C170: 19.6 | D170: 3.8 | E170: 8.9 | F170: 7.8 | G170: 8.6 | H170: 12.6 | I170: 49.4 | J170: 0 | K170: 0 | L170: 14 | M170: 10 | N170: 7.6 | O170: 6.5 | P170: 6.4 | Q170: 11.7 | R170: 15 | S170: 4.8 | T170: 2.1 | U170: 13.3 | V170: 9.8 | W170: 10.1 | X170: 10.4 | Y170: 8.4 | Z170: 2.9 | AA170: 12.6 | AB170: 8.4 | AC170: 7.1 | AD170: 17.6 | AE170: 17.6 | AF170: 5.8 | AG170: 18.3 | AH170: 16.8 | AI170: 39.9 | AJ170: 18.2 | AK170: 16 | AL170: 2.9 | AM170: 15.8 | AN170: 22.8 | AO170: 23 | AP170: 9.7 | AQ170: 33.3 | AR170: 26.3
A171: Barnalífeyrir (%) | C171: 0.1 | D171: 8.1 | E171: 2 | F171: 1.4 | G171: 1.8 | H171: 1.1 | I171: 5.2 | J171: 0 | K171: 0 | L171: 0.9 | M171: 4 | N171: 1.3 | O171: 1.9 | P171: 0.1 | Q171: 0.1 | R171: 1.2 | S171: 5.8 | T171: 7.6 | U171: 1.5 | V171: 0 | W171: 1.2 | X171: 2.6 | Y171: 0.6 | Z171: 0.2 | AA171: 0.1 | AB171: 1.4 | AC171: 0.1 | AD171: 0.1 | AE171: 0 | AF171: 1.4 | AG171: 0 | AH171: 0.1 | AI171: 0 | AJ171: 0.1 | AK171: 0.1 | AL171: 0 | AM171: 0.6 | AN171: 0 | AO171: 0 | AP171: 0 | AQ171: 0.6 | AR171: 0.1
A172: Annar lífeyrir (%) | C172: 0 | D172: 0 | E172: 0 | F172: 0 | G172: 0 | H172: 0.9 | I172: 0 | J172: 0 | K172: 0 | L172: 0 | M172: 0 | N172: 0 | O172: 0 | P172: 0 | Q172: 0 | R172: 0 | S172: 0 | T172: 0 | U172: 0 | V172: 0 | W172: 0 | X172: 0 | Y172: 0 | Z172: 0 | AA172: 0.2 | AB172: 0 | AC172: 0 | AD172: 0 | AE172: 0 | AF172: 0 | AG172: 0 | AH172: 0 | AI172: 0 | AJ172: 0 | AK172: 0 | AL172: 0 | AM172: 0 | AN172: 0 | AO172: 0 | AP172: 0 | AQ172: 0 | AR172: 0
A174: Ellilífeyrir | C174: =C$167*C168% -> 13245845.24 | D174: =D$167*D168% -> 162376.254 | E174: 3017553.552 | F174: 3887078.664 | G174: 1529942.45 | H174: 1805200.43 | I174: 0 | J174: 569830 | K174: 0 | L174: 1261660.374 | M174: 46269.47 | N174: 505544.82 | O174: 877159.524 | P174: 1488356.695 | Q174: 925597.764 | R174: 25357.57 | S174: 194059.26 | T174: 5922.007 | U174: 280580.036 | V174: 413.372 | W174: 307953.118 | X174: 379227.942 | Y174: 708995.199 | Z174: 1184028.954 | AA174: 409214.322 | AB174: 485410.758 | AC174: 392898.38 | AD174: 239092.47 | AE174: 164925.908 | AF174: 84513.42 | AG174: 127450.68 | AH174: 102729.776 | AI174: 0 | AJ174: 98957.1 | AK174: 116554.33 | AL174: 37821.648 | AM174: 42213.072 | AN174: 48555.756 | AO174: 35096.8 | AP174: 32666.025 | AQ174: 54080.105 | AR174: 148411.12 | AT174: =SUM(C174:AR174) -> 35029544.36
A175: Örorkulífeyrir | C175: =C$167*C169% -> 712702.959 | D175: =D$167*D169% -> 470603.745 | E175: 1291164.741 | F175: 2115416.96 | G175: 562925.39 | H175: 495756.536 | I175: 91067.406 | J175: 0 | K175: 0 | L175: 267788.313 | M175: 80455.83 | N175: 180820.8 | O175: 510540.172 | P175: 441759.13 | Q175: 71199.828 | R175: 15903.874 | S175: 127216.626 | T175: 7026.11 | U175: 25115.86 | V175: 10553.144 | W175: 220391.98 | X175: 228374.838 | Y175: 94473.831 | Z175: 139297.524 | AA175: 16622.804 | AB175: 40208.094 | AC175: 120636.404 | AD175: 15136.345 | AE175: 200.396 | AF175: 18411.06 | AG175: 19207.356 | AH175: 6437.032 | AI175: 1485.071 | AJ175: 4033.92 | AK175: 16855.06 | AL175: 5485.923 | AM175: 5219.896 | AN175: 2653.32 | AO175: 461.8 | AP175: 0 | AQ175: 9188.832 | AR175: 4358.928 | AT175: =SUM(C175:AR175) -> 8447157.838
A176: Makalífeyrir | C176: =C$167*C170% -> 3407067.804 | D176: 27302.202 | E176: 430388.247 | F176: 515632.884 | G176: 200877.94 | H176: 339485.454 | I176: 99090.966 | J176: 0 | K176: 0 | L176: 251613.18 | M176: 14735.5 | N176: 57259.92 | O176: 98472.14 | P176: 132114.88 | Q176: 132228.252 | R176: 7385.7 | S176: 17249.712 | T176: 301.119 | U176: 47720.134 | V176: 1191.484 | W176: 60161.054 | X176: 72632.976 | Y176: 74166.372 | Z176: 39604.198 | AA176: 61602.156 | AB176: 48948.984 | AC176: 39289.838 | AD176: 54367.28 | AE176: 35269.696 | AF176: 6432.78 | AG176: 32849.964 | AH176: 22069.824 | AI176: 985.929 | AJ176: 22942.92 | AK176: 25441.6 | AL176: 1293.429 | AM176: 8964.604 | AN176: 15123.924 | AO176: 10621.4 | AP176: 3508.975 | AQ176: 31873.761 | AR176: 54590.384 | AT176: =SUM(C176:AR176) -> 6502859.566
A177: Barnalífeyrir | C177: =C$167*C171% -> 17382.999 | D177: 58196.799 | E177: 96716.46 | F177: 92549.492 | G177: 42044.22 | H177: 29637.619 | I177: 10430.628 | J177: 0 | K177: 0 | L177: 16175.133 | M177: 5894.2 | N177: 9794.46 | O177: 28784.164 | P177: 2064.295 | Q177: 1130.156 | R177: 590.856 | S177: 20843.402 | T177: 1089.764 | U177: 5381.97 | V177: 0 | W177: 7147.848 | X177: 18158.244 | Y177: 5297.598 | Z177: 2731.324 | AA177: 488.906 | AB177: 8158.164 | AC177: 553.378 | AD177: 308.905 | AE177: 0 | AF177: 1552.74 | AG177: 0 | AH177: 131.368 | AI177: 0 | AJ177: 126.06 | AK177: 159.01 | AL177: 0 | AM177: 340.428 | AN177: 0 | AO177: 0 | AP177: 0 | AQ177: 574.302 | AR177: 207.568 | AT177: =SUM(C177:AR177) -> 484642.46
A178: Annar lífeyrir | C178: =C$167*C172% -> 0 | D178: 0 | E178: 0 | F178: 0 | G178: 0 | H178: 24248.961 | I178: 0 | J178: 0 | K178: 0 | L178: 0 | M178: 0 | N178: 0 | O178: 0 | P178: 0 | Q178: 0 | R178: 0 | S178: 0 | T178: 0 | U178: 0 | V178: 0 | W178: 0 | X178: 0 | Y178: 0 | Z178: 0 | AA178: 977.812 | AB178: 0 | AC178: 0 | AD178: 0 | AE178: 0 | AF178: 0 | AG178: 0 | AH178: 0 | AI178: 0 | AJ178: 0 | AK178: 0 | AL178: 0 | AM178: 0 | AN178: 0 | AO178: 0 | AP178: 0 | AQ178: 0 | AR178: 0 | AT178: =SUM(C178:AR178) -> 25226.773
A181: 2007 | C181: Lífeyrissjóður stm. ríkisins | E181: Lífeyrissjóður verslunar-manna | F181: Gildi lífeyrissjóður | G181: Sameinaði lífeyrissjóðurinn | I181: Almenni lífeyrissjóðurinn | L181: Stapi lífeyrissjóður | M181: Stafir lífeyrissjóður | N181: Frjálsi lífeyris-sjóðurinn | O181: Söfnunarsj. lífeyris-réttinda | P181: Festa lífeyrissjóður | Q181: Lífeyrissjóður stm. Reykjavíkurb. | R181: Lífeyrissjóður bankamanna | T181: Lífeyrissjóður verkfræðinga | U181: Íslenski lífeyris-sjóðurinn | V181: Lífeyrissj. stm. sveitarfél. | X181: Lífeyrissjóður Vestfirðinga | Y181: Lífeyrissjóður Vestmanna-eyja | Z181: Lífeyrissjóður hjúkrunar-fræðinga | AA181: Lífeyrissjóður bænda | AB181: Eftirlaunasj. FÍA | AC181: Lífeyrissjóður stm. Búnaðarb. Ísl. | AD181: Kjölur lífeyrissjóður | AE181: Eftirlaunasj. stm. Glitnis banka hf. | AF181: Lífeyrissjóður stm. Akureyrarb. | AG181: Lífeyrissjóður Rangæinga | AH181: Lífeyrissjóður Tannlæknafél. Íslands | AI181: Lífeyrissjóður stm. Kópavogsb. | AJ181: Eftirlaunasj. stm. Hafnarfjarðark. | AK181: Eftirlaunasj. Reykjanes-bæjar | AL181: Lífeyrissjóður Akranes-kaupstaðar | AM181: Eftirlaunasj. Sláturfélags Suðurlands | AN181: Lífeyrissjóður stm. Húsavíkurk. | AO181: Lífeyris-sjóðurinn Skjöldur | AP181: Lífeyrissjóður Nes-kaupstaðar | AQ181: Lífeyrissjóður Eimskipafél. Íslands hf. | AR181: Lífeyrissjóður stm. Vestm.eyjab. | AS181: Eftirlaunasj. stm. Útvegsb. Ísl. | AU181: Lífeyrissj. Samtals
E183: Samtryggingardeild | F183: Samtryggingardeild | L183: Tryggingardeild | M183: Samtryggingardeild | N183: Samtryggingardeild | O183: Samtryggingardeild | Q183: Samtryggingardeild | T183: Samtryggingardeild | U183: Samtryggingardeild | X183: Samtryggingardeild | Y183: Samtryggingardeild | Z183: Samtryggingardeild | AA183: Samtryggingardeild | AC183: Samtryggingardeild | AD183: Samtryggingardeild | AF183: Samtryggingardeild | AG183: Samtryggingardeild | AH183: Samtryggingardeild | AI183: Samtryggingardeild | AL183: Samtryggingardeild | AN183: Samtryggingardeild | AO183: Samtryggingardeild | AP183: Samtryggingardeild | AQ183: Samtryggingardeild | AR183: Deild I
A184: Fjárhæðir í þús. kr. | C184: (1) | E184: (2) | F184: (3) | G184: (4) | J184: (5) | L184: (6) | M184: (7) | N184: (8) | O184: (9) | P184: (10) | Q184: (11) | R184: (12) | T184: (13) | U184: (14) | V184: (15) | X184: (16) | Y184: (17) | Z184: (18) | AA184: (19) | AB184: (20) | AC184: (21) | AD184: (22) | AE184: (23) | AF184: (24) | AG184: (25) | AH184: (26) | AI184: (27) | AJ184: (28) | AK184: (29) | AL184: (30) | AM184: (31) | AN184: (32) | AO184: (33) | AP184: (34) | AQ184: (35) | AR184: (36) | AS184: (37)
C185: A-deild | D185: B-deild | G185: Aldurstengd | H185: Stigadeild | I185: Eftirlaunadeild | J185: Lífeyrisdeild | K185: Tryggingadeild | R185: Hlutfallsdeild | S185: Stigadeild | V185: A-deild | W185: V-deild
A186: Lífeyrir | C186: 446360 | D186: 15435149 | E186: 3946875 | F186: 5765931 | G186: 23498 | H186: 2262492 | I186: 0 | J186: 540407 | K186: 136716 | L186: 1970518 | M186: 1624450 | N186: 130704 | O186: 637592 | P186: 1225013 | Q186: 1933002 | R186: 979262 | S186: 42568 | T186: 265549 | U186: 10677 | V186: 264980 | W186: 8385 | X186: 603020 | Y186: 527038 | Z186: 1129044 | AA186: 793272 | AB186: 485459 | AC186: 427579 | AD186: 475551 | AE186: 193233 | AF186: 274934 | AG186: 95649 | AH186: 1947 | AI186: 168123 | AJ186: 106070 | AK186: 50785 | AL186: 146617 | AM186: 41749 | AN186: 50421 | AO186: 42837 | AP186: 60277 | AQ186: 29062 | AR186: 79211 | AS186: 198151 | AU186: =SUM(C186:AT186) -> 43630157
A187: Ellilífeyrir (%) | C187: 22.7 | D187: 75.6 | E187: 64 | F187: 57.5 | G187: 32.1 | H187: 67.1 | I187: 0 | J187: 100 | K187: 0 | L187: 59.8 | M187: 68.1 | N187: 30.7 | O187: 62.3 | P187: 57.1 | Q187: 70.7 | R187: 81.5 | S187: 43.9 | T187: 78.2 | U187: 2.5 | V187: 50.1 | W187: 25.1 | X187: 53 | Y187: 48.6 | Z187: 86.9 | AA187: 78.4 | AB187: 84.6 | AC187: 80.8 | AD187: 72.7 | AE187: 82.2 | AF187: 75.3 | AG187: 68.8 | AH187: 65.6 | AI187: 70.3 | AJ187: 76.6 | AK187: 74.2 | AL187: 71.8 | AM187: 83.9 | AN187: 73 | AO187: 74 | AP187: 72.1 | AQ187: 88.4 | AR187: 56.3 | AS187: 71.6
A188: Örorkulífeyrir (%) | C188: 64.7 | D188: 4.1 | E188: 24 | F188: 33.2 | G188: 43.1 | H188: 18.1 | I188: 0 | J188: 0 | K188: 47.6 | L188: 29.6 | M188: 16.6 | N188: 51.7 | O188: 28.7 | P188: 33.9 | Q188: 22.6 | R188: 5.9 | S188: 45.7 | T188: 7.3 | U188: 82 | V188: 39 | W188: 62.2 | X188: 33.3 | Y188: 38.8 | Z188: 0 | AA188: 12.2 | AB188: 6.2 | AC188: 4.6 | AD188: 6 | AE188: 0.2 | AF188: 5.9 | AG188: 23 | AH188: 25.8 | AI188: 10.1 | AJ188: 19 | AK188: 5.7 | AL188: 11 | AM188: 10.5 | AN188: 9.1 | AO188: 1 | AP188: 4.2 | AQ188: 0 | AR188: 12.7 | AS188: 2.7
A189: Makalífeyrir (%) | C189: 3.9 | D189: 20.2 | E189: 9.7 | F189: 7.8 | G189: 9.4 | H189: 13.4 | I189: 0 | J189: 0 | K189: 47.3 | L189: 8.6 | M189: 14.2 | N189: 12.3 | O189: 7.3 | P189: 7 | Q189: 6.6 | R189: 12.4 | S189: 9.1 | T189: 12.5 | U189: 15.4 | V189: 4.3 | W189: 1.5 | X189: 11.1 | Y189: 10.5 | Z189: 10.1 | AA189: 8.4 | AB189: 8.6 | AC189: 14.3 | AD189: 21.2 | AE189: 17.6 | AF189: 18.6 | AG189: 6.2 | AH189: 8.6 | AI189: 19.6 | AJ189: 4.2 | AK189: 20 | AL189: 17 | AM189: 5.6 | AN189: 17.2 | AO189: 25 | AP189: 23.7 | AQ189: 11.6 | AR189: 30.3 | AS189: 25.5
A190: Barnalífeyrir (%) | C190: 8.7 | D190: 0.1 | E190: 2.3 | F190: 1.5 | G190: 6.8 | H190: 1.3 | I190: 0 | J190: 0 | K190: 5.1 | L190: 2 | M190: 1.1 | N190: 5.3 | O190: 1.7 | P190: 2 | Q190: 0.2 | R190: 0.2 | S190: 1.3 | T190: 2 | U190: 0 | V190: 6.6 | W190: 11.2 | X190: 2.6 | Y190: 2.1 | Z190: 2.8 | AA190: 1 | AB190: 0.6 | AC190: 0.3 | AD190: 0.1 | AE190: 0 | AF190: 0.2 | AG190: 2 | AH190: 0 | AI190: 0 | AJ190: 0.2 | AK190: 0.1 | AL190: 0.2 | AM190: 0 | AN190: 0.7 | AO190: 0 | AP190: 0 | AQ190: 0 | AR190: 0.7 | AS190: 0.2
A191: Annar lífeyrir (%) | C191: 0 | D191: 0 | E191: 0 | F191: 0 | G191: 8.6 | H191: 0.1 | I191: 0 | J191: 0 | K191: 0 | L191: 0 | M191: 0 | N191: 0 | O191: 0 | P191: 0 | Q191: 0 | R191: 0 | S191: 0 | T191: 0 | U191: 0.2 | V191: 0 | W191: 0 | X191: 0 | Y191: 0 | Z191: 0.2 | AA191: 0 | AB191: 0 | AC191: 0 | AD191: 0 | AE191: 0 | AF191: 0 | AG191: 0 | AH191: 0 | AI191: 0 | AJ191: 0 | AK191: 0 | AL191: 0 | AM191: 0 | AN191: 0 | AO191: 0 | AP191: 0 | AQ191: 0 | AR191: 0 | AS191: 0
A193: Ellilífeyrir | C193: =C$186*C187% -> 101323.72 | D193: =D$186*D187% -> 11668972.64 | E193: 2526000 | F193: 3315410.325 | G193: 7542.858 | H193: 1518132.132 | I193: 0 | J193: 540407 | K193: 0 | L193: 1178369.764 | M193: 1106250.45 | N193: 40126.128 | O193: 397219.816 | P193: 699482.423 | Q193: 1366632.414 | R193: 798098.53 | S193: 18687.352 | T193: 207659.318 | U193: 266.925 | V193: 132754.98 | W193: 2104.635 | X193: 319600.6 | Y193: 256140.468 | Z193: 981139.236 | AA193: 621925.248 | AB193: 410698.314 | AC193: 345483.832 | AD193: 345725.577 | AE193: 158837.526 | AF193: 207025.302 | AG193: 65806.512 | AH193: 1277.232 | AI193: 118190.469 | AJ193: 81249.62 | AK193: 37682.47 | AL193: 105271.006 | AM193: 35027.411 | AN193: 36807.33 | AO193: 31699.38 | AP193: 43459.717 | AQ193: 25690.808 | AR193: 44595.793 | AS193: 141876.116 | AU193: =SUM(C193:AS193) -> 30040651.38
A194: Örorkulífeyrir | C194: =C$186*C188% -> 288794.92 | D194: =D$186*D188% -> 632841.109 | E194: 947250 | F194: 1914289.092 | G194: 10127.638 | H194: 409511.052 | I194: 0 | J194: 0 | K194: 65076.816 | L194: 583273.328 | M194: 269658.7 | N194: 67573.968 | O194: 182988.904 | P194: 415279.407 | Q194: 436858.452 | R194: 57776.458 | S194: 19453.576 | T194: 19385.077 | U194: 8755.14 | V194: 103342.2 | W194: 5215.47 | X194: 200805.66 | Y194: 204490.744 | Z194: 0 | AA194: 96779.184 | AB194: 30098.458 | AC194: 19668.634 | AD194: 28533.06 | AE194: 386.466 | AF194: 16221.106 | AG194: 21999.27 | AH194: 502.326 | AI194: 16980.423 | AJ194: 20153.3 | AK194: 2894.745 | AL194: 16127.87 | AM194: 4383.645 | AN194: 4588.311 | AO194: 428.37 | AP194: 2531.634 | AQ194: 0 | AR194: 10059.797 | AS194: 5350.077 | AU194: =SUM(C194:AS194) -> 7140434.387
A195: Makalífeyrir | C195: =C$186*C189% -> 17408.04 | D195: 3117900.098 | E195: 382846.875 | F195: 449742.618 | G195: 2208.812 | H195: 303173.928 | I195: 0 | J195: 0 | K195: 64666.668 | L195: 169464.548 | M195: 230671.9 | N195: 16076.592 | O195: 46544.216 | P195: 85750.91 | Q195: 127578.132 | R195: 121428.488 | S195: 3873.688 | T195: 33193.625 | U195: 1644.258 | V195: 11394.14 | W195: 125.775 | X195: 66935.22 | Y195: 55338.99 | Z195: 114033.444 | AA195: 66634.848 | AB195: 41749.474 | AC195: 61143.797 | AD195: 100816.812 | AE195: 34009.008 | AF195: 51137.724 | AG195: 5930.238 | AH195: 167.442 | AI195: 32952.108 | AJ195: 4454.94 | AK195: 10157 | AL195: 24924.89 | AM195: 2337.944 | AN195: 8672.412 | AO195: 10709.25 | AP195: 14285.649 | AQ195: 3371.192 | AR195: 24000.933 | AS195: 50528.505 | AU195: =SUM(C195:AS195) -> 5969985.131
A196: Barnalífeyrir | C196: =C$186*C190% -> 38833.32 | D196: 15435.149 | E196: 90778.125 | F196: 86488.965 | G196: 1597.864 | H196: 29412.396 | I196: 0 | J196: 0 | K196: 6972.516 | L196: 39410.36 | M196: 17868.95 | N196: 6927.312 | O196: 10839.064 | P196: 24500.26 | Q196: 3866.004 | R196: 1958.524 | S196: 553.384 | T196: 5310.98 | U196: 0 | V196: 17488.68 | W196: 939.12 | X196: 15678.52 | Y196: 11067.798 | Z196: 31613.232 | AA196: 7932.72 | AB196: 2912.754 | AC196: 1282.737 | AD196: 475.551 | AE196: 0 | AF196: 549.868 | AG196: 1912.98 | AH196: 0 | AI196: 0 | AJ196: 212.14 | AK196: 50.785 | AL196: 293.234 | AM196: 0 | AN196: 352.947 | AO196: 0 | AP196: 0 | AQ196: 0 | AR196: 554.477 | AS196: 396.302 | AU196: =SUM(C196:AS196) -> 474467.018
A197: Annar lífeyrir | C197: =C$186*C191% -> 0 | D197: 0 | E197: 0 | F197: 0 | G197: 2020.828 | H197: 2262.492 | I197: 0 | J197: 0 | K197: 0 | L197: 0 | M197: 0 | N197: 0 | O197: 0 | P197: 0 | Q197: 0 | R197: 0 | S197: 0 | T197: 0 | U197: 21.354 | V197: 0 | W197: 0 | X197: 0 | Y197: 0 | Z197: 2258.088 | AA197: 0 | AB197: 0 | AC197: 0 | AD197: 0 | AE197: 0 | AF197: 0 | AG197: 0 | AH197: 0 | AI197: 0 | AJ197: 0 | AK197: 0 | AL197: 0 | AM197: 0 | AN197: 0 | AO197: 0 | AP197: 0 | AQ197: 0 | AR197: 0 | AS197: 0 | AU197: =SUM(C197:AS197) -> 6562.762
